Workbook

Sheet Information
A2: Trend Based Capex Forecast
A4: Purpose
A5: Calculate forecast of trend based driver categories.
A7: Context
A8: Historical capital expenditure spent for substation building is listed in "Historical Capex (Class BLD)" sheet. Conversion (to real 21/22) and calculations are performed on this sheet.
A9: Historical project expenditure information for security/compliance and other network drivers are listed in "Historic Capex (Project)" sheet. Conversion (to real 21/22) and calculations are performed on this sheet.
A10: For security / compliance and other network projects, specific projects are identified to be excluded from the trend calculation, based on either (a) project is non-repeatable; or (b) project cost exceeds 2x standard deviations above the mean.
A11: The "Category Significance Calc" sheet calculates the limit for each project category.
A12: Tool expenditure is a non-network capital expenditure and is an individual item reported. Hence, there is no project listing.
A13: Each category has its own worksheet. The output of each goes into the capex model.

Sheet Historical Capex (Class BLD)
B2: Asset Class Building Information | N2: Expenditure, Real 20/21, $
C3: Nominal $ | D3: Nominal $ | E3: Nominal $ | F3: Nominal $ | G3: Nominal $ | H3: Nominal $ | I3: Nominal $ | J3: Nominal $ | K3: Nominal $ | L3: Nominal $ | N3: 11 | O3: 12 | P3: 13 | Q3: 14 | R3: 15 | S3: 16 | T3: 17 | U3: 18 | V3: 19 | W3: 20
A4: Asset ID | B4: Asset Description | C4: Actuals 10/11 | D4: Actuals 11/12 | E4: Actuals 12/13 | F4: Actuals 13/14 | G4: Actuals 14/15 | H4: Actuals 15/16 | I4: Actuals 16/17 | J4: Actuals 17/18 | K4: Actuals 18/19 | L4: Actuals 19/20 | N4: Real 11 | O4: Real 12 | P4: Real 13 | Q4: Real 14 | R4: Real 15 | S4: Real 16 | T4: Real 17 | U4: Real 18 | V4: Real 19 | W4: Real 20
A5: 105985 | B5: BUILDING | C5: -1188.41 | N5: =C5*CPI[11] -> -1451.846669 | O5: =D5*CPI[12] -> 0 | P5: =E5*CPI[13] -> 0 | Q5: =F5*CPI[14] -> 0 | R5: =G5*CPI[15] -> 0 | S5: =H5*CPI[16] -> 0 | T5: =I5*CPI[17] -> 0 | U5: =J5*CPI[18] -> 0 | V5: =K5*CPI[19] -> 0 | W5: =L5*CPI[20] -> 0
A6: 106128 | B6: BUILDING | C6: -2079.71 | N6: =C6*CPI[11] -> -2540.722508 | O6: =D6*CPI[12] -> 0 | P6: =E6*CPI[13] -> 0 | Q6: =F6*CPI[14] -> 0 | R6: =G6*CPI[15] -> 0 | S6: =H6*CPI[16] -> 0 | T6: =I6*CPI[17] -> 0 | U6: =J6*CPI[18] -> 0 | V6: =K6*CPI[19] -> 0 | W6: =L6*CPI[20] -> 0
A7: 117068 | B7: AMENITIES BUILDING +1 | C7: 0.99 | N7: =C7*CPI[11] -> 1.20945482 | O7: =D7*CPI[12] -> 0 | P7: =E7*CPI[13] -> 0 | Q7: =F7*CPI[14] -> 0 | R7: =G7*CPI[15] -> 0 | S7: =H7*CPI[16] -> 0 | T7: =I7*CPI[17] -> 0 | U7: =J7*CPI[18] -> 0 | V7: =K7*CPI[19] -> 0 | W7: =L7*CPI[20] -> 0
A8: 117069 | B8: COMMUNICATIONS BUILDING +2 | C8: 2.88 | N8: =C8*CPI[11] -> 3.518414021 | O8: =D8*CPI[12] -> 0 | P8: =E8*CPI[13] -> 0 | Q8: =F8*CPI[14] -> 0 | R8: =G8*CPI[15] -> 0 | S8: =H8*CPI[16] -> 0 | T8: =I8*CPI[17] -> 0 | U8: =J8*CPI[18] -> 0 | V8: =K8*CPI[19] -> 0 | W8: =L8*CPI[20] -> 0
A9: 117070 | B9: WORK SHED +3 | C9: 1.04 | N9: =C9*CPI[11] -> 1.270538396 | O9: =D9*CPI[12] -> 0 | P9: =E9*CPI[13] -> 0 | Q9: =F9*CPI[14] -> 0 | R9: =G9*CPI[15] -> 0 | S9: =H9*CPI[16] -> 0 | T9: =I9*CPI[17] -> 0 | U9: =J9*CPI[18] -> 0 | V9: =K9*CPI[19] -> 0 | W9: =L9*CPI[20] -> 0
A10: 117071 | B10: CONTROL BUILDING +4 =D07,D23,D29 | C10: 0.99 | D10: 73176.25 | N10: =C10*CPI[11] -> 1.20945482 | O10: =D10*CPI[12] -> 86899.08037 | P10: =E10*CPI[13] -> 0 | Q10: =F10*CPI[14] -> 0 | R10: =G10*CPI[15] -> 0 | S10: =H10*CPI[16] -> 0 | T10: =I10*CPI[17] -> 0 | U10: =J10*CPI[18] -> 0 | V10: =K10*CPI[19] -> 0 | W10: =L10*CPI[20] -> 0
A11: 117072 | B11: CONTROL BUILDING +5 =D02,D08,D26 | C11: 0.99 | D11: 73176.23 | N11: =C11*CPI[11] -> 1.20945482 | O11: =D11*CPI[12] -> 86899.05662 | P11: =E11*CPI[13] -> 0 | Q11: =F11*CPI[14] -> 0 | R11: =G11*CPI[15] -> 0 | S11: =H11*CPI[16] -> 0 | T11: =I11*CPI[17] -> 0 | U11: =J11*CPI[18] -> 0 | V11: =K11*CPI[19] -> 0 | W11: =L11*CPI[20] -> 0
A12: 117091 | B12: WORK SHED +3 | C12: 1590.02 | N12: =C12*CPI[11] -> 1942.482174 | O12: =D12*CPI[12] -> 0 | P12: =E12*CPI[13] -> 0 | Q12: =F12*CPI[14] -> 0 | R12: =G12*CPI[15] -> 0 | S12: =H12*CPI[16] -> 0 | T12: =I12*CPI[17] -> 0 | U12: =J12*CPI[18] -> 0 | V12: =K12*CPI[19] -> 0 | W12: =L12*CPI[20] -> 0
A13: 117092 | B13: AMENITIES BUILDING +1 | C13: 43315.27 | N13: =C13*CPI[11] -> 52917.03239 | O13: =D13*CPI[12] -> 0 | P13: =E13*CPI[13] -> 0 | Q13: =F13*CPI[14] -> 0 | R13: =G13*CPI[15] -> 0 | S13: =H13*CPI[16] -> 0 | T13: =I13*CPI[17] -> 0 | U13: =J13*CPI[18] -> 0 | V13: =K13*CPI[19] -> 0 | W13: =L13*CPI[20] -> 0
A14: 119034 | B14: TESLA BLDG - STORES (Demountable -Training) | C14: 53879.5 | N14: =C14*CPI[11] -> 65823.05147 | O14: =D14*CPI[12] -> 0 | P14: =E14*CPI[13] -> 0 | Q14: =F14*CPI[14] -> 0 | R14: =G14*CPI[15] -> 0 | S14: =H14*CPI[16] -> 0 | T14: =I14*CPI[17] -> 0 | U14: =J14*CPI[18] -> 0 | V14: =K14*CPI[19] -> 0 | W14: =L14*CPI[20] -> 0
A15: 119035 | B15: BUILDING +4 | C15: 27307.64 | D15: 3317.6 | N15: =C15*CPI[11] -> 33360.96648 | O15: =D15*CPI[12] -> 3939.753527 | P15: =E15*CPI[13] -> 0 | Q15: =F15*CPI[14] -> 0 | R15: =G15*CPI[15] -> 0 | S15: =H15*CPI[16] -> 0 | T15: =I15*CPI[17] -> 0 | U15: =J15*CPI[18] -> 0 | V15: =K15*CPI[19] -> 0 | W15: =L15*CPI[20] -> 0
A16: 119036 | B16: BUILDING +5 | C16: 27307.64 | D16: 3317.6 | N16: =C16*CPI[11] -> 33360.96648 | O16: =D16*CPI[12] -> 3939.753527 | P16: =E16*CPI[13] -> 0 | Q16: =F16*CPI[14] -> 0 | R16: =G16*CPI[15] -> 0 | S16: =H16*CPI[16] -> 0 | T16: =I16*CPI[17] -> 0 | U16: =J16*CPI[18] -> 0 | V16: =K16*CPI[19] -> 0 | W16: =L16*CPI[20] -> 0
A17: 119037 | B17: BUILDING +7 | C17: 27318.14 | D17: 3317.6 | N17: =C17*CPI[11] -> 33373.79403 | O17: =D17*CPI[12] -> 3939.753527 | P17: =E17*CPI[13] -> 0 | Q17: =F17*CPI[14] -> 0 | R17: =G17*CPI[15] -> 0 | S17: =H17*CPI[16] -> 0 | T17: =I17*CPI[17] -> 0 | U17: =J17*CPI[18] -> 0 | V17: =K17*CPI[19] -> 0 | W17: =L17*CPI[20] -> 0
A18: 119365 | B18: WORKSHOP +4 | C18: 133.51 | N18: =C18*CPI[11] -> 163.1053666 | O18: =D18*CPI[12] -> 0 | P18: =E18*CPI[13] -> 0 | Q18: =F18*CPI[14] -> 0 | R18: =G18*CPI[15] -> 0 | S18: =H18*CPI[16] -> 0 | T18: =I18*CPI[17] -> 0 | U18: =J18*CPI[18] -> 0 | V18: =K18*CPI[19] -> 0 | W18: =L18*CPI[20] -> 0
A19: 119594 | B19: BUILDING '1' COMMS/CONTROL & AMENITIES | C19: 374141.88 | E19: -329.62 | N19: =C19*CPI[11] -> 457078.4848 | O19: =D19*CPI[12] -> 0 | P19: =E19*CPI[13] -> -381.5227048 | Q19: =F19*CPI[14] -> 0 | R19: =G19*CPI[15] -> 0 | S19: =H19*CPI[16] -> 0 | T19: =I19*CPI[17] -> 0 | U19: =J19*CPI[18] -> 0 | V19: =K19*CPI[19] -> 0 | W19: =L19*CPI[20] -> 0
A20: 119601 | B20: BUILDING '2' TOOLS & STORAGE SHED | C20: 42086.78 | N20: =C20*CPI[11] -> 51416.22113 | O20: =D20*CPI[12] -> 0 | P20: =E20*CPI[13] -> 0 | Q20: =F20*CPI[14] -> 0 | R20: =G20*CPI[15] -> 0 | S20: =H20*CPI[16] -> 0 | T20: =I20*CPI[17] -> 0 | U20: =J20*CPI[18] -> 0 | V20: =K20*CPI[19] -> 0 | W20: =L20*CPI[20] -> 0
A21: 120408 | B21: CONTROL BUILDING +7 132/110kV | C21: 206647.04 | N21: =C21*CPI[11] -> 252454.8066 | O21: =D21*CPI[12] -> 0 | P21: =E21*CPI[13] -> 0 | Q21: =F21*CPI[14] -> 0 | R21: =G21*CPI[15] -> 0 | S21: =H21*CPI[16] -> 0 | T21: =I21*CPI[17] -> 0 | U21: =J21*CPI[18] -> 0 | V21: =K21*CPI[19] -> 0 | W21: =L21*CPI[20] -> 0
A22: 120520 | B22: AMENITIES BUILDING +1 | C22: 92674.14 | D22: 6324.26 | N22: =C22*CPI[11] -> 113217.3589 | O22: =D22*CPI[12] -> 7510.256101 | P22: =E22*CPI[13] -> 0 | Q22: =F22*CPI[14] -> 0 | R22: =G22*CPI[15] -> 0 | S22: =H22*CPI[16] -> 0 | T22: =I22*CPI[17] -> 0 | U22: =J22*CPI[18] -> 0 | V22: =K22*CPI[19] -> 0 | W22: =L22*CPI[20] -> 0
A23: 120521 | B23: COMMUNICATIONS BUILDING +2 | C23: 117948.91 | D23: 8049.05 | N23: =C23*CPI[11] -> 144094.8259 | O23: =D23*CPI[12] -> 9558.498049 | P23: =E23*CPI[13] -> 0 | Q23: =F23*CPI[14] -> 0 | R23: =G23*CPI[15] -> 0 | S23: =H23*CPI[16] -> 0 | T23: =I23*CPI[17] -> 0 | U23: =J23*CPI[18] -> 0 | V23: =K23*CPI[19] -> 0 | W23: =L23*CPI[20] -> 0
A24: 120522 | B24: WORKSHOP +3 | C24: 46800.43 | N24: =C24*CPI[11] -> 57174.75316 | O24: =D24*CPI[12] -> 0 | P24: =E24*CPI[13] -> 0 | Q24: =F24*CPI[14] -> 0 | R24: =G24*CPI[15] -> 0 | S24: =H24*CPI[16] -> 0 | T24: =I24*CPI[17] -> 0 | U24: =J24*CPI[18] -> 0 | V24: =K24*CPI[19] -> 0 | W24: =L24*CPI[20] -> 0
A25: 120523 | B25: CONTROL BUILDING +4 | C25: 210623.04 | D25: 14373.31 | N25: =C25*CPI[11] -> 257312.1726 | O25: =D25*CPI[12] -> 17068.75415 | P25: =E25*CPI[13] -> 0 | Q25: =F25*CPI[14] -> 0 | R25: =G25*CPI[15] -> 0 | S25: =H25*CPI[16] -> 0 | T25: =I25*CPI[17] -> 0 | U25: =J25*CPI[18] -> 0 | V25: =K25*CPI[19] -> 0 | W25: =L25*CPI[20] -> 0
A26: 105063 | B26: CONTROL BUILDING +1 | D26: 122675.65 | N26: =C26*CPI[11] -> 0 | O26: =D26*CPI[12] -> 145681.1625 | P26: =E26*CPI[13] -> 0 | Q26: =F26*CPI[14] -> 0 | R26: =G26*CPI[15] -> 0 | S26: =H26*CPI[16] -> 0 | T26: =I26*CPI[17] -> 0 | U26: =J26*CPI[18] -> 0 | V26: =K26*CPI[19] -> 0 | W26: =L26*CPI[20] -> 0
A27: 121094 | B27: AMENITIES BUILDING +1 | D27: 99581.19 | E27: 10372.43 | F27: 218.46 | N27: =C27*CPI[11] -> 0 | O27: =D27*CPI[12] -> 118255.7706 | P27: =E27*CPI[13] -> 12005.6961 | Q27: =F27*CPI[14] -> 246.75354 | R27: =G27*CPI[15] -> 0 | S27: =H27*CPI[16] -> 0 | T27: =I27*CPI[17] -> 0 | U27: =J27*CPI[18] -> 0 | V27: =K27*CPI[19] -> 0 | W27: =L27*CPI[20] -> 0
A28: 121095 | B28: COMMUNICATIONS BUILDING +2 | D28: 165968.64 | E28: 85330.93 | F28: 2077.95 | G28: 314.5 | N28: =C28*CPI[11] -> 0 | O28: =D28*CPI[12] -> 197092.9391 | P28: =E28*CPI[13] -> 98767.3297 | Q28: =F28*CPI[14] -> 2347.072775 | R28: =G28*CPI[15] -> 347.4830269 | S28: =H28*CPI[16] -> 0 | T28: =I28*CPI[17] -> 0 | U28: =J28*CPI[18] -> 0 | V28: =K28*CPI[19] -> 0 | W28: =L28*CPI[20] -> 0
A29: 121096 | B29: SHED / WORKSHOP +3 | D29: 81273.11 | E29: 10372.43 | F29: 218.46 | N29: =C29*CPI[11] -> 0 | O29: =D29*CPI[12] -> 96514.35429 | P29: =E29*CPI[13] -> 12005.6961 | Q29: =F29*CPI[14] -> 246.75354 | R29: =G29*CPI[15] -> 0 | S29: =H29*CPI[16] -> 0 | T29: =I29*CPI[17] -> 0 | U29: =J29*CPI[18] -> 0 | V29: =K29*CPI[19] -> 0 | W29: =L29*CPI[20] -> 0
A30: 121097 | B30: CONTROL BUILDING +4 | D30: 207460.81 | E30: 10372.43 | F30: 218.46 | N30: =C30*CPI[11] -> 0 | O30: =D30*CPI[12] -> 246366.1858 | P30: =E30*CPI[13] -> 12005.6961 | Q30: =F30*CPI[14] -> 246.75354 | R30: =G30*CPI[15] -> 0 | S30: =H30*CPI[16] -> 0 | T30: =I30*CPI[17] -> 0 | U30: =J30*CPI[18] -> 0 | V30: =K30*CPI[19] -> 0 | W30: =L30*CPI[20] -> 0
A31: 121344 | B31: CONTROL BUILDING +2 | D31: 249901.92 | N31: =C31*CPI[11] -> 0 | O31: =D31*CPI[12] -> 296766.3283 | P31: =E31*CPI[13] -> 0 | Q31: =F31*CPI[14] -> 0 | R31: =G31*CPI[15] -> 0 | S31: =H31*CPI[16] -> 0 | T31: =I31*CPI[17] -> 0 | U31: =J31*CPI[18] -> 0 | V31: =K31*CPI[19] -> 0 | W31: =L31*CPI[20] -> 0
A32: 121895 | B32: BUILDING +3 (D31,35,37,38,43,49,57,75) | D32: 300525.63 | E32: 38.94 | N32: =C32*CPI[11] -> 0 | O32: =D32*CPI[12] -> 356883.5637 | P32: =E32*CPI[13] -> 45.07157977 | Q32: =F32*CPI[14] -> 0 | R32: =G32*CPI[15] -> 0 | S32: =H32*CPI[16] -> 0 | T32: =I32*CPI[17] -> 0 | U32: =J32*CPI[18] -> 0 | V32: =K32*CPI[19] -> 0 | W32: =L32*CPI[20] -> 0
A33: 121896 | B33: BUILDING +4 (D50,32,36,38,40,44,46) | D33: 300525.63 | E33: 38.94 | N33: =C33*CPI[11] -> 0 | O33: =D33*CPI[12] -> 356883.5637 | P33: =E33*CPI[13] -> 45.07157977 | Q33: =F33*CPI[14] -> 0 | R33: =G33*CPI[15] -> 0 | S33: =H33*CPI[16] -> 0 | T33: =I33*CPI[17] -> 0 | U33: =J33*CPI[18] -> 0 | V33: =K33*CPI[19] -> 0 | W33: =L33*CPI[20] -> 0
A34: 121897 | B34: BUILDING +5 (D56,62,64,68,74,76) | D34: 300525.63 | E34: 38.94 | N34: =C34*CPI[11] -> 0 | O34: =D34*CPI[12] -> 356883.5637 | P34: =E34*CPI[13] -> 45.07157977 | Q34: =F34*CPI[14] -> 0 | R34: =G34*CPI[15] -> 0 | S34: =H34*CPI[16] -> 0 | T34: =I34*CPI[17] -> 0 | U34: =J34*CPI[18] -> 0 | V34: =K34*CPI[19] -> 0 | W34: =L34*CPI[20] -> 0
A35: 122180 | B35: CONTROL BUILDING +1 | D35: 275538.35 | E35: 13147.72 | F35: 218.46 | N35: =C35*CPI[11] -> 0 | O35: =D35*CPI[12] -> 327210.3889 | P35: =E35*CPI[13] -> 15217.98949 | Q35: =F35*CPI[14] -> 246.75354 | R35: =G35*CPI[15] -> 0 | S35: =H35*CPI[16] -> 0 | T35: =I35*CPI[17] -> 0 | U35: =J35*CPI[18] -> 0 | V35: =K35*CPI[19] -> 0 | W35: =L35*CPI[20] -> 0
A36: 122181 | B36: CONTROL BUILDING +2 | D36: 275538.35 | E36: 88106.22 | F36: 2077.95 | G36: 314.5 | N36: =C36*CPI[11] -> 0 | O36: =D36*CPI[12] -> 327210.3889 | P36: =E36*CPI[13] -> 101979.6231 | Q36: =F36*CPI[14] -> 2347.072775 | R36: =G36*CPI[15] -> 347.4830269 | S36: =H36*CPI[16] -> 0 | T36: =I36*CPI[17] -> 0 | U36: =J36*CPI[18] -> 0 | V36: =K36*CPI[19] -> 0 | W36: =L36*CPI[20] -> 0
A37: 122182 | B37: AMENITIES BUILDING +3 | D37: 137769.19 | E37: 11760.07 | F37: 218.46 | N37: =C37*CPI[11] -> 0 | O37: =D37*CPI[12] -> 163605.2123 | P37: =E37*CPI[13] -> 13611.83701 | Q37: =F37*CPI[14] -> 246.75354 | R37: =G37*CPI[15] -> 0 | S37: =H37*CPI[16] -> 0 | T37: =I37*CPI[17] -> 0 | U37: =J37*CPI[18] -> 0 | V37: =K37*CPI[19] -> 0 | W37: =L37*CPI[20] -> 0
A38: 122230 | B38: COMMUNICATIONS BUILDING +2 | D38: 224869.99 | E38: 3187.72 | N38: =C38*CPI[11] -> 0 | O38: =D38*CPI[12] -> 267040.1303 | P38: =E38*CPI[13] -> 3689.665544 | Q38: =F38*CPI[14] -> 0 | R38: =G38*CPI[15] -> 0 | S38: =H38*CPI[16] -> 0 | T38: =I38*CPI[17] -> 0 | U38: =J38*CPI[18] -> 0 | V38: =K38*CPI[19] -> 0 | W38: =L38*CPI[20] -> 0
A39: 122246 | B39: BUILDING +2 275Kv BAYS =C01,2,4,5,10 | D39: 283807.72 | E39: -98.88 | N39: =C39*CPI[11] -> 0 | O39: =D39*CPI[12] -> 337030.5238 | P39: =E39*CPI[13] -> -114.4498667 | Q39: =F39*CPI[14] -> 0 | R39: =G39*CPI[15] -> 0 | S39: =H39*CPI[16] -> 0 | T39: =I39*CPI[17] -> 0 | U39: =J39*CPI[18] -> 0 | V39: =K39*CPI[19] -> 0 | W39: =L39*CPI[20] -> 0
A40: 122247 | B40: BUILDING +3 132Kv BAYS =D01 to D07 | D40: 283807.72 | E40: -98.88 | N40: =C40*CPI[11] -> 0 | O40: =D40*CPI[12] -> 337030.5238 | P40: =E40*CPI[13] -> -114.4498667 | Q40: =F40*CPI[14] -> 0 | R40: =G40*CPI[15] -> 0 | S40: =H40*CPI[16] -> 0 | T40: =I40*CPI[17] -> 0 | U40: =J40*CPI[18] -> 0 | V40: =K40*CPI[19] -> 0 | W40: =L40*CPI[20] -> 0
A41: 122518 | B41: BUILDING +1 | D41: 941255.37 | E41: 295.37 | N41: =C41*CPI[11] -> 0 | O41: =D41*CPI[12] -> 1117770.124 | P41: =E41*CPI[13] -> 341.8796229 | Q41: =F41*CPI[14] -> 0 | R41: =G41*CPI[15] -> 0 | S41: =H41*CPI[16] -> 0 | T41: =I41*CPI[17] -> 0 | U41: =J41*CPI[18] -> 0 | V41: =K41*CPI[19] -> 0 | W41: =L41*CPI[20] -> 0
A42: 122558 | B42: CONTROL BUILDING | D42: 279435.19 | E42: 87.68 | N42: =C42*CPI[11] -> 0 | O42: =D42*CPI[12] -> 331838.008 | P42: =E42*CPI[13] -> 101.4862895 | Q42: =F42*CPI[14] -> 0 | R42: =G42*CPI[15] -> 0 | S42: =H42*CPI[16] -> 0 | T42: =I42*CPI[17] -> 0 | U42: =J42*CPI[18] -> 0 | V42: =K42*CPI[19] -> 0 | W42: =L42*CPI[20] -> 0
A43: 122633 | B43: BUILDING '6' BAY=C10 | D43: 139983.91 | N43: =C43*CPI[11] -> 0 | O43: =D43*CPI[12] -> 166235.2614 | P43: =E43*CPI[13] -> 0 | Q43: =F43*CPI[14] -> 0 | R43: =G43*CPI[15] -> 0 | S43: =H43*CPI[16] -> 0 | T43: =I43*CPI[17] -> 0 | U43: =J43*CPI[18] -> 0 | V43: =K43*CPI[19] -> 0 | W43: =L43*CPI[20] -> 0
A44: 122800 | B44: AMENITIES BUILDING +1 | E44: 143265.25 | F44: 54256.09 | G44: 1314.17 | H44: -2455.44 | N44: =C44*CPI[11] -> 0 | O44: =D44*CPI[12] -> 0 | P44: =E44*CPI[13] -> 165824.1177 | Q44: =F44*CPI[14] -> 61282.99128 | R44: =G44*CPI[15] -> 1451.992908 | S44: =H44*CPI[16] -> -2667.523614 | T44: =I44*CPI[17] -> 0 | U44: =J44*CPI[18] -> 0 | V44: =K44*CPI[19] -> 0 | W44: =L44*CPI[20] -> 0
A45: 122801 | B45: WORKSHOP +3 | E45: 65624.2 | F45: 47654 | G45: 1235.99 | H45: -2455.44 | N45: =C45*CPI[11] -> 0 | O45: =D45*CPI[12] -> 0 | P45: =E45*CPI[13] -> 75957.53377 | Q45: =F45*CPI[14] -> 53825.84087 | R45: =G45*CPI[15] -> 1365.61382 | S45: =H45*CPI[16] -> -2667.523614 | T45: =I45*CPI[17] -> 0 | U45: =J45*CPI[18] -> 0 | V45: =K45*CPI[19] -> 0 | W45: =L45*CPI[20] -> 0
A46: 122802 | B46: CONTROL BUILDING +4 (275kV) | E46: 298469.26 | F46: 61408.34 | G46: 1398.87 | H46: -2455.44 | N46: =C46*CPI[11] -> 0 | O46: =D46*CPI[12] -> 0 | P46: =E46*CPI[13] -> 345466.8994 | Q46: =F46*CPI[14] -> 69361.55489 | R46: =G46*CPI[15] -> 1545.575777 | S46: =H46*CPI[16] -> -2667.523614 | T46: =I46*CPI[17] -> 0 | U46: =J46*CPI[18] -> 0 | V46: =K46*CPI[19] -> 0 | W46: =L46*CPI[20] -> 0
A47: 122803 | B47: CONTROL BUILDING +5 (275kV) | E47: 298469.26 | F47: 61408.34 | G47: 1398.87 | H47: -2455.44 | N47: =C47*CPI[11] -> 0 | O47: =D47*CPI[12] -> 0 | P47: =E47*CPI[13] -> 345466.8994 | Q47: =F47*CPI[14] -> 69361.55489 | R47: =G47*CPI[15] -> 1545.575777 | S47: =H47*CPI[16] -> -2667.523614 | T47: =I47*CPI[17] -> 0 | U47: =J47*CPI[18] -> 0 | V47: =K47*CPI[19] -> 0 | W47: =L47*CPI[20] -> 0
A48: 122804 | B48: CONTROL BUILDING +6 (132kV) | E48: 298469.26 | F48: 61408.35 | G48: 1398.87 | H48: -2455.44 | N48: =C48*CPI[11] -> 0 | O48: =D48*CPI[12] -> 0 | P48: =E48*CPI[13] -> 345466.8994 | Q48: =F48*CPI[14] -> 69361.56618 | R48: =G48*CPI[15] -> 1545.575777 | S48: =H48*CPI[16] -> -2667.523614 | T48: =I48*CPI[17] -> 0 | U48: =J48*CPI[18] -> 0 | V48: =K48*CPI[19] -> 0 | W48: =L48*CPI[20] -> 0
A49: 122952 | B49: CONTROL BUILDING +7 | E49: 300382.84 | K49: 91155.73 | L49: 24.89 | N49: =C49*CPI[11] -> 0 | O49: =D49*CPI[12] -> 0 | P49: =E49*CPI[13] -> 347681.796 | Q49: =F49*CPI[14] -> 0 | R49: =G49*CPI[15] -> 0 | S49: =H49*CPI[16] -> 0 | T49: =I49*CPI[17] -> 0 | U49: =J49*CPI[18] -> 0 | V49: =K49*CPI[19] -> 94126.20188 | W49: =L49*CPI[20] -> 25.24359479
A50: 123204 | B50: BUILDING +7 (132kV) | E50: 354143.52 | F50: 871.23 | N50: =C50*CPI[11] -> 0 | O50: =D50*CPI[12] -> 0 | P50: =E50*CPI[13] -> 409907.7533 | Q50: =F50*CPI[14] -> 984.0661296 | R50: =G50*CPI[15] -> 0 | S50: =H50*CPI[16] -> 0 | T50: =I50*CPI[17] -> 0 | U50: =J50*CPI[18] -> 0 | V50: =K50*CPI[19] -> 0 | W50: =L50*CPI[20] -> 0
A51: 123236 | B51: BUILDING +5 STORAGE SHED | E51: 118526.45 | N51: =C51*CPI[11] -> 0 | O51: =D51*CPI[12] -> 0 | P51: =E51*CPI[13] -> 137189.8908 | Q51: =F51*CPI[14] -> 0 | R51: =G51*CPI[15] -> 0 | S51: =H51*CPI[16] -> 0 | T51: =I51*CPI[17] -> 0 | U51: =J51*CPI[18] -> 0 | V51: =K51*CPI[19] -> 0 | W51: =L51*CPI[20] -> 0
A52: 123333 | B52: BUILDING 2 COMMS BUILDING | E52: 209161.04 | F52: 534.18 | N52: =C52*CPI[11] -> 0 | O52: =D52*CPI[12] -> 0 | P52: =E52*CPI[13] -> 242096.0067 | Q52: =F52*CPI[14] -> 603.3635723 | R52: =G52*CPI[15] -> 0 | S52: =H52*CPI[16] -> 0 | T52: =I52*CPI[17] -> 0 | U52: =J52*CPI[18] -> 0 | V52: =K52*CPI[19] -> 0 | W52: =L52*CPI[20] -> 0
A53: 123334 | B53: BUILDING 4 CONTROL BUILDING | E53: 400891.97 | F53: 1023.85 | N53: =C53*CPI[11] -> 0 | O53: =D53*CPI[12] -> 0 | P53: =E53*CPI[13] -> 464017.3191 | Q53: =F53*CPI[14] -> 1156.452494 | R53: =G53*CPI[15] -> 0 | S53: =H53*CPI[16] -> 0 | T53: =I53*CPI[17] -> 0 | U53: =J53*CPI[18] -> 0 | V53: =K53*CPI[19] -> 0 | W53: =L53*CPI[20] -> 0
A54: 123514 | B54: AMENITIES BUILDING +1 | E54: 211357.53 | F54: 16411.49 | G54: 70.41 | N54: =C54*CPI[11] -> 0 | O54: =D54*CPI[12] -> 0 | P54: =E54*CPI[13] -> 244638.3609 | Q54: =F54*CPI[14] -> 18537.00107 | R54: =G54*CPI[15] -> 77.79421279 | S54: =H54*CPI[16] -> 0 | T54: =I54*CPI[17] -> 0 | U54: =J54*CPI[18] -> 0 | V54: =K54*CPI[19] -> 0 | W54: =L54*CPI[20] -> 0
A55: 123515 | B55: COMMUNICATIONS BUILDING +2 | E55: 313513.66 | F55: 24343.74 | G55: 104.44 | N55: =C55*CPI[11] -> 0 | O55: =D55*CPI[12] -> 0 | P55: =E55*CPI[13] -> 362880.2243 | Q55: =F55*CPI[14] -> 27496.58529 | R55: =G55*CPI[15] -> 115.3930917 | S55: =H55*CPI[16] -> 0 | T55: =I55*CPI[17] -> 0 | U55: =J55*CPI[18] -> 0 | V55: =K55*CPI[19] -> 0 | W55: =L55*CPI[20] -> 0
A56: 123516 | B56: WORK SHED +3 | E56: 52839.38 | F56: 4102.88 | G56: 17.6 | N56: =C56*CPI[11] -> 0 | O56: =D56*CPI[12] -> 0 | P56: =E56*CPI[13] -> 61159.58733 | Q56: =F56*CPI[14] -> 4634.25874 | R56: =G56*CPI[15] -> 19.44579101 | S56: =H56*CPI[16] -> 0 | T56: =I56*CPI[17] -> 0 | U56: =J56*CPI[18] -> 0 | V56: =K56*CPI[19] -> 0 | W56: =L56*CPI[20] -> 0
A57: 123517 | B57: 132kV CONTROL BUILDING +4 | E57: 436805.55 | F57: 33917.1 | G57: 145.52 | N57: =C57*CPI[11] -> 0 | O57: =D57*CPI[12] -> 0 | P57: =E57*CPI[13] -> 505585.932 | Q57: =F57*CPI[14] -> 38309.82556 | R57: =G57*CPI[15] -> 160.7813357 | S57: =H57*CPI[16] -> 0 | T57: =I57*CPI[17] -> 0 | U57: =J57*CPI[18] -> 0 | V57: =K57*CPI[19] -> 0 | W57: =L57*CPI[20] -> 0
A58: 123518 | B58: COMMUNICATIONS BUILDING +4 | E58: 313513.66 | F58: 24343.74 | G58: 104.44 | N58: =C58*CPI[11] -> 0 | O58: =D58*CPI[12] -> 0 | P58: =E58*CPI[13] -> 362880.2243 | Q58: =F58*CPI[14] -> 27496.58529 | R58: =G58*CPI[15] -> 115.3930917 | S58: =H58*CPI[16] -> 0 | T58: =I58*CPI[17] -> 0 | U58: =J58*CPI[18] -> 0 | V58: =K58*CPI[19] -> 0 | W58: =L58*CPI[20] -> 0
A59: 123519 | B59: 132kV CONTROL BUILDING +5 | E59: 436805.55 | F59: 33917.1 | G59: 145.52 | N59: =C59*CPI[11] -> 0 | O59: =D59*CPI[12] -> 0 | P59: =E59*CPI[13] -> 505585.932 | Q59: =F59*CPI[14] -> 38309.82556 | R59: =G59*CPI[15] -> 160.7813357 | S59: =H59*CPI[16] -> 0 | T59: =I59*CPI[17] -> 0 | U59: =J59*CPI[18] -> 0 | V59: =K59*CPI[19] -> 0 | W59: =L59*CPI[20] -> 0
A60: 123579 | B60: CONTROL / AMENITIES BUILDING +4 | E60: 323377.14 | N60: =C60*CPI[11] -> 0 | O60: =D60*CPI[12] -> 0 | P60: =E60*CPI[13] -> 374296.83 | Q60: =F60*CPI[14] -> 0 | R60: =G60*CPI[15] -> 0 | S60: =H60*CPI[16] -> 0 | T60: =I60*CPI[17] -> 0 | U60: =J60*CPI[18] -> 0 | V60: =K60*CPI[19] -> 0 | W60: =L60*CPI[20] -> 0
A61: 104989 | B61: BUILDING | F61: 4485.06 | N61: =C61*CPI[11] -> 0 | O61: =D61*CPI[12] -> 0 | P61: =E61*CPI[13] -> 0 | Q61: =F61*CPI[14] -> 5065.936245 | R61: =G61*CPI[15] -> 0 | S61: =H61*CPI[16] -> 0 | T61: =I61*CPI[17] -> 0 | U61: =J61*CPI[18] -> 0 | V61: =K61*CPI[19] -> 0 | W61: =L61*CPI[20] -> 0
A62: 123655 | B62: 275kV CONTROL BUILDING +4 | F62: 304699.79 | G62: 38843.66 | H62: -635.07 | N62: =C62*CPI[11] -> 0 | O62: =D62*CPI[12] -> 0 | P62: =E62*CPI[13] -> 0 | Q62: =F62*CPI[14] -> 344162.5553 | R62: =G62*CPI[15] -> 42917.369 | S62: =H62*CPI[16] -> -689.922874 | T62: =I62*CPI[17] -> 0 | U62: =J62*CPI[18] -> 0 | V62: =K62*CPI[19] -> 0 | W62: =L62*CPI[20] -> 0
A63: 123656 | B63: 132kV CONTROL BUILDING +5 | F63: 304699.79 | G63: 38843.66 | H63: -635.07 | N63: =C63*CPI[11] -> 0 | O63: =D63*CPI[12] -> 0 | P63: =E63*CPI[13] -> 0 | Q63: =F63*CPI[14] -> 344162.5553 | R63: =G63*CPI[15] -> 42917.369 | S63: =H63*CPI[16] -> -689.922874 | T63: =I63*CPI[17] -> 0 | U63: =J63*CPI[18] -> 0 | V63: =K63*CPI[19] -> 0 | W63: =L63*CPI[20] -> 0
A64: 123953 | B64: BUILDING 1 | F64: 327615.22 | G64: 37.26 | N64: =C64*CPI[11] -> 0 | O64: =D64*CPI[12] -> 0 | P64: =E64*CPI[13] -> 0 | Q64: =F64*CPI[14] -> 370045.845 | R64: =G64*CPI[15] -> 41.16762347 | S64: =H64*CPI[16] -> 0 | T64: =I64*CPI[17] -> 0 | U64: =J64*CPI[18] -> 0 | V64: =K64*CPI[19] -> 0 | W64: =L64*CPI[20] -> 0
A65: 123954 | B65: COMMUNICATIONS BUILDING +2 | F65: 465342.25 | G65: 37.26 | N65: =C65*CPI[11] -> 0 | O65: =D65*CPI[12] -> 0 | P65: =E65*CPI[13] -> 0 | Q65: =F65*CPI[14] -> 525610.3978 | R65: =G65*CPI[15] -> 41.16762347 | S65: =H65*CPI[16] -> 0 | T65: =I65*CPI[17] -> 0 | U65: =J65*CPI[18] -> 0 | V65: =K65*CPI[19] -> 0 | W65: =L65*CPI[20] -> 0
A66: 123955 | B66: WORKSHED +3 | F66: 132580.2 | G66: 37.26 | N66: =C66*CPI[11] -> 0 | O66: =D66*CPI[12] -> 0 | P66: =E66*CPI[13] -> 0 | Q66: =F66*CPI[14] -> 149751.1384 | R66: =G66*CPI[15] -> 41.16762347 | S66: =H66*CPI[16] -> 0 | T66: =I66*CPI[17] -> 0 | U66: =J66*CPI[18] -> 0 | V66: =K66*CPI[19] -> 0 | W66: =L66*CPI[20] -> 0
A67: 123956 | B67: CONTROL BUILDING +4 | F67: 309884.75 | G67: 37.26 | N67: =C67*CPI[11] -> 0 | O67: =D67*CPI[12] -> 0 | P67: =E67*CPI[13] -> 0 | Q67: =F67*CPI[14] -> 350019.0381 | R67: =G67*CPI[15] -> 41.16762347 | S67: =H67*CPI[16] -> 0 | T67: =I67*CPI[17] -> 0 | U67: =J67*CPI[18] -> 0 | V67: =K67*CPI[19] -> 0 | W67: =L67*CPI[20] -> 0
A68: 123980 | B68: BUILDING +4 | F68: 385301.12 | G68: 1839.35 | N68: =C68*CPI[11] -> 0 | O68: =D68*CPI[12] -> 0 | P68: =E68*CPI[13] -> 0 | Q68: =F68*CPI[14] -> 435202.8533 | R68: =G68*CPI[15] -> 2032.250892 | S68: =H68*CPI[16] -> 0 | T68: =I68*CPI[17] -> 0 | U68: =J68*CPI[18] -> 0 | V68: =K68*CPI[19] -> 0 | W68: =L68*CPI[20] -> 0
A69: 124042 | B69: BUILDING +9 =B4 | F69: 351012.37 | G69: -5467.67 | H69: 26056.72 | N69: =C69*CPI[11] -> 0 | O69: =D69*CPI[12] -> 0 | P69: =E69*CPI[13] -> 0 | Q69: =F69*CPI[14] -> 396473.244 | R69: =G69*CPI[15] -> -6041.089099 | S69: =H69*CPI[16] -> 28307.31597 | T69: =I69*CPI[17] -> 0 | U69: =J69*CPI[18] -> 0 | V69: =K69*CPI[19] -> 0 | W69: =L69*CPI[20] -> 0
A70: 124488 | B70: AMENITIES BUILDING +1 | F70: 305514.63 | G70: 3150.25 | N70: =C70*CPI[11] -> 0 | O70: =D70*CPI[12] -> 0 | P70: =E70*CPI[13] -> 0 | Q70: =F70*CPI[14] -> 345082.9281 | R70: =G70*CPI[15] -> 3480.63086 | S70: =H70*CPI[16] -> 0 | T70: =I70*CPI[17] -> 0 | U70: =J70*CPI[18] -> 0 | V70: =K70*CPI[19] -> 0 | W70: =L70*CPI[20] -> 0
A71: 124489 | B71: WORK SHED BUILDING +3 | F71: 62427.34 | G71: 1142.49 | N71: =C71*CPI[11] -> 0 | O71: =D71*CPI[12] -> 0 | P71: =E71*CPI[13] -> 0 | Q71: =F71*CPI[14] -> 70512.52924 | R71: =G71*CPI[15] -> 1262.308055 | S71: =H71*CPI[16] -> 0 | T71: =I71*CPI[17] -> 0 | U71: =J71*CPI[18] -> 0 | V71: =K71*CPI[19] -> 0 | W71: =L71*CPI[20] -> 0
A72: 124490 | B72: 275kV CONTROL BUILDING +6 | F72: 381183.79 | G72: 3663.25 | N72: =C72*CPI[11] -> 0 | O72: =D72*CPI[12] -> 0 | P72: =E72*CPI[13] -> 0 | Q72: =F72*CPI[14] -> 430552.2731 | R72: =G72*CPI[15] -> 4047.431473 | S72: =H72*CPI[16] -> 0 | T72: =I72*CPI[17] -> 0 | U72: =J72*CPI[18] -> 0 | V72: =K72*CPI[19] -> 0 | W72: =L72*CPI[20] -> 0
A73: 124517 | B73: 275kV CONTROL BUILDING +5 | F73: 302676.62 | G73: 2052.12 | N73: =C73*CPI[11] -> 0 | O73: =D73*CPI[12] -> 0 | P73: =E73*CPI[13] -> 0 | Q73: =F73*CPI[14] -> 341877.3572 | R73: =G73*CPI[15] -> 2267.335037 | S73: =H73*CPI[16] -> 0 | T73: =I73*CPI[17] -> 0 | U73: =J73*CPI[18] -> 0 | V73: =K73*CPI[19] -> 0 | W73: =L73*CPI[20] -> 0
A74: 124549 | B74: CONTROL BUILDING +4 | F74: 391987.63 | N74: =C74*CPI[11] -> 0 | O74: =D74*CPI[12] -> 0 | P74: =E74*CPI[13] -> 0 | Q74: =F74*CPI[14] -> 442755.3572 | R74: =G74*CPI[15] -> 0 | S74: =H74*CPI[16] -> 0 | T74: =I74*CPI[17] -> 0 | U74: =J74*CPI[18] -> 0 | V74: =K74*CPI[19] -> 0 | W74: =L74*CPI[20] -> 0
A75: 124554 | B75: BUILDING +4 132kV CONTROL | F75: 338425.56 | G75: 3270.95 | H75: -534.6 | N75: =C75*CPI[11] -> 0 | O75: =D75*CPI[12] -> 0 | P75: =E75*CPI[13] -> 0 | Q75: =F75*CPI[14] -> 382256.271 | R75: =G75*CPI[15] -> 3613.989211 | S75: =H75*CPI[16] -> -580.774983 | T75: =I75*CPI[17] -> 0 | U75: =J75*CPI[18] -> 0 | V75: =K75*CPI[19] -> 0 | W75: =L75*CPI[20] -> 0
A76: 124573 | B76: BUILDING +5 275kV CONTROL | F76: 371352.59 | G76: 4781.63 | H76: -534.6 | N76: =C76*CPI[11] -> 0 | O76: =D76*CPI[12] -> 0 | P76: =E76*CPI[13] -> 0 | Q76: =F76*CPI[14] -> 419447.799 | R76: =G76*CPI[15] -> 5283.101004 | S76: =H76*CPI[16] -> -580.774983 | T76: =I76*CPI[17] -> 0 | U76: =J76*CPI[18] -> 0 | V76: =K76*CPI[19] -> 0 | W76: =L76*CPI[20] -> 0
A77: 125077 | B77: 132kV CONTROL BUILDING +4 | F77: 288214.15 | G77: 29774.85 | H77: 1029.79 | N77: =C77*CPI[11] -> 0 | O77: =D77*CPI[12] -> 0 | P77: =E77*CPI[13] -> 0 | Q77: =F77*CPI[14] -> 325541.8008 | R77: =G77*CPI[15] -> 32897.47219 | S77: =H77*CPI[16] -> 1118.736008 | T77: =I77*CPI[17] -> 0 | U77: =J77*CPI[18] -> 0 | V77: =K77*CPI[19] -> 0 | W77: =L77*CPI[20] -> 0
A78: 125184 | B78: CONTROL BUILDING +5 | G78: 292057.07 | H78: 1141.14 | N78: =C78*CPI[11] -> 0 | O78: =D78*CPI[12] -> 0 | P78: =E78*CPI[13] -> 0 | Q78: =F78*CPI[14] -> 0 | R78: =G78*CPI[15] -> 322686.406 | S78: =H78*CPI[16] -> 1239.703637 | T78: =I78*CPI[17] -> 0 | U78: =J78*CPI[18] -> 0 | V78: =K78*CPI[19] -> 0 | W78: =L78*CPI[20] -> 0
A79: 125185 | B79: CONTROL BUILDING +6 | G79: 292057.06 | H79: 1141.13 | N79: =C79*CPI[11] -> 0 | O79: =D79*CPI[12] -> 0 | P79: =E79*CPI[13] -> 0 | Q79: =F79*CPI[14] -> 0 | R79: =G79*CPI[15] -> 322686.395 | S79: =H79*CPI[16] -> 1239.692773 | T79: =I79*CPI[17] -> 0 | U79: =J79*CPI[18] -> 0 | V79: =K79*CPI[19] -> 0 | W79: =L79*CPI[20] -> 0
A80: 125236 | B80: BUILDING +1 AMENITIES | G80: 294393 | N80: =C80*CPI[11] -> 0 | O80: =D80*CPI[12] -> 0 | P80: =E80*CPI[13] -> 0 | Q80: =F80*CPI[14] -> 0 | R80: =G80*CPI[15] -> 325267.3155 | S80: =H80*CPI[16] -> 0 | T80: =I80*CPI[17] -> 0 | U80: =J80*CPI[18] -> 0 | V80: =K80*CPI[19] -> 0 | W80: =L80*CPI[20] -> 0
A81: 125237 | B81: BUILDING +2 COMMUNICATIONS BUILDING | G81: 242462.74 | N81: =C81*CPI[11] -> 0 | O81: =D81*CPI[12] -> 0 | P81: =E81*CPI[13] -> 0 | Q81: =F81*CPI[14] -> 0 | R81: =G81*CPI[15] -> 267890.896 | S81: =H81*CPI[16] -> 0 | T81: =I81*CPI[17] -> 0 | U81: =J81*CPI[18] -> 0 | V81: =K81*CPI[19] -> 0 | W81: =L81*CPI[20] -> 0
A82: 125238 | B82: BUILDING +3 WORK SHED | G82: 86092.88 | N82: =C82*CPI[11] -> 0 | O82: =D82*CPI[12] -> 0 | P82: =E82*CPI[13] -> 0 | Q82: =F82*CPI[14] -> 0 | R82: =G82*CPI[15] -> 95121.82682 | S82: =H82*CPI[16] -> 0 | T82: =I82*CPI[17] -> 0 | U82: =J82*CPI[18] -> 0 | V82: =K82*CPI[19] -> 0 | W82: =L82*CPI[20] -> 0
A83: 125239 | B83: BUILDING +4 CONTROL BUILDING | G83: 294393 | N83: =C83*CPI[11] -> 0 | O83: =D83*CPI[12] -> 0 | P83: =E83*CPI[13] -> 0 | Q83: =F83*CPI[14] -> 0 | R83: =G83*CPI[15] -> 325267.3155 | S83: =H83*CPI[16] -> 0 | T83: =I83*CPI[17] -> 0 | U83: =J83*CPI[18] -> 0 | V83: =K83*CPI[19] -> 0 | W83: =L83*CPI[20] -> 0
A84: 126471 | B84: BUILDING 9 | G84: 338261.43 | H84: 20851.39 | I84: 713.89 | J84: 37.11 | K84: 271.93 | N84: =C84*CPI[11] -> 0 | O84: =D84*CPI[12] -> 0 | P84: =E84*CPI[13] -> 0 | Q84: =F84*CPI[14] -> 0 | R84: =G84*CPI[15] -> 373736.4247 | S84: =H84*CPI[16] -> 22652.38622 | T84: =I84*CPI[17] -> 763.4709285 | U84: =J84*CPI[18] -> 39.02689458 | V84: =K84*CPI[19] -> 280.7913236 | W84: =L84*CPI[20] -> 0
A85: 126472 | B85: BUILDING 10 | G85: 338261.43 | H85: 20851.39 | I85: 713.89 | J85: 37.11 | K85: 271.93 | N85: =C85*CPI[11] -> 0 | O85: =D85*CPI[12] -> 0 | P85: =E85*CPI[13] -> 0 | Q85: =F85*CPI[14] -> 0 | R85: =G85*CPI[15] -> 373736.4247 | S85: =H85*CPI[16] -> 22652.38622 | T85: =I85*CPI[17] -> 763.4709285 | U85: =J85*CPI[18] -> 39.02689458 | V85: =K85*CPI[19] -> 280.7913236 | W85: =L85*CPI[20] -> 0
A86: 127218 | B86: CONTROL BUILDING 275KV +5 | G86: 533282.72 | H86: 85302.07 | I86: 591.12 | N86: =C86*CPI[11] -> 0 | O86: =D86*CPI[12] -> 0 | P86: =E86*CPI[13] -> 0 | Q86: =F86*CPI[14] -> 0 | R86: =G86*CPI[15] -> 589210.4729 | S86: =H86*CPI[16] -> 92669.86206 | T86: =I86*CPI[17] -> 632.174334 | U86: =J86*CPI[18] -> 0 | V86: =K86*CPI[19] -> 0 | W86: =L86*CPI[20] -> 0
A87: 127425 | B87: BUILDING +4 | H87: 409842.56 | I87: 3613.48 | J87: 1309.28 | K87: 49.62 | N87: =C87*CPI[11] -> 0 | O87: =D87*CPI[12] -> 0 | P87: =E87*CPI[13] -> 0 | Q87: =F87*CPI[14] -> 0 | R87: =G87*CPI[15] -> 0 | S87: =H87*CPI[16] -> 445241.874 | T87: =I87*CPI[17] -> 3864.442604 | U87: =J87*CPI[18] -> 1376.910066 | V87: =K87*CPI[19] -> 51.23695611 | W87: =L87*CPI[20] -> 0
A88: 128187 | B88: BUILDING - T141 Pioneer Valley Sec Sys | I88: 325137.67 | J88: 919.99 | N88: =C88*CPI[11] -> 0 | O88: =D88*CPI[12] -> 0 | P88: =E88*CPI[13] -> 0 | Q88: =F88*CPI[14] -> 0 | R88: =G88*CPI[15] -> 0 | S88: =H88*CPI[16] -> 0 | T88: =I88*CPI[17] -> 347719.0587 | U88: =J88*CPI[18] -> 967.5115264 | V88: =K88*CPI[19] -> 0 | W88: =L88*CPI[20] -> 0
A89: 128225 | B89: CONTROL BUILDING +4 | I89: 542112.73 | N89: =C89*CPI[11] -> 0 | O89: =D89*CPI[12] -> 0 | P89: =E89*CPI[13] -> 0 | Q89: =F89*CPI[14] -> 0 | R89: =G89*CPI[15] -> 0 | S89: =H89*CPI[16] -> 0 | T89: =I89*CPI[17] -> 579763.422 | U89: =J89*CPI[18] -> 0 | V89: =K89*CPI[19] -> 0 | W89: =L89*CPI[20] -> 0
A90: 128423 | B90: SHED +3 | I90: 47039.71 | J90: -276.05 | K90: 19.88 | L90: 24.04 | N90: =C90*CPI[11] -> 0 | O90: =D90*CPI[12] -> 0 | P90: =E90*CPI[13] -> 0 | Q90: =F90*CPI[14] -> 0 | R90: =G90*CPI[15] -> 0 | S90: =H90*CPI[16] -> 0 | T90: =I90*CPI[17] -> 50306.70141 | U90: =J90*CPI[18] -> -290.3091956 | V90: =K90*CPI[19] -> 20.52782522 | W90: =L90*CPI[20] -> 24.38151943
A91: 128424 | B91: AMENITIES BUILDING +5 | I91: 205809.63 | J91: -276.05 | K91: 19.88 | L91: 24.04 | N91: =C91*CPI[11] -> 0 | O91: =D91*CPI[12] -> 0 | P91: =E91*CPI[13] -> 0 | Q91: =F91*CPI[14] -> 0 | R91: =G91*CPI[15] -> 0 | S91: =H91*CPI[16] -> 0 | T91: =I91*CPI[17] -> 220103.4744 | U91: =J91*CPI[18] -> -290.3091956 | V91: =K91*CPI[19] -> 20.52782522 | W91: =L91*CPI[20] -> 24.38151943
A92: 128884 | B92: BUILDING +9 | I92: 1017450.08 | J92: 2042.05 | K92: 539.83 | N92: =C92*CPI[11] -> 0 | O92: =D92*CPI[12] -> 0 | P92: =E92*CPI[13] -> 0 | Q92: =F92*CPI[14] -> 0 | R92: =G92*CPI[15] -> 0 | S92: =H92*CPI[16] -> 0 | T92: =I92*CPI[17] -> 1088113.795 | U92: =J92*CPI[18] -> 2147.530856 | V92: =K92*CPI[19] -> 557.4213224 | W92: =L92*CPI[20] -> 0
A93: 128885 | B93: BUILDING +10 | I93: 1017450.08 | J93: 2042.05 | K93: 539.83 | N93: =C93*CPI[11] -> 0 | O93: =D93*CPI[12] -> 0 | P93: =E93*CPI[13] -> 0 | Q93: =F93*CPI[14] -> 0 | R93: =G93*CPI[15] -> 0 | S93: =H93*CPI[16] -> 0 | T93: =I93*CPI[17] -> 1088113.795 | U93: =J93*CPI[18] -> 2147.530856 | V93: =K93*CPI[19] -> 557.4213224 | W93: =L93*CPI[20] -> 0
A94: 128993 | B94: CONTROL BUILDING '9' | I94: 1025280.88 | J94: 656.74 | K94: 759.23 | N94: =C94*CPI[11] -> 0 | O94: =D94*CPI[12] -> 0 | P94: =E94*CPI[13] -> 0 | Q94: =F94*CPI[14] -> 0 | R94: =G94*CPI[15] -> 0 | S94: =H94*CPI[16] -> 0 | T94: =I94*CPI[17] -> 1096488.458 | U94: =J94*CPI[18] -> 690.663507 | V94: =K94*CPI[19] -> 783.9708623 | W94: =L94*CPI[20] -> 0
A95: 128994 | B95: CONTROL BUILDING '10' | I95: 1035808.37 | J95: 656.74 | K95: 791.33 | N95: =C95*CPI[11] -> 0 | O95: =D95*CPI[12] -> 0 | P95: =E95*CPI[13] -> 0 | Q95: =F95*CPI[14] -> 0 | R95: =G95*CPI[15] -> 0 | S95: =H95*CPI[16] -> 0 | T95: =I95*CPI[17] -> 1107747.101 | U95: =J95*CPI[18] -> 690.663507 | V95: =K95*CPI[19] -> 817.116898 | W95: =L95*CPI[20] -> 0
A96: 129041 | B96: CONTROL BUILDING +9 | I96: 888353.33 | J96: 7177.11 | K96: 99344.26 | N96: =C96*CPI[11] -> 0 | O96: =D96*CPI[12] -> 0 | P96: =E96*CPI[13] -> 0 | Q96: =F96*CPI[14] -> 0 | R96: =G96*CPI[15] -> 0 | S96: =H96*CPI[16] -> 0 | T96: =I96*CPI[17] -> 950051.0467 | U96: =J96*CPI[18] -> 7547.839271 | V96: =K96*CPI[19] -> 102581.5697 | W96: =L96*CPI[20] -> 0
A97: 129200 | B97: CONTROL BUILDING +4 | J97: 516417.53 | K97: 1069.54 | L97: 349.19 | N97: =C97*CPI[11] -> 0 | O97: =D97*CPI[12] -> 0 | P97: =E97*CPI[13] -> 0 | Q97: =F97*CPI[14] -> 0 | R97: =G97*CPI[15] -> 0 | S97: =H97*CPI[16] -> 0 | T97: =I97*CPI[17] -> 0 | U97: =J97*CPI[18] -> 543092.7648 | V97: =K97*CPI[19] -> 1104.392867 | W97: =L97*CPI[20] -> 354.1506976
A98: 129233 | B98: BUILDING +4 | J98: 364001.32 | K98: 84.28 | L98: 299.31 | N98: =C98*CPI[11] -> 0 | O98: =D98*CPI[12] -> 0 | P98: =E98*CPI[13] -> 0 | Q98: =F98*CPI[14] -> 0 | R98: =G98*CPI[15] -> 0 | S98: =H98*CPI[16] -> 0 | T98: =I98*CPI[17] -> 0 | U98: =J98*CPI[18] -> 382803.5878 | V98: =K98*CPI[19] -> 87.02641397 | W98: =L98*CPI[20] -> 303.5620874
A99: 129325 | B99: CONTROL BUILDING +10 | J99: 215864.08 | K99: 311.89 | N99: =C99*CPI[11] -> 0 | O99: =D99*CPI[12] -> 0 | P99: =E99*CPI[13] -> 0 | Q99: =F99*CPI[14] -> 0 | R99: =G99*CPI[15] -> 0 | S99: =H99*CPI[16] -> 0 | T99: =I99*CPI[17] -> 0 | U99: =J99*CPI[18] -> 227014.4083 | V99: =K99*CPI[19] -> 322.0534914 | W99: =L99*CPI[20] -> 0
A100: 129829 | B100: 132kV DEMOUNTABLE CONTROL BUILDING +4 | K100: 552704.74 | L100: 1988.24 | N100: =C100*CPI[11] -> 0 | O100: =D100*CPI[12] -> 0 | P100: =E100*CPI[13] -> 0 | Q100: =F100*CPI[14] -> 0 | R100: =G100*CPI[15] -> 0 | S100: =H100*CPI[16] -> 0 | T100: =I100*CPI[17] -> 0 | U100: =J100*CPI[18] -> 0 | V100: =K100*CPI[19] -> 570715.6087 | W100: =L100*CPI[20] -> 2016.485532
A101: 129830 | B101: 275kV DEMOUNTABLE CONTROL BUILDING +5 | K101: 552704.74 | L101: 1988.24 | N101: =C101*CPI[11] -> 0 | O101: =D101*CPI[12] -> 0 | P101: =E101*CPI[13] -> 0 | Q101: =F101*CPI[14] -> 0 | R101: =G101*CPI[15] -> 0 | S101: =H101*CPI[16] -> 0 | T101: =I101*CPI[17] -> 0 | U101: =J101*CPI[18] -> 0 | V101: =K101*CPI[19] -> 570715.6087 | W101: =L101*CPI[20] -> 2016.485532
A102: 130019 | B102: CONTROL BUILDING +4 | K102: 825076.42 | L102: -273.25 | N102: =C102*CPI[11] -> 0 | O102: =D102*CPI[12] -> 0 | P102: =E102*CPI[13] -> 0 | Q102: =F102*CPI[14] -> 0 | R102: =G102*CPI[15] -> 0 | S102: =H102*CPI[16] -> 0 | T102: =I102*CPI[17] -> 0 | U102: =J102*CPI[18] -> 0 | V102: =K102*CPI[19] -> 851963.0052 | W102: =L102*CPI[20] -> -277.1318712
A103: 130241 | B103: COMMUNICATIONS BUILDING +4 | K103: 629877.57 | N103: =C103*CPI[11] -> 0 | O103: =D103*CPI[12] -> 0 | P103: =E103*CPI[13] -> 0 | Q103: =F103*CPI[14] -> 0 | R103: =G103*CPI[15] -> 0 | S103: =H103*CPI[16] -> 0 | T103: =I103*CPI[17] -> 0 | U103: =J103*CPI[18] -> 0 | V103: =K103*CPI[19] -> 650403.2529 | W103: =L103*CPI[20] -> 0
A104: 130317 | B104: CONTROL BUILDING +4 | K104: 747207.9 | L104: 895 | N104: =C104*CPI[11] -> 0 | O104: =D104*CPI[12] -> 0 | P104: =E104*CPI[13] -> 0 | Q104: =F104*CPI[14] -> 0 | R104: =G104*CPI[15] -> 0 | S104: =H104*CPI[16] -> 0 | T104: =I104*CPI[17] -> 0 | U104: =J104*CPI[18] -> 0 | V104: =K104*CPI[19] -> 771557.0008 | W104: =L104*CPI[20] -> 907.7146377
A105: 130330 | B105: BUILDING | K105: 360951.69 | L105: 1438.27 | N105: =C105*CPI[11] -> 0 | O105: =D105*CPI[12] -> 0 | P105: =E105*CPI[13] -> 0 | Q105: =F105*CPI[14] -> 0 | R105: =G105*CPI[15] -> 0 | S105: =H105*CPI[16] -> 0 | T105: =I105*CPI[17] -> 0 | U105: =J105*CPI[18] -> 0 | V105: =K105*CPI[19] -> 372713.9439 | W105: =L105*CPI[20] -> 1458.702494
A106: 130556 | B106: COMMUNICATIONS BUILDING +2 | K106: 359270.01 | N106: =C106*CPI[11] -> 0 | O106: =D106*CPI[12] -> 0 | P106: =E106*CPI[13] -> 0 | Q106: =F106*CPI[14] -> 0 | R106: =G106*CPI[15] -> 0 | S106: =H106*CPI[16] -> 0 | T106: =I106*CPI[17] -> 0 | U106: =J106*CPI[18] -> 0 | V106: =K106*CPI[19] -> 370977.4634 | W106: =L106*CPI[20] -> 0
A107: 131241 | B107: CONTROL BUILDING 8 | L107: 505551.43 | N107: =C107*CPI[11] -> 0 | O107: =D107*CPI[12] -> 0 | P107: =E107*CPI[13] -> 0 | Q107: =F107*CPI[14] -> 0 | R107: =G107*CPI[15] -> 0 | S107: =H107*CPI[16] -> 0 | T107: =I107*CPI[17] -> 0 | U107: =J107*CPI[18] -> 0 | V107: =K107*CPI[19] -> 0 | W107: =L107*CPI[20] -> 512733.4448

Sheet Historic Capex (Project)
B2: Project Information
S3: Expenditure, Real 20/21, $m
D4: Nominal $ | E4: Nominal $ | F4: Nominal $ | G4: Nominal $ | H4: Nominal $ | I4: Nominal $ | J4: Nominal $ | K4: Nominal $ | L4: Nominal $ | M4: Nominal $ | N4: Nominal $ | O4: Nominal $ | P4: Nominal $ | S4: 08 | T4: 09 | U4: 10 | V4: 11 | W4: 12 | X4: 13 | Y4: 14 | Z4: 15 | AA4: 16 | AB4: 17 | AC4: 18 | AD4: 19 | AE4: 20 | AL4: These projects appear as offsets on the subsequent worksheets.
A5: Project ID | B5: Project Description | C5: Category | D5: Actuals 07/08 | E5: Actuals 08/09 | F5: Actuals 09/10 | G5: Actuals 10/11 | H5: Actuals 11/12 | I5: Actuals 12/13 | J5: Actuals 13/14 | K5: Actuals 14/15 | L5: Actuals 15/16 | M5: Actuals 16/17 | N5: Actuals 17/18 | O5: Actuals 18/19 | P5: Actuals 19/20 | Q5: Sum > 0 | R5: SomeExpenditure >= 2016 | S5: Real 08 | T5: Real 09 | U5: Real 10 | V5: Real 11 | W5: Real 12 | X5: Real 13 | Y5: Real 14 | Z5: Real 15 | AA5: Real 16 | AB5: Real 17 | AC5: Real 18 | AD5: Real 19 | AE5: Real 20 | AF5: Real Sum | AG5: (Project Total - Category Average)^2 | AH5: Category Limit | AI5: Significant Project? (Financial Basis) | AJ5: Non repeatable | AK5: Abnormal? | AL5: SomeExpenditure >= 2016 and Abnormal
A6: CP.01229 | B6: Tower Bolts (Tarong Region) | C6: Security / Compliance | F6: 1.31259526 | G6: 1.07040428 | H6: 7.39005964 | I6: 0.35699875 | J6: -0.122 | K6: 0 | L6: 0 | M6: 0 | N6: 0 | O6: 0 | P6: 0 | Q6: =ProjectData[[#This Row],[Real Sum]]>0.0001 -> TRUE | R6: =OR(ProjectData[[#This Row],[Real 16]]>0,ProjectData[[#This Row],[Real 17]]>0,ProjectData[[#This Row],[Real 18]]>0,ProjectData[[#This Row],[Real 19]]>0,ProjectData[[#This Row],[Real 20]]>0) -> FALSE | S6: =ProjectData[[#This Row],[Actuals 07/08]]*VLOOKUP("Mid Year Nominal - EOY Real (2020/21)",CPI[],MATCH(S$4,CPI[#Headers],0),FALSE) -> 0 | T6: =ProjectData[[#This Row],[Actuals 08/09]]*VLOOKUP("Mid Year Nominal - EOY Real (2020/21)",CPI[],MATCH(T$4,CPI[#Headers],0),FALSE) -> 0 | U6: =ProjectData[[#This Row],[Actuals 09/10]]*VLOOKUP("Mid Year Nominal - EOY Real (2020/21)",CPI[],MATCH(U$4,CPI[#Headers],0),FALSE) -> 1.642143817 | V6: =ProjectData[[#This Row],[Actuals 10/11]]*VLOOKUP("Mid Year Nominal - EOY Real (2020/21)",CPI[],MATCH(V$4,CPI[#Headers],0),FALSE) -> 1.30768244 | W6: =ProjectData[[#This Row],[Actuals 11/12]]*VLOOKUP("Mid Year Nominal - EOY Real (2020/21)",CPI[],MATCH(W$4,CPI[#Headers],0),FALSE) -> 8.775926432 | X6: =ProjectData[[#This Row],[Actuals 12/13]]*VLOOKUP("Mid Year Nominal - EOY Real (2020/21)",CPI[],MATCH(X$4,CPI[#Headers],0),FALSE) -> 0.4132125742 | Y6: =ProjectData[[#This Row],[Actuals 13/14]]*VLOOKUP("Mid Year Nominal - EOY Real (2020/21)",CPI[],MATCH(Y$4,CPI[#Headers],0),FALSE) -> -0.1378006586 | Z6: =ProjectData[[#This Row],[Actuals 14/15]]*VLOOKUP("Mid Year Nominal - EOY Real (2020/21)",CPI[],MATCH(Z$4,CPI[#Headers],0),FALSE) -> 0 | AA6: =ProjectData[[#This Row],[Actuals 15/16]]*VLOOKUP("Mid Year Nominal - EOY Real (2020/21)",CPI[],MATCH(AA$4,CPI[#Headers],0),FALSE) -> 0 | AB6: =ProjectData[[#This Row],[Actuals 16/17]]*VLOOKUP("Mid Year Nominal - EOY Real (2020/21)",CPI[],MATCH(AB$4,CPI[#Headers],0),FALSE) -> 0 | AC6: =ProjectData[[#This Row],[Actuals 17/18]]*VLOOKUP("Mid Year Nominal - EOY Real (2020/21)",CPI[],MATCH(AC$4,CPI[#Headers],0),FALSE) -> 0 | AD6: =ProjectData[[#This Row],[Actuals 18/19]]*VLOOKUP("Mid Year Nominal - EOY Real (2020/21)",CPI[],MATCH(AD$4,CPI[#Headers],0),FALSE) -> 0 | AE6: =ProjectData[[#This Row],[Actuals 19/20]]*VLOOKUP("Mid Year Nominal - EOY Real (2020/21)",CPI[],MATCH(AE$4,CPI[#Headers],0),FALSE) -> 0 | AF6: =SUM(ProjectData[[#This Row],[Real 08]:[Real 20]]) -> 12.0011646 | AG6: =(ProjectData[[#This Row],[Real Sum]]-VLOOKUP(ProjectData[[#This Row],[Category]],Category_AverageStdDevLimit[],MATCH("Average",Category_AverageStdDevLimit[#Headers],0),FALSE))^2 -> 71.0983465 | AH6: =VLOOKUP(ProjectData[[#This Row],[Category]],Category_AverageStdDevLimit[],MATCH("Limit",Category_AverageStdDevLimit[#Headers],0),FALSE) -> 20.5954265 | AI6: =ProjectData[[#This Row],[Real Sum]]>ProjectData[[#This Row],[Category Limit]] -> FALSE | AJ6: TRUE | AK6: =OR(ProjectData[[#This Row],[Significant Project? (Financial Basis)]],ProjectData[[#This Row],[Non repeatable]]) -> TRUE | AL6: =AND(ProjectData[[#This Row],[SomeExpenditure >= 2016]],ProjectData[[#This Row],[Abnormal?]]) -> FALSE
A7: CP.01298 | B7: Relocation of NOC Infrastructure | C7: Security / Compliance | D7: 0.23700444 | E7: 0.17571264 | F7: 0.01367669 | H7: 0 | I7: 0 | K7: 0 | L7: 0 | M7: 0 | N7: 0 | O7: 0 | P7: 0 | Q7: =ProjectData[[#This Row],[Real Sum]]>0.0001 -> TRUE | R7: =OR(ProjectData[[#This Row],[Real 16]]>0,ProjectData[[#This Row],[Real 17]]>0,ProjectData[[#This Row],[Real 18]]>0,ProjectData[[#This Row],[Real 19]]>0,ProjectData[[#This Row],[Real 20]]>0) -> FALSE | S7: =ProjectData[[#This Row],[Actuals 07/08]]*VLOOKUP("Mid Year Nominal - EOY Real (2020/21)",CPI[],MATCH(S$4,CPI[#Headers],0),FALSE) -> 0.315087282 | T7: =ProjectData[[#This Row],[Actuals 08/09]]*VLOOKUP("Mid Year Nominal - EOY Real (2020/21)",CPI[],MATCH(T$4,CPI[#Headers],0),FALSE) -> 0.22615196 | U7: =ProjectData[[#This Row],[Actuals 09/10]]*VLOOKUP("Mid Year Nominal - EOY Real (2020/21)",CPI[],MATCH(U$4,CPI[#Headers],0),FALSE) -> 0.01711044722 | V7: =ProjectData[[#This Row],[Actuals 10/11]]*VLOOKUP("Mid Year Nominal - EOY Real (2020/21)",CPI[],MATCH(V$4,CPI[#Headers],0),FALSE) -> 0 | W7: =ProjectData[[#This Row],[Actuals 11/12]]*VLOOKUP("Mid Year Nominal - EOY Real (2020/21)",CPI[],MATCH(W$4,CPI[#Headers],0),FALSE) -> 0 | X7: =ProjectData[[#This Row],[Actuals 12/13]]*VLOOKUP("Mid Year Nominal - EOY Real (2020/21)",CPI[],MATCH(X$4,CPI[#Headers],0),FALSE) -> 0 | Y7: =ProjectData[[#This Row],[Actuals 13/14]]*VLOOKUP("Mid Year Nominal - EOY Real (2020/21)",CPI[],MATCH(Y$4,CPI[#Headers],0),FALSE) -> 0 | Z7: =ProjectData[[#This Row],[Actuals 14/15]]*VLOOKUP("Mid Year Nominal - EOY Real (2020/21)",CPI[],MATCH(Z$4,CPI[#Headers],0),FALSE) -> 0 | AA7: =ProjectData[[#This Row],[Actuals 15/16]]*VLOOKUP("Mid Year Nominal - EOY Real (2020/21)",CPI[],MATCH(AA$4,CPI[#Headers],0),FALSE) -> 0 | AB7: =ProjectData[[#This Row],[Actuals 16/17]]*VLOOKUP("Mid Year Nominal - EOY Real (2020/21)",CPI[],MATCH(AB$4,CPI[#Headers],0),FALSE) -> 0 | AC7: =ProjectData[[#This Row],[Actuals 17/18]]*VLOOKUP("Mid Year Nominal - EOY Real (2020/21)",CPI[],MATCH(AC$4,CPI[#Headers],0),FALSE) -> 0 | AD7: =ProjectData[[#This Row],[Actuals 18/19]]*VLOOKUP("Mid Year Nominal - EOY Real (2020/21)",CPI[],MATCH(AD$4,CPI[#Headers],0),FALSE) -> 0 | AE7: =ProjectData[[#This Row],[Actuals 19/20]]*VLOOKUP("Mid Year Nominal - EOY Real (2020/21)",CPI[],MATCH(AE$4,CPI[#Headers],0),FALSE) -> 0 | AF7: =SUM(ProjectData[[#This Row],[Real 08]:[Real 20]]) -> 0.5583496892 | AG7: =(ProjectData[[#This Row],[Real Sum]]-VLOOKUP(ProjectData[[#This Row],[Category]],Category_AverageStdDevLimit[],MATCH("Average",Category_AverageStdDevLimit[#Headers],0),FALSE))^2 -> 9.065105544 | AH7: =VLOOKUP(ProjectData[[#This Row],[Category]],Category_AverageStdDevLimit[],MATCH("Limit",Category_AverageStdDevLimit[#Headers],0),FALSE) -> 20.5954265 | AI7: =ProjectData[[#This Row],[Real Sum]]>ProjectData[[#This Row],[Category Limit]] -> FALSE | AK7: =OR(ProjectData[[#This Row],[Significant Project? (Financial Basis)]],ProjectData[[#This Row],[Non repeatable]]) -> FALSE | AL7: =AND(ProjectData[[#This Row],[SomeExpenditure >= 2016]],ProjectData[[#This Row],[Abnormal?]]) -> FALSE
A8: CP.01358 | B8: Infrastructure Expansion for Telecomms | C8: Security / Compliance | D8: 1.9145059 | E8: 1.08768584 | F8: 0.27010103 | H8: 0 | I8: 0 | K8: 0 | L8: 0 | M8: 0 | N8: 0 | O8: 0 | P8: 0 | Q8: =ProjectData[[#This Row],[Real Sum]]>0.0001 -> TRUE | R8: =OR(ProjectData[[#This Row],[Real 16]]>0,ProjectData[[#This Row],[Real 17]]>0,ProjectData[[#This Row],[Real 18]]>0,ProjectData[[#This Row],[Real 19]]>0,ProjectData[[#This Row],[Real 20]]>0) -> FALSE | S8: =ProjectData[[#This Row],[Actuals 07/08]]*VLOOKUP("Mid Year Nominal - EOY Real (2020/21)",CPI[],MATCH(S$4,CPI[#Headers],0),FALSE) -> 2.545253837 | T8: =ProjectData[[#This Row],[Actuals 08/09]]*VLOOKUP("Mid Year Nominal - EOY Real (2020/21)",CPI[],MATCH(T$4,CPI[#Headers],0),FALSE) -> 1.399912292 | U8: =ProjectData[[#This Row],[Actuals 09/10]]*VLOOKUP("Mid Year Nominal - EOY Real (2020/21)",CPI[],MATCH(U$4,CPI[#Headers],0),FALSE) -> 0.3379143213 | V8: =ProjectData[[#This Row],[Actuals 10/11]]*VLOOKUP("Mid Year Nominal - EOY Real (2020/21)",CPI[],MATCH(V$4,CPI[#Headers],0),FALSE) -> 0 | W8: =ProjectData[[#This Row],[Actuals 11/12]]*VLOOKUP("Mid Year Nominal - EOY Real (2020/21)",CPI[],MATCH(W$4,CPI[#Headers],0),FALSE) -> 0 | X8: =ProjectData[[#This Row],[Actuals 12/13]]*VLOOKUP("Mid Year Nominal - EOY Real (2020/21)",CPI[],MATCH(X$4,CPI[#Headers],0),FALSE) -> 0 | Y8: =ProjectData[[#This Row],[Actuals 13/14]]*VLOOKUP("Mid Year Nominal - EOY Real (2020/21)",CPI[],MATCH(Y$4,CPI[#Headers],0),FALSE) -> 0 | Z8: =ProjectData[[#This Row],[Actuals 14/15]]*VLOOKUP("Mid Year Nominal - EOY Real (2020/21)",CPI[],MATCH(Z$4,CPI[#Headers],0),FALSE) -> 0 | AA8: =ProjectData[[#This Row],[Actuals 15/16]]*VLOOKUP("Mid Year Nominal - EOY Real (2020/21)",CPI[],MATCH(AA$4,CPI[#Headers],0),FALSE) -> 0 | AB8: =ProjectData[[#This Row],[Actuals 16/17]]*VLOOKUP("Mid Year Nominal - EOY Real (2020/21)",CPI[],MATCH(AB$4,CPI[#Headers],0),FALSE) -> 0 | AC8: =ProjectData[[#This Row],[Actuals 17/18]]*VLOOKUP("Mid Year Nominal - EOY Real (2020/21)",CPI[],MATCH(AC$4,CPI[#Headers],0),FALSE) -> 0 | AD8: =ProjectData[[#This Row],[Actuals 18/19]]*VLOOKUP("Mid Year Nominal - EOY Real (2020/21)",CPI[],MATCH(AD$4,CPI[#Headers],0),FALSE) -> 0 | AE8: =ProjectData[[#This Row],[Actuals 19/20]]*VLOOKUP("Mid Year Nominal - EOY Real (2020/21)",CPI[],MATCH(AE$4,CPI[#Headers],0),FALSE) -> 0 | AF8: =SUM(ProjectData[[#This Row],[Real 08]:[Real 20]]) -> 4.28308045 | AG8: =(ProjectData[[#This Row],[Real Sum]]-VLOOKUP(ProjectData[[#This Row],[Category]],Category_AverageStdDevLimit[],MATCH("Average",Category_AverageStdDevLimit[#Headers],0),FALSE))^2 -> 0.5096523395 | AH8: =VLOOKUP(ProjectData[[#This Row],[Category]],Category_AverageStdDevLimit[],MATCH("Limit",Category_AverageStdDevLimit[#Headers],0),FALSE) -> 20.5954265 | AI8: =ProjectData[[#This Row],[Real Sum]]>ProjectData[[#This Row],[Category Limit]] -> FALSE | AK8: =OR(ProjectData[[#This Row],[Significant Project? (Financial Basis)]],ProjectData[[#This Row],[Non repeatable]]) -> FALSE | AL8: =AND(ProjectData[[#This Row],[SomeExpenditure >= 2016]],ProjectData[[#This Row],[Abnormal?]]) -> FALSE
A9: CP.01375 | B9: Disaster Recovery Relocation | C9: Security / Compliance | D9: 0.05259683 | E9: 0.76002715 | F9: 4.75061238 | G9: 0.0681582 | H9: 0 | I9: 0 | K9: 0 | L9: 0 | M9: 0 | N9: 0 | O9: 0 | P9: 0 | Q9: =ProjectData[[#This Row],[Real Sum]]>0.0001 -> TRUE | R9: =OR(ProjectData[[#This Row],[Real 16]]>0,ProjectData[[#This Row],[Real 17]]>0,ProjectData[[#This Row],[Real 18]]>0,ProjectData[[#This Row],[Real 19]]>0,ProjectData[[#This Row],[Real 20]]>0) -> FALSE | S9: =ProjectData[[#This Row],[Actuals 07/08]]*VLOOKUP("Mid Year Nominal - EOY Real (2020/21)",CPI[],MATCH(S$4,CPI[#Headers],0),FALSE) -> 0.06992523939 | T9: =ProjectData[[#This Row],[Actuals 08/09]]*VLOOKUP("Mid Year Nominal - EOY Real (2020/21)",CPI[],MATCH(T$4,CPI[#Headers],0),FALSE) -> 0.9781972978 | U9: =ProjectData[[#This Row],[Actuals 09/10]]*VLOOKUP("Mid Year Nominal - EOY Real (2020/21)",CPI[],MATCH(U$4,CPI[#Headers],0),FALSE) -> 5.943331493 | V9: =ProjectData[[#This Row],[Actuals 10/11]]*VLOOKUP("Mid Year Nominal - EOY Real (2020/21)",CPI[],MATCH(V$4,CPI[#Headers],0),FALSE) -> 0.08326693282 | W9: =ProjectData[[#This Row],[Actuals 11/12]]*VLOOKUP("Mid Year Nominal - EOY Real (2020/21)",CPI[],MATCH(W$4,CPI[#Headers],0),FALSE) -> 0 | X9: =ProjectData[[#This Row],[Actuals 12/13]]*VLOOKUP("Mid Year Nominal - EOY Real (2020/21)",CPI[],MATCH(X$4,CPI[#Headers],0),FALSE) -> 0 | Y9: =ProjectData[[#This Row],[Actuals 13/14]]*VLOOKUP("Mid Year Nominal - EOY Real (2020/21)",CPI[],MATCH(Y$4,CPI[#Headers],0),FALSE) -> 0 | Z9: =ProjectData[[#This Row],[Actuals 14/15]]*VLOOKUP("Mid Year Nominal - EOY Real (2020/21)",CPI[],MATCH(Z$4,CPI[#Headers],0),FALSE) -> 0 | AA9: =ProjectData[[#This Row],[Actuals 15/16]]*VLOOKUP("Mid Year Nominal - EOY Real (2020/21)",CPI[],MATCH(AA$4,CPI[#Headers],0),FALSE) -> 0 | AB9: =ProjectData[[#This Row],[Actuals 16/17]]*VLOOKUP("Mid Year Nominal - EOY Real (2020/21)",CPI[],MATCH(AB$4,CPI[#Headers],0),FALSE) -> 0 | AC9: =ProjectData[[#This Row],[Actuals 17/18]]*VLOOKUP("Mid Year Nominal - EOY Real (2020/21)",CPI[],MATCH(AC$4,CPI[#Headers],0),FALSE) -> 0 | AD9: =ProjectData[[#This Row],[Actuals 18/19]]*VLOOKUP("Mid Year Nominal - EOY Real (2020/21)",CPI[],MATCH(AD$4,CPI[#Headers],0),FALSE) -> 0 | AE9: =ProjectData[[#This Row],[Actuals 19/20]]*VLOOKUP("Mid Year Nominal - EOY Real (2020/21)",CPI[],MATCH(AE$4,CPI[#Headers],0),FALSE) -> 0 | AF9: =SUM(ProjectData[[#This Row],[Real 08]:[Real 20]]) -> 7.074720963 | AG9: =(ProjectData[[#This Row],[Real Sum]]-VLOOKUP(ProjectData[[#This Row],[Category]],Category_AverageStdDevLimit[],MATCH("Average",Category_AverageStdDevLimit[#Headers],0),FALSE))^2 -> 12.28881001 | AH9: =VLOOKUP(ProjectData[[#This Row],[Category]],Category_AverageStdDevLimit[],MATCH("Limit",Category_AverageStdDevLimit[#Headers],0),FALSE) -> 20.5954265 | AI9: =ProjectData[[#This Row],[Real Sum]]>ProjectData[[#This Row],[Category Limit]] -> FALSE | AJ9: TRUE | AK9: =OR(ProjectData[[#This Row],[Significant Project? (Financial Basis)]],ProjectData[[#This Row],[Non repeatable]]) -> TRUE | AL9: =AND(ProjectData[[#This Row],[SomeExpenditure >= 2016]],ProjectData[[#This Row],[Abnormal?]]) -> FALSE
A10: CP.01403 | B10: Diesel Generator Installation Various Substations | C10: Security / Compliance | E10: 0.20428875 | F10: 2.67941601 | G10: 0.38855811 | H10: 0.0046822 | I10: 0 | K10: 0 | L10: 0 | M10: 0 | N10: 0 | O10: 0 | P10: 0 | Q10: =ProjectData[[#This Row],[Real Sum]]>0.0001 -> TRUE | R10: =OR(ProjectData[[#This Row],[Real 16]]>0,ProjectData[[#This Row],[Real 17]]>0,ProjectData[[#This Row],[Real 18]]>0,ProjectData[[#This Row],[Real 19]]>0,ProjectData[[#This Row],[Real 20]]>0) -> FALSE | S10: =ProjectData[[#This Row],[Actuals 07/08]]*VLOOKUP("Mid Year Nominal - EOY Real (2020/21)",CPI[],MATCH(S$4,CPI[#Headers],0),FALSE) -> 0 | T10: =ProjectData[[#This Row],[Actuals 08/09]]*VLOOKUP("Mid Year Nominal - EOY Real (2020/21)",CPI[],MATCH(T$4,CPI[#Headers],0),FALSE) -> 0.2629310061 | U10: =ProjectData[[#This Row],[Actuals 09/10]]*VLOOKUP("Mid Year Nominal - EOY Real (2020/21)",CPI[],MATCH(U$4,CPI[#Headers],0),FALSE) -> 3.352127322 | V10: =ProjectData[[#This Row],[Actuals 10/11]]*VLOOKUP("Mid Year Nominal - EOY Real (2020/21)",CPI[],MATCH(V$4,CPI[#Headers],0),FALSE) -> 0.4746903827 | W10: =ProjectData[[#This Row],[Actuals 11/12]]*VLOOKUP("Mid Year Nominal - EOY Real (2020/21)",CPI[],MATCH(W$4,CPI[#Headers],0),FALSE) -> 0.00556025861 | X10: =ProjectData[[#This Row],[Actuals 12/13]]*VLOOKUP("Mid Year Nominal - EOY Real (2020/21)",CPI[],MATCH(X$4,CPI[#Headers],0),FALSE) -> 0 | Y10: =ProjectData[[#This Row],[Actuals 13/14]]*VLOOKUP("Mid Year Nominal - EOY Real (2020/21)",CPI[],MATCH(Y$4,CPI[#Headers],0),FALSE) -> 0 | Z10: =ProjectData[[#This Row],[Actuals 14/15]]*VLOOKUP("Mid Year Nominal - EOY Real (2020/21)",CPI[],MATCH(Z$4,CPI[#Headers],0),FALSE) -> 0 | AA10: =ProjectData[[#This Row],[Actuals 15/16]]*VLOOKUP("Mid Year Nominal - EOY Real (2020/21)",CPI[],MATCH(AA$4,CPI[#Headers],0),FALSE) -> 0 | AB10: =ProjectData[[#This Row],[Actuals 16/17]]*VLOOKUP("Mid Year Nominal - EOY Real (2020/21)",CPI[],MATCH(AB$4,CPI[#Headers],0),FALSE) -> 0 | AC10: =ProjectData[[#This Row],[Actuals 17/18]]*VLOOKUP("Mid Year Nominal - EOY Real (2020/21)",CPI[],MATCH(AC$4,CPI[#Headers],0),FALSE) -> 0 | AD10: =ProjectData[[#This Row],[Actuals 18/19]]*VLOOKUP("Mid Year Nominal - EOY Real (2020/21)",CPI[],MATCH(AD$4,CPI[#Headers],0),FALSE) -> 0 | AE10: =ProjectData[[#This Row],[Actuals 19/20]]*VLOOKUP("Mid Year Nominal - EOY Real (2020/21)",CPI[],MATCH(AE$4,CPI[#Headers],0),FALSE) -> 0 | AF10: =SUM(ProjectData[[#This Row],[Real 08]:[Real 20]]) -> 4.09530897 | AG10: =(ProjectData[[#This Row],[Real Sum]]-VLOOKUP(ProjectData[[#This Row],[Category]],Category_AverageStdDevLimit[],MATCH("Average",Category_AverageStdDevLimit[#Headers],0),FALSE))^2 -> 0.2768105771 | AH10: =VLOOKUP(ProjectData[[#This Row],[Category]],Category_AverageStdDevLimit[],MATCH("Limit",Category_AverageStdDevLimit[#Headers],0),FALSE) -> 20.5954265 | AI10: =ProjectData[[#This Row],[Real Sum]]>ProjectData[[#This Row],[Category Limit]] -> FALSE | AK10: =OR(ProjectData[[#This Row],[Significant Project? (Financial Basis)]],ProjectData[[#This Row],[Non repeatable]]) -> FALSE | AL10: =AND(ProjectData[[#This Row],[SomeExpenditure >= 2016]],ProjectData[[#This Row],[Abnormal?]]) -> FALSE
A11: CP.01407 | B11: Blackwall Substation Security Upgrade | C11: Security / Compliance | D11: 0.00616154 | E11: 0.0640212 | F11: 0 | G11: 0 | H11: 0 | I11: 0 | K11: 0 | L11: 0 | M11: 0 | N11: 0 | O11: 0 | P11: 0 | Q11: =ProjectData[[#This Row],[Real Sum]]>0.0001 -> TRUE | R11: =OR(ProjectData[[#This Row],[Real 16]]>0,ProjectData[[#This Row],[Real 17]]>0,ProjectData[[#This Row],[Real 18]]>0,ProjectData[[#This Row],[Real 19]]>0,ProjectData[[#This Row],[Real 20]]>0) -> FALSE | S11: =ProjectData[[#This Row],[Actuals 07/08]]*VLOOKUP("Mid Year Nominal - EOY Real (2020/21)",CPI[],MATCH(S$4,CPI[#Headers],0),FALSE) -> 0.008191504308 | T11: =ProjectData[[#This Row],[Actuals 08/09]]*VLOOKUP("Mid Year Nominal - EOY Real (2020/21)",CPI[],MATCH(T$4,CPI[#Headers],0),FALSE) -> 0.08239885226 | U11: =ProjectData[[#This Row],[Actuals 09/10]]*VLOOKUP("Mid Year Nominal - EOY Real (2020/21)",CPI[],MATCH(U$4,CPI[#Headers],0),FALSE) -> 0 | V11: =ProjectData[[#This Row],[Actuals 10/11]]*VLOOKUP("Mid Year Nominal - EOY Real (2020/21)",CPI[],MATCH(V$4,CPI[#Headers],0),FALSE) -> 0 | W11: =ProjectData[[#This Row],[Actuals 11/12]]*VLOOKUP("Mid Year Nominal - EOY Real (2020/21)",CPI[],MATCH(W$4,CPI[#Headers],0),FALSE) -> 0 | X11: =ProjectData[[#This Row],[Actuals 12/13]]*VLOOKUP("Mid Year Nominal - EOY Real (2020/21)",CPI[],MATCH(X$4,CPI[#Headers],0),FALSE) -> 0 | Y11: =ProjectData[[#This Row],[Actuals 13/14]]*VLOOKUP("Mid Year Nominal - EOY Real (2020/21)",CPI[],MATCH(Y$4,CPI[#Headers],0),FALSE) -> 0 | Z11: =ProjectData[[#This Row],[Actuals 14/15]]*VLOOKUP("Mid Year Nominal - EOY Real (2020/21)",CPI[],MATCH(Z$4,CPI[#Headers],0),FALSE) -> 0 | AA11: =ProjectData[[#This Row],[Actuals 15/16]]*VLOOKUP("Mid Year Nominal - EOY Real (2020/21)",CPI[],MATCH(AA$4,CPI[#Headers],0),FALSE) -> 0 | AB11: =ProjectData[[#This Row],[Actuals 16/17]]*VLOOKUP("Mid Year Nominal - EOY Real (2020/21)",CPI[],MATCH(AB$4,CPI[#Headers],0),FALSE) -> 0 | AC11: =ProjectData[[#This Row],[Actuals 17/18]]*VLOOKUP("Mid Year Nominal - EOY Real (2020/21)",CPI[],MATCH(AC$4,CPI[#Headers],0),FALSE) -> 0 | AD11: =ProjectData[[#This Row],[Actuals 18/19]]*VLOOKUP("Mid Year Nominal - EOY Real (2020/21)",CPI[],MATCH(AD$4,CPI[#Headers],0),FALSE) -> 0 | AE11: =ProjectData[[#This Row],[Actuals 19/20]]*VLOOKUP("Mid Year Nominal - EOY Real (2020/21)",CPI[],MATCH(AE$4,CPI[#Headers],0),FALSE) -> 0 | AF11: =SUM(ProjectData[[#This Row],[Real 08]:[Real 20]]) -> 0.09059035656 | AG11: =(ProjectData[[#This Row],[Real Sum]]-VLOOKUP(ProjectData[[#This Row],[Category]],Category_AverageStdDevLimit[],MATCH("Average",Category_AverageStdDevLimit[#Headers],0),FALSE))^2 -> 12.10059328 | AH11: =VLOOKUP(ProjectData[[#This Row],[Category]],Category_AverageStdDevLimit[],MATCH("Limit",Category_AverageStdDevLimit[#Headers],0),FALSE) -> 20.5954265 | AI11: =ProjectData[[#This Row],[Real Sum]]>ProjectData[[#This Row],[Category Limit]] -> FALSE | AK11: =OR(ProjectData[[#This Row],[Significant Project? (Financial Basis)]],ProjectData[[#This Row],[Non repeatable]]) -> FALSE | AL11: =AND(ProjectData[[#This Row],[SomeExpenditure >= 2016]],ProjectData[[#This Row],[Abnormal?]]) -> FALSE
A12: CP.01410 | B12: Safety in Design | C12: Security / Compliance | D12: 0.07826725 | E12: -0.07826725 | F12: -0.07018274 | G12: 0 | H12: 0 | I12: 0 | K12: 0 | L12: 0 | M12: 0 | N12: 0 | O12: 0 | P12: 0 | Q12: =ProjectData[[#This Row],[Real Sum]]>0.0001 -> FALSE | R12: =OR(ProjectData[[#This Row],[Real 16]]>0,ProjectData[[#This Row],[Real 17]]>0,ProjectData[[#This Row],[Real 18]]>0,ProjectData[[#This Row],[Real 19]]>0,ProjectData[[#This Row],[Real 20]]>0) -> FALSE | S12: =ProjectData[[#This Row],[Actuals 07/08]]*VLOOKUP("Mid Year Nominal - EOY Real (2020/21)",CPI[],MATCH(S$4,CPI[#Headers],0),FALSE) -> 0.1040529666 | T12: =ProjectData[[#This Row],[Actuals 08/09]]*VLOOKUP("Mid Year Nominal - EOY Real (2020/21)",CPI[],MATCH(T$4,CPI[#Headers],0),FALSE) -> -0.1007343125 | U12: =ProjectData[[#This Row],[Actuals 09/10]]*VLOOKUP("Mid Year Nominal - EOY Real (2020/21)",CPI[],MATCH(U$4,CPI[#Headers],0),FALSE) -> -0.08780326736 | V12: =ProjectData[[#This Row],[Actuals 10/11]]*VLOOKUP("Mid Year Nominal - EOY Real (2020/21)",CPI[],MATCH(V$4,CPI[#Headers],0),FALSE) -> 0 | W12: =ProjectData[[#This Row],[Actuals 11/12]]*VLOOKUP("Mid Year Nominal - EOY Real (2020/21)",CPI[],MATCH(W$4,CPI[#Headers],0),FALSE) -> 0 | X12: =ProjectData[[#This Row],[Actuals 12/13]]*VLOOKUP("Mid Year Nominal - EOY Real (2020/21)",CPI[],MATCH(X$4,CPI[#Headers],0),FALSE) -> 0 | Y12: =ProjectData[[#This Row],[Actuals 13/14]]*VLOOKUP("Mid Year Nominal - EOY Real (2020/21)",CPI[],MATCH(Y$4,CPI[#Headers],0),FALSE) -> 0 | Z12: =ProjectData[[#This Row],[Actuals 14/15]]*VLOOKUP("Mid Year Nominal - EOY Real (2020/21)",CPI[],MATCH(Z$4,CPI[#Headers],0),FALSE) -> 0 | AA12: =ProjectData[[#This Row],[Actuals 15/16]]*VLOOKUP("Mid Year Nominal - EOY Real (2020/21)",CPI[],MATCH(AA$4,CPI[#Headers],0),FALSE) -> 0 | AB12: =ProjectData[[#This Row],[Actuals 16/17]]*VLOOKUP("Mid Year Nominal - EOY Real (2020/21)",CPI[],MATCH(AB$4,CPI[#Headers],0),FALSE) -> 0 | AC12: =ProjectData[[#This Row],[Actuals 17/18]]*VLOOKUP("Mid Year Nominal - EOY Real (2020/21)",CPI[],MATCH(AC$4,CPI[#Headers],0),FALSE) -> 0 | AD12: =ProjectData[[#This Row],[Actuals 18/19]]*VLOOKUP("Mid Year Nominal - EOY Real (2020/21)",CPI[],MATCH(AD$4,CPI[#Headers],0),FALSE) -> 0 | AE12: =ProjectData[[#This Row],[Actuals 19/20]]*VLOOKUP("Mid Year Nominal - EOY Real (2020/21)",CPI[],MATCH(AE$4,CPI[#Headers],0),FALSE) -> 0 | AF12: =SUM(ProjectData[[#This Row],[Real 08]:[Real 20]]) -> -0.08448461333 | AG12: =(ProjectData[[#This Row],[Real Sum]]-VLOOKUP(ProjectData[[#This Row],[Category]],Category_AverageStdDevLimit[],MATCH("Average",Category_AverageStdDevLimit[#Headers],0),FALSE))^2 -> 13.34927285 | AH12: =VLOOKUP(ProjectData[[#This Row],[Category]],Category_AverageStdDevLimit[],MATCH("Limit",Category_AverageStdDevLimit[#Headers],0),FALSE) -> 20.5954265 | AI12: =ProjectData[[#This Row],[Real Sum]]>ProjectData[[#This Row],[Category Limit]] -> FALSE | AK12: =OR(ProjectData[[#This Row],[Significant Project? (Financial Basis)]],ProjectData[[#This Row],[Non repeatable]]) -> FALSE | AL12: =AND(ProjectData[[#This Row],[SomeExpenditure >= 2016]],ProjectData[[#This Row],[Abnormal?]]) -> FALSE
A13: CP.01414 | B13: Mobile Oil Processing Unit | C13: Security / Compliance | E13: 0.0477495 | F13: 0.1114155 | G13: 0 | H13: 0 | I13: 0 | K13: 0 | L13: 0 | M13: 0 | N13: 0 | O13: 0 | P13: 0 | Q13: =ProjectData[[#This Row],[Real Sum]]>0.0001 -> TRUE | R13: =OR(ProjectData[[#This Row],[Real 16]]>0,ProjectData[[#This Row],[Real 17]]>0,ProjectData[[#This Row],[Real 18]]>0,ProjectData[[#This Row],[Real 19]]>0,ProjectData[[#This Row],[Real 20]]>0) -> FALSE | S13: =ProjectData[[#This Row],[Actuals 07/08]]*VLOOKUP("Mid Year Nominal - EOY Real (2020/21)",CPI[],MATCH(S$4,CPI[#Headers],0),FALSE) -> 0 | T13: =ProjectData[[#This Row],[Actuals 08/09]]*VLOOKUP("Mid Year Nominal - EOY Real (2020/21)",CPI[],MATCH(T$4,CPI[#Headers],0),FALSE) -> 0.06145626755 | U13: =ProjectData[[#This Row],[Actuals 09/10]]*VLOOKUP("Mid Year Nominal - EOY Real (2020/21)",CPI[],MATCH(U$4,CPI[#Headers],0),FALSE) -> 0.1393881877 | V13: =ProjectData[[#This Row],[Actuals 10/11]]*VLOOKUP("Mid Year Nominal - EOY Real (2020/21)",CPI[],MATCH(V$4,CPI[#Headers],0),FALSE) -> 0 | W13: =ProjectData[[#This Row],[Actuals 11/12]]*VLOOKUP("Mid Year Nominal - EOY Real (2020/21)",CPI[],MATCH(W$4,CPI[#Headers],0),FALSE) -> 0 | X13: =ProjectData[[#This Row],[Actuals 12/13]]*VLOOKUP("Mid Year Nominal - EOY Real (2020/21)",CPI[],MATCH(X$4,CPI[#Headers],0),FALSE) -> 0 | Y13: =ProjectData[[#This Row],[Actuals 13/14]]*VLOOKUP("Mid Year Nominal - EOY Real (2020/21)",CPI[],MATCH(Y$4,CPI[#Headers],0),FALSE) -> 0 | Z13: =ProjectData[[#This Row],[Actuals 14/15]]*VLOOKUP("Mid Year Nominal - EOY Real (2020/21)",CPI[],MATCH(Z$4,CPI[#Headers],0),FALSE) -> 0 | AA13: =ProjectData[[#This Row],[Actuals 15/16]]*VLOOKUP("Mid Year Nominal - EOY Real (2020/21)",CPI[],MATCH(AA$4,CPI[#Headers],0),FALSE) -> 0 | AB13: =ProjectData[[#This Row],[Actuals 16/17]]*VLOOKUP("Mid Year Nominal - EOY Real (2020/21)",CPI[],MATCH(AB$4,CPI[#Headers],0),FALSE) -> 0 | AC13: =ProjectData[[#This Row],[Actuals 17/18]]*VLOOKUP("Mid Year Nominal - EOY Real (2020/21)",CPI[],MATCH(AC$4,CPI[#Headers],0),FALSE) -> 0 | AD13: =ProjectData[[#This Row],[Actuals 18/19]]*VLOOKUP("Mid Year Nominal - EOY Real (2020/21)",CPI[],MATCH(AD$4,CPI[#Headers],0),FALSE) -> 0 | AE13: =ProjectData[[#This Row],[Actuals 19/20]]*VLOOKUP("Mid Year Nominal - EOY Real (2020/21)",CPI[],MATCH(AE$4,CPI[#Headers],0),FALSE) -> 0 | AF13: =SUM(ProjectData[[#This Row],[Real 08]:[Real 20]]) -> 0.2008444552 | AG13: =(ProjectData[[#This Row],[Real Sum]]-VLOOKUP(ProjectData[[#This Row],[Category]],Category_AverageStdDevLimit[],MATCH("Average",Category_AverageStdDevLimit[#Headers],0),FALSE))^2 -> 11.34569148 | AH13: =VLOOKUP(ProjectData[[#This Row],[Category]],Category_AverageStdDevLimit[],MATCH("Limit",Category_AverageStdDevLimit[#Headers],0),FALSE) -> 20.5954265 | AI13: =ProjectData[[#This Row],[Real Sum]]>ProjectData[[#This Row],[Category Limit]] -> FALSE | AK13: =OR(ProjectData[[#This Row],[Significant Project? (Financial Basis)]],ProjectData[[#This Row],[Non repeatable]]) -> FALSE | AL13: =AND(ProjectData[[#This Row],[SomeExpenditure >= 2016]],ProjectData[[#This Row],[Abnormal?]]) -> FALSE
A14: CP.01439 | B14: Substation Security Upgrade - North | C14: Security / Compliance | E14: 0.0088085 | F14: 0.06940369 | G14: 0.07617082 | H14: 0.97369817 | I14: 0.60132791 | J14: 1.41354378 | K14: 0 | L14: 0 | M14: 0 | N14: 0 | O14: 0 | P14: 0 | Q14: =ProjectData[[#This Row],[Real Sum]]>0.0001 -> TRUE | R14: =OR(ProjectData[[#This Row],[Real 16]]>0,ProjectData[[#This Row],[Real 17]]>0,ProjectData[[#This Row],[Real 18]]>0,ProjectData[[#This Row],[Real 19]]>0,ProjectData[[#This Row],[Real 20]]>0) -> FALSE | S14: =ProjectData[[#This Row],[Actuals 07/08]]*VLOOKUP("Mid Year Nominal - EOY Real (2020/21)",CPI[],MATCH(S$4,CPI[#Headers],0),FALSE) -> 0 | T14: =ProjectData[[#This Row],[Actuals 08/09]]*VLOOKUP("Mid Year Nominal - EOY Real (2020/21)",CPI[],MATCH(T$4,CPI[#Headers],0),FALSE) -> 0.01133703039 | U14: =ProjectData[[#This Row],[Actuals 09/10]]*VLOOKUP("Mid Year Nominal - EOY Real (2020/21)",CPI[],MATCH(U$4,CPI[#Headers],0),FALSE) -> 0.08682862409 | V14: =ProjectData[[#This Row],[Actuals 10/11]]*VLOOKUP("Mid Year Nominal - EOY Real (2020/21)",CPI[],MATCH(V$4,CPI[#Headers],0),FALSE) -> 0.09305572259 | W14: =ProjectData[[#This Row],[Actuals 11/12]]*VLOOKUP("Mid Year Nominal - EOY Real (2020/21)",CPI[],MATCH(W$4,CPI[#Headers],0),FALSE) -> 1.156296962 | X14: =ProjectData[[#This Row],[Actuals 12/13]]*VLOOKUP("Mid Year Nominal - EOY Real (2020/21)",CPI[],MATCH(X$4,CPI[#Headers],0),FALSE) -> 0.6960143519 | Y14: =ProjectData[[#This Row],[Actuals 13/14]]*VLOOKUP("Mid Year Nominal - EOY Real (2020/21)",CPI[],MATCH(Y$4,CPI[#Headers],0),FALSE) -> 1.596616917 | Z14: =ProjectData[[#This Row],[Actuals 14/15]]*VLOOKUP("Mid Year Nominal - EOY Real (2020/21)",CPI[],MATCH(Z$4,CPI[#Headers],0),FALSE) -> 0 | AA14: =ProjectData[[#This Row],[Actuals 15/16]]*VLOOKUP("Mid Year Nominal - EOY Real (2020/21)",CPI[],MATCH(AA$4,CPI[#Headers],0),FALSE) -> 0 | AB14: =ProjectData[[#This Row],[Actuals 16/17]]*VLOOKUP("Mid Year Nominal - EOY Real (2020/21)",CPI[],MATCH(AB$4,CPI[#Headers],0),FALSE) -> 0 | AC14: =ProjectData[[#This Row],[Actuals 17/18]]*VLOOKUP("Mid Year Nominal - EOY Real (2020/21)",CPI[],MATCH(AC$4,CPI[#Headers],0),FALSE) -> 0 | AD14: =ProjectData[[#This Row],[Actuals 18/19]]*VLOOKUP("Mid Year Nominal - EOY Real (2020/21)",CPI[],MATCH(AD$4,CPI[#Headers],0),FALSE) -> 0 | AE14: =ProjectData[[#This Row],[Actuals 19/20]]*VLOOKUP("Mid Year Nominal - EOY Real (2020/21)",CPI[],MATCH(AE$4,CPI[#Headers],0),FALSE) -> 0 | AF14: =SUM(ProjectData[[#This Row],[Real 08]:[Real 20]]) -> 3.640149607 | AG14: =(ProjectData[[#This Row],[Real Sum]]-VLOOKUP(ProjectData[[#This Row],[Category]],Category_AverageStdDevLimit[],MATCH("Average",Category_AverageStdDevLimit[#Headers],0),FALSE))^2 -> 0.005036534706 | AH14: =VLOOKUP(ProjectData[[#This Row],[Category]],Category_AverageStdDevLimit[],MATCH("Limit",Category_AverageStdDevLimit[#Headers],0),FALSE) -> 20.5954265 | AI14: =ProjectData[[#This Row],[Real Sum]]>ProjectData[[#This Row],[Category Limit]] -> FALSE | AK14: =OR(ProjectData[[#This Row],[Significant Project? (Financial Basis)]],ProjectData[[#This Row],[Non repeatable]]) -> FALSE | AL14: =AND(ProjectData[[#This Row],[SomeExpenditure >= 2016]],ProjectData[[#This Row],[Abnormal?]]) -> FALSE
A15: CP.01668 | B15: Comms Site Access & Security (Part A) | C15: Security / Compliance | F15: 0.00915885 | G15: 0.03496633 | H15: 0.1162895 | I15: 0.19176858 | J15: 0.02037154 | K15: 0 | L15: 0 | M15: 0 | N15: 0 | O15: 0 | P15: 0 | Q15: =ProjectData[[#This Row],[Real Sum]]>0.0001 -> TRUE | R15: =OR(ProjectData[[#This Row],[Real 16]]>0,ProjectData[[#This Row],[Real 17]]>0,ProjectData[[#This Row],[Real 18]]>0,ProjectData[[#This Row],[Real 19]]>0,ProjectData[[#This Row],[Real 20]]>0) -> FALSE | S15: =ProjectData[[#This Row],[Actuals 07/08]]*VLOOKUP("Mid Year Nominal - EOY Real (2020/21)",CPI[],MATCH(S$4,CPI[#Headers],0),FALSE) -> 0 | T15: =ProjectData[[#This Row],[Actuals 08/09]]*VLOOKUP("Mid Year Nominal - EOY Real (2020/21)",CPI[],MATCH(T$4,CPI[#Headers],0),FALSE) -> 0 | U15: =ProjectData[[#This Row],[Actuals 09/10]]*VLOOKUP("Mid Year Nominal - EOY Real (2020/21)",CPI[],MATCH(U$4,CPI[#Headers],0),FALSE) -> 0.01145832943 | V15: =ProjectData[[#This Row],[Actuals 10/11]]*VLOOKUP("Mid Year Nominal - EOY Real (2020/21)",CPI[],MATCH(V$4,CPI[#Headers],0),FALSE) -> 0.04271737004 | W15: =ProjectData[[#This Row],[Actuals 11/12]]*VLOOKUP("Mid Year Nominal - EOY Real (2020/21)",CPI[],MATCH(W$4,CPI[#Headers],0),FALSE) -> 0.1380974101 | X15: =ProjectData[[#This Row],[Actuals 12/13]]*VLOOKUP("Mid Year Nominal - EOY Real (2020/21)",CPI[],MATCH(X$4,CPI[#Headers],0),FALSE) -> 0.2219648909 | Y15: =ProjectData[[#This Row],[Actuals 13/14]]*VLOOKUP("Mid Year Nominal - EOY Real (2020/21)",CPI[],MATCH(Y$4,CPI[#Headers],0),FALSE) -> 0.02300993139 | Z15: =ProjectData[[#This Row],[Actuals 14/15]]*VLOOKUP("Mid Year Nominal - EOY Real (2020/21)",CPI[],MATCH(Z$4,CPI[#Headers],0),FALSE) -> 0 | AA15: =ProjectData[[#This Row],[Actuals 15/16]]*VLOOKUP("Mid Year Nominal - EOY Real (2020/21)",CPI[],MATCH(AA$4,CPI[#Headers],0),FALSE) -> 0 | AB15: =ProjectData[[#This Row],[Actuals 16/17]]*VLOOKUP("Mid Year Nominal - EOY Real (2020/21)",CPI[],MATCH(AB$4,CPI[#Headers],0),FALSE) -> 0 | AC15: =ProjectData[[#This Row],[Actuals 17/18]]*VLOOKUP("Mid Year Nominal - EOY Real (2020/21)",CPI[],MATCH(AC$4,CPI[#Headers],0),FALSE) -> 0 | AD15: =ProjectData[[#This Row],[Actuals 18/19]]*VLOOKUP("Mid Year Nominal - EOY Real (2020/21)",CPI[],MATCH(AD$4,CPI[#Headers],0),FALSE) -> 0 | AE15: =ProjectData[[#This Row],[Actuals 19/20]]*VLOOKUP("Mid Year Nominal - EOY Real (2020/21)",CPI[],MATCH(AE$4,CPI[#Headers],0),FALSE) -> 0 | AF15: =SUM(ProjectData[[#This Row],[Real 08]:[Real 20]]) -> 0.4372479319 | AG15: =(ProjectData[[#This Row],[Real Sum]]-VLOOKUP(ProjectData[[#This Row],[Category]],Category_AverageStdDevLimit[],MATCH("Average",Category_AverageStdDevLimit[#Headers],0),FALSE))^2 -> 9.80900512 | AH15: =VLOOKUP(ProjectData[[#This Row],[Category]],Category_AverageStdDevLimit[],MATCH("Limit",Category_AverageStdDevLimit[#Headers],0),FALSE) -> 20.5954265 | AI15: =ProjectData[[#This Row],[Real Sum]]>ProjectData[[#This Row],[Category Limit]] -> FALSE | AK15: =OR(ProjectData[[#This Row],[Significant Project? (Financial Basis)]],ProjectData[[#This Row],[Non repeatable]]) -> FALSE | AL15: =AND(ProjectData[[#This Row],[SomeExpenditure >= 2016]],ProjectData[[#This Row],[Abnormal?]]) -> FALSE
A16: CP.02013 | B16: Secure Tower Bolts (Far North Qld Region) | C16: Security / Compliance | J16: 0 | K16: 0 | L16: 0 | M16: 0 | N16: 0 | O16: 0 | P16: 0 | Q16: =ProjectData[[#This Row],[Real Sum]]>0.0001 -> FALSE | R16: =OR(ProjectData[[#This Row],[Real 16]]>0,ProjectData[[#This Row],[Real 17]]>0,ProjectData[[#This Row],[Real 18]]>0,ProjectData[[#This Row],[Real 19]]>0,ProjectData[[#This Row],[Real 20]]>0) -> FALSE | S16: =ProjectData[[#This Row],[Actuals 07/08]]*VLOOKUP("Mid Year Nominal - EOY Real (2020/21)",CPI[],MATCH(S$4,CPI[#Headers],0),FALSE) -> 0 | T16: =ProjectData[[#This Row],[Actuals 08/09]]*VLOOKUP("Mid Year Nominal - EOY Real (2020/21)",CPI[],MATCH(T$4,CPI[#Headers],0),FALSE) -> 0 | U16: =ProjectData[[#This Row],[Actuals 09/10]]*VLOOKUP("Mid Year Nominal - EOY Real (2020/21)",CPI[],MATCH(U$4,CPI[#Headers],0),FALSE) -> 0 | V16: =ProjectData[[#This Row],[Actuals 10/11]]*VLOOKUP("Mid Year Nominal - EOY Real (2020/21)",CPI[],MATCH(V$4,CPI[#Headers],0),FALSE) -> 0 | W16: =ProjectData[[#This Row],[Actuals 11/12]]*VLOOKUP("Mid Year Nominal - EOY Real (2020/21)",CPI[],MATCH(W$4,CPI[#Headers],0),FALSE) -> 0 | X16: =ProjectData[[#This Row],[Actuals 12/13]]*VLOOKUP("Mid Year Nominal - EOY Real (2020/21)",CPI[],MATCH(X$4,CPI[#Headers],0),FALSE) -> 0 | Y16: =ProjectData[[#This Row],[Actuals 13/14]]*VLOOKUP("Mid Year Nominal - EOY Real (2020/21)",CPI[],MATCH(Y$4,CPI[#Headers],0),FALSE) -> 0 | Z16: =ProjectData[[#This Row],[Actuals 14/15]]*VLOOKUP("Mid Year Nominal - EOY Real (2020/21)",CPI[],MATCH(Z$4,CPI[#Headers],0),FALSE) -> 0 | AA16: =ProjectData[[#This Row],[Actuals 15/16]]*VLOOKUP("Mid Year Nominal - EOY Real (2020/21)",CPI[],MATCH(AA$4,CPI[#Headers],0),FALSE) -> 0 | AB16: =ProjectData[[#This Row],[Actuals 16/17]]*VLOOKUP("Mid Year Nominal - EOY Real (2020/21)",CPI[],MATCH(AB$4,CPI[#Headers],0),FALSE) -> 0 | AC16: =ProjectData[[#This Row],[Actuals 17/18]]*VLOOKUP("Mid Year Nominal - EOY Real (2020/21)",CPI[],MATCH(AC$4,CPI[#Headers],0),FALSE) -> 0 | AD16: =ProjectData[[#This Row],[Actuals 18/19]]*VLOOKUP("Mid Year Nominal - EOY Real (2020/21)",CPI[],MATCH(AD$4,CPI[#Headers],0),FALSE) -> 0 | AE16: =ProjectData[[#This Row],[Actuals 19/20]]*VLOOKUP("Mid Year Nominal - EOY Real (2020/21)",CPI[],MATCH(AE$4,CPI[#Headers],0),FALSE) -> 0 | AF16: =SUM(ProjectData[[#This Row],[Real 08]:[Real 20]]) -> 0 | AG16: =(ProjectData[[#This Row],[Real Sum]]-VLOOKUP(ProjectData[[#This Row],[Category]],Category_AverageStdDevLimit[],MATCH("Average",Category_AverageStdDevLimit[#Headers],0),FALSE))^2 -> 12.73905344 | AH16: =VLOOKUP(ProjectData[[#This Row],[Category]],Category_AverageStdDevLimit[],MATCH("Limit",Category_AverageStdDevLimit[#Headers],0),FALSE) -> 20.5954265 | AI16: =ProjectData[[#This Row],[Real Sum]]>ProjectData[[#This Row],[Category Limit]] -> FALSE | AK16: =OR(ProjectData[[#This Row],[Significant Project? (Financial Basis)]],ProjectData[[#This Row],[Non repeatable]]) -> FALSE | AL16: =AND(ProjectData[[#This Row],[SomeExpenditure >= 2016]],ProjectData[[#This Row],[Abnormal?]]) -> FALSE
A17: CP.02014 | B17: Secure Tower Bolts (North Qld Region) | C17: Security / Compliance | K17: 0 | L17: 0 | M17: 0 | N17: 0 | O17: 0 | P17: 0 | Q17: =ProjectData[[#This Row],[Real Sum]]>0.0001 -> FALSE | R17: =OR(ProjectData[[#This Row],[Real 16]]>0,ProjectData[[#This Row],[Real 17]]>0,ProjectData[[#This Row],[Real 18]]>0,ProjectData[[#This Row],[Real 19]]>0,ProjectData[[#This Row],[Real 20]]>0) -> FALSE | S17: =ProjectData[[#This Row],[Actuals 07/08]]*VLOOKUP("Mid Year Nominal - EOY Real (2020/21)",CPI[],MATCH(S$4,CPI[#Headers],0),FALSE) -> 0 | T17: =ProjectData[[#This Row],[Actuals 08/09]]*VLOOKUP("Mid Year Nominal - EOY Real (2020/21)",CPI[],MATCH(T$4,CPI[#Headers],0),FALSE) -> 0 | U17: =ProjectData[[#This Row],[Actuals 09/10]]*VLOOKUP("Mid Year Nominal - EOY Real (2020/21)",CPI[],MATCH(U$4,CPI[#Headers],0),FALSE) -> 0 | V17: =ProjectData[[#This Row],[Actuals 10/11]]*VLOOKUP("Mid Year Nominal - EOY Real (2020/21)",CPI[],MATCH(V$4,CPI[#Headers],0),FALSE) -> 0 | W17: =ProjectData[[#This Row],[Actuals 11/12]]*VLOOKUP("Mid Year Nominal - EOY Real (2020/21)",CPI[],MATCH(W$4,CPI[#Headers],0),FALSE) -> 0 | X17: =ProjectData[[#This Row],[Actuals 12/13]]*VLOOKUP("Mid Year Nominal - EOY Real (2020/21)",CPI[],MATCH(X$4,CPI[#Headers],0),FALSE) -> 0 | Y17: =ProjectData[[#This Row],[Actuals 13/14]]*VLOOKUP("Mid Year Nominal - EOY Real (2020/21)",CPI[],MATCH(Y$4,CPI[#Headers],0),FALSE) -> 0 | Z17: =ProjectData[[#This Row],[Actuals 14/15]]*VLOOKUP("Mid Year Nominal - EOY Real (2020/21)",CPI[],MATCH(Z$4,CPI[#Headers],0),FALSE) -> 0 | AA17: =ProjectData[[#This Row],[Actuals 15/16]]*VLOOKUP("Mid Year Nominal - EOY Real (2020/21)",CPI[],MATCH(AA$4,CPI[#Headers],0),FALSE) -> 0 | AB17: =ProjectData[[#This Row],[Actuals 16/17]]*VLOOKUP("Mid Year Nominal - EOY Real (2020/21)",CPI[],MATCH(AB$4,CPI[#Headers],0),FALSE) -> 0 | AC17: =ProjectData[[#This Row],[Actuals 17/18]]*VLOOKUP("Mid Year Nominal - EOY Real (2020/21)",CPI[],MATCH(AC$4,CPI[#Headers],0),FALSE) -> 0 | AD17: =ProjectData[[#This Row],[Actuals 18/19]]*VLOOKUP("Mid Year Nominal - EOY Real (2020/21)",CPI[],MATCH(AD$4,CPI[#Headers],0),FALSE) -> 0 | AE17: =ProjectData[[#This Row],[Actuals 19/20]]*VLOOKUP("Mid Year Nominal - EOY Real (2020/21)",CPI[],MATCH(AE$4,CPI[#Headers],0),FALSE) -> 0 | AF17: =SUM(ProjectData[[#This Row],[Real 08]:[Real 20]]) -> 0 | AG17: =(ProjectData[[#This Row],[Real Sum]]-VLOOKUP(ProjectData[[#This Row],[Category]],Category_AverageStdDevLimit[],MATCH("Average",Category_AverageStdDevLimit[#Headers],0),FALSE))^2 -> 12.73905344 | AH17: =VLOOKUP(ProjectData[[#This Row],[Category]],Category_AverageStdDevLimit[],MATCH("Limit",Category_AverageStdDevLimit[#Headers],0),FALSE) -> 20.5954265 | AI17: =ProjectData[[#This Row],[Real Sum]]>ProjectData[[#This Row],[Category Limit]] -> FALSE | AK17: =OR(ProjectData[[#This Row],[Significant Project? (Financial Basis)]],ProjectData[[#This Row],[Non repeatable]]) -> FALSE | AL17: =AND(ProjectData[[#This Row],[SomeExpenditure >= 2016]],ProjectData[[#This Row],[Abnormal?]]) -> FALSE
A18: CP.02060 | B18: EMS Redundancy at DR Site | C18: Security / Compliance | F18: 0.0032252 | G18: 0.17457206 | H18: 0 | I18: 0 | K18: 0 | L18: 0 | M18: 0 | N18: 0 | O18: 0 | P18: 0 | Q18: =ProjectData[[#This Row],[Real Sum]]>0.0001 -> TRUE | R18: =OR(ProjectData[[#This Row],[Real 16]]>0,ProjectData[[#This Row],[Real 17]]>0,ProjectData[[#This Row],[Real 18]]>0,ProjectData[[#This Row],[Real 19]]>0,ProjectData[[#This Row],[Real 20]]>0) -> FALSE | S18: =ProjectData[[#This Row],[Actuals 07/08]]*VLOOKUP("Mid Year Nominal - EOY Real (2020/21)",CPI[],MATCH(S$4,CPI[#Headers],0),FALSE) -> 0 | T18: =ProjectData[[#This Row],[Actuals 08/09]]*VLOOKUP("Mid Year Nominal - EOY Real (2020/21)",CPI[],MATCH(T$4,CPI[#Headers],0),FALSE) -> 0 | U18: =ProjectData[[#This Row],[Actuals 09/10]]*VLOOKUP("Mid Year Nominal - EOY Real (2020/21)",CPI[],MATCH(U$4,CPI[#Headers],0),FALSE) -> 0.00403493933 | V18: =ProjectData[[#This Row],[Actuals 10/11]]*VLOOKUP("Mid Year Nominal - EOY Real (2020/21)",CPI[],MATCH(V$4,CPI[#Headers],0),FALSE) -> 0.2132697165 | W18: =ProjectData[[#This Row],[Actuals 11/12]]*VLOOKUP("Mid Year Nominal - EOY Real (2020/21)",CPI[],MATCH(W$4,CPI[#Headers],0),FALSE) -> 0 | X18: =ProjectData[[#This Row],[Actuals 12/13]]*VLOOKUP("Mid Year Nominal - EOY Real (2020/21)",CPI[],MATCH(X$4,CPI[#Headers],0),FALSE) -> 0 | Y18: =ProjectData[[#This Row],[Actuals 13/14]]*VLOOKUP("Mid Year Nominal - EOY Real (2020/21)",CPI[],MATCH(Y$4,CPI[#Headers],0),FALSE) -> 0 | Z18: =ProjectData[[#This Row],[Actuals 14/15]]*VLOOKUP("Mid Year Nominal - EOY Real (2020/21)",CPI[],MATCH(Z$4,CPI[#Headers],0),FALSE) -> 0 | AA18: =ProjectData[[#This Row],[Actuals 15/16]]*VLOOKUP("Mid Year Nominal - EOY Real (2020/21)",CPI[],MATCH(AA$4,CPI[#Headers],0),FALSE) -> 0 | AB18: =ProjectData[[#This Row],[Actuals 16/17]]*VLOOKUP("Mid Year Nominal - EOY Real (2020/21)",CPI[],MATCH(AB$4,CPI[#Headers],0),FALSE) -> 0 | AC18: =ProjectData[[#This Row],[Actuals 17/18]]*VLOOKUP("Mid Year Nominal - EOY Real (2020/21)",CPI[],MATCH(AC$4,CPI[#Headers],0),FALSE) -> 0 | AD18: =ProjectData[[#This Row],[Actuals 18/19]]*VLOOKUP("Mid Year Nominal - EOY Real (2020/21)",CPI[],MATCH(AD$4,CPI[#Headers],0),FALSE) -> 0 | AE18: =ProjectData[[#This Row],[Actuals 19/20]]*VLOOKUP("Mid Year Nominal - EOY Real (2020/21)",CPI[],MATCH(AE$4,CPI[#Headers],0),FALSE) -> 0 | AF18: =SUM(ProjectData[[#This Row],[Real 08]:[Real 20]]) -> 0.2173046558 | AG18: =(ProjectData[[#This Row],[Real Sum]]-VLOOKUP(ProjectData[[#This Row],[Category]],Category_AverageStdDevLimit[],MATCH("Average",Category_AverageStdDevLimit[#Headers],0),FALSE))^2 -> 11.23507543 | AH18: =VLOOKUP(ProjectData[[#This Row],[Category]],Category_AverageStdDevLimit[],MATCH("Limit",Category_AverageStdDevLimit[#Headers],0),FALSE) -> 20.5954265 | AI18: =ProjectData[[#This Row],[Real Sum]]>ProjectData[[#This Row],[Category Limit]] -> FALSE | AK18: =OR(ProjectData[[#This Row],[Significant Project? (Financial Basis)]],ProjectData[[#This Row],[Non repeatable]]) -> FALSE | AL18: =AND(ProjectData[[#This Row],[SomeExpenditure >= 2016]],ProjectData[[#This Row],[Abnormal?]]) -> FALSE
A19: CP.02067 | B19: Substation Security Upgrade - Stage 1 | C19: Security / Compliance | G19: 1.56874127 | H19: 0.42023633 | I19: 0.46984671 | J19: 2.47047286 | K19: 2.81742454 | L19: 0.69859651 | M19: 0.24994989 | N19: 0.25141524 | O19: 0.25863279 | P19: -0.07803583 | Q19: =ProjectData[[#This Row],[Real Sum]]>0.0001 -> TRUE | R19: =OR(ProjectData[[#This Row],[Real 16]]>0,ProjectData[[#This Row],[Real 17]]>0,ProjectData[[#This Row],[Real 18]]>0,ProjectData[[#This Row],[Real 19]]>0,ProjectData[[#This Row],[Real 20]]>0) -> TRUE | S19: =ProjectData[[#This Row],[Actuals 07/08]]*VLOOKUP("Mid Year Nominal - EOY Real (2020/21)",CPI[],MATCH(S$4,CPI[#Headers],0),FALSE) -> 0 | T19: =ProjectData[[#This Row],[Actuals 08/09]]*VLOOKUP("Mid Year Nominal - EOY Real (2020/21)",CPI[],MATCH(T$4,CPI[#Headers],0),FALSE) -> 0 | U19: =ProjectData[[#This Row],[Actuals 09/10]]*VLOOKUP("Mid Year Nominal - EOY Real (2020/21)",CPI[],MATCH(U$4,CPI[#Headers],0),FALSE) -> 0 | V19: =ProjectData[[#This Row],[Actuals 10/11]]*VLOOKUP("Mid Year Nominal - EOY Real (2020/21)",CPI[],MATCH(V$4,CPI[#Headers],0),FALSE) -> 1.916486555 | W19: =ProjectData[[#This Row],[Actuals 11/12]]*VLOOKUP("Mid Year Nominal - EOY Real (2020/21)",CPI[],MATCH(W$4,CPI[#Headers],0),FALSE) -> 0.4990437555 | X19: =ProjectData[[#This Row],[Actuals 12/13]]*VLOOKUP("Mid Year Nominal - EOY Real (2020/21)",CPI[],MATCH(X$4,CPI[#Headers],0),FALSE) -> 0.5438298272 | Y19: =ProjectData[[#This Row],[Actuals 13/14]]*VLOOKUP("Mid Year Nominal - EOY Real (2020/21)",CPI[],MATCH(Y$4,CPI[#Headers],0),FALSE) -> 2.790432682 | Z19: =ProjectData[[#This Row],[Actuals 14/15]]*VLOOKUP("Mid Year Nominal - EOY Real (2020/21)",CPI[],MATCH(Z$4,CPI[#Headers],0),FALSE) -> 3.1129005 | AA19: =ProjectData[[#This Row],[Actuals 15/16]]*VLOOKUP("Mid Year Nominal - EOY Real (2020/21)",CPI[],MATCH(AA$4,CPI[#Headers],0),FALSE) -> 0.7589363566 | AB19: =ProjectData[[#This Row],[Actuals 16/17]]*VLOOKUP("Mid Year Nominal - EOY Real (2020/21)",CPI[],MATCH(AB$4,CPI[#Headers],0),FALSE) -> 0.2673093538 | AC19: =ProjectData[[#This Row],[Actuals 17/18]]*VLOOKUP("Mid Year Nominal - EOY Real (2020/21)",CPI[],MATCH(AC$4,CPI[#Headers],0),FALSE) -> 0.264401942 | AD19: =ProjectData[[#This Row],[Actuals 18/19]]*VLOOKUP("Mid Year Nominal - EOY Real (2020/21)",CPI[],MATCH(AD$4,CPI[#Headers],0),FALSE) -> 0.2670608003 | AE19: =ProjectData[[#This Row],[Actuals 19/20]]*VLOOKUP("Mid Year Nominal - EOY Real (2020/21)",CPI[],MATCH(AE$4,CPI[#Headers],0),FALSE) -> -0.07914443034 | AF19: =SUM(ProjectData[[#This Row],[Real 08]:[Real 20]]) -> 10.34125734 | AG19: =(ProjectData[[#This Row],[Real Sum]]-VLOOKUP(ProjectData[[#This Row],[Category]],Category_AverageStdDevLimit[],MATCH("Average",Category_AverageStdDevLimit[#Headers],0),FALSE))^2 -> 45.86101717 | AH19: =VLOOKUP(ProjectData[[#This Row],[Category]],Category_AverageStdDevLimit[],MATCH("Limit",Category_AverageStdDevLimit[#Headers],0),FALSE) -> 20.5954265 | AI19: =ProjectData[[#This Row],[Real Sum]]>ProjectData[[#This Row],[Category Limit]] -> FALSE | AK19: =OR(ProjectData[[#This Row],[Significant Project? (Financial Basis)]],ProjectData[[#This Row],[Non repeatable]]) -> FALSE | AL19: =AND(ProjectData[[#This Row],[SomeExpenditure >= 2016]],ProjectData[[#This Row],[Abnormal?]]) -> FALSE
A20: CP.02068 | B20: Substation Security Upgrade - Stage 2 | C20: Security / Compliance | G20: 0.01597795 | H20: 0 | I20: 0 | J20: 0.000312 | K20: 0 | L20: 0.90045311 | M20: 23.87001997 | N20: 18.25935385 | O20: 1.44560625 | P20: 0.01299681 | Q20: =ProjectData[[#This Row],[Real Sum]]>0.0001 -> TRUE | R20: =OR(ProjectData[[#This Row],[Real 16]]>0,ProjectData[[#This Row],[Real 17]]>0,ProjectData[[#This Row],[Real 18]]>0,ProjectData[[#This Row],[Real 19]]>0,ProjectData[[#This Row],[Real 20]]>0) -> TRUE | S20: =ProjectData[[#This Row],[Actuals 07/08]]*VLOOKUP("Mid Year Nominal - EOY Real (2020/21)",CPI[],MATCH(S$4,CPI[#Headers],0),FALSE) -> 0 | T20: =ProjectData[[#This Row],[Actuals 08/09]]*VLOOKUP("Mid Year Nominal - EOY Real (2020/21)",CPI[],MATCH(T$4,CPI[#Headers],0),FALSE) -> 0 | U20: =ProjectData[[#This Row],[Actuals 09/10]]*VLOOKUP("Mid Year Nominal - EOY Real (2020/21)",CPI[],MATCH(U$4,CPI[#Headers],0),FALSE) -> 0 | V20: =ProjectData[[#This Row],[Actuals 10/11]]*VLOOKUP("Mid Year Nominal - EOY Real (2020/21)",CPI[],MATCH(V$4,CPI[#Headers],0),FALSE) -> 0.0195198067 | W20: =ProjectData[[#This Row],[Actuals 11/12]]*VLOOKUP("Mid Year Nominal - EOY Real (2020/21)",CPI[],MATCH(W$4,CPI[#Headers],0),FALSE) -> 0 | X20: =ProjectData[[#This Row],[Actuals 12/13]]*VLOOKUP("Mid Year Nominal - EOY Real (2020/21)",CPI[],MATCH(X$4,CPI[#Headers],0),FALSE) -> 0 | Y20: =ProjectData[[#This Row],[Actuals 13/14]]*VLOOKUP("Mid Year Nominal - EOY Real (2020/21)",CPI[],MATCH(Y$4,CPI[#Headers],0),FALSE) -> 0.0003524082417 | Z20: =ProjectData[[#This Row],[Actuals 14/15]]*VLOOKUP("Mid Year Nominal - EOY Real (2020/21)",CPI[],MATCH(Z$4,CPI[#Headers],0),FALSE) -> 0 | AA20: =ProjectData[[#This Row],[Actuals 15/16]]*VLOOKUP("Mid Year Nominal - EOY Real (2020/21)",CPI[],MATCH(AA$4,CPI[#Headers],0),FALSE) -> 0.9782279081 | AB20: =ProjectData[[#This Row],[Actuals 16/17]]*VLOOKUP("Mid Year Nominal - EOY Real (2020/21)",CPI[],MATCH(AB$4,CPI[#Headers],0),FALSE) -> 25.52783526 | AC20: =ProjectData[[#This Row],[Actuals 17/18]]*VLOOKUP("Mid Year Nominal - EOY Real (2020/21)",CPI[],MATCH(AC$4,CPI[#Headers],0),FALSE) -> 19.20252972 | AD20: =ProjectData[[#This Row],[Actuals 18/19]]*VLOOKUP("Mid Year Nominal - EOY Real (2020/21)",CPI[],MATCH(AD$4,CPI[#Headers],0),FALSE) -> 1.492713905 | AE20: =ProjectData[[#This Row],[Actuals 19/20]]*VLOOKUP("Mid Year Nominal - EOY Real (2020/21)",CPI[],MATCH(AE$4,CPI[#Headers],0),FALSE) -> 0.01318144657 | AF20: =SUM(ProjectData[[#This Row],[Real 08]:[Real 20]]) -> 47.23436045 | AG20: =(ProjectData[[#This Row],[Real Sum]]-VLOOKUP(ProjectData[[#This Row],[Category]],Category_AverageStdDevLimit[],MATCH("Average",Category_AverageStdDevLimit[#Headers],0),FALSE))^2 -> 1906.647891 | AH20: =VLOOKUP(ProjectData[[#This Row],[Category]],Category_AverageStdDevLimit[],MATCH("Limit",Category_AverageStdDevLimit[#Headers],0),FALSE) -> 20.5954265 | AI20: =ProjectData[[#This Row],[Real Sum]]>ProjectData[[#This Row],[Category Limit]] -> TRUE | AK20: =OR(ProjectData[[#This Row],[Significant Project? (Financial Basis)]],ProjectData[[#This Row],[Non repeatable]]) -> TRUE | AL20: =AND(ProjectData[[#This Row],[SomeExpenditure >= 2016]],ProjectData[[#This Row],[Abnormal?]]) -> TRUE
A21: CP.02069 | B21: Substation Security Upgrade - Stage 3 | C21: Security / Compliance | G21: 0.0126639 | H21: 0 | I21: 0 | J21: 0 | K21: 0 | L21: 0 | M21: 0.06286775 | N21: 0.00334474 | O21: 0.00508145 | P21: 0 | Q21: =ProjectData[[#This Row],[Real Sum]]>0.0001 -> TRUE | R21: =OR(ProjectData[[#This Row],[Real 16]]>0,ProjectData[[#This Row],[Real 17]]>0,ProjectData[[#This Row],[Real 18]]>0,ProjectData[[#This Row],[Real 19]]>0,ProjectData[[#This Row],[Real 20]]>0) -> TRUE | S21: =ProjectData[[#This Row],[Actuals 07/08]]*VLOOKUP("Mid Year Nominal - EOY Real (2020/21)",CPI[],MATCH(S$4,CPI[#Headers],0),FALSE) -> 0 | T21: =ProjectData[[#This Row],[Actuals 08/09]]*VLOOKUP("Mid Year Nominal - EOY Real (2020/21)",CPI[],MATCH(T$4,CPI[#Headers],0),FALSE) -> 0 | U21: =ProjectData[[#This Row],[Actuals 09/10]]*VLOOKUP("Mid Year Nominal - EOY Real (2020/21)",CPI[],MATCH(U$4,CPI[#Headers],0),FALSE) -> 0 | V21: =ProjectData[[#This Row],[Actuals 10/11]]*VLOOKUP("Mid Year Nominal - EOY Real (2020/21)",CPI[],MATCH(V$4,CPI[#Headers],0),FALSE) -> 0.01547112615 | W21: =ProjectData[[#This Row],[Actuals 11/12]]*VLOOKUP("Mid Year Nominal - EOY Real (2020/21)",CPI[],MATCH(W$4,CPI[#Headers],0),FALSE) -> 0 | X21: =ProjectData[[#This Row],[Actuals 12/13]]*VLOOKUP("Mid Year Nominal - EOY Real (2020/21)",CPI[],MATCH(X$4,CPI[#Headers],0),FALSE) -> 0 | Y21: =ProjectData[[#This Row],[Actuals 13/14]]*VLOOKUP("Mid Year Nominal - EOY Real (2020/21)",CPI[],MATCH(Y$4,CPI[#Headers],0),FALSE) -> 0 | Z21: =ProjectData[[#This Row],[Actuals 14/15]]*VLOOKUP("Mid Year Nominal - EOY Real (2020/21)",CPI[],MATCH(Z$4,CPI[#Headers],0),FALSE) -> 0 | AA21: =ProjectData[[#This Row],[Actuals 15/16]]*VLOOKUP("Mid Year Nominal - EOY Real (2020/21)",CPI[],MATCH(AA$4,CPI[#Headers],0),FALSE) -> 0 | AB21: =ProjectData[[#This Row],[Actuals 16/17]]*VLOOKUP("Mid Year Nominal - EOY Real (2020/21)",CPI[],MATCH(AB$4,CPI[#Headers],0),FALSE) -> 0.06723402691 | AC21: =ProjectData[[#This Row],[Actuals 17/18]]*VLOOKUP("Mid Year Nominal - EOY Real (2020/21)",CPI[],MATCH(AC$4,CPI[#Headers],0),FALSE) -> 0.003517510519 | AD21: =ProjectData[[#This Row],[Actuals 18/19]]*VLOOKUP("Mid Year Nominal - EOY Real (2020/21)",CPI[],MATCH(AD$4,CPI[#Headers],0),FALSE) -> 0.005247038102 | AE21: =ProjectData[[#This Row],[Actuals 19/20]]*VLOOKUP("Mid Year Nominal - EOY Real (2020/21)",CPI[],MATCH(AE$4,CPI[#Headers],0),FALSE) -> 0 | AF21: =SUM(ProjectData[[#This Row],[Real 08]:[Real 20]]) -> 0.09146970168 | AG21: =(ProjectData[[#This Row],[Real Sum]]-VLOOKUP(ProjectData[[#This Row],[Category]],Category_AverageStdDevLimit[],MATCH("Average",Category_AverageStdDevLimit[#Headers],0),FALSE))^2 -> 12.09447629 | AH21: =VLOOKUP(ProjectData[[#This Row],[Category]],Category_AverageStdDevLimit[],MATCH("Limit",Category_AverageStdDevLimit[#Headers],0),FALSE) -> 20.5954265 | AI21: =ProjectData[[#This Row],[Real Sum]]>ProjectData[[#This Row],[Category Limit]] -> FALSE | AK21: =OR(ProjectData[[#This Row],[Significant Project? (Financial Basis)]],ProjectData[[#This Row],[Non repeatable]]) -> FALSE | AL21: =AND(ProjectData[[#This Row],[SomeExpenditure >= 2016]],ProjectData[[#This Row],[Abnormal?]]) -> FALSE
A22: CP.02070 | B22: Substation Security Upgrade - Stage 4 | C22: Security / Compliance | G22: 0.0082677 | H22: 0 | I22: 0 | J22: 0 | K22: 0 | L22: 0 | M22: 0 | N22: 0 | O22: 0 | P22: 0 | Q22: =ProjectData[[#This Row],[Real Sum]]>0.0001 -> TRUE | R22: =OR(ProjectData[[#This Row],[Real 16]]>0,ProjectData[[#This Row],[Real 17]]>0,ProjectData[[#This Row],[Real 18]]>0,ProjectData[[#This Row],[Real 19]]>0,ProjectData[[#This Row],[Real 20]]>0) -> FALSE | S22: =ProjectData[[#This Row],[Actuals 07/08]]*VLOOKUP("Mid Year Nominal - EOY Real (2020/21)",CPI[],MATCH(S$4,CPI[#Headers],0),FALSE) -> 0 | T22: =ProjectData[[#This Row],[Actuals 08/09]]*VLOOKUP("Mid Year Nominal - EOY Real (2020/21)",CPI[],MATCH(T$4,CPI[#Headers],0),FALSE) -> 0 | U22: =ProjectData[[#This Row],[Actuals 09/10]]*VLOOKUP("Mid Year Nominal - EOY Real (2020/21)",CPI[],MATCH(U$4,CPI[#Headers],0),FALSE) -> 0 | V22: =ProjectData[[#This Row],[Actuals 10/11]]*VLOOKUP("Mid Year Nominal - EOY Real (2020/21)",CPI[],MATCH(V$4,CPI[#Headers],0),FALSE) -> 0.01010041375 | W22: =ProjectData[[#This Row],[Actuals 11/12]]*VLOOKUP("Mid Year Nominal - EOY Real (2020/21)",CPI[],MATCH(W$4,CPI[#Headers],0),FALSE) -> 0 | X22: =ProjectData[[#This Row],[Actuals 12/13]]*VLOOKUP("Mid Year Nominal - EOY Real (2020/21)",CPI[],MATCH(X$4,CPI[#Headers],0),FALSE) -> 0 | Y22: =ProjectData[[#This Row],[Actuals 13/14]]*VLOOKUP("Mid Year Nominal - EOY Real (2020/21)",CPI[],MATCH(Y$4,CPI[#Headers],0),FALSE) -> 0 | Z22: =ProjectData[[#This Row],[Actuals 14/15]]*VLOOKUP("Mid Year Nominal - EOY Real (2020/21)",CPI[],MATCH(Z$4,CPI[#Headers],0),FALSE) -> 0 | AA22: =ProjectData[[#This Row],[Actuals 15/16]]*VLOOKUP("Mid Year Nominal - EOY Real (2020/21)",CPI[],MATCH(AA$4,CPI[#Headers],0),FALSE) -> 0 | AB22: =ProjectData[[#This Row],[Actuals 16/17]]*VLOOKUP("Mid Year Nominal - EOY Real (2020/21)",CPI[],MATCH(AB$4,CPI[#Headers],0),FALSE) -> 0 | AC22: =ProjectData[[#This Row],[Actuals 17/18]]*VLOOKUP("Mid Year Nominal - EOY Real (2020/21)",CPI[],MATCH(AC$4,CPI[#Headers],0),FALSE) -> 0 | AD22: =ProjectData[[#This Row],[Actuals 18/19]]*VLOOKUP("Mid Year Nominal - EOY Real (2020/21)",CPI[],MATCH(AD$4,CPI[#Headers],0),FALSE) -> 0 | AE22: =ProjectData[[#This Row],[Actuals 19/20]]*VLOOKUP("Mid Year Nominal - EOY Real (2020/21)",CPI[],MATCH(AE$4,CPI[#Headers],0),FALSE) -> 0 | AF22: =SUM(ProjectData[[#This Row],[Real 08]:[Real 20]]) -> 0.01010041375 | AG22: =(ProjectData[[#This Row],[Real Sum]]-VLOOKUP(ProjectData[[#This Row],[Category]],Category_AverageStdDevLimit[],MATCH("Average",Category_AverageStdDevLimit[#Headers],0),FALSE))^2 -> 12.66705505 | AH22: =VLOOKUP(ProjectData[[#This Row],[Category]],Category_AverageStdDevLimit[],MATCH("Limit",Category_AverageStdDevLimit[#Headers],0),FALSE) -> 20.5954265 | AI22: =ProjectData[[#This Row],[Real Sum]]>ProjectData[[#This Row],[Category Limit]] -> FALSE | AK22: =OR(ProjectData[[#This Row],[Significant Project? (Financial Basis)]],ProjectData[[#This Row],[Non repeatable]]) -> FALSE | AL22: =AND(ProjectData[[#This Row],[SomeExpenditure >= 2016]],ProjectData[[#This Row],[Abnormal?]]) -> FALSE
A23: CP.02071 | B23: Substation Security Upgrade - Stage 5 | C23: Security / Compliance | G23: 0.009464 | H23: 0 | I23: 0 | J23: 0 | K23: 0 | L23: 0 | M23: 0 | N23: 0 | O23: 0 | P23: 0 | Q23: =ProjectData[[#This Row],[Real Sum]]>0.0001 -> TRUE | R23: =OR(ProjectData[[#This Row],[Real 16]]>0,ProjectData[[#This Row],[Real 17]]>0,ProjectData[[#This Row],[Real 18]]>0,ProjectData[[#This Row],[Real 19]]>0,ProjectData[[#This Row],[Real 20]]>0) -> FALSE | S23: =ProjectData[[#This Row],[Actuals 07/08]]*VLOOKUP("Mid Year Nominal - EOY Real (2020/21)",CPI[],MATCH(S$4,CPI[#Headers],0),FALSE) -> 0 | T23: =ProjectData[[#This Row],[Actuals 08/09]]*VLOOKUP("Mid Year Nominal - EOY Real (2020/21)",CPI[],MATCH(T$4,CPI[#Headers],0),FALSE) -> 0 | U23: =ProjectData[[#This Row],[Actuals 09/10]]*VLOOKUP("Mid Year Nominal - EOY Real (2020/21)",CPI[],MATCH(U$4,CPI[#Headers],0),FALSE) -> 0 | V23: =ProjectData[[#This Row],[Actuals 10/11]]*VLOOKUP("Mid Year Nominal - EOY Real (2020/21)",CPI[],MATCH(V$4,CPI[#Headers],0),FALSE) -> 0.01156189941 | W23: =ProjectData[[#This Row],[Actuals 11/12]]*VLOOKUP("Mid Year Nominal - EOY Real (2020/21)",CPI[],MATCH(W$4,CPI[#Headers],0),FALSE) -> 0 | X23: =ProjectData[[#This Row],[Actuals 12/13]]*VLOOKUP("Mid Year Nominal - EOY Real (2020/21)",CPI[],MATCH(X$4,CPI[#Headers],0),FALSE) -> 0 | Y23: =ProjectData[[#This Row],[Actuals 13/14]]*VLOOKUP("Mid Year Nominal - EOY Real (2020/21)",CPI[],MATCH(Y$4,CPI[#Headers],0),FALSE) -> 0 | Z23: =ProjectData[[#This Row],[Actuals 14/15]]*VLOOKUP("Mid Year Nominal - EOY Real (2020/21)",CPI[],MATCH(Z$4,CPI[#Headers],0),FALSE) -> 0 | AA23: =ProjectData[[#This Row],[Actuals 15/16]]*VLOOKUP("Mid Year Nominal - EOY Real (2020/21)",CPI[],MATCH(AA$4,CPI[#Headers],0),FALSE) -> 0 | AB23: =ProjectData[[#This Row],[Actuals 16/17]]*VLOOKUP("Mid Year Nominal - EOY Real (2020/21)",CPI[],MATCH(AB$4,CPI[#Headers],0),FALSE) -> 0 | AC23: =ProjectData[[#This Row],[Actuals 17/18]]*VLOOKUP("Mid Year Nominal - EOY Real (2020/21)",CPI[],MATCH(AC$4,CPI[#Headers],0),FALSE) -> 0 | AD23: =ProjectData[[#This Row],[Actuals 18/19]]*VLOOKUP("Mid Year Nominal - EOY Real (2020/21)",CPI[],MATCH(AD$4,CPI[#Headers],0),FALSE) -> 0 | AE23: =ProjectData[[#This Row],[Actuals 19/20]]*VLOOKUP("Mid Year Nominal - EOY Real (2020/21)",CPI[],MATCH(AE$4,CPI[#Headers],0),FALSE) -> 0 | AF23: =SUM(ProjectData[[#This Row],[Real 08]:[Real 20]]) -> 0.01156189941 | AG23: =(ProjectData[[#This Row],[Real Sum]]-VLOOKUP(ProjectData[[#This Row],[Category]],Category_AverageStdDevLimit[],MATCH("Average",Category_AverageStdDevLimit[#Headers],0),FALSE))^2 -> 12.65665409 | AH23: =VLOOKUP(ProjectData[[#This Row],[Category]],Category_AverageStdDevLimit[],MATCH("Limit",Category_AverageStdDevLimit[#Headers],0),FALSE) -> 20.5954265 | AI23: =ProjectData[[#This Row],[Real Sum]]>ProjectData[[#This Row],[Category Limit]] -> FALSE | AK23: =OR(ProjectData[[#This Row],[Significant Project? (Financial Basis)]],ProjectData[[#This Row],[Non repeatable]]) -> FALSE | AL23: =AND(ProjectData[[#This Row],[SomeExpenditure >= 2016]],ProjectData[[#This Row],[Abnormal?]]) -> FALSE
A24: CP.02072 | B24: Substation Security Upgrade - Stage 6 | C24: Security / Compliance | G24: 0.0077385 | H24: 0 | I24: 0 | J24: 0 | K24: 0 | L24: 0 | M24: 0 | N24: 0 | O24: 0 | P24: 0 | Q24: =ProjectData[[#This Row],[Real Sum]]>0.0001 -> TRUE | R24: =OR(ProjectData[[#This Row],[Real 16]]>0,ProjectData[[#This Row],[Real 17]]>0,ProjectData[[#This Row],[Real 18]]>0,ProjectData[[#This Row],[Real 19]]>0,ProjectData[[#This Row],[Real 20]]>0) -> FALSE | S24: =ProjectData[[#This Row],[Actuals 07/08]]*VLOOKUP("Mid Year Nominal - EOY Real (2020/21)",CPI[],MATCH(S$4,CPI[#Headers],0),FALSE) -> 0 | T24: =ProjectData[[#This Row],[Actuals 08/09]]*VLOOKUP("Mid Year Nominal - EOY Real (2020/21)",CPI[],MATCH(T$4,CPI[#Headers],0),FALSE) -> 0 | U24: =ProjectData[[#This Row],[Actuals 09/10]]*VLOOKUP("Mid Year Nominal - EOY Real (2020/21)",CPI[],MATCH(U$4,CPI[#Headers],0),FALSE) -> 0 | V24: =ProjectData[[#This Row],[Actuals 10/11]]*VLOOKUP("Mid Year Nominal - EOY Real (2020/21)",CPI[],MATCH(V$4,CPI[#Headers],0),FALSE) -> 0.009453905174 | W24: =ProjectData[[#This Row],[Actuals 11/12]]*VLOOKUP("Mid Year Nominal - EOY Real (2020/21)",CPI[],MATCH(W$4,CPI[#Headers],0),FALSE) -> 0 | X24: =ProjectData[[#This Row],[Actuals 12/13]]*VLOOKUP("Mid Year Nominal - EOY Real (2020/21)",CPI[],MATCH(X$4,CPI[#Headers],0),FALSE) -> 0 | Y24: =ProjectData[[#This Row],[Actuals 13/14]]*VLOOKUP("Mid Year Nominal - EOY Real (2020/21)",CPI[],MATCH(Y$4,CPI[#Headers],0),FALSE) -> 0 | Z24: =ProjectData[[#This Row],[Actuals 14/15]]*VLOOKUP("Mid Year Nominal - EOY Real (2020/21)",CPI[],MATCH(Z$4,CPI[#Headers],0),FALSE) -> 0 | AA24: =ProjectData[[#This Row],[Actuals 15/16]]*VLOOKUP("Mid Year Nominal - EOY Real (2020/21)",CPI[],MATCH(AA$4,CPI[#Headers],0),FALSE) -> 0 | AB24: =ProjectData[[#This Row],[Actuals 16/17]]*VLOOKUP("Mid Year Nominal - EOY Real (2020/21)",CPI[],MATCH(AB$4,CPI[#Headers],0),FALSE) -> 0 | AC24: =ProjectData[[#This Row],[Actuals 17/18]]*VLOOKUP("Mid Year Nominal - EOY Real (2020/21)",CPI[],MATCH(AC$4,CPI[#Headers],0),FALSE) -> 0 | AD24: =ProjectData[[#This Row],[Actuals 18/19]]*VLOOKUP("Mid Year Nominal - EOY Real (2020/21)",CPI[],MATCH(AD$4,CPI[#Headers],0),FALSE) -> 0 | AE24: =ProjectData[[#This Row],[Actuals 19/20]]*VLOOKUP("Mid Year Nominal - EOY Real (2020/21)",CPI[],MATCH(AE$4,CPI[#Headers],0),FALSE) -> 0 | AF24: =SUM(ProjectData[[#This Row],[Real 08]:[Real 20]]) -> 0.009453905174 | AG24: =(ProjectData[[#This Row],[Real Sum]]-VLOOKUP(ProjectData[[#This Row],[Category]],Category_AverageStdDevLimit[],MATCH("Average",Category_AverageStdDevLimit[#Headers],0),FALSE))^2 -> 12.67165742 | AH24: =VLOOKUP(ProjectData[[#This Row],[Category]],Category_AverageStdDevLimit[],MATCH("Limit",Category_AverageStdDevLimit[#Headers],0),FALSE) -> 20.5954265 | AI24: =ProjectData[[#This Row],[Real Sum]]>ProjectData[[#This Row],[Category Limit]] -> FALSE | AK24: =OR(ProjectData[[#This Row],[Significant Project? (Financial Basis)]],ProjectData[[#This Row],[Non repeatable]]) -> FALSE | AL24: =AND(ProjectData[[#This Row],[SomeExpenditure >= 2016]],ProjectData[[#This Row],[Abnormal?]]) -> FALSE
A25: CP.02081 | B25: Secure Tower Bolts (South East Urban Region) | C25: Security / Compliance | J25: 0 | K25: 0 | L25: 0 | M25: 0 | N25: 0 | O25: 0 | P25: 0 | Q25: =ProjectData[[#This Row],[Real Sum]]>0.0001 -> FALSE | R25: =OR(ProjectData[[#This Row],[Real 16]]>0,ProjectData[[#This Row],[Real 17]]>0,ProjectData[[#This Row],[Real 18]]>0,ProjectData[[#This Row],[Real 19]]>0,ProjectData[[#This Row],[Real 20]]>0) -> FALSE | S25: =ProjectData[[#This Row],[Actuals 07/08]]*VLOOKUP("Mid Year Nominal - EOY Real (2020/21)",CPI[],MATCH(S$4,CPI[#Headers],0),FALSE) -> 0 | T25: =ProjectData[[#This Row],[Actuals 08/09]]*VLOOKUP("Mid Year Nominal - EOY Real (2020/21)",CPI[],MATCH(T$4,CPI[#Headers],0),FALSE) -> 0 | U25: =ProjectData[[#This Row],[Actuals 09/10]]*VLOOKUP("Mid Year Nominal - EOY Real (2020/21)",CPI[],MATCH(U$4,CPI[#Headers],0),FALSE) -> 0 | V25: =ProjectData[[#This Row],[Actuals 10/11]]*VLOOKUP("Mid Year Nominal - EOY Real (2020/21)",CPI[],MATCH(V$4,CPI[#Headers],0),FALSE) -> 0 | W25: =ProjectData[[#This Row],[Actuals 11/12]]*VLOOKUP("Mid Year Nominal - EOY Real (2020/21)",CPI[],MATCH(W$4,CPI[#Headers],0),FALSE) -> 0 | X25: =ProjectData[[#This Row],[Actuals 12/13]]*VLOOKUP("Mid Year Nominal - EOY Real (2020/21)",CPI[],MATCH(X$4,CPI[#Headers],0),FALSE) -> 0 | Y25: =ProjectData[[#This Row],[Actuals 13/14]]*VLOOKUP("Mid Year Nominal - EOY Real (2020/21)",CPI[],MATCH(Y$4,CPI[#Headers],0),FALSE) -> 0 | Z25: =ProjectData[[#This Row],[Actuals 14/15]]*VLOOKUP("Mid Year Nominal - EOY Real (2020/21)",CPI[],MATCH(Z$4,CPI[#Headers],0),FALSE) -> 0 | AA25: =ProjectData[[#This Row],[Actuals 15/16]]*VLOOKUP("Mid Year Nominal - EOY Real (2020/21)",CPI[],MATCH(AA$4,CPI[#Headers],0),FALSE) -> 0 | AB25: =ProjectData[[#This Row],[Actuals 16/17]]*VLOOKUP("Mid Year Nominal - EOY Real (2020/21)",CPI[],MATCH(AB$4,CPI[#Headers],0),FALSE) -> 0 | AC25: =ProjectData[[#This Row],[Actuals 17/18]]*VLOOKUP("Mid Year Nominal - EOY Real (2020/21)",CPI[],MATCH(AC$4,CPI[#Headers],0),FALSE) -> 0 | AD25: =ProjectData[[#This Row],[Actuals 18/19]]*VLOOKUP("Mid Year Nominal - EOY Real (2020/21)",CPI[],MATCH(AD$4,CPI[#Headers],0),FALSE) -> 0 | AE25: =ProjectData[[#This Row],[Actuals 19/20]]*VLOOKUP("Mid Year Nominal - EOY Real (2020/21)",CPI[],MATCH(AE$4,CPI[#Headers],0),FALSE) -> 0 | AF25: =SUM(ProjectData[[#This Row],[Real 08]:[Real 20]]) -> 0 | AG25: =(ProjectData[[#This Row],[Real Sum]]-VLOOKUP(ProjectData[[#This Row],[Category]],Category_AverageStdDevLimit[],MATCH("Average",Category_AverageStdDevLimit[#Headers],0),FALSE))^2 -> 12.73905344 | AH25: =VLOOKUP(ProjectData[[#This Row],[Category]],Category_AverageStdDevLimit[],MATCH("Limit",Category_AverageStdDevLimit[#Headers],0),FALSE) -> 20.5954265 | AI25: =ProjectData[[#This Row],[Real Sum]]>ProjectData[[#This Row],[Category Limit]] -> FALSE | AK25: =OR(ProjectData[[#This Row],[Significant Project? (Financial Basis)]],ProjectData[[#This Row],[Non repeatable]]) -> FALSE | AL25: =AND(ProjectData[[#This Row],[SomeExpenditure >= 2016]],ProjectData[[#This Row],[Abnormal?]]) -> FALSE
A26: CP.02083 | B26: Secure Tower Bolts (South Western Region) | C26: Security / Compliance | K26: 0 | L26: 0 | M26: 0 | N26: 0 | O26: 0 | P26: 0 | Q26: =ProjectData[[#This Row],[Real Sum]]>0.0001 -> FALSE | R26: =OR(ProjectData[[#This Row],[Real 16]]>0,ProjectData[[#This Row],[Real 17]]>0,ProjectData[[#This Row],[Real 18]]>0,ProjectData[[#This Row],[Real 19]]>0,ProjectData[[#This Row],[Real 20]]>0) -> FALSE | S26: =ProjectData[[#This Row],[Actuals 07/08]]*VLOOKUP("Mid Year Nominal - EOY Real (2020/21)",CPI[],MATCH(S$4,CPI[#Headers],0),FALSE) -> 0 | T26: =ProjectData[[#This Row],[Actuals 08/09]]*VLOOKUP("Mid Year Nominal - EOY Real (2020/21)",CPI[],MATCH(T$4,CPI[#Headers],0),FALSE) -> 0 | U26: =ProjectData[[#This Row],[Actuals 09/10]]*VLOOKUP("Mid Year Nominal - EOY Real (2020/21)",CPI[],MATCH(U$4,CPI[#Headers],0),FALSE) -> 0 | V26: =ProjectData[[#This Row],[Actuals 10/11]]*VLOOKUP("Mid Year Nominal - EOY Real (2020/21)",CPI[],MATCH(V$4,CPI[#Headers],0),FALSE) -> 0 | W26: =ProjectData[[#This Row],[Actuals 11/12]]*VLOOKUP("Mid Year Nominal - EOY Real (2020/21)",CPI[],MATCH(W$4,CPI[#Headers],0),FALSE) -> 0 | X26: =ProjectData[[#This Row],[Actuals 12/13]]*VLOOKUP("Mid Year Nominal - EOY Real (2020/21)",CPI[],MATCH(X$4,CPI[#Headers],0),FALSE) -> 0 | Y26: =ProjectData[[#This Row],[Actuals 13/14]]*VLOOKUP("Mid Year Nominal - EOY Real (2020/21)",CPI[],MATCH(Y$4,CPI[#Headers],0),FALSE) -> 0 | Z26: =ProjectData[[#This Row],[Actuals 14/15]]*VLOOKUP("Mid Year Nominal - EOY Real (2020/21)",CPI[],MATCH(Z$4,CPI[#Headers],0),FALSE) -> 0 | AA26: =ProjectData[[#This Row],[Actuals 15/16]]*VLOOKUP("Mid Year Nominal - EOY Real (2020/21)",CPI[],MATCH(AA$4,CPI[#Headers],0),FALSE) -> 0 | AB26: =ProjectData[[#This Row],[Actuals 16/17]]*VLOOKUP("Mid Year Nominal - EOY Real (2020/21)",CPI[],MATCH(AB$4,CPI[#Headers],0),FALSE) -> 0 | AC26: =ProjectData[[#This Row],[Actuals 17/18]]*VLOOKUP("Mid Year Nominal - EOY Real (2020/21)",CPI[],MATCH(AC$4,CPI[#Headers],0),FALSE) -> 0 | AD26: =ProjectData[[#This Row],[Actuals 18/19]]*VLOOKUP("Mid Year Nominal - EOY Real (2020/21)",CPI[],MATCH(AD$4,CPI[#Headers],0),FALSE) -> 0 | AE26: =ProjectData[[#This Row],[Actuals 19/20]]*VLOOKUP("Mid Year Nominal - EOY Real (2020/21)",CPI[],MATCH(AE$4,CPI[#Headers],0),FALSE) -> 0 | AF26: =SUM(ProjectData[[#This Row],[Real 08]:[Real 20]]) -> 0 | AG26: =(ProjectData[[#This Row],[Real Sum]]-VLOOKUP(ProjectData[[#This Row],[Category]],Category_AverageStdDevLimit[],MATCH("Average",Category_AverageStdDevLimit[#Headers],0),FALSE))^2 -> 12.73905344 | AH26: =VLOOKUP(ProjectData[[#This Row],[Category]],Category_AverageStdDevLimit[],MATCH("Limit",Category_AverageStdDevLimit[#Headers],0),FALSE) -> 20.5954265 | AI26: =ProjectData[[#This Row],[Real Sum]]>ProjectData[[#This Row],[Category Limit]] -> FALSE | AK26: =OR(ProjectData[[#This Row],[Significant Project? (Financial Basis)]],ProjectData[[#This Row],[Non repeatable]]) -> FALSE | AL26: =AND(ProjectData[[#This Row],[SomeExpenditure >= 2016]],ProjectData[[#This Row],[Abnormal?]]) -> FALSE
A27: CP.02084 | B27: Secure Tower Bolts (NW Southern Region) | C27: Security / Compliance | K27: 0 | L27: 0 | M27: 0 | N27: 0 | O27: 0 | P27: 0 | Q27: =ProjectData[[#This Row],[Real Sum]]>0.0001 -> FALSE | R27: =OR(ProjectData[[#This Row],[Real 16]]>0,ProjectData[[#This Row],[Real 17]]>0,ProjectData[[#This Row],[Real 18]]>0,ProjectData[[#This Row],[Real 19]]>0,ProjectData[[#This Row],[Real 20]]>0) -> FALSE | S27: =ProjectData[[#This Row],[Actuals 07/08]]*VLOOKUP("Mid Year Nominal - EOY Real (2020/21)",CPI[],MATCH(S$4,CPI[#Headers],0),FALSE) -> 0 | T27: =ProjectData[[#This Row],[Actuals 08/09]]*VLOOKUP("Mid Year Nominal - EOY Real (2020/21)",CPI[],MATCH(T$4,CPI[#Headers],0),FALSE) -> 0 | U27: =ProjectData[[#This Row],[Actuals 09/10]]*VLOOKUP("Mid Year Nominal - EOY Real (2020/21)",CPI[],MATCH(U$4,CPI[#Headers],0),FALSE) -> 0 | V27: =ProjectData[[#This Row],[Actuals 10/11]]*VLOOKUP("Mid Year Nominal - EOY Real (2020/21)",CPI[],MATCH(V$4,CPI[#Headers],0),FALSE) -> 0 | W27: =ProjectData[[#This Row],[Actuals 11/12]]*VLOOKUP("Mid Year Nominal - EOY Real (2020/21)",CPI[],MATCH(W$4,CPI[#Headers],0),FALSE) -> 0 | X27: =ProjectData[[#This Row],[Actuals 12/13]]*VLOOKUP("Mid Year Nominal - EOY Real (2020/21)",CPI[],MATCH(X$4,CPI[#Headers],0),FALSE) -> 0 | Y27: =ProjectData[[#This Row],[Actuals 13/14]]*VLOOKUP("Mid Year Nominal - EOY Real (2020/21)",CPI[],MATCH(Y$4,CPI[#Headers],0),FALSE) -> 0 | Z27: =ProjectData[[#This Row],[Actuals 14/15]]*VLOOKUP("Mid Year Nominal - EOY Real (2020/21)",CPI[],MATCH(Z$4,CPI[#Headers],0),FALSE) -> 0 | AA27: =ProjectData[[#This Row],[Actuals 15/16]]*VLOOKUP("Mid Year Nominal - EOY Real (2020/21)",CPI[],MATCH(AA$4,CPI[#Headers],0),FALSE) -> 0 | AB27: =ProjectData[[#This Row],[Actuals 16/17]]*VLOOKUP("Mid Year Nominal - EOY Real (2020/21)",CPI[],MATCH(AB$4,CPI[#Headers],0),FALSE) -> 0 | AC27: =ProjectData[[#This Row],[Actuals 17/18]]*VLOOKUP("Mid Year Nominal - EOY Real (2020/21)",CPI[],MATCH(AC$4,CPI[#Headers],0),FALSE) -> 0 | AD27: =ProjectData[[#This Row],[Actuals 18/19]]*VLOOKUP("Mid Year Nominal - EOY Real (2020/21)",CPI[],MATCH(AD$4,CPI[#Headers],0),FALSE) -> 0 | AE27: =ProjectData[[#This Row],[Actuals 19/20]]*VLOOKUP("Mid Year Nominal - EOY Real (2020/21)",CPI[],MATCH(AE$4,CPI[#Headers],0),FALSE) -> 0 | AF27: =SUM(ProjectData[[#This Row],[Real 08]:[Real 20]]) -> 0 | AG27: =(ProjectData[[#This Row],[Real Sum]]-VLOOKUP(ProjectData[[#This Row],[Category]],Category_AverageStdDevLimit[],MATCH("Average",Category_AverageStdDevLimit[#Headers],0),FALSE))^2 -> 12.73905344 | AH27: =VLOOKUP(ProjectData[[#This Row],[Category]],Category_AverageStdDevLimit[],MATCH("Limit",Category_AverageStdDevLimit[#Headers],0),FALSE) -> 20.5954265 | AI27: =ProjectData[[#This Row],[Real Sum]]>ProjectData[[#This Row],[Category Limit]] -> FALSE | AK27: =OR(ProjectData[[#This Row],[Significant Project? (Financial Basis)]],ProjectData[[#This Row],[Non repeatable]]) -> FALSE | AL27: =AND(ProjectData[[#This Row],[SomeExpenditure >= 2016]],ProjectData[[#This Row],[Abnormal?]]) -> FALSE
A28: CP.02085 | B28: Transmission Structure Signs Upgrade (Southern) | C28: Security / Compliance | G28: 0.13323865 | H28: 6.67053139 | I28: 2.21141087 | J28: 0.04720185 | K28: 0 | L28: 0 | M28: 0 | N28: 0 | O28: 0 | P28: 0 | Q28: =ProjectData[[#This Row],[Real Sum]]>0.0001 -> TRUE | R28: =OR(ProjectData[[#This Row],[Real 16]]>0,ProjectData[[#This Row],[Real 17]]>0,ProjectData[[#This Row],[Real 18]]>0,ProjectData[[#This Row],[Real 19]]>0,ProjectData[[#This Row],[Real 20]]>0) -> FALSE | S28: =ProjectData[[#This Row],[Actuals 07/08]]*VLOOKUP("Mid Year Nominal - EOY Real (2020/21)",CPI[],MATCH(S$4,CPI[#Headers],0),FALSE) -> 0 | T28: =ProjectData[[#This Row],[Actuals 08/09]]*VLOOKUP("Mid Year Nominal - EOY Real (2020/21)",CPI[],MATCH(T$4,CPI[#Headers],0),FALSE) -> 0 | U28: =ProjectData[[#This Row],[Actuals 09/10]]*VLOOKUP("Mid Year Nominal - EOY Real (2020/21)",CPI[],MATCH(U$4,CPI[#Headers],0),FALSE) -> 0 | V28: =ProjectData[[#This Row],[Actuals 10/11]]*VLOOKUP("Mid Year Nominal - EOY Real (2020/21)",CPI[],MATCH(V$4,CPI[#Headers],0),FALSE) -> 0.1627738661 | W28: =ProjectData[[#This Row],[Actuals 11/12]]*VLOOKUP("Mid Year Nominal - EOY Real (2020/21)",CPI[],MATCH(W$4,CPI[#Headers],0),FALSE) -> 7.921464182 | X28: =ProjectData[[#This Row],[Actuals 12/13]]*VLOOKUP("Mid Year Nominal - EOY Real (2020/21)",CPI[],MATCH(X$4,CPI[#Headers],0),FALSE) -> 2.559624587 | Y28: =ProjectData[[#This Row],[Actuals 13/14]]*VLOOKUP("Mid Year Nominal - EOY Real (2020/21)",CPI[],MATCH(Y$4,CPI[#Headers],0),FALSE) -> 0.05331513129 | Z28: =ProjectData[[#This Row],[Actuals 14/15]]*VLOOKUP("Mid Year Nominal - EOY Real (2020/21)",CPI[],MATCH(Z$4,CPI[#Headers],0),FALSE) -> 0 | AA28: =ProjectData[[#This Row],[Actuals 15/16]]*VLOOKUP("Mid Year Nominal - EOY Real (2020/21)",CPI[],MATCH(AA$4,CPI[#Headers],0),FALSE) -> 0 | AB28: =ProjectData[[#This Row],[Actuals 16/17]]*VLOOKUP("Mid Year Nominal - EOY Real (2020/21)",CPI[],MATCH(AB$4,CPI[#Headers],0),FALSE) -> 0 | AC28: =ProjectData[[#This Row],[Actuals 17/18]]*VLOOKUP("Mid Year Nominal - EOY Real (2020/21)",CPI[],MATCH(AC$4,CPI[#Headers],0),FALSE) -> 0 | AD28: =ProjectData[[#This Row],[Actuals 18/19]]*VLOOKUP("Mid Year Nominal - EOY Real (2020/21)",CPI[],MATCH(AD$4,CPI[#Headers],0),FALSE) -> 0 | AE28: =ProjectData[[#This Row],[Actuals 19/20]]*VLOOKUP("Mid Year Nominal - EOY Real (2020/21)",CPI[],MATCH(AE$4,CPI[#Headers],0),FALSE) -> 0 | AF28: =SUM(ProjectData[[#This Row],[Real 08]:[Real 20]]) -> 10.69717777 | AG28: =(ProjectData[[#This Row],[Real Sum]]-VLOOKUP(ProjectData[[#This Row],[Category]],Category_AverageStdDevLimit[],MATCH("Average",Category_AverageStdDevLimit[#Headers],0),FALSE))^2 -> 50.80833705 | AH28: =VLOOKUP(ProjectData[[#This Row],[Category]],Category_AverageStdDevLimit[],MATCH("Limit",Category_AverageStdDevLimit[#Headers],0),FALSE) -> 20.5954265 | AI28: =ProjectData[[#This Row],[Real Sum]]>ProjectData[[#This Row],[Category Limit]] -> FALSE | AJ28: TRUE | AK28: =OR(ProjectData[[#This Row],[Significant Project? (Financial Basis)]],ProjectData[[#This Row],[Non repeatable]]) -> TRUE | AL28: =AND(ProjectData[[#This Row],[SomeExpenditure >= 2016]],ProjectData[[#This Row],[Abnormal?]]) -> FALSE
A29: CP.02086 | B29: Transmission Structure Signs Upgrade (Northern) | C29: Security / Compliance | K29: 0 | L29: 0 | M29: 0 | N29: 0 | O29: 0 | P29: 0 | Q29: =ProjectData[[#This Row],[Real Sum]]>0.0001 -> FALSE | R29: =OR(ProjectData[[#This Row],[Real 16]]>0,ProjectData[[#This Row],[Real 17]]>0,ProjectData[[#This Row],[Real 18]]>0,ProjectData[[#This Row],[Real 19]]>0,ProjectData[[#This Row],[Real 20]]>0) -> FALSE | S29: =ProjectData[[#This Row],[Actuals 07/08]]*VLOOKUP("Mid Year Nominal - EOY Real (2020/21)",CPI[],MATCH(S$4,CPI[#Headers],0),FALSE) -> 0 | T29: =ProjectData[[#This Row],[Actuals 08/09]]*VLOOKUP("Mid Year Nominal - EOY Real (2020/21)",CPI[],MATCH(T$4,CPI[#Headers],0),FALSE) -> 0 | U29: =ProjectData[[#This Row],[Actuals 09/10]]*VLOOKUP("Mid Year Nominal - EOY Real (2020/21)",CPI[],MATCH(U$4,CPI[#Headers],0),FALSE) -> 0 | V29: =ProjectData[[#This Row],[Actuals 10/11]]*VLOOKUP("Mid Year Nominal - EOY Real (2020/21)",CPI[],MATCH(V$4,CPI[#Headers],0),FALSE) -> 0 | W29: =ProjectData[[#This Row],[Actuals 11/12]]*VLOOKUP("Mid Year Nominal - EOY Real (2020/21)",CPI[],MATCH(W$4,CPI[#Headers],0),FALSE) -> 0 | X29: =ProjectData[[#This Row],[Actuals 12/13]]*VLOOKUP("Mid Year Nominal - EOY Real (2020/21)",CPI[],MATCH(X$4,CPI[#Headers],0),FALSE) -> 0 | Y29: =ProjectData[[#This Row],[Actuals 13/14]]*VLOOKUP("Mid Year Nominal - EOY Real (2020/21)",CPI[],MATCH(Y$4,CPI[#Headers],0),FALSE) -> 0 | Z29: =ProjectData[[#This Row],[Actuals 14/15]]*VLOOKUP("Mid Year Nominal - EOY Real (2020/21)",CPI[],MATCH(Z$4,CPI[#Headers],0),FALSE) -> 0 | AA29: =ProjectData[[#This Row],[Actuals 15/16]]*VLOOKUP("Mid Year Nominal - EOY Real (2020/21)",CPI[],MATCH(AA$4,CPI[#Headers],0),FALSE) -> 0 | AB29: =ProjectData[[#This Row],[Actuals 16/17]]*VLOOKUP("Mid Year Nominal - EOY Real (2020/21)",CPI[],MATCH(AB$4,CPI[#Headers],0),FALSE) -> 0 | AC29: =ProjectData[[#This Row],[Actuals 17/18]]*VLOOKUP("Mid Year Nominal - EOY Real (2020/21)",CPI[],MATCH(AC$4,CPI[#Headers],0),FALSE) -> 0 | AD29: =ProjectData[[#This Row],[Actuals 18/19]]*VLOOKUP("Mid Year Nominal - EOY Real (2020/21)",CPI[],MATCH(AD$4,CPI[#Headers],0),FALSE) -> 0 | AE29: =ProjectData[[#This Row],[Actuals 19/20]]*VLOOKUP("Mid Year Nominal - EOY Real (2020/21)",CPI[],MATCH(AE$4,CPI[#Headers],0),FALSE) -> 0 | AF29: =SUM(ProjectData[[#This Row],[Real 08]:[Real 20]]) -> 0 | AG29: =(ProjectData[[#This Row],[Real Sum]]-VLOOKUP(ProjectData[[#This Row],[Category]],Category_AverageStdDevLimit[],MATCH("Average",Category_AverageStdDevLimit[#Headers],0),FALSE))^2 -> 12.73905344 | AH29: =VLOOKUP(ProjectData[[#This Row],[Category]],Category_AverageStdDevLimit[],MATCH("Limit",Category_AverageStdDevLimit[#Headers],0),FALSE) -> 20.5954265 | AI29: =ProjectData[[#This Row],[Real Sum]]>ProjectData[[#This Row],[Category Limit]] -> FALSE | AK29: =OR(ProjectData[[#This Row],[Significant Project? (Financial Basis)]],ProjectData[[#This Row],[Non repeatable]]) -> FALSE | AL29: =AND(ProjectData[[#This Row],[SomeExpenditure >= 2016]],ProjectData[[#This Row],[Abnormal?]]) -> FALSE
A30: CP.02087 | B30: Transmission Structure Signs Upgrade (Central) | C30: Security / Compliance | K30: 0 | L30: 0 | M30: 0 | N30: 0 | O30: 0 | P30: 0 | Q30: =ProjectData[[#This Row],[Real Sum]]>0.0001 -> FALSE | R30: =OR(ProjectData[[#This Row],[Real 16]]>0,ProjectData[[#This Row],[Real 17]]>0,ProjectData[[#This Row],[Real 18]]>0,ProjectData[[#This Row],[Real 19]]>0,ProjectData[[#This Row],[Real 20]]>0) -> FALSE | S30: =ProjectData[[#This Row],[Actuals 07/08]]*VLOOKUP("Mid Year Nominal - EOY Real (2020/21)",CPI[],MATCH(S$4,CPI[#Headers],0),FALSE) -> 0 | T30: =ProjectData[[#This Row],[Actuals 08/09]]*VLOOKUP("Mid Year Nominal - EOY Real (2020/21)",CPI[],MATCH(T$4,CPI[#Headers],0),FALSE) -> 0 | U30: =ProjectData[[#This Row],[Actuals 09/10]]*VLOOKUP("Mid Year Nominal - EOY Real (2020/21)",CPI[],MATCH(U$4,CPI[#Headers],0),FALSE) -> 0 | V30: =ProjectData[[#This Row],[Actuals 10/11]]*VLOOKUP("Mid Year Nominal - EOY Real (2020/21)",CPI[],MATCH(V$4,CPI[#Headers],0),FALSE) -> 0 | W30: =ProjectData[[#This Row],[Actuals 11/12]]*VLOOKUP("Mid Year Nominal - EOY Real (2020/21)",CPI[],MATCH(W$4,CPI[#Headers],0),FALSE) -> 0 | X30: =ProjectData[[#This Row],[Actuals 12/13]]*VLOOKUP("Mid Year Nominal - EOY Real (2020/21)",CPI[],MATCH(X$4,CPI[#Headers],0),FALSE) -> 0 | Y30: =ProjectData[[#This Row],[Actuals 13/14]]*VLOOKUP("Mid Year Nominal - EOY Real (2020/21)",CPI[],MATCH(Y$4,CPI[#Headers],0),FALSE) -> 0 | Z30: =ProjectData[[#This Row],[Actuals 14/15]]*VLOOKUP("Mid Year Nominal - EOY Real (2020/21)",CPI[],MATCH(Z$4,CPI[#Headers],0),FALSE) -> 0 | AA30: =ProjectData[[#This Row],[Actuals 15/16]]*VLOOKUP("Mid Year Nominal - EOY Real (2020/21)",CPI[],MATCH(AA$4,CPI[#Headers],0),FALSE) -> 0 | AB30: =ProjectData[[#This Row],[Actuals 16/17]]*VLOOKUP("Mid Year Nominal - EOY Real (2020/21)",CPI[],MATCH(AB$4,CPI[#Headers],0),FALSE) -> 0 | AC30: =ProjectData[[#This Row],[Actuals 17/18]]*VLOOKUP("Mid Year Nominal - EOY Real (2020/21)",CPI[],MATCH(AC$4,CPI[#Headers],0),FALSE) -> 0 | AD30: =ProjectData[[#This Row],[Actuals 18/19]]*VLOOKUP("Mid Year Nominal - EOY Real (2020/21)",CPI[],MATCH(AD$4,CPI[#Headers],0),FALSE) -> 0 | AE30: =ProjectData[[#This Row],[Actuals 19/20]]*VLOOKUP("Mid Year Nominal - EOY Real (2020/21)",CPI[],MATCH(AE$4,CPI[#Headers],0),FALSE) -> 0 | AF30: =SUM(ProjectData[[#This Row],[Real 08]:[Real 20]]) -> 0 | AG30: =(ProjectData[[#This Row],[Real Sum]]-VLOOKUP(ProjectData[[#This Row],[Category]],Category_AverageStdDevLimit[],MATCH("Average",Category_AverageStdDevLimit[#Headers],0),FALSE))^2 -> 12.73905344 | AH30: =VLOOKUP(ProjectData[[#This Row],[Category]],Category_AverageStdDevLimit[],MATCH("Limit",Category_AverageStdDevLimit[#Headers],0),FALSE) -> 20.5954265 | AI30: =ProjectData[[#This Row],[Real Sum]]>ProjectData[[#This Row],[Category Limit]] -> FALSE | AK30: =OR(ProjectData[[#This Row],[Significant Project? (Financial Basis)]],ProjectData[[#This Row],[Non repeatable]]) -> FALSE | AL30: =AND(ProjectData[[#This Row],[SomeExpenditure >= 2016]],ProjectData[[#This Row],[Abnormal?]]) -> FALSE
A31: CP.02110 | B31: Chinchilla and Columboola 132kV Metering | C31: Security / Compliance | H31: 0.02379222 | I31: 0.54265322 | J31: 1.78897628 | K31: 0.53731808 | L31: 0.05463554 | M31: 0.004572 | N31: 0.00032321 | O31: 0.02533722 | P31: 0 | Q31: =ProjectData[[#This Row],[Real Sum]]>0.0001 -> TRUE | R31: =OR(ProjectData[[#This Row],[Real 16]]>0,ProjectData[[#This Row],[Real 17]]>0,ProjectData[[#This Row],[Real 18]]>0,ProjectData[[#This Row],[Real 19]]>0,ProjectData[[#This Row],[Real 20]]>0) -> TRUE | S31: =ProjectData[[#This Row],[Actuals 07/08]]*VLOOKUP("Mid Year Nominal - EOY Real (2020/21)",CPI[],MATCH(S$4,CPI[#Headers],0),FALSE) -> 0 | T31: =ProjectData[[#This Row],[Actuals 08/09]]*VLOOKUP("Mid Year Nominal - EOY Real (2020/21)",CPI[],MATCH(T$4,CPI[#Headers],0),FALSE) -> 0 | U31: =ProjectData[[#This Row],[Actuals 09/10]]*VLOOKUP("Mid Year Nominal - EOY Real (2020/21)",CPI[],MATCH(U$4,CPI[#Headers],0),FALSE) -> 0 | V31: =ProjectData[[#This Row],[Actuals 10/11]]*VLOOKUP("Mid Year Nominal - EOY Real (2020/21)",CPI[],MATCH(V$4,CPI[#Headers],0),FALSE) -> 0 | W31: =ProjectData[[#This Row],[Actuals 11/12]]*VLOOKUP("Mid Year Nominal - EOY Real (2020/21)",CPI[],MATCH(W$4,CPI[#Headers],0),FALSE) -> 0.0282540037 | X31: =ProjectData[[#This Row],[Actuals 12/13]]*VLOOKUP("Mid Year Nominal - EOY Real (2020/21)",CPI[],MATCH(X$4,CPI[#Headers],0),FALSE) -> 0.6281006136 | Y31: =ProjectData[[#This Row],[Actuals 13/14]]*VLOOKUP("Mid Year Nominal - EOY Real (2020/21)",CPI[],MATCH(Y$4,CPI[#Headers],0),FALSE) -> 2.02067303 | Z31: =ProjectData[[#This Row],[Actuals 14/15]]*VLOOKUP("Mid Year Nominal - EOY Real (2020/21)",CPI[],MATCH(Z$4,CPI[#Headers],0),FALSE) -> 0.5936690392 | AA31: =ProjectData[[#This Row],[Actuals 15/16]]*VLOOKUP("Mid Year Nominal - EOY Real (2020/21)",CPI[],MATCH(AA$4,CPI[#Headers],0),FALSE) -> 0.05935457317 | AB31: =ProjectData[[#This Row],[Actuals 16/17]]*VLOOKUP("Mid Year Nominal - EOY Real (2020/21)",CPI[],MATCH(AB$4,CPI[#Headers],0),FALSE) -> 0.004889533521 | AC31: =ProjectData[[#This Row],[Actuals 17/18]]*VLOOKUP("Mid Year Nominal - EOY Real (2020/21)",CPI[],MATCH(AC$4,CPI[#Headers],0),FALSE) -> 0.0003399052168 | AD31: =ProjectData[[#This Row],[Actuals 18/19]]*VLOOKUP("Mid Year Nominal - EOY Real (2020/21)",CPI[],MATCH(AD$4,CPI[#Headers],0),FALSE) -> 0.02616287846 | AE31: =ProjectData[[#This Row],[Actuals 19/20]]*VLOOKUP("Mid Year Nominal - EOY Real (2020/21)",CPI[],MATCH(AE$4,CPI[#Headers],0),FALSE) -> 0 | AF31: =SUM(ProjectData[[#This Row],[Real 08]:[Real 20]]) -> 3.361443577 | AG31: =(ProjectData[[#This Row],[Real Sum]]-VLOOKUP(ProjectData[[#This Row],[Category]],Category_AverageStdDevLimit[],MATCH("Average",Category_AverageStdDevLimit[#Headers],0),FALSE))^2 -> 0.04315486207 | AH31: =VLOOKUP(ProjectData[[#This Row],[Category]],Category_AverageStdDevLimit[],MATCH("Limit",Category_AverageStdDevLimit[#Headers],0),FALSE) -> 20.5954265 | AI31: =ProjectData[[#This Row],[Real Sum]]>ProjectData[[#This Row],[Category Limit]] -> FALSE | AK31: =OR(ProjectData[[#This Row],[Significant Project? (Financial Basis)]],ProjectData[[#This Row],[Non repeatable]]) -> FALSE | AL31: =AND(ProjectData[[#This Row],[SomeExpenditure >= 2016]],ProjectData[[#This Row],[Abnormal?]]) -> FALSE
A32: CP.02309 | B32: High Speed Monitoring Stage 3 | C32: Security / Compliance | G32: 0.03433048 | H32: 0.03672394 | I32: 0.72367046 | J32: 0.15419457 | K32: 1.05277168 | L32: 0.01144161 | M32: 0 | N32: 0 | O32: 0 | P32: 0 | Q32: =ProjectData[[#This Row],[Real Sum]]>0.0001 -> TRUE | R32: =OR(ProjectData[[#This Row],[Real 16]]>0,ProjectData[[#This Row],[Real 17]]>0,ProjectData[[#This Row],[Real 18]]>0,ProjectData[[#This Row],[Real 19]]>0,ProjectData[[#This Row],[Real 20]]>0) -> TRUE | S32: =ProjectData[[#This Row],[Actuals 07/08]]*VLOOKUP("Mid Year Nominal - EOY Real (2020/21)",CPI[],MATCH(S$4,CPI[#Headers],0),FALSE) -> 0 | T32: =ProjectData[[#This Row],[Actuals 08/09]]*VLOOKUP("Mid Year Nominal - EOY Real (2020/21)",CPI[],MATCH(T$4,CPI[#Headers],0),FALSE) -> 0 | U32: =ProjectData[[#This Row],[Actuals 09/10]]*VLOOKUP("Mid Year Nominal - EOY Real (2020/21)",CPI[],MATCH(U$4,CPI[#Headers],0),FALSE) -> 0 | V32: =ProjectData[[#This Row],[Actuals 10/11]]*VLOOKUP("Mid Year Nominal - EOY Real (2020/21)",CPI[],MATCH(V$4,CPI[#Headers],0),FALSE) -> 0.0419405702 | W32: =ProjectData[[#This Row],[Actuals 11/12]]*VLOOKUP("Mid Year Nominal - EOY Real (2020/21)",CPI[],MATCH(W$4,CPI[#Headers],0),FALSE) -> 0.04361082474 | X32: =ProjectData[[#This Row],[Actuals 12/13]]*VLOOKUP("Mid Year Nominal - EOY Real (2020/21)",CPI[],MATCH(X$4,CPI[#Headers],0),FALSE) -> 0.8376212343 | Y32: =ProjectData[[#This Row],[Actuals 13/14]]*VLOOKUP("Mid Year Nominal - EOY Real (2020/21)",CPI[],MATCH(Y$4,CPI[#Headers],0),FALSE) -> 0.1741648631 | Z32: =ProjectData[[#This Row],[Actuals 14/15]]*VLOOKUP("Mid Year Nominal - EOY Real (2020/21)",CPI[],MATCH(Z$4,CPI[#Headers],0),FALSE) -> 1.163180572 | AA32: =ProjectData[[#This Row],[Actuals 15/16]]*VLOOKUP("Mid Year Nominal - EOY Real (2020/21)",CPI[],MATCH(AA$4,CPI[#Headers],0),FALSE) -> 0.01242985569 | AB32: =ProjectData[[#This Row],[Actuals 16/17]]*VLOOKUP("Mid Year Nominal - EOY Real (2020/21)",CPI[],MATCH(AB$4,CPI[#Headers],0),FALSE) -> 0 | AC32: =ProjectData[[#This Row],[Actuals 17/18]]*VLOOKUP("Mid Year Nominal - EOY Real (2020/21)",CPI[],MATCH(AC$4,CPI[#Headers],0),FALSE) -> 0 | AD32: =ProjectData[[#This Row],[Actuals 18/19]]*VLOOKUP("Mid Year Nominal - EOY Real (2020/21)",CPI[],MATCH(AD$4,CPI[#Headers],0),FALSE) -> 0 | AE32: =ProjectData[[#This Row],[Actuals 19/20]]*VLOOKUP("Mid Year Nominal - EOY Real (2020/21)",CPI[],MATCH(AE$4,CPI[#Headers],0),FALSE) -> 0 | AF32: =SUM(ProjectData[[#This Row],[Real 08]:[Real 20]]) -> 2.27294792 | AG32: =(ProjectData[[#This Row],[Real Sum]]-VLOOKUP(ProjectData[[#This Row],[Category]],Category_AverageStdDevLimit[],MATCH("Average",Category_AverageStdDevLimit[#Headers],0),FALSE))^2 -> 1.680220353 | AH32: =VLOOKUP(ProjectData[[#This Row],[Category]],Category_AverageStdDevLimit[],MATCH("Limit",Category_AverageStdDevLimit[#Headers],0),FALSE) -> 20.5954265 | AI32: =ProjectData[[#This Row],[Real Sum]]>ProjectData[[#This Row],[Category Limit]] -> FALSE | AK32: =OR(ProjectData[[#This Row],[Significant Project? (Financial Basis)]],ProjectData[[#This Row],[Non repeatable]]) -> FALSE | AL32: =AND(ProjectData[[#This Row],[SomeExpenditure >= 2016]],ProjectData[[#This Row],[Abnormal?]]) -> FALSE
A33: CP.02485 | B33: High Speed Monitoring Stage 4 | C33: Security / Compliance | J33: 0.04007868 | K33: 0.0510214 | L33: 0.17307702 | M33: 1.38470816 | N33: 0.15301283 | O33: 0.02181536 | P33: 0 | Q33: =ProjectData[[#This Row],[Real Sum]]>0.0001 -> TRUE | R33: =OR(ProjectData[[#This Row],[Real 16]]>0,ProjectData[[#This Row],[Real 17]]>0,ProjectData[[#This Row],[Real 18]]>0,ProjectData[[#This Row],[Real 19]]>0,ProjectData[[#This Row],[Real 20]]>0) -> TRUE | S33: =ProjectData[[#This Row],[Actuals 07/08]]*VLOOKUP("Mid Year Nominal - EOY Real (2020/21)",CPI[],MATCH(S$4,CPI[#Headers],0),FALSE) -> 0 | T33: =ProjectData[[#This Row],[Actuals 08/09]]*VLOOKUP("Mid Year Nominal - EOY Real (2020/21)",CPI[],MATCH(T$4,CPI[#Headers],0),FALSE) -> 0 | U33: =ProjectData[[#This Row],[Actuals 09/10]]*VLOOKUP("Mid Year Nominal - EOY Real (2020/21)",CPI[],MATCH(U$4,CPI[#Headers],0),FALSE) -> 0 | V33: =ProjectData[[#This Row],[Actuals 10/11]]*VLOOKUP("Mid Year Nominal - EOY Real (2020/21)",CPI[],MATCH(V$4,CPI[#Headers],0),FALSE) -> 0 | W33: =ProjectData[[#This Row],[Actuals 11/12]]*VLOOKUP("Mid Year Nominal - EOY Real (2020/21)",CPI[],MATCH(W$4,CPI[#Headers],0),FALSE) -> 0 | X33: =ProjectData[[#This Row],[Actuals 12/13]]*VLOOKUP("Mid Year Nominal - EOY Real (2020/21)",CPI[],MATCH(X$4,CPI[#Headers],0),FALSE) -> 0 | Y33: =ProjectData[[#This Row],[Actuals 13/14]]*VLOOKUP("Mid Year Nominal - EOY Real (2020/21)",CPI[],MATCH(Y$4,CPI[#Headers],0),FALSE) -> 0.04526941394 | Z33: =ProjectData[[#This Row],[Actuals 14/15]]*VLOOKUP("Mid Year Nominal - EOY Real (2020/21)",CPI[],MATCH(Z$4,CPI[#Headers],0),FALSE) -> 0.05637224327 | AA33: =ProjectData[[#This Row],[Actuals 15/16]]*VLOOKUP("Mid Year Nominal - EOY Real (2020/21)",CPI[],MATCH(AA$4,CPI[#Headers],0),FALSE) -> 0.1880261941 | AB33: =ProjectData[[#This Row],[Actuals 16/17]]*VLOOKUP("Mid Year Nominal - EOY Real (2020/21)",CPI[],MATCH(AB$4,CPI[#Headers],0),FALSE) -> 1.480878601 | AC33: =ProjectData[[#This Row],[Actuals 17/18]]*VLOOKUP("Mid Year Nominal - EOY Real (2020/21)",CPI[],MATCH(AC$4,CPI[#Headers],0),FALSE) -> 0.1609166151 | AD33: =ProjectData[[#This Row],[Actuals 18/19]]*VLOOKUP("Mid Year Nominal - EOY Real (2020/21)",CPI[],MATCH(AD$4,CPI[#Headers],0),FALSE) -> 0.02252625238 | AE33: =ProjectData[[#This Row],[Actuals 19/20]]*VLOOKUP("Mid Year Nominal - EOY Real (2020/21)",CPI[],MATCH(AE$4,CPI[#Headers],0),FALSE) -> 0 | AF33: =SUM(ProjectData[[#This Row],[Real 08]:[Real 20]]) -> 1.95398932 | AG33: =(ProjectData[[#This Row],[Real Sum]]-VLOOKUP(ProjectData[[#This Row],[Category]],Category_AverageStdDevLimit[],MATCH("Average",Category_AverageStdDevLimit[#Headers],0),FALSE))^2 -> 2.608844357 | AH33: =VLOOKUP(ProjectData[[#This Row],[Category]],Category_AverageStdDevLimit[],MATCH("Limit",Category_AverageStdDevLimit[#Headers],0),FALSE) -> 20.5954265 | AI33: =ProjectData[[#This Row],[Real Sum]]>ProjectData[[#This Row],[Category Limit]] -> FALSE | AK33: =OR(ProjectData[[#This Row],[Significant Project? (Financial Basis)]],ProjectData[[#This Row],[Non repeatable]]) -> FALSE | AL33: =AND(ProjectData[[#This Row],[SomeExpenditure >= 2016]],ProjectData[[#This Row],[Abnormal?]]) -> FALSE
A34: CP.02297 | B34: Power Quality Monitoring Stage 3 | C34: Security / Compliance | K34: 0.06332922 | L34: 1.0123188 | M34: 1.62573581 | N34: 0.1502323 | O34: 0.03797059 | P34: 0 | Q34: =ProjectData[[#This Row],[Real Sum]]>0.0001 -> TRUE | R34: =OR(ProjectData[[#This Row],[Real 16]]>0,ProjectData[[#This Row],[Real 17]]>0,ProjectData[[#This Row],[Real 18]]>0,ProjectData[[#This Row],[Real 19]]>0,ProjectData[[#This Row],[Real 20]]>0) -> TRUE | S34: =ProjectData[[#This Row],[Actuals 07/08]]*VLOOKUP("Mid Year Nominal - EOY Real (2020/21)",CPI[],MATCH(S$4,CPI[#Headers],0),FALSE) -> 0 | T34: =ProjectData[[#This Row],[Actuals 08/09]]*VLOOKUP("Mid Year Nominal - EOY Real (2020/21)",CPI[],MATCH(T$4,CPI[#Headers],0),FALSE) -> 0 | U34: =ProjectData[[#This Row],[Actuals 09/10]]*VLOOKUP("Mid Year Nominal - EOY Real (2020/21)",CPI[],MATCH(U$4,CPI[#Headers],0),FALSE) -> 0 | V34: =ProjectData[[#This Row],[Actuals 10/11]]*VLOOKUP("Mid Year Nominal - EOY Real (2020/21)",CPI[],MATCH(V$4,CPI[#Headers],0),FALSE) -> 0 | W34: =ProjectData[[#This Row],[Actuals 11/12]]*VLOOKUP("Mid Year Nominal - EOY Real (2020/21)",CPI[],MATCH(W$4,CPI[#Headers],0),FALSE) -> 0 | X34: =ProjectData[[#This Row],[Actuals 12/13]]*VLOOKUP("Mid Year Nominal - EOY Real (2020/21)",CPI[],MATCH(X$4,CPI[#Headers],0),FALSE) -> 0 | Y34: =ProjectData[[#This Row],[Actuals 13/14]]*VLOOKUP("Mid Year Nominal - EOY Real (2020/21)",CPI[],MATCH(Y$4,CPI[#Headers],0),FALSE) -> 0 | Z34: =ProjectData[[#This Row],[Actuals 14/15]]*VLOOKUP("Mid Year Nominal - EOY Real (2020/21)",CPI[],MATCH(Z$4,CPI[#Headers],0),FALSE) -> 0.0699708396 | AA34: =ProjectData[[#This Row],[Actuals 15/16]]*VLOOKUP("Mid Year Nominal - EOY Real (2020/21)",CPI[],MATCH(AA$4,CPI[#Headers],0),FALSE) -> 1.099755769 | AB34: =ProjectData[[#This Row],[Actuals 16/17]]*VLOOKUP("Mid Year Nominal - EOY Real (2020/21)",CPI[],MATCH(AB$4,CPI[#Headers],0),FALSE) -> 1.73864605 | AC34: =ProjectData[[#This Row],[Actuals 17/18]]*VLOOKUP("Mid Year Nominal - EOY Real (2020/21)",CPI[],MATCH(AC$4,CPI[#Headers],0),FALSE) -> 0.1579924585 | AD34: =ProjectData[[#This Row],[Actuals 18/19]]*VLOOKUP("Mid Year Nominal - EOY Real (2020/21)",CPI[],MATCH(AD$4,CPI[#Headers],0),FALSE) -> 0.03920792933 | AE34: =ProjectData[[#This Row],[Actuals 19/20]]*VLOOKUP("Mid Year Nominal - EOY Real (2020/21)",CPI[],MATCH(AE$4,CPI[#Headers],0),FALSE) -> 0 | AF34: =SUM(ProjectData[[#This Row],[Real 08]:[Real 20]]) -> 3.105573046 | AG34: =(ProjectData[[#This Row],[Real Sum]]-VLOOKUP(ProjectData[[#This Row],[Category]],Category_AverageStdDevLimit[],MATCH("Average",Category_AverageStdDevLimit[#Headers],0),FALSE))^2 -> 0.2149323911 | AH34: =VLOOKUP(ProjectData[[#This Row],[Category]],Category_AverageStdDevLimit[],MATCH("Limit",Category_AverageStdDevLimit[#Headers],0),FALSE) -> 20.5954265 | AI34: =ProjectData[[#This Row],[Real Sum]]>ProjectData[[#This Row],[Category Limit]] -> FALSE | AK34: =OR(ProjectData[[#This Row],[Significant Project? (Financial Basis)]],ProjectData[[#This Row],[Non repeatable]]) -> FALSE | AL34: =AND(ProjectData[[#This Row],[SomeExpenditure >= 2016]],ProjectData[[#This Row],[Abnormal?]]) -> FALSE
A35: CP.02375 | B35: NMS Intrusion Prevention System Replacem | C35: Security / Compliance | L35: 0.002394 | M35: 0.18718532 | N35: 0 | O35: 0 | P35: 0 | Q35: =ProjectData[[#This Row],[Real Sum]]>0.0001 -> TRUE | R35: =OR(ProjectData[[#This Row],[Real 16]]>0,ProjectData[[#This Row],[Real 17]]>0,ProjectData[[#This Row],[Real 18]]>0,ProjectData[[#This Row],[Real 19]]>0,ProjectData[[#This Row],[Real 20]]>0) -> TRUE | S35: =ProjectData[[#This Row],[Actuals 07/08]]*VLOOKUP("Mid Year Nominal - EOY Real (2020/21)",CPI[],MATCH(S$4,CPI[#Headers],0),FALSE) -> 0 | T35: =ProjectData[[#This Row],[Actuals 08/09]]*VLOOKUP("Mid Year Nominal - EOY Real (2020/21)",CPI[],MATCH(T$4,CPI[#Headers],0),FALSE) -> 0 | U35: =ProjectData[[#This Row],[Actuals 09/10]]*VLOOKUP("Mid Year Nominal - EOY Real (2020/21)",CPI[],MATCH(U$4,CPI[#Headers],0),FALSE) -> 0 | V35: =ProjectData[[#This Row],[Actuals 10/11]]*VLOOKUP("Mid Year Nominal - EOY Real (2020/21)",CPI[],MATCH(V$4,CPI[#Headers],0),FALSE) -> 0 | W35: =ProjectData[[#This Row],[Actuals 11/12]]*VLOOKUP("Mid Year Nominal - EOY Real (2020/21)",CPI[],MATCH(W$4,CPI[#Headers],0),FALSE) -> 0 | X35: =ProjectData[[#This Row],[Actuals 12/13]]*VLOOKUP("Mid Year Nominal - EOY Real (2020/21)",CPI[],MATCH(X$4,CPI[#Headers],0),FALSE) -> 0 | Y35: =ProjectData[[#This Row],[Actuals 13/14]]*VLOOKUP("Mid Year Nominal - EOY Real (2020/21)",CPI[],MATCH(Y$4,CPI[#Headers],0),FALSE) -> 0 | Z35: =ProjectData[[#This Row],[Actuals 14/15]]*VLOOKUP("Mid Year Nominal - EOY Real (2020/21)",CPI[],MATCH(Z$4,CPI[#Headers],0),FALSE) -> 0 | AA35: =ProjectData[[#This Row],[Actuals 15/16]]*VLOOKUP("Mid Year Nominal - EOY Real (2020/21)",CPI[],MATCH(AA$4,CPI[#Headers],0),FALSE) -> 0.00260077686 | AB35: =ProjectData[[#This Row],[Actuals 16/17]]*VLOOKUP("Mid Year Nominal - EOY Real (2020/21)",CPI[],MATCH(AB$4,CPI[#Headers],0),FALSE) -> 0.200185673 | AC35: =ProjectData[[#This Row],[Actuals 17/18]]*VLOOKUP("Mid Year Nominal - EOY Real (2020/21)",CPI[],MATCH(AC$4,CPI[#Headers],0),FALSE) -> 0 | AD35: =ProjectData[[#This Row],[Actuals 18/19]]*VLOOKUP("Mid Year Nominal - EOY Real (2020/21)",CPI[],MATCH(AD$4,CPI[#Headers],0),FALSE) -> 0 | AE35: =ProjectData[[#This Row],[Actuals 19/20]]*VLOOKUP("Mid Year Nominal - EOY Real (2020/21)",CPI[],MATCH(AE$4,CPI[#Headers],0),FALSE) -> 0 | AF35: =SUM(ProjectData[[#This Row],[Real 08]:[Real 20]]) -> 0.2027864498 | AG35: =(ProjectData[[#This Row],[Real Sum]]-VLOOKUP(ProjectData[[#This Row],[Category]],Category_AverageStdDevLimit[],MATCH("Average",Category_AverageStdDevLimit[#Headers],0),FALSE))^2 -> 11.33261267 | AH35: =VLOOKUP(ProjectData[[#This Row],[Category]],Category_AverageStdDevLimit[],MATCH("Limit",Category_AverageStdDevLimit[#Headers],0),FALSE) -> 20.5954265 | AI35: =ProjectData[[#This Row],[Real Sum]]>ProjectData[[#This Row],[Category Limit]] -> FALSE | AK35: =OR(ProjectData[[#This Row],[Significant Project? (Financial Basis)]],ProjectData[[#This Row],[Non repeatable]]) -> FALSE | AL35: =AND(ProjectData[[#This Row],[SomeExpenditure >= 2016]],ProjectData[[#This Row],[Abnormal?]]) -> FALSE
A36: CP.02379 | B36: H010 Bouldercombe New Station Services S | C36: Security / Compliance | L36: 0 | M36: 0.002301 | N36: 0 | O36: -0.002301 | P36: 0 | Q36: =ProjectData[[#This Row],[Real Sum]]>0.0001 -> FALSE | R36: =OR(ProjectData[[#This Row],[Real 16]]>0,ProjectData[[#This Row],[Real 17]]>0,ProjectData[[#This Row],[Real 18]]>0,ProjectData[[#This Row],[Real 19]]>0,ProjectData[[#This Row],[Real 20]]>0) -> TRUE | S36: =ProjectData[[#This Row],[Actuals 07/08]]*VLOOKUP("Mid Year Nominal - EOY Real (2020/21)",CPI[],MATCH(S$4,CPI[#Headers],0),FALSE) -> 0 | T36: =ProjectData[[#This Row],[Actuals 08/09]]*VLOOKUP("Mid Year Nominal - EOY Real (2020/21)",CPI[],MATCH(T$4,CPI[#Headers],0),FALSE) -> 0 | U36: =ProjectData[[#This Row],[Actuals 09/10]]*VLOOKUP("Mid Year Nominal - EOY Real (2020/21)",CPI[],MATCH(U$4,CPI[#Headers],0),FALSE) -> 0 | V36: =ProjectData[[#This Row],[Actuals 10/11]]*VLOOKUP("Mid Year Nominal - EOY Real (2020/21)",CPI[],MATCH(V$4,CPI[#Headers],0),FALSE) -> 0 | W36: =ProjectData[[#This Row],[Actuals 11/12]]*VLOOKUP("Mid Year Nominal - EOY Real (2020/21)",CPI[],MATCH(W$4,CPI[#Headers],0),FALSE) -> 0 | X36: =ProjectData[[#This Row],[Actuals 12/13]]*VLOOKUP("Mid Year Nominal - EOY Real (2020/21)",CPI[],MATCH(X$4,CPI[#Headers],0),FALSE) -> 0 | Y36: =ProjectData[[#This Row],[Actuals 13/14]]*VLOOKUP("Mid Year Nominal - EOY Real (2020/21)",CPI[],MATCH(Y$4,CPI[#Headers],0),FALSE) -> 0 | Z36: =ProjectData[[#This Row],[Actuals 14/15]]*VLOOKUP("Mid Year Nominal - EOY Real (2020/21)",CPI[],MATCH(Z$4,CPI[#Headers],0),FALSE) -> 0 | AA36: =ProjectData[[#This Row],[Actuals 15/16]]*VLOOKUP("Mid Year Nominal - EOY Real (2020/21)",CPI[],MATCH(AA$4,CPI[#Headers],0),FALSE) -> 0 | AB36: =ProjectData[[#This Row],[Actuals 16/17]]*VLOOKUP("Mid Year Nominal - EOY Real (2020/21)",CPI[],MATCH(AB$4,CPI[#Headers],0),FALSE) -> 0.002460808537 | AC36: =ProjectData[[#This Row],[Actuals 17/18]]*VLOOKUP("Mid Year Nominal - EOY Real (2020/21)",CPI[],MATCH(AC$4,CPI[#Headers],0),FALSE) -> 0 | AD36: =ProjectData[[#This Row],[Actuals 18/19]]*VLOOKUP("Mid Year Nominal - EOY Real (2020/21)",CPI[],MATCH(AD$4,CPI[#Headers],0),FALSE) -> -0.002375982185 | AE36: =ProjectData[[#This Row],[Actuals 19/20]]*VLOOKUP("Mid Year Nominal - EOY Real (2020/21)",CPI[],MATCH(AE$4,CPI[#Headers],0),FALSE) -> 0 | AF36: =SUM(ProjectData[[#This Row],[Real 08]:[Real 20]]) -> 8.482635232e-05 | AG36: =(ProjectData[[#This Row],[Real Sum]]-VLOOKUP(ProjectData[[#This Row],[Category]],Category_AverageStdDevLimit[],MATCH("Average",Category_AverageStdDevLimit[#Headers],0),FALSE))^2 -> 12.73844793 | AH36: =VLOOKUP(ProjectData[[#This Row],[Category]],Category_AverageStdDevLimit[],MATCH("Limit",Category_AverageStdDevLimit[#Headers],0),FALSE) -> 20.5954265 | AI36: =ProjectData[[#This Row],[Real Sum]]>ProjectData[[#This Row],[Category Limit]] -> FALSE | AK36: =OR(ProjectData[[#This Row],[Significant Project? (Financial Basis)]],ProjectData[[#This Row],[Non repeatable]]) -> FALSE | AL36: =AND(ProjectData[[#This Row],[SomeExpenditure >= 2016]],ProjectData[[#This Row],[Abnormal?]]) -> FALSE
A37: CP.02700 | B37: iPASS uSCADA Upgrade | C37: Security / Compliance | L37: 0 | M37: 0 | N37: 0.5766146442 | O37: 0.2141390552 | P37: 0.0301357938 | Q37: =ProjectData[[#This Row],[Real Sum]]>0.0001 -> TRUE | R37: =OR(ProjectData[[#This Row],[Real 16]]>0,ProjectData[[#This Row],[Real 17]]>0,ProjectData[[#This Row],[Real 18]]>0,ProjectData[[#This Row],[Real 19]]>0,ProjectData[[#This Row],[Real 20]]>0) -> TRUE | S37: =ProjectData[[#This Row],[Actuals 07/08]]*VLOOKUP("Mid Year Nominal - EOY Real (2020/21)",CPI[],MATCH(S$4,CPI[#Headers],0),FALSE) -> 0 | T37: =ProjectData[[#This Row],[Actuals 08/09]]*VLOOKUP("Mid Year Nominal - EOY Real (2020/21)",CPI[],MATCH(T$4,CPI[#Headers],0),FALSE) -> 0 | U37: =ProjectData[[#This Row],[Actuals 09/10]]*VLOOKUP("Mid Year Nominal - EOY Real (2020/21)",CPI[],MATCH(U$4,CPI[#Headers],0),FALSE) -> 0 | V37: =ProjectData[[#This Row],[Actuals 10/11]]*VLOOKUP("Mid Year Nominal - EOY Real (2020/21)",CPI[],MATCH(V$4,CPI[#Headers],0),FALSE) -> 0 | W37: =ProjectData[[#This Row],[Actuals 11/12]]*VLOOKUP("Mid Year Nominal - EOY Real (2020/21)",CPI[],MATCH(W$4,CPI[#Headers],0),FALSE) -> 0 | X37: =ProjectData[[#This Row],[Actuals 12/13]]*VLOOKUP("Mid Year Nominal - EOY Real (2020/21)",CPI[],MATCH(X$4,CPI[#Headers],0),FALSE) -> 0 | Y37: =ProjectData[[#This Row],[Actuals 13/14]]*VLOOKUP("Mid Year Nominal - EOY Real (2020/21)",CPI[],MATCH(Y$4,CPI[#Headers],0),FALSE) -> 0 | Z37: =ProjectData[[#This Row],[Actuals 14/15]]*VLOOKUP("Mid Year Nominal - EOY Real (2020/21)",CPI[],MATCH(Z$4,CPI[#Headers],0),FALSE) -> 0 | AA37: =ProjectData[[#This Row],[Actuals 15/16]]*VLOOKUP("Mid Year Nominal - EOY Real (2020/21)",CPI[],MATCH(AA$4,CPI[#Headers],0),FALSE) -> 0 | AB37: =ProjectData[[#This Row],[Actuals 16/17]]*VLOOKUP("Mid Year Nominal - EOY Real (2020/21)",CPI[],MATCH(AB$4,CPI[#Headers],0),FALSE) -> 0 | AC37: =ProjectData[[#This Row],[Actuals 17/18]]*VLOOKUP("Mid Year Nominal - EOY Real (2020/21)",CPI[],MATCH(AC$4,CPI[#Headers],0),FALSE) -> 0.6063993245 | AD37: =ProjectData[[#This Row],[Actuals 18/19]]*VLOOKUP("Mid Year Nominal - EOY Real (2020/21)",CPI[],MATCH(AD$4,CPI[#Headers],0),FALSE) -> 0.2211171579 | AE37: =ProjectData[[#This Row],[Actuals 19/20]]*VLOOKUP("Mid Year Nominal - EOY Real (2020/21)",CPI[],MATCH(AE$4,CPI[#Headers],0),FALSE) -> 0.0305639119 | AF37: =SUM(ProjectData[[#This Row],[Real 08]:[Real 20]]) -> 0.8580803943 | AG37: =(ProjectData[[#This Row],[Real Sum]]-VLOOKUP(ProjectData[[#This Row],[Category]],Category_AverageStdDevLimit[],MATCH("Average",Category_AverageStdDevLimit[#Headers],0),FALSE))^2 -> 7.350066821 | AH37: =VLOOKUP(ProjectData[[#This Row],[Category]],Category_AverageStdDevLimit[],MATCH("Limit",Category_AverageStdDevLimit[#Headers],0),FALSE) -> 20.5954265 | AI37: =ProjectData[[#This Row],[Real Sum]]>ProjectData[[#This Row],[Category Limit]] -> FALSE | AK37: =OR(ProjectData[[#This Row],[Significant Project? (Financial Basis)]],ProjectData[[#This Row],[Non repeatable]]) -> FALSE | AL37: =AND(ProjectData[[#This Row],[SomeExpenditure >= 2016]],ProjectData[[#This Row],[Abnormal?]]) -> FALSE
A38: CP.02739 | B38: H016 Rocklea Security Upgrade | C38: Security / Compliance | L38: 0 | M38: 0 | N38: 0 | O38: 0.06010806 | P38: 0.02497629 | Q38: =ProjectData[[#This Row],[Real Sum]]>0.0001 -> TRUE | R38: =OR(ProjectData[[#This Row],[Real 16]]>0,ProjectData[[#This Row],[Real 17]]>0,ProjectData[[#This Row],[Real 18]]>0,ProjectData[[#This Row],[Real 19]]>0,ProjectData[[#This Row],[Real 20]]>0) -> TRUE | S38: =ProjectData[[#This Row],[Actuals 07/08]]*VLOOKUP("Mid Year Nominal - EOY Real (2020/21)",CPI[],MATCH(S$4,CPI[#Headers],0),FALSE) -> 0 | T38: =ProjectData[[#This Row],[Actuals 08/09]]*VLOOKUP("Mid Year Nominal - EOY Real (2020/21)",CPI[],MATCH(T$4,CPI[#Headers],0),FALSE) -> 0 | U38: =ProjectData[[#This Row],[Actuals 09/10]]*VLOOKUP("Mid Year Nominal - EOY Real (2020/21)",CPI[],MATCH(U$4,CPI[#Headers],0),FALSE) -> 0 | V38: =ProjectData[[#This Row],[Actuals 10/11]]*VLOOKUP("Mid Year Nominal - EOY Real (2020/21)",CPI[],MATCH(V$4,CPI[#Headers],0),FALSE) -> 0 | W38: =ProjectData[[#This Row],[Actuals 11/12]]*VLOOKUP("Mid Year Nominal - EOY Real (2020/21)",CPI[],MATCH(W$4,CPI[#Headers],0),FALSE) -> 0 | X38: =ProjectData[[#This Row],[Actuals 12/13]]*VLOOKUP("Mid Year Nominal - EOY Real (2020/21)",CPI[],MATCH(X$4,CPI[#Headers],0),FALSE) -> 0 | Y38: =ProjectData[[#This Row],[Actuals 13/14]]*VLOOKUP("Mid Year Nominal - EOY Real (2020/21)",CPI[],MATCH(Y$4,CPI[#Headers],0),FALSE) -> 0 | Z38: =ProjectData[[#This Row],[Actuals 14/15]]*VLOOKUP("Mid Year Nominal - EOY Real (2020/21)",CPI[],MATCH(Z$4,CPI[#Headers],0),FALSE) -> 0 | AA38: =ProjectData[[#This Row],[Actuals 15/16]]*VLOOKUP("Mid Year Nominal - EOY Real (2020/21)",CPI[],MATCH(AA$4,CPI[#Headers],0),FALSE) -> 0 | AB38: =ProjectData[[#This Row],[Actuals 16/17]]*VLOOKUP("Mid Year Nominal - EOY Real (2020/21)",CPI[],MATCH(AB$4,CPI[#Headers],0),FALSE) -> 0 | AC38: =ProjectData[[#This Row],[Actuals 17/18]]*VLOOKUP("Mid Year Nominal - EOY Real (2020/21)",CPI[],MATCH(AC$4,CPI[#Headers],0),FALSE) -> 0 | AD38: =ProjectData[[#This Row],[Actuals 18/19]]*VLOOKUP("Mid Year Nominal - EOY Real (2020/21)",CPI[],MATCH(AD$4,CPI[#Headers],0),FALSE) -> 0.06206678823 | AE38: =ProjectData[[#This Row],[Actuals 19/20]]*VLOOKUP("Mid Year Nominal - EOY Real (2020/21)",CPI[],MATCH(AE$4,CPI[#Headers],0),FALSE) -> 0.02533111065 | AF38: =SUM(ProjectData[[#This Row],[Real 08]:[Real 20]]) -> 0.08739789888 | AG38: =(ProjectData[[#This Row],[Real Sum]]-VLOOKUP(ProjectData[[#This Row],[Category]],Category_AverageStdDevLimit[],MATCH("Average",Category_AverageStdDevLimit[#Headers],0),FALSE))^2 -> 12.12281398 | AH38: =VLOOKUP(ProjectData[[#This Row],[Category]],Category_AverageStdDevLimit[],MATCH("Limit",Category_AverageStdDevLimit[#Headers],0),FALSE) -> 20.5954265 | AI38: =ProjectData[[#This Row],[Real Sum]]>ProjectData[[#This Row],[Category Limit]] -> FALSE | AK38: =OR(ProjectData[[#This Row],[Significant Project? (Financial Basis)]],ProjectData[[#This Row],[Non repeatable]]) -> FALSE | AL38: =AND(ProjectData[[#This Row],[SomeExpenditure >= 2016]],ProjectData[[#This Row],[Abnormal?]]) -> FALSE
A39: CP.02761 | B39: Upgrade of Oil Containment System | C39: Security / Compliance | L39: 0 | M39: 0 | N39: 0 | O39: 0.01480238 | P39: 0.09500148 | Q39: =ProjectData[[#This Row],[Real Sum]]>0.0001 -> TRUE | R39: =OR(ProjectData[[#This Row],[Real 16]]>0,ProjectData[[#This Row],[Real 17]]>0,ProjectData[[#This Row],[Real 18]]>0,ProjectData[[#This Row],[Real 19]]>0,ProjectData[[#This Row],[Real 20]]>0) -> TRUE | S39: =ProjectData[[#This Row],[Actuals 07/08]]*VLOOKUP("Mid Year Nominal - EOY Real (2020/21)",CPI[],MATCH(S$4,CPI[#Headers],0),FALSE) -> 0 | T39: =ProjectData[[#This Row],[Actuals 08/09]]*VLOOKUP("Mid Year Nominal - EOY Real (2020/21)",CPI[],MATCH(T$4,CPI[#Headers],0),FALSE) -> 0 | U39: =ProjectData[[#This Row],[Actuals 09/10]]*VLOOKUP("Mid Year Nominal - EOY Real (2020/21)",CPI[],MATCH(U$4,CPI[#Headers],0),FALSE) -> 0 | V39: =ProjectData[[#This Row],[Actuals 10/11]]*VLOOKUP("Mid Year Nominal - EOY Real (2020/21)",CPI[],MATCH(V$4,CPI[#Headers],0),FALSE) -> 0 | W39: =ProjectData[[#This Row],[Actuals 11/12]]*VLOOKUP("Mid Year Nominal - EOY Real (2020/21)",CPI[],MATCH(W$4,CPI[#Headers],0),FALSE) -> 0 | X39: =ProjectData[[#This Row],[Actuals 12/13]]*VLOOKUP("Mid Year Nominal - EOY Real (2020/21)",CPI[],MATCH(X$4,CPI[#Headers],0),FALSE) -> 0 | Y39: =ProjectData[[#This Row],[Actuals 13/14]]*VLOOKUP("Mid Year Nominal - EOY Real (2020/21)",CPI[],MATCH(Y$4,CPI[#Headers],0),FALSE) -> 0 | Z39: =ProjectData[[#This Row],[Actuals 14/15]]*VLOOKUP("Mid Year Nominal - EOY Real (2020/21)",CPI[],MATCH(Z$4,CPI[#Headers],0),FALSE) -> 0 | AA39: =ProjectData[[#This Row],[Actuals 15/16]]*VLOOKUP("Mid Year Nominal - EOY Real (2020/21)",CPI[],MATCH(AA$4,CPI[#Headers],0),FALSE) -> 0 | AB39: =ProjectData[[#This Row],[Actuals 16/17]]*VLOOKUP("Mid Year Nominal - EOY Real (2020/21)",CPI[],MATCH(AB$4,CPI[#Headers],0),FALSE) -> 0 | AC39: =ProjectData[[#This Row],[Actuals 17/18]]*VLOOKUP("Mid Year Nominal - EOY Real (2020/21)",CPI[],MATCH(AC$4,CPI[#Headers],0),FALSE) -> 0 | AD39: =ProjectData[[#This Row],[Actuals 18/19]]*VLOOKUP("Mid Year Nominal - EOY Real (2020/21)",CPI[],MATCH(AD$4,CPI[#Headers],0),FALSE) -> 0.01528474193 | AE39: =ProjectData[[#This Row],[Actuals 19/20]]*VLOOKUP("Mid Year Nominal - EOY Real (2020/21)",CPI[],MATCH(AE$4,CPI[#Headers],0),FALSE) -> 0.09635109944 | AF39: =SUM(ProjectData[[#This Row],[Real 08]:[Real 20]]) -> 0.1116358414 | AG39: =(ProjectData[[#This Row],[Real Sum]]-VLOOKUP(ProjectData[[#This Row],[Category]],Category_AverageStdDevLimit[],MATCH("Average",Category_AverageStdDevLimit[#Headers],0),FALSE))^2 -> 11.95461894 | AH39: =VLOOKUP(ProjectData[[#This Row],[Category]],Category_AverageStdDevLimit[],MATCH("Limit",Category_AverageStdDevLimit[#Headers],0),FALSE) -> 20.5954265 | AI39: =ProjectData[[#This Row],[Real Sum]]>ProjectData[[#This Row],[Category Limit]] -> FALSE | AK39: =OR(ProjectData[[#This Row],[Significant Project? (Financial Basis)]],ProjectData[[#This Row],[Non repeatable]]) -> FALSE | AL39: =AND(ProjectData[[#This Row],[SomeExpenditure >= 2016]],ProjectData[[#This Row],[Abnormal?]]) -> FALSE
A40: CP.02764 | B40: CQ-SQ Wide Area Monitoring Prot & Contro | C40: Security / Compliance | L40: 0 | M40: 0 | N40: 0 | O40: 0.01851896 | P40: 0.63661813 | Q40: =ProjectData[[#This Row],[Real Sum]]>0.0001 -> TRUE | R40: =OR(ProjectData[[#This Row],[Real 16]]>0,ProjectData[[#This Row],[Real 17]]>0,ProjectData[[#This Row],[Real 18]]>0,ProjectData[[#This Row],[Real 19]]>0,ProjectData[[#This Row],[Real 20]]>0) -> TRUE | S40: =ProjectData[[#This Row],[Actuals 07/08]]*VLOOKUP("Mid Year Nominal - EOY Real (2020/21)",CPI[],MATCH(S$4,CPI[#Headers],0),FALSE) -> 0 | T40: =ProjectData[[#This Row],[Actuals 08/09]]*VLOOKUP("Mid Year Nominal - EOY Real (2020/21)",CPI[],MATCH(T$4,CPI[#Headers],0),FALSE) -> 0 | U40: =ProjectData[[#This Row],[Actuals 09/10]]*VLOOKUP("Mid Year Nominal - EOY Real (2020/21)",CPI[],MATCH(U$4,CPI[#Headers],0),FALSE) -> 0 | V40: =ProjectData[[#This Row],[Actuals 10/11]]*VLOOKUP("Mid Year Nominal - EOY Real (2020/21)",CPI[],MATCH(V$4,CPI[#Headers],0),FALSE) -> 0 | W40: =ProjectData[[#This Row],[Actuals 11/12]]*VLOOKUP("Mid Year Nominal - EOY Real (2020/21)",CPI[],MATCH(W$4,CPI[#Headers],0),FALSE) -> 0 | X40: =ProjectData[[#This Row],[Actuals 12/13]]*VLOOKUP("Mid Year Nominal - EOY Real (2020/21)",CPI[],MATCH(X$4,CPI[#Headers],0),FALSE) -> 0 | Y40: =ProjectData[[#This Row],[Actuals 13/14]]*VLOOKUP("Mid Year Nominal - EOY Real (2020/21)",CPI[],MATCH(Y$4,CPI[#Headers],0),FALSE) -> 0 | Z40: =ProjectData[[#This Row],[Actuals 14/15]]*VLOOKUP("Mid Year Nominal - EOY Real (2020/21)",CPI[],MATCH(Z$4,CPI[#Headers],0),FALSE) -> 0 | AA40: =ProjectData[[#This Row],[Actuals 15/16]]*VLOOKUP("Mid Year Nominal - EOY Real (2020/21)",CPI[],MATCH(AA$4,CPI[#Headers],0),FALSE) -> 0 | AB40: =ProjectData[[#This Row],[Actuals 16/17]]*VLOOKUP("Mid Year Nominal - EOY Real (2020/21)",CPI[],MATCH(AB$4,CPI[#Headers],0),FALSE) -> 0 | AC40: =ProjectData[[#This Row],[Actuals 17/18]]*VLOOKUP("Mid Year Nominal - EOY Real (2020/21)",CPI[],MATCH(AC$4,CPI[#Headers],0),FALSE) -> 0 | AD40: =ProjectData[[#This Row],[Actuals 18/19]]*VLOOKUP("Mid Year Nominal - EOY Real (2020/21)",CPI[],MATCH(AD$4,CPI[#Headers],0),FALSE) -> 0.01912243331 | AE40: =ProjectData[[#This Row],[Actuals 19/20]]*VLOOKUP("Mid Year Nominal - EOY Real (2020/21)",CPI[],MATCH(AE$4,CPI[#Headers],0),FALSE) -> 0.6456621176 | AF40: =SUM(ProjectData[[#This Row],[Real 08]:[Real 20]]) -> 0.6647845509 | AG40: =(ProjectData[[#This Row],[Real Sum]]-VLOOKUP(ProjectData[[#This Row],[Category]],Category_AverageStdDevLimit[],MATCH("Average",Category_AverageStdDevLimit[#Headers],0),FALSE))^2 -> 8.435519083 | AH40: =VLOOKUP(ProjectData[[#This Row],[Category]],Category_AverageStdDevLimit[],MATCH("Limit",Category_AverageStdDevLimit[#Headers],0),FALSE) -> 20.5954265 | AI40: =ProjectData[[#This Row],[Real Sum]]>ProjectData[[#This Row],[Category Limit]] -> FALSE | AK40: =OR(ProjectData[[#This Row],[Significant Project? (Financial Basis)]],ProjectData[[#This Row],[Non repeatable]]) -> FALSE | AL40: =AND(ProjectData[[#This Row],[SomeExpenditure >= 2016]],ProjectData[[#This Row],[Abnormal?]]) -> FALSE
A41: CP.02768 | B41: Install Eyewash and Deluge Showers | C41: Security / Compliance | L41: 0 | M41: 0 | N41: 0 | O41: 0 | P41: 0.06463358 | Q41: =ProjectData[[#This Row],[Real Sum]]>0.0001 -> TRUE | R41: =OR(ProjectData[[#This Row],[Real 16]]>0,ProjectData[[#This Row],[Real 17]]>0,ProjectData[[#This Row],[Real 18]]>0,ProjectData[[#This Row],[Real 19]]>0,ProjectData[[#This Row],[Real 20]]>0) -> TRUE | S41: =ProjectData[[#This Row],[Actuals 07/08]]*VLOOKUP("Mid Year Nominal - EOY Real (2020/21)",CPI[],MATCH(S$4,CPI[#Headers],0),FALSE) -> 0 | T41: =ProjectData[[#This Row],[Actuals 08/09]]*VLOOKUP("Mid Year Nominal - EOY Real (2020/21)",CPI[],MATCH(T$4,CPI[#Headers],0),FALSE) -> 0 | U41: =ProjectData[[#This Row],[Actuals 09/10]]*VLOOKUP("Mid Year Nominal - EOY Real (2020/21)",CPI[],MATCH(U$4,CPI[#Headers],0),FALSE) -> 0 | V41: =ProjectData[[#This Row],[Actuals 10/11]]*VLOOKUP("Mid Year Nominal - EOY Real (2020/21)",CPI[],MATCH(V$4,CPI[#Headers],0),FALSE) -> 0 | W41: =ProjectData[[#This Row],[Actuals 11/12]]*VLOOKUP("Mid Year Nominal - EOY Real (2020/21)",CPI[],MATCH(W$4,CPI[#Headers],0),FALSE) -> 0 | X41: =ProjectData[[#This Row],[Actuals 12/13]]*VLOOKUP("Mid Year Nominal - EOY Real (2020/21)",CPI[],MATCH(X$4,CPI[#Headers],0),FALSE) -> 0 | Y41: =ProjectData[[#This Row],[Actuals 13/14]]*VLOOKUP("Mid Year Nominal - EOY Real (2020/21)",CPI[],MATCH(Y$4,CPI[#Headers],0),FALSE) -> 0 | Z41: =ProjectData[[#This Row],[Actuals 14/15]]*VLOOKUP("Mid Year Nominal - EOY Real (2020/21)",CPI[],MATCH(Z$4,CPI[#Headers],0),FALSE) -> 0 | AA41: =ProjectData[[#This Row],[Actuals 15/16]]*VLOOKUP("Mid Year Nominal - EOY Real (2020/21)",CPI[],MATCH(AA$4,CPI[#Headers],0),FALSE) -> 0 | AB41: =ProjectData[[#This Row],[Actuals 16/17]]*VLOOKUP("Mid Year Nominal - EOY Real (2020/21)",CPI[],MATCH(AB$4,CPI[#Headers],0),FALSE) -> 0 | AC41: =ProjectData[[#This Row],[Actuals 17/18]]*VLOOKUP("Mid Year Nominal - EOY Real (2020/21)",CPI[],MATCH(AC$4,CPI[#Headers],0),FALSE) -> 0 | AD41: =ProjectData[[#This Row],[Actuals 18/19]]*VLOOKUP("Mid Year Nominal - EOY Real (2020/21)",CPI[],MATCH(AD$4,CPI[#Headers],0),FALSE) -> 0 | AE41: =ProjectData[[#This Row],[Actuals 19/20]]*VLOOKUP("Mid Year Nominal - EOY Real (2020/21)",CPI[],MATCH(AE$4,CPI[#Headers],0),FALSE) -> 0.06555178397 | AF41: =SUM(ProjectData[[#This Row],[Real 08]:[Real 20]]) -> 0.06555178397 | AG41: =(ProjectData[[#This Row],[Real Sum]]-VLOOKUP(ProjectData[[#This Row],[Category]],Category_AverageStdDevLimit[],MATCH("Average",Category_AverageStdDevLimit[#Headers],0),FALSE))^2 -> 12.2754181 | AH41: =VLOOKUP(ProjectData[[#This Row],[Category]],Category_AverageStdDevLimit[],MATCH("Limit",Category_AverageStdDevLimit[#Headers],0),FALSE) -> 20.5954265 | AI41: =ProjectData[[#This Row],[Real Sum]]>ProjectData[[#This Row],[Category Limit]] -> FALSE | AK41: =OR(ProjectData[[#This Row],[Significant Project? (Financial Basis)]],ProjectData[[#This Row],[Non repeatable]]) -> FALSE | AL41: =AND(ProjectData[[#This Row],[SomeExpenditure >= 2016]],ProjectData[[#This Row],[Abnormal?]]) -> FALSE
A42: CP.02769 | B42: Install Portable Eyewash and Deluge Show | C42: Security / Compliance | L42: 0 | M42: 0 | N42: 0 | O42: 0 | P42: 0.0409359744 | Q42: =ProjectData[[#This Row],[Real Sum]]>0.0001 -> TRUE | R42: =OR(ProjectData[[#This Row],[Real 16]]>0,ProjectData[[#This Row],[Real 17]]>0,ProjectData[[#This Row],[Real 18]]>0,ProjectData[[#This Row],[Real 19]]>0,ProjectData[[#This Row],[Real 20]]>0) -> TRUE | S42: =ProjectData[[#This Row],[Actuals 07/08]]*VLOOKUP("Mid Year Nominal - EOY Real (2020/21)",CPI[],MATCH(S$4,CPI[#Headers],0),FALSE) -> 0 | T42: =ProjectData[[#This Row],[Actuals 08/09]]*VLOOKUP("Mid Year Nominal - EOY Real (2020/21)",CPI[],MATCH(T$4,CPI[#Headers],0),FALSE) -> 0 | U42: =ProjectData[[#This Row],[Actuals 09/10]]*VLOOKUP("Mid Year Nominal - EOY Real (2020/21)",CPI[],MATCH(U$4,CPI[#Headers],0),FALSE) -> 0 | V42: =ProjectData[[#This Row],[Actuals 10/11]]*VLOOKUP("Mid Year Nominal - EOY Real (2020/21)",CPI[],MATCH(V$4,CPI[#Headers],0),FALSE) -> 0 | W42: =ProjectData[[#This Row],[Actuals 11/12]]*VLOOKUP("Mid Year Nominal - EOY Real (2020/21)",CPI[],MATCH(W$4,CPI[#Headers],0),FALSE) -> 0 | X42: =ProjectData[[#This Row],[Actuals 12/13]]*VLOOKUP("Mid Year Nominal - EOY Real (2020/21)",CPI[],MATCH(X$4,CPI[#Headers],0),FALSE) -> 0 | Y42: =ProjectData[[#This Row],[Actuals 13/14]]*VLOOKUP("Mid Year Nominal - EOY Real (2020/21)",CPI[],MATCH(Y$4,CPI[#Headers],0),FALSE) -> 0 | Z42: =ProjectData[[#This Row],[Actuals 14/15]]*VLOOKUP("Mid Year Nominal - EOY Real (2020/21)",CPI[],MATCH(Z$4,CPI[#Headers],0),FALSE) -> 0 | AA42: =ProjectData[[#This Row],[Actuals 15/16]]*VLOOKUP("Mid Year Nominal - EOY Real (2020/21)",CPI[],MATCH(AA$4,CPI[#Headers],0),FALSE) -> 0 | AB42: =ProjectData[[#This Row],[Actuals 16/17]]*VLOOKUP("Mid Year Nominal - EOY Real (2020/21)",CPI[],MATCH(AB$4,CPI[#Headers],0),FALSE) -> 0 | AC42: =ProjectData[[#This Row],[Actuals 17/18]]*VLOOKUP("Mid Year Nominal - EOY Real (2020/21)",CPI[],MATCH(AC$4,CPI[#Headers],0),FALSE) -> 0 | AD42: =ProjectData[[#This Row],[Actuals 18/19]]*VLOOKUP("Mid Year Nominal - EOY Real (2020/21)",CPI[],MATCH(AD$4,CPI[#Headers],0),FALSE) -> 0 | AE42: =ProjectData[[#This Row],[Actuals 19/20]]*VLOOKUP("Mid Year Nominal - EOY Real (2020/21)",CPI[],MATCH(AE$4,CPI[#Headers],0),FALSE) -> 0.0415175231 | AF42: =SUM(ProjectData[[#This Row],[Real 08]:[Real 20]]) -> 0.0415175231 | AG42: =(ProjectData[[#This Row],[Real Sum]]-VLOOKUP(ProjectData[[#This Row],[Category]],Category_AverageStdDevLimit[],MATCH("Average",Category_AverageStdDevLimit[#Headers],0),FALSE))^2 -> 12.44441003 | AH42: =VLOOKUP(ProjectData[[#This Row],[Category]],Category_AverageStdDevLimit[],MATCH("Limit",Category_AverageStdDevLimit[#Headers],0),FALSE) -> 20.5954265 | AI42: =ProjectData[[#This Row],[Real Sum]]>ProjectData[[#This Row],[Category Limit]] -> FALSE | AK42: =OR(ProjectData[[#This Row],[Significant Project? (Financial Basis)]],ProjectData[[#This Row],[Non repeatable]]) -> FALSE | AL42: =AND(ProjectData[[#This Row],[SomeExpenditure >= 2016]],ProjectData[[#This Row],[Abnormal?]]) -> FALSE
A43: CP.02770 | B43: Upgrade of Oil Separation Systems Stage | C43: Security / Compliance | L43: 0 | M43: 0 | N43: 0 | O43: 0 | P43: 0.039514775 | Q43: =ProjectData[[#This Row],[Real Sum]]>0.0001 -> TRUE | R43: =OR(ProjectData[[#This Row],[Real 16]]>0,ProjectData[[#This Row],[Real 17]]>0,ProjectData[[#This Row],[Real 18]]>0,ProjectData[[#This Row],[Real 19]]>0,ProjectData[[#This Row],[Real 20]]>0) -> TRUE | S43: =ProjectData[[#This Row],[Actuals 07/08]]*VLOOKUP("Mid Year Nominal - EOY Real (2020/21)",CPI[],MATCH(S$4,CPI[#Headers],0),FALSE) -> 0 | T43: =ProjectData[[#This Row],[Actuals 08/09]]*VLOOKUP("Mid Year Nominal - EOY Real (2020/21)",CPI[],MATCH(T$4,CPI[#Headers],0),FALSE) -> 0 | U43: =ProjectData[[#This Row],[Actuals 09/10]]*VLOOKUP("Mid Year Nominal - EOY Real (2020/21)",CPI[],MATCH(U$4,CPI[#Headers],0),FALSE) -> 0 | V43: =ProjectData[[#This Row],[Actuals 10/11]]*VLOOKUP("Mid Year Nominal - EOY Real (2020/21)",CPI[],MATCH(V$4,CPI[#Headers],0),FALSE) -> 0 | W43: =ProjectData[[#This Row],[Actuals 11/12]]*VLOOKUP("Mid Year Nominal - EOY Real (2020/21)",CPI[],MATCH(W$4,CPI[#Headers],0),FALSE) -> 0 | X43: =ProjectData[[#This Row],[Actuals 12/13]]*VLOOKUP("Mid Year Nominal - EOY Real (2020/21)",CPI[],MATCH(X$4,CPI[#Headers],0),FALSE) -> 0 | Y43: =ProjectData[[#This Row],[Actuals 13/14]]*VLOOKUP("Mid Year Nominal - EOY Real (2020/21)",CPI[],MATCH(Y$4,CPI[#Headers],0),FALSE) -> 0 | Z43: =ProjectData[[#This Row],[Actuals 14/15]]*VLOOKUP("Mid Year Nominal - EOY Real (2020/21)",CPI[],MATCH(Z$4,CPI[#Headers],0),FALSE) -> 0 | AA43: =ProjectData[[#This Row],[Actuals 15/16]]*VLOOKUP("Mid Year Nominal - EOY Real (2020/21)",CPI[],MATCH(AA$4,CPI[#Headers],0),FALSE) -> 0 | AB43: =ProjectData[[#This Row],[Actuals 16/17]]*VLOOKUP("Mid Year Nominal - EOY Real (2020/21)",CPI[],MATCH(AB$4,CPI[#Headers],0),FALSE) -> 0 | AC43: =ProjectData[[#This Row],[Actuals 17/18]]*VLOOKUP("Mid Year Nominal - EOY Real (2020/21)",CPI[],MATCH(AC$4,CPI[#Headers],0),FALSE) -> 0 | AD43: =ProjectData[[#This Row],[Actuals 18/19]]*VLOOKUP("Mid Year Nominal - EOY Real (2020/21)",CPI[],MATCH(AD$4,CPI[#Headers],0),FALSE) -> 0 | AE43: =ProjectData[[#This Row],[Actuals 19/20]]*VLOOKUP("Mid Year Nominal - EOY Real (2020/21)",CPI[],MATCH(AE$4,CPI[#Headers],0),FALSE) -> 0.04007613371 | AF43: =SUM(ProjectData[[#This Row],[Real 08]:[Real 20]]) -> 0.04007613371 | AG43: =(ProjectData[[#This Row],[Real Sum]]-VLOOKUP(ProjectData[[#This Row],[Category]],Category_AverageStdDevLimit[],MATCH("Average",Category_AverageStdDevLimit[#Headers],0),FALSE))^2 -> 12.45458158 | AH43: =VLOOKUP(ProjectData[[#This Row],[Category]],Category_AverageStdDevLimit[],MATCH("Limit",Category_AverageStdDevLimit[#Headers],0),FALSE) -> 20.5954265 | AI43: =ProjectData[[#This Row],[Real Sum]]>ProjectData[[#This Row],[Category Limit]] -> FALSE | AK43: =OR(ProjectData[[#This Row],[Significant Project? (Financial Basis)]],ProjectData[[#This Row],[Non repeatable]]) -> FALSE | AL43: =AND(ProjectData[[#This Row],[SomeExpenditure >= 2016]],ProjectData[[#This Row],[Abnormal?]]) -> FALSE
A44: CP.02772 | B44: H005 Woolooga Install Revenue Metering f | C44: Security / Compliance | L44: 0 | M44: 0 | N44: 0 | O44: 0 | P44: 0.29647792 | Q44: =ProjectData[[#This Row],[Real Sum]]>0.0001 -> TRUE | R44: =OR(ProjectData[[#This Row],[Real 16]]>0,ProjectData[[#This Row],[Real 17]]>0,ProjectData[[#This Row],[Real 18]]>0,ProjectData[[#This Row],[Real 19]]>0,ProjectData[[#This Row],[Real 20]]>0) -> TRUE | S44: =ProjectData[[#This Row],[Actuals 07/08]]*VLOOKUP("Mid Year Nominal - EOY Real (2020/21)",CPI[],MATCH(S$4,CPI[#Headers],0),FALSE) -> 0 | T44: =ProjectData[[#This Row],[Actuals 08/09]]*VLOOKUP("Mid Year Nominal - EOY Real (2020/21)",CPI[],MATCH(T$4,CPI[#Headers],0),FALSE) -> 0 | U44: =ProjectData[[#This Row],[Actuals 09/10]]*VLOOKUP("Mid Year Nominal - EOY Real (2020/21)",CPI[],MATCH(U$4,CPI[#Headers],0),FALSE) -> 0 | V44: =ProjectData[[#This Row],[Actuals 10/11]]*VLOOKUP("Mid Year Nominal - EOY Real (2020/21)",CPI[],MATCH(V$4,CPI[#Headers],0),FALSE) -> 0 | W44: =ProjectData[[#This Row],[Actuals 11/12]]*VLOOKUP("Mid Year Nominal - EOY Real (2020/21)",CPI[],MATCH(W$4,CPI[#Headers],0),FALSE) -> 0 | X44: =ProjectData[[#This Row],[Actuals 12/13]]*VLOOKUP("Mid Year Nominal - EOY Real (2020/21)",CPI[],MATCH(X$4,CPI[#Headers],0),FALSE) -> 0 | Y44: =ProjectData[[#This Row],[Actuals 13/14]]*VLOOKUP("Mid Year Nominal - EOY Real (2020/21)",CPI[],MATCH(Y$4,CPI[#Headers],0),FALSE) -> 0 | Z44: =ProjectData[[#This Row],[Actuals 14/15]]*VLOOKUP("Mid Year Nominal - EOY Real (2020/21)",CPI[],MATCH(Z$4,CPI[#Headers],0),FALSE) -> 0 | AA44: =ProjectData[[#This Row],[Actuals 15/16]]*VLOOKUP("Mid Year Nominal - EOY Real (2020/21)",CPI[],MATCH(AA$4,CPI[#Headers],0),FALSE) -> 0 | AB44: =ProjectData[[#This Row],[Actuals 16/17]]*VLOOKUP("Mid Year Nominal - EOY Real (2020/21)",CPI[],MATCH(AB$4,CPI[#Headers],0),FALSE) -> 0 | AC44: =ProjectData[[#This Row],[Actuals 17/18]]*VLOOKUP("Mid Year Nominal - EOY Real (2020/21)",CPI[],MATCH(AC$4,CPI[#Headers],0),FALSE) -> 0 | AD44: =ProjectData[[#This Row],[Actuals 18/19]]*VLOOKUP("Mid Year Nominal - EOY Real (2020/21)",CPI[],MATCH(AD$4,CPI[#Headers],0),FALSE) -> 0 | AE44: =ProjectData[[#This Row],[Actuals 19/20]]*VLOOKUP("Mid Year Nominal - EOY Real (2020/21)",CPI[],MATCH(AE$4,CPI[#Headers],0),FALSE) -> 0.300689774 | AF44: =SUM(ProjectData[[#This Row],[Real 08]:[Real 20]]) -> 0.300689774 | AG44: =(ProjectData[[#This Row],[Real Sum]]-VLOOKUP(ProjectData[[#This Row],[Category]],Category_AverageStdDevLimit[],MATCH("Average",Category_AverageStdDevLimit[#Headers],0),FALSE))^2 -> 10.68303529 | AH44: =VLOOKUP(ProjectData[[#This Row],[Category]],Category_AverageStdDevLimit[],MATCH("Limit",Category_AverageStdDevLimit[#Headers],0),FALSE) -> 20.5954265 | AI44: =ProjectData[[#This Row],[Real Sum]]>ProjectData[[#This Row],[Category Limit]] -> FALSE | AK44: =OR(ProjectData[[#This Row],[Significant Project? (Financial Basis)]],ProjectData[[#This Row],[Non repeatable]]) -> FALSE | AL44: =AND(ProjectData[[#This Row],[SomeExpenditure >= 2016]],ProjectData[[#This Row],[Abnormal?]]) -> FALSE
A45: CP.02790 | B45: H023 Upper Kedron Security Upgrade | C45: Security / Compliance | L45: 0 | M45: 0 | N45: 0 | O45: 0 | P45: 0.13137467 | Q45: =ProjectData[[#This Row],[Real Sum]]>0.0001 -> TRUE | R45: =OR(ProjectData[[#This Row],[Real 16]]>0,ProjectData[[#This Row],[Real 17]]>0,ProjectData[[#This Row],[Real 18]]>0,ProjectData[[#This Row],[Real 19]]>0,ProjectData[[#This Row],[Real 20]]>0) -> TRUE | S45: =ProjectData[[#This Row],[Actuals 07/08]]*VLOOKUP("Mid Year Nominal - EOY Real (2020/21)",CPI[],MATCH(S$4,CPI[#Headers],0),FALSE) -> 0 | T45: =ProjectData[[#This Row],[Actuals 08/09]]*VLOOKUP("Mid Year Nominal - EOY Real (2020/21)",CPI[],MATCH(T$4,CPI[#Headers],0),FALSE) -> 0 | U45: =ProjectData[[#This Row],[Actuals 09/10]]*VLOOKUP("Mid Year Nominal - EOY Real (2020/21)",CPI[],MATCH(U$4,CPI[#Headers],0),FALSE) -> 0 | V45: =ProjectData[[#This Row],[Actuals 10/11]]*VLOOKUP("Mid Year Nominal - EOY Real (2020/21)",CPI[],MATCH(V$4,CPI[#Headers],0),FALSE) -> 0 | W45: =ProjectData[[#This Row],[Actuals 11/12]]*VLOOKUP("Mid Year Nominal - EOY Real (2020/21)",CPI[],MATCH(W$4,CPI[#Headers],0),FALSE) -> 0 | X45: =ProjectData[[#This Row],[Actuals 12/13]]*VLOOKUP("Mid Year Nominal - EOY Real (2020/21)",CPI[],MATCH(X$4,CPI[#Headers],0),FALSE) -> 0 | Y45: =ProjectData[[#This Row],[Actuals 13/14]]*VLOOKUP("Mid Year Nominal - EOY Real (2020/21)",CPI[],MATCH(Y$4,CPI[#Headers],0),FALSE) -> 0 | Z45: =ProjectData[[#This Row],[Actuals 14/15]]*VLOOKUP("Mid Year Nominal - EOY Real (2020/21)",CPI[],MATCH(Z$4,CPI[#Headers],0),FALSE) -> 0 | AA45: =ProjectData[[#This Row],[Actuals 15/16]]*VLOOKUP("Mid Year Nominal - EOY Real (2020/21)",CPI[],MATCH(AA$4,CPI[#Headers],0),FALSE) -> 0 | AB45: =ProjectData[[#This Row],[Actuals 16/17]]*VLOOKUP("Mid Year Nominal - EOY Real (2020/21)",CPI[],MATCH(AB$4,CPI[#Headers],0),FALSE) -> 0 | AC45: =ProjectData[[#This Row],[Actuals 17/18]]*VLOOKUP("Mid Year Nominal - EOY Real (2020/21)",CPI[],MATCH(AC$4,CPI[#Headers],0),FALSE) -> 0 | AD45: =ProjectData[[#This Row],[Actuals 18/19]]*VLOOKUP("Mid Year Nominal - EOY Real (2020/21)",CPI[],MATCH(AD$4,CPI[#Headers],0),FALSE) -> 0 | AE45: =ProjectData[[#This Row],[Actuals 19/20]]*VLOOKUP("Mid Year Nominal - EOY Real (2020/21)",CPI[],MATCH(AE$4,CPI[#Headers],0),FALSE) -> 0.1332410179 | AF45: =SUM(ProjectData[[#This Row],[Real 08]:[Real 20]]) -> 0.1332410179 | AG45: =(ProjectData[[#This Row],[Real Sum]]-VLOOKUP(ProjectData[[#This Row],[Category]],Category_AverageStdDevLimit[],MATCH("Average",Category_AverageStdDevLimit[#Headers],0),FALSE))^2 -> 11.80568397 | AH45: =VLOOKUP(ProjectData[[#This Row],[Category]],Category_AverageStdDevLimit[],MATCH("Limit",Category_AverageStdDevLimit[#Headers],0),FALSE) -> 20.5954265 | AI45: =ProjectData[[#This Row],[Real Sum]]>ProjectData[[#This Row],[Category Limit]] -> FALSE | AK45: =OR(ProjectData[[#This Row],[Significant Project? (Financial Basis)]],ProjectData[[#This Row],[Non repeatable]]) -> FALSE | AL45: =AND(ProjectData[[#This Row],[SomeExpenditure >= 2016]],ProjectData[[#This Row],[Abnormal?]]) -> FALSE
A46: CP.02809 | B46: OSI PI Enterprise Agreement & Architectu | C46: Security / Compliance | L46: 0 | M46: 0 | N46: 0 | O46: 0 | P46: 0.01965629 | Q46: =ProjectData[[#This Row],[Real Sum]]>0.0001 -> TRUE | R46: =OR(ProjectData[[#This Row],[Real 16]]>0,ProjectData[[#This Row],[Real 17]]>0,ProjectData[[#This Row],[Real 18]]>0,ProjectData[[#This Row],[Real 19]]>0,ProjectData[[#This Row],[Real 20]]>0) -> TRUE | S46: =ProjectData[[#This Row],[Actuals 07/08]]*VLOOKUP("Mid Year Nominal - EOY Real (2020/21)",CPI[],MATCH(S$4,CPI[#Headers],0),FALSE) -> 0 | T46: =ProjectData[[#This Row],[Actuals 08/09]]*VLOOKUP("Mid Year Nominal - EOY Real (2020/21)",CPI[],MATCH(T$4,CPI[#Headers],0),FALSE) -> 0 | U46: =ProjectData[[#This Row],[Actuals 09/10]]*VLOOKUP("Mid Year Nominal - EOY Real (2020/21)",CPI[],MATCH(U$4,CPI[#Headers],0),FALSE) -> 0 | V46: =ProjectData[[#This Row],[Actuals 10/11]]*VLOOKUP("Mid Year Nominal - EOY Real (2020/21)",CPI[],MATCH(V$4,CPI[#Headers],0),FALSE) -> 0 | W46: =ProjectData[[#This Row],[Actuals 11/12]]*VLOOKUP("Mid Year Nominal - EOY Real (2020/21)",CPI[],MATCH(W$4,CPI[#Headers],0),FALSE) -> 0 | X46: =ProjectData[[#This Row],[Actuals 12/13]]*VLOOKUP("Mid Year Nominal - EOY Real (2020/21)",CPI[],MATCH(X$4,CPI[#Headers],0),FALSE) -> 0 | Y46: =ProjectData[[#This Row],[Actuals 13/14]]*VLOOKUP("Mid Year Nominal - EOY Real (2020/21)",CPI[],MATCH(Y$4,CPI[#Headers],0),FALSE) -> 0 | Z46: =ProjectData[[#This Row],[Actuals 14/15]]*VLOOKUP("Mid Year Nominal - EOY Real (2020/21)",CPI[],MATCH(Z$4,CPI[#Headers],0),FALSE) -> 0 | AA46: =ProjectData[[#This Row],[Actuals 15/16]]*VLOOKUP("Mid Year Nominal - EOY Real (2020/21)",CPI[],MATCH(AA$4,CPI[#Headers],0),FALSE) -> 0 | AB46: =ProjectData[[#This Row],[Actuals 16/17]]*VLOOKUP("Mid Year Nominal - EOY Real (2020/21)",CPI[],MATCH(AB$4,CPI[#Headers],0),FALSE) -> 0 | AC46: =ProjectData[[#This Row],[Actuals 17/18]]*VLOOKUP("Mid Year Nominal - EOY Real (2020/21)",CPI[],MATCH(AC$4,CPI[#Headers],0),FALSE) -> 0 | AD46: =ProjectData[[#This Row],[Actuals 18/19]]*VLOOKUP("Mid Year Nominal - EOY Real (2020/21)",CPI[],MATCH(AD$4,CPI[#Headers],0),FALSE) -> 0 | AE46: =ProjectData[[#This Row],[Actuals 19/20]]*VLOOKUP("Mid Year Nominal - EOY Real (2020/21)",CPI[],MATCH(AE$4,CPI[#Headers],0),FALSE) -> 0.01993553314 | AF46: =SUM(ProjectData[[#This Row],[Real 08]:[Real 20]]) -> 0.01993553314 | AG46: =(ProjectData[[#This Row],[Real Sum]]-VLOOKUP(ProjectData[[#This Row],[Category]],Category_AverageStdDevLimit[],MATCH("Average",Category_AverageStdDevLimit[#Headers],0),FALSE))^2 -> 12.59714381 | AH46: =VLOOKUP(ProjectData[[#This Row],[Category]],Category_AverageStdDevLimit[],MATCH("Limit",Category_AverageStdDevLimit[#Headers],0),FALSE) -> 20.5954265 | AI46: =ProjectData[[#This Row],[Real Sum]]>ProjectData[[#This Row],[Category Limit]] -> FALSE | AK46: =OR(ProjectData[[#This Row],[Significant Project? (Financial Basis)]],ProjectData[[#This Row],[Non repeatable]]) -> FALSE | AL46: =AND(ProjectData[[#This Row],[SomeExpenditure >= 2016]],ProjectData[[#This Row],[Abnormal?]]) -> FALSE
A47: CP.00750 | B47: Mudgeeraba 275kV Bus | C47: Other | D47: 0.01568104 | E47: -0.16247498 | F47: 0 | G47: 0 | H47: 0 | I47: 0 | K47: 0 | L47: 0 | M47: 0 | N47: 0 | O47: 0 | P47: 0 | Q47: =ProjectData[[#This Row],[Real Sum]]>0.0001 -> FALSE | R47: =OR(ProjectData[[#This Row],[Real 16]]>0,ProjectData[[#This Row],[Real 17]]>0,ProjectData[[#This Row],[Real 18]]>0,ProjectData[[#This Row],[Real 19]]>0,ProjectData[[#This Row],[Real 20]]>0) -> FALSE | S47: =ProjectData[[#This Row],[Actuals 07/08]]*VLOOKUP("Mid Year Nominal - EOY Real (2020/21)",CPI[],MATCH(S$4,CPI[#Headers],0),FALSE) -> 0.02084727304 | T47: =ProjectData[[#This Row],[Actuals 08/09]]*VLOOKUP("Mid Year Nominal - EOY Real (2020/21)",CPI[],MATCH(T$4,CPI[#Headers],0),FALSE) -> -0.2091143539 | U47: =ProjectData[[#This Row],[Actuals 09/10]]*VLOOKUP("Mid Year Nominal - EOY Real (2020/21)",CPI[],MATCH(U$4,CPI[#Headers],0),FALSE) -> 0 | V47: =ProjectData[[#This Row],[Actuals 10/11]]*VLOOKUP("Mid Year Nominal - EOY Real (2020/21)",CPI[],MATCH(V$4,CPI[#Headers],0),FALSE) -> 0 | W47: =ProjectData[[#This Row],[Actuals 11/12]]*VLOOKUP("Mid Year Nominal - EOY Real (2020/21)",CPI[],MATCH(W$4,CPI[#Headers],0),FALSE) -> 0 | X47: =ProjectData[[#This Row],[Actuals 12/13]]*VLOOKUP("Mid Year Nominal - EOY Real (2020/21)",CPI[],MATCH(X$4,CPI[#Headers],0),FALSE) -> 0 | Y47: =ProjectData[[#This Row],[Actuals 13/14]]*VLOOKUP("Mid Year Nominal - EOY Real (2020/21)",CPI[],MATCH(Y$4,CPI[#Headers],0),FALSE) -> 0 | Z47: =ProjectData[[#This Row],[Actuals 14/15]]*VLOOKUP("Mid Year Nominal - EOY Real (2020/21)",CPI[],MATCH(Z$4,CPI[#Headers],0),FALSE) -> 0 | AA47: =ProjectData[[#This Row],[Actuals 15/16]]*VLOOKUP("Mid Year Nominal - EOY Real (2020/21)",CPI[],MATCH(AA$4,CPI[#Headers],0),FALSE) -> 0 | AB47: =ProjectData[[#This Row],[Actuals 16/17]]*VLOOKUP("Mid Year Nominal - EOY Real (2020/21)",CPI[],MATCH(AB$4,CPI[#Headers],0),FALSE) -> 0 | AC47: =ProjectData[[#This Row],[Actuals 17/18]]*VLOOKUP("Mid Year Nominal - EOY Real (2020/21)",CPI[],MATCH(AC$4,CPI[#Headers],0),FALSE) -> 0 | AD47: =ProjectData[[#This Row],[Actuals 18/19]]*VLOOKUP("Mid Year Nominal - EOY Real (2020/21)",CPI[],MATCH(AD$4,CPI[#Headers],0),FALSE) -> 0 | AE47: =ProjectData[[#This Row],[Actuals 19/20]]*VLOOKUP("Mid Year Nominal - EOY Real (2020/21)",CPI[],MATCH(AE$4,CPI[#Headers],0),FALSE) -> 0 | AF47: =SUM(ProjectData[[#This Row],[Real 08]:[Real 20]]) -> -0.1882670808 | AG47: =(ProjectData[[#This Row],[Real Sum]]-VLOOKUP(ProjectData[[#This Row],[Category]],Category_AverageStdDevLimit[],MATCH("Average",Category_AverageStdDevLimit[#Headers],0),FALSE))^2 -> 2.291282206 | AH47: =VLOOKUP(ProjectData[[#This Row],[Category]],Category_AverageStdDevLimit[],MATCH("Limit",Category_AverageStdDevLimit[#Headers],0),FALSE) -> 7.504688892 | AI47: =ProjectData[[#This Row],[Real Sum]]>ProjectData[[#This Row],[Category Limit]] -> FALSE | AK47: =OR(ProjectData[[#This Row],[Significant Project? (Financial Basis)]],ProjectData[[#This Row],[Non repeatable]]) -> FALSE | AL47: =AND(ProjectData[[#This Row],[SomeExpenditure >= 2016]],ProjectData[[#This Row],[Abnormal?]]) -> FALSE
A48: CP.00869 | B48: Laser Scanning of Line Routes | C48: Other | E48: 0.055643 | F48: -0.06486757 | G48: -0.14687577 | H48: 0 | I48: 0 | K48: 0 | L48: 0 | M48: 0 | N48: 0 | O48: 0 | P48: 0 | Q48: =ProjectData[[#This Row],[Real Sum]]>0.0001 -> FALSE | R48: =OR(ProjectData[[#This Row],[Real 16]]>0,ProjectData[[#This Row],[Real 17]]>0,ProjectData[[#This Row],[Real 18]]>0,ProjectData[[#This Row],[Real 19]]>0,ProjectData[[#This Row],[Real 20]]>0) -> FALSE | S48: =ProjectData[[#This Row],[Actuals 07/08]]*VLOOKUP("Mid Year Nominal - EOY Real (2020/21)",CPI[],MATCH(S$4,CPI[#Headers],0),FALSE) -> 0 | T48: =ProjectData[[#This Row],[Actuals 08/09]]*VLOOKUP("Mid Year Nominal - EOY Real (2020/21)",CPI[],MATCH(T$4,CPI[#Headers],0),FALSE) -> 0.07161564194 | U48: =ProjectData[[#This Row],[Actuals 09/10]]*VLOOKUP("Mid Year Nominal - EOY Real (2020/21)",CPI[],MATCH(U$4,CPI[#Headers],0),FALSE) -> -0.0811536368 | V48: =ProjectData[[#This Row],[Actuals 10/11]]*VLOOKUP("Mid Year Nominal - EOY Real (2020/21)",CPI[],MATCH(V$4,CPI[#Headers],0),FALSE) -> -0.1794339474 | W48: =ProjectData[[#This Row],[Actuals 11/12]]*VLOOKUP("Mid Year Nominal - EOY Real (2020/21)",CPI[],MATCH(W$4,CPI[#Headers],0),FALSE) -> 0 | X48: =ProjectData[[#This Row],[Actuals 12/13]]*VLOOKUP("Mid Year Nominal - EOY Real (2020/21)",CPI[],MATCH(X$4,CPI[#Headers],0),FALSE) -> 0 | Y48: =ProjectData[[#This Row],[Actuals 13/14]]*VLOOKUP("Mid Year Nominal - EOY Real (2020/21)",CPI[],MATCH(Y$4,CPI[#Headers],0),FALSE) -> 0 | Z48: =ProjectData[[#This Row],[Actuals 14/15]]*VLOOKUP("Mid Year Nominal - EOY Real (2020/21)",CPI[],MATCH(Z$4,CPI[#Headers],0),FALSE) -> 0 | AA48: =ProjectData[[#This Row],[Actuals 15/16]]*VLOOKUP("Mid Year Nominal - EOY Real (2020/21)",CPI[],MATCH(AA$4,CPI[#Headers],0),FALSE) -> 0 | AB48: =ProjectData[[#This Row],[Actuals 16/17]]*VLOOKUP("Mid Year Nominal - EOY Real (2020/21)",CPI[],MATCH(AB$4,CPI[#Headers],0),FALSE) -> 0 | AC48: =ProjectData[[#This Row],[Actuals 17/18]]*VLOOKUP("Mid Year Nominal - EOY Real (2020/21)",CPI[],MATCH(AC$4,CPI[#Headers],0),FALSE) -> 0 | AD48: =ProjectData[[#This Row],[Actuals 18/19]]*VLOOKUP("Mid Year Nominal - EOY Real (2020/21)",CPI[],MATCH(AD$4,CPI[#Headers],0),FALSE) -> 0 | AE48: =ProjectData[[#This Row],[Actuals 19/20]]*VLOOKUP("Mid Year Nominal - EOY Real (2020/21)",CPI[],MATCH(AE$4,CPI[#Headers],0),FALSE) -> 0 | AF48: =SUM(ProjectData[[#This Row],[Real 08]:[Real 20]]) -> -0.1889719423 | AG48: =(ProjectData[[#This Row],[Real Sum]]-VLOOKUP(ProjectData[[#This Row],[Category]],Category_AverageStdDevLimit[],MATCH("Average",Category_AverageStdDevLimit[#Headers],0),FALSE))^2 -> 2.293416597 | AH48: =VLOOKUP(ProjectData[[#This Row],[Category]],Category_AverageStdDevLimit[],MATCH("Limit",Category_AverageStdDevLimit[#Headers],0),FALSE) -> 7.504688892 | AI48: =ProjectData[[#This Row],[Real Sum]]>ProjectData[[#This Row],[Category Limit]] -> FALSE | AK48: =OR(ProjectData[[#This Row],[Significant Project? (Financial Basis)]],ProjectData[[#This Row],[Non repeatable]]) -> FALSE | AL48: =AND(ProjectData[[#This Row],[SomeExpenditure >= 2016]],ProjectData[[#This Row],[Abnormal?]]) -> FALSE
A49: CP.00879 | B49: Dan Gleeson Transformer No.2 | C49: Other | E49: 1.157088 | F49: 0 | G49: 0 | H49: 0 | I49: 0 | K49: 0 | L49: 0 | M49: 0 | N49: 0 | O49: 0 | P49: 0 | Q49: =ProjectData[[#This Row],[Real Sum]]>0.0001 -> TRUE | R49: =OR(ProjectData[[#This Row],[Real 16]]>0,ProjectData[[#This Row],[Real 17]]>0,ProjectData[[#This Row],[Real 18]]>0,ProjectData[[#This Row],[Real 19]]>0,ProjectData[[#This Row],[Real 20]]>0) -> FALSE | S49: =ProjectData[[#This Row],[Actuals 07/08]]*VLOOKUP("Mid Year Nominal - EOY Real (2020/21)",CPI[],MATCH(S$4,CPI[#Headers],0),FALSE) -> 0 | T49: =ProjectData[[#This Row],[Actuals 08/09]]*VLOOKUP("Mid Year Nominal - EOY Real (2020/21)",CPI[],MATCH(T$4,CPI[#Headers],0),FALSE) -> 1.48923674 | U49: =ProjectData[[#This Row],[Actuals 09/10]]*VLOOKUP("Mid Year Nominal - EOY Real (2020/21)",CPI[],MATCH(U$4,CPI[#Headers],0),FALSE) -> 0 | V49: =ProjectData[[#This Row],[Actuals 10/11]]*VLOOKUP("Mid Year Nominal - EOY Real (2020/21)",CPI[],MATCH(V$4,CPI[#Headers],0),FALSE) -> 0 | W49: =ProjectData[[#This Row],[Actuals 11/12]]*VLOOKUP("Mid Year Nominal - EOY Real (2020/21)",CPI[],MATCH(W$4,CPI[#Headers],0),FALSE) -> 0 | X49: =ProjectData[[#This Row],[Actuals 12/13]]*VLOOKUP("Mid Year Nominal - EOY Real (2020/21)",CPI[],MATCH(X$4,CPI[#Headers],0),FALSE) -> 0 | Y49: =ProjectData[[#This Row],[Actuals 13/14]]*VLOOKUP("Mid Year Nominal - EOY Real (2020/21)",CPI[],MATCH(Y$4,CPI[#Headers],0),FALSE) -> 0 | Z49: =ProjectData[[#This Row],[Actuals 14/15]]*VLOOKUP("Mid Year Nominal - EOY Real (2020/21)",CPI[],MATCH(Z$4,CPI[#Headers],0),FALSE) -> 0 | AA49: =ProjectData[[#This Row],[Actuals 15/16]]*VLOOKUP("Mid Year Nominal - EOY Real (2020/21)",CPI[],MATCH(AA$4,CPI[#Headers],0),FALSE) -> 0 | AB49: =ProjectData[[#This Row],[Actuals 16/17]]*VLOOKUP("Mid Year Nominal - EOY Real (2020/21)",CPI[],MATCH(AB$4,CPI[#Headers],0),FALSE) -> 0 | AC49: =ProjectData[[#This Row],[Actuals 17/18]]*VLOOKUP("Mid Year Nominal - EOY Real (2020/21)",CPI[],MATCH(AC$4,CPI[#Headers],0),FALSE) -> 0 | AD49: =ProjectData[[#This Row],[Actuals 18/19]]*VLOOKUP("Mid Year Nominal - EOY Real (2020/21)",CPI[],MATCH(AD$4,CPI[#Headers],0),FALSE) -> 0 | AE49: =ProjectData[[#This Row],[Actuals 19/20]]*VLOOKUP("Mid Year Nominal - EOY Real (2020/21)",CPI[],MATCH(AE$4,CPI[#Headers],0),FALSE) -> 0 | AF49: =SUM(ProjectData[[#This Row],[Real 08]:[Real 20]]) -> 1.48923674 | AG49: =(ProjectData[[#This Row],[Real Sum]]-VLOOKUP(ProjectData[[#This Row],[Category]],Category_AverageStdDevLimit[],MATCH("Average",Category_AverageStdDevLimit[#Headers],0),FALSE))^2 -> 0.0268322851 | AH49: =VLOOKUP(ProjectData[[#This Row],[Category]],Category_AverageStdDevLimit[],MATCH("Limit",Category_AverageStdDevLimit[#Headers],0),FALSE) -> 7.504688892 | AI49: =ProjectData[[#This Row],[Real Sum]]>ProjectData[[#This Row],[Category Limit]] -> FALSE | AK49: =OR(ProjectData[[#This Row],[Significant Project? (Financial Basis)]],ProjectData[[#This Row],[Non repeatable]]) -> FALSE | AL49: =AND(ProjectData[[#This Row],[SomeExpenditure >= 2016]],ProjectData[[#This Row],[Abnormal?]]) -> FALSE
A50: CP.01042 | B50: Ross - Chalumbin 275kV Line Switching | C50: Other | D50: 0.00070035 | E50: 0 | F50: 0 | G50: 0 | H50: 0 | I50: 0 | K50: 0 | L50: 0 | M50: 0 | N50: 0 | O50: 0 | P50: 0 | Q50: =ProjectData[[#This Row],[Real Sum]]>0.0001 -> TRUE | R50: =OR(ProjectData[[#This Row],[Real 16]]>0,ProjectData[[#This Row],[Real 17]]>0,ProjectData[[#This Row],[Real 18]]>0,ProjectData[[#This Row],[Real 19]]>0,ProjectData[[#This Row],[Real 20]]>0) -> FALSE | S50: =ProjectData[[#This Row],[Actuals 07/08]]*VLOOKUP("Mid Year Nominal - EOY Real (2020/21)",CPI[],MATCH(S$4,CPI[#Headers],0),FALSE) -> 0.0009310854173 | T50: =ProjectData[[#This Row],[Actuals 08/09]]*VLOOKUP("Mid Year Nominal - EOY Real (2020/21)",CPI[],MATCH(T$4,CPI[#Headers],0),FALSE) -> 0 | U50: =ProjectData[[#This Row],[Actuals 09/10]]*VLOOKUP("Mid Year Nominal - EOY Real (2020/21)",CPI[],MATCH(U$4,CPI[#Headers],0),FALSE) -> 0 | V50: =ProjectData[[#This Row],[Actuals 10/11]]*VLOOKUP("Mid Year Nominal - EOY Real (2020/21)",CPI[],MATCH(V$4,CPI[#Headers],0),FALSE) -> 0 | W50: =ProjectData[[#This Row],[Actuals 11/12]]*VLOOKUP("Mid Year Nominal - EOY Real (2020/21)",CPI[],MATCH(W$4,CPI[#Headers],0),FALSE) -> 0 | X50: =ProjectData[[#This Row],[Actuals 12/13]]*VLOOKUP("Mid Year Nominal - EOY Real (2020/21)",CPI[],MATCH(X$4,CPI[#Headers],0),FALSE) -> 0 | Y50: =ProjectData[[#This Row],[Actuals 13/14]]*VLOOKUP("Mid Year Nominal - EOY Real (2020/21)",CPI[],MATCH(Y$4,CPI[#Headers],0),FALSE) -> 0 | Z50: =ProjectData[[#This Row],[Actuals 14/15]]*VLOOKUP("Mid Year Nominal - EOY Real (2020/21)",CPI[],MATCH(Z$4,CPI[#Headers],0),FALSE) -> 0 | AA50: =ProjectData[[#This Row],[Actuals 15/16]]*VLOOKUP("Mid Year Nominal - EOY Real (2020/21)",CPI[],MATCH(AA$4,CPI[#Headers],0),FALSE) -> 0 | AB50: =ProjectData[[#This Row],[Actuals 16/17]]*VLOOKUP("Mid Year Nominal - EOY Real (2020/21)",CPI[],MATCH(AB$4,CPI[#Headers],0),FALSE) -> 0 | AC50: =ProjectData[[#This Row],[Actuals 17/18]]*VLOOKUP("Mid Year Nominal - EOY Real (2020/21)",CPI[],MATCH(AC$4,CPI[#Headers],0),FALSE) -> 0 | AD50: =ProjectData[[#This Row],[Actuals 18/19]]*VLOOKUP("Mid Year Nominal - EOY Real (2020/21)",CPI[],MATCH(AD$4,CPI[#Headers],0),FALSE) -> 0 | AE50: =ProjectData[[#This Row],[Actuals 19/20]]*VLOOKUP("Mid Year Nominal - EOY Real (2020/21)",CPI[],MATCH(AE$4,CPI[#Headers],0),FALSE) -> 0 | AF50: =SUM(ProjectData[[#This Row],[Real 08]:[Real 20]]) -> 0.0009310854173 | AG50: =(ProjectData[[#This Row],[Real Sum]]-VLOOKUP(ProjectData[[#This Row],[Category]],Category_AverageStdDevLimit[],MATCH("Average",Category_AverageStdDevLimit[#Headers],0),FALSE))^2 -> 1.754300309 | AH50: =VLOOKUP(ProjectData[[#This Row],[Category]],Category_AverageStdDevLimit[],MATCH("Limit",Category_AverageStdDevLimit[#Headers],0),FALSE) -> 7.504688892 | AI50: =ProjectData[[#This Row],[Real Sum]]>ProjectData[[#This Row],[Category Limit]] -> FALSE | AK50: =OR(ProjectData[[#This Row],[Significant Project? (Financial Basis)]],ProjectData[[#This Row],[Non repeatable]]) -> FALSE | AL50: =AND(ProjectData[[#This Row],[SomeExpenditure >= 2016]],ProjectData[[#This Row],[Abnormal?]]) -> FALSE
A51: CP.01115 | B51: INSTALL. OF SDH MICRO RADIO VIRGINIA - M | C51: Other | E51: 0.0031192 | F51: -0.0031192 | G51: 0 | H51: 0 | I51: 0 | K51: 0 | L51: 0 | M51: 0 | N51: 0 | O51: 0 | P51: 0 | Q51: =ProjectData[[#This Row],[Real Sum]]>0.0001 -> TRUE | R51: =OR(ProjectData[[#This Row],[Real 16]]>0,ProjectData[[#This Row],[Real 17]]>0,ProjectData[[#This Row],[Real 18]]>0,ProjectData[[#This Row],[Real 19]]>0,ProjectData[[#This Row],[Real 20]]>0) -> FALSE | S51: =ProjectData[[#This Row],[Actuals 07/08]]*VLOOKUP("Mid Year Nominal - EOY Real (2020/21)",CPI[],MATCH(S$4,CPI[#Headers],0),FALSE) -> 0 | T51: =ProjectData[[#This Row],[Actuals 08/09]]*VLOOKUP("Mid Year Nominal - EOY Real (2020/21)",CPI[],MATCH(T$4,CPI[#Headers],0),FALSE) -> 0.004014584231 | U51: =ProjectData[[#This Row],[Actuals 09/10]]*VLOOKUP("Mid Year Nominal - EOY Real (2020/21)",CPI[],MATCH(U$4,CPI[#Headers],0),FALSE) -> -0.003902326292 | V51: =ProjectData[[#This Row],[Actuals 10/11]]*VLOOKUP("Mid Year Nominal - EOY Real (2020/21)",CPI[],MATCH(V$4,CPI[#Headers],0),FALSE) -> 0 | W51: =ProjectData[[#This Row],[Actuals 11/12]]*VLOOKUP("Mid Year Nominal - EOY Real (2020/21)",CPI[],MATCH(W$4,CPI[#Headers],0),FALSE) -> 0 | X51: =ProjectData[[#This Row],[Actuals 12/13]]*VLOOKUP("Mid Year Nominal - EOY Real (2020/21)",CPI[],MATCH(X$4,CPI[#Headers],0),FALSE) -> 0 | Y51: =ProjectData[[#This Row],[Actuals 13/14]]*VLOOKUP("Mid Year Nominal - EOY Real (2020/21)",CPI[],MATCH(Y$4,CPI[#Headers],0),FALSE) -> 0 | Z51: =ProjectData[[#This Row],[Actuals 14/15]]*VLOOKUP("Mid Year Nominal - EOY Real (2020/21)",CPI[],MATCH(Z$4,CPI[#Headers],0),FALSE) -> 0 | AA51: =ProjectData[[#This Row],[Actuals 15/16]]*VLOOKUP("Mid Year Nominal - EOY Real (2020/21)",CPI[],MATCH(AA$4,CPI[#Headers],0),FALSE) -> 0 | AB51: =ProjectData[[#This Row],[Actuals 16/17]]*VLOOKUP("Mid Year Nominal - EOY Real (2020/21)",CPI[],MATCH(AB$4,CPI[#Headers],0),FALSE) -> 0 | AC51: =ProjectData[[#This Row],[Actuals 17/18]]*VLOOKUP("Mid Year Nominal - EOY Real (2020/21)",CPI[],MATCH(AC$4,CPI[#Headers],0),FALSE) -> 0 | AD51: =ProjectData[[#This Row],[Actuals 18/19]]*VLOOKUP("Mid Year Nominal - EOY Real (2020/21)",CPI[],MATCH(AD$4,CPI[#Headers],0),FALSE) -> 0 | AE51: =ProjectData[[#This Row],[Actuals 19/20]]*VLOOKUP("Mid Year Nominal - EOY Real (2020/21)",CPI[],MATCH(AE$4,CPI[#Headers],0),FALSE) -> 0 | AF51: =SUM(ProjectData[[#This Row],[Real 08]:[Real 20]]) -> 0.0001122579386 | AG51: =(ProjectData[[#This Row],[Real Sum]]-VLOOKUP(ProjectData[[#This Row],[Category]],Category_AverageStdDevLimit[],MATCH("Average",Category_AverageStdDevLimit[#Headers],0),FALSE))^2 -> 1.756470053 | AH51: =VLOOKUP(ProjectData[[#This Row],[Category]],Category_AverageStdDevLimit[],MATCH("Limit",Category_AverageStdDevLimit[#Headers],0),FALSE) -> 7.504688892 | AI51: =ProjectData[[#This Row],[Real Sum]]>ProjectData[[#This Row],[Category Limit]] -> FALSE | AK51: =OR(ProjectData[[#This Row],[Significant Project? (Financial Basis)]],ProjectData[[#This Row],[Non repeatable]]) -> FALSE | AL51: =AND(ProjectData[[#This Row],[SomeExpenditure >= 2016]],ProjectData[[#This Row],[Abnormal?]]) -> FALSE
A52: CP.01129 | B52: Mackay Secondary Systems Refurbishment | C52: Other | E52: 0.00022 | F52: 0.00909945 | G52: 0.0016744 | H52: -0.01099385 | I52: 0 | K52: 0 | L52: 0 | M52: 0 | N52: 0 | O52: 0 | P52: 0 | Q52: =ProjectData[[#This Row],[Real Sum]]>0.0001 -> TRUE | R52: =OR(ProjectData[[#This Row],[Real 16]]>0,ProjectData[[#This Row],[Real 17]]>0,ProjectData[[#This Row],[Real 18]]>0,ProjectData[[#This Row],[Real 19]]>0,ProjectData[[#This Row],[Real 20]]>0) -> FALSE | S52: =ProjectData[[#This Row],[Actuals 07/08]]*VLOOKUP("Mid Year Nominal - EOY Real (2020/21)",CPI[],MATCH(S$4,CPI[#Headers],0),FALSE) -> 0 | T52: =ProjectData[[#This Row],[Actuals 08/09]]*VLOOKUP("Mid Year Nominal - EOY Real (2020/21)",CPI[],MATCH(T$4,CPI[#Headers],0),FALSE) -> 0.0002831522604 | U52: =ProjectData[[#This Row],[Actuals 09/10]]*VLOOKUP("Mid Year Nominal - EOY Real (2020/21)",CPI[],MATCH(U$4,CPI[#Headers],0),FALSE) -> 0.01138401609 | V52: =ProjectData[[#This Row],[Actuals 10/11]]*VLOOKUP("Mid Year Nominal - EOY Real (2020/21)",CPI[],MATCH(V$4,CPI[#Headers],0),FALSE) -> 0.002045566818 | W52: =ProjectData[[#This Row],[Actuals 11/12]]*VLOOKUP("Mid Year Nominal - EOY Real (2020/21)",CPI[],MATCH(W$4,CPI[#Headers],0),FALSE) -> -0.01305553994 | X52: =ProjectData[[#This Row],[Actuals 12/13]]*VLOOKUP("Mid Year Nominal - EOY Real (2020/21)",CPI[],MATCH(X$4,CPI[#Headers],0),FALSE) -> 0 | Y52: =ProjectData[[#This Row],[Actuals 13/14]]*VLOOKUP("Mid Year Nominal - EOY Real (2020/21)",CPI[],MATCH(Y$4,CPI[#Headers],0),FALSE) -> 0 | Z52: =ProjectData[[#This Row],[Actuals 14/15]]*VLOOKUP("Mid Year Nominal - EOY Real (2020/21)",CPI[],MATCH(Z$4,CPI[#Headers],0),FALSE) -> 0 | AA52: =ProjectData[[#This Row],[Actuals 15/16]]*VLOOKUP("Mid Year Nominal - EOY Real (2020/21)",CPI[],MATCH(AA$4,CPI[#Headers],0),FALSE) -> 0 | AB52: =ProjectData[[#This Row],[Actuals 16/17]]*VLOOKUP("Mid Year Nominal - EOY Real (2020/21)",CPI[],MATCH(AB$4,CPI[#Headers],0),FALSE) -> 0 | AC52: =ProjectData[[#This Row],[Actuals 17/18]]*VLOOKUP("Mid Year Nominal - EOY Real (2020/21)",CPI[],MATCH(AC$4,CPI[#Headers],0),FALSE) -> 0 | AD52: =ProjectData[[#This Row],[Actuals 18/19]]*VLOOKUP("Mid Year Nominal - EOY Real (2020/21)",CPI[],MATCH(AD$4,CPI[#Headers],0),FALSE) -> 0 | AE52: =ProjectData[[#This Row],[Actuals 19/20]]*VLOOKUP("Mid Year Nominal - EOY Real (2020/21)",CPI[],MATCH(AE$4,CPI[#Headers],0),FALSE) -> 0 | AF52: =SUM(ProjectData[[#This Row],[Real 08]:[Real 20]]) -> 0.0006571952232 | AG52: =(ProjectData[[#This Row],[Real Sum]]-VLOOKUP(ProjectData[[#This Row],[Category]],Category_AverageStdDevLimit[],MATCH("Average",Category_AverageStdDevLimit[#Headers],0),FALSE))^2 -> 1.755025919 | AH52: =VLOOKUP(ProjectData[[#This Row],[Category]],Category_AverageStdDevLimit[],MATCH("Limit",Category_AverageStdDevLimit[#Headers],0),FALSE) -> 7.504688892 | AI52: =ProjectData[[#This Row],[Real Sum]]>ProjectData[[#This Row],[Category Limit]] -> FALSE | AK52: =OR(ProjectData[[#This Row],[Significant Project? (Financial Basis)]],ProjectData[[#This Row],[Non repeatable]]) -> FALSE | AL52: =AND(ProjectData[[#This Row],[SomeExpenditure >= 2016]],ProjectData[[#This Row],[Abnormal?]]) -> FALSE
A53: CP.01207 | B53: AARNet Interim Stage 2 | C53: Other | E53: 0.007981 | F53: 0 | G53: 0 | H53: 0 | I53: 0 | K53: 0 | L53: 0 | M53: 0 | N53: 0 | O53: 0 | P53: 0 | Q53: =ProjectData[[#This Row],[Real Sum]]>0.0001 -> TRUE | R53: =OR(ProjectData[[#This Row],[Real 16]]>0,ProjectData[[#This Row],[Real 17]]>0,ProjectData[[#This Row],[Real 18]]>0,ProjectData[[#This Row],[Real 19]]>0,ProjectData[[#This Row],[Real 20]]>0) -> FALSE | S53: =ProjectData[[#This Row],[Actuals 07/08]]*VLOOKUP("Mid Year Nominal - EOY Real (2020/21)",CPI[],MATCH(S$4,CPI[#Headers],0),FALSE) -> 0 | T53: =ProjectData[[#This Row],[Actuals 08/09]]*VLOOKUP("Mid Year Nominal - EOY Real (2020/21)",CPI[],MATCH(T$4,CPI[#Headers],0),FALSE) -> 0.01027199178 | U53: =ProjectData[[#This Row],[Actuals 09/10]]*VLOOKUP("Mid Year Nominal - EOY Real (2020/21)",CPI[],MATCH(U$4,CPI[#Headers],0),FALSE) -> 0 | V53: =ProjectData[[#This Row],[Actuals 10/11]]*VLOOKUP("Mid Year Nominal - EOY Real (2020/21)",CPI[],MATCH(V$4,CPI[#Headers],0),FALSE) -> 0 | W53: =ProjectData[[#This Row],[Actuals 11/12]]*VLOOKUP("Mid Year Nominal - EOY Real (2020/21)",CPI[],MATCH(W$4,CPI[#Headers],0),FALSE) -> 0 | X53: =ProjectData[[#This Row],[Actuals 12/13]]*VLOOKUP("Mid Year Nominal - EOY Real (2020/21)",CPI[],MATCH(X$4,CPI[#Headers],0),FALSE) -> 0 | Y53: =ProjectData[[#This Row],[Actuals 13/14]]*VLOOKUP("Mid Year Nominal - EOY Real (2020/21)",CPI[],MATCH(Y$4,CPI[#Headers],0),FALSE) -> 0 | Z53: =ProjectData[[#This Row],[Actuals 14/15]]*VLOOKUP("Mid Year Nominal - EOY Real (2020/21)",CPI[],MATCH(Z$4,CPI[#Headers],0),FALSE) -> 0 | AA53: =ProjectData[[#This Row],[Actuals 15/16]]*VLOOKUP("Mid Year Nominal - EOY Real (2020/21)",CPI[],MATCH(AA$4,CPI[#Headers],0),FALSE) -> 0 | AB53: =ProjectData[[#This Row],[Actuals 16/17]]*VLOOKUP("Mid Year Nominal - EOY Real (2020/21)",CPI[],MATCH(AB$4,CPI[#Headers],0),FALSE) -> 0 | AC53: =ProjectData[[#This Row],[Actuals 17/18]]*VLOOKUP("Mid Year Nominal - EOY Real (2020/21)",CPI[],MATCH(AC$4,CPI[#Headers],0),FALSE) -> 0 | AD53: =ProjectData[[#This Row],[Actuals 18/19]]*VLOOKUP("Mid Year Nominal - EOY Real (2020/21)",CPI[],MATCH(AD$4,CPI[#Headers],0),FALSE) -> 0 | AE53: =ProjectData[[#This Row],[Actuals 19/20]]*VLOOKUP("Mid Year Nominal - EOY Real (2020/21)",CPI[],MATCH(AE$4,CPI[#Headers],0),FALSE) -> 0 | AF53: =SUM(ProjectData[[#This Row],[Real 08]:[Real 20]]) -> 0.01027199178 | AG53: =(ProjectData[[#This Row],[Real Sum]]-VLOOKUP(ProjectData[[#This Row],[Category]],Category_AverageStdDevLimit[],MATCH("Average",Category_AverageStdDevLimit[#Headers],0),FALSE))^2 -> 1.7296435 | AH53: =VLOOKUP(ProjectData[[#This Row],[Category]],Category_AverageStdDevLimit[],MATCH("Limit",Category_AverageStdDevLimit[#Headers],0),FALSE) -> 7.504688892 | AI53: =ProjectData[[#This Row],[Real Sum]]>ProjectData[[#This Row],[Category Limit]] -> FALSE | AK53: =OR(ProjectData[[#This Row],[Significant Project? (Financial Basis)]],ProjectData[[#This Row],[Non repeatable]]) -> FALSE | AL53: =AND(ProjectData[[#This Row],[SomeExpenditure >= 2016]],ProjectData[[#This Row],[Abnormal?]]) -> FALSE
A54: CP.01215 | B54: LAN Extensions to Telecomms Repeaters | C54: Other | E54: -0.004937 | F54: 0 | G54: 0 | H54: 0 | I54: 0 | K54: 0 | L54: 0 | M54: 0 | N54: 0 | O54: 0 | P54: 0 | Q54: =ProjectData[[#This Row],[Real Sum]]>0.0001 -> FALSE | R54: =OR(ProjectData[[#This Row],[Real 16]]>0,ProjectData[[#This Row],[Real 17]]>0,ProjectData[[#This Row],[Real 18]]>0,ProjectData[[#This Row],[Real 19]]>0,ProjectData[[#This Row],[Real 20]]>0) -> FALSE | S54: =ProjectData[[#This Row],[Actuals 07/08]]*VLOOKUP("Mid Year Nominal - EOY Real (2020/21)",CPI[],MATCH(S$4,CPI[#Headers],0),FALSE) -> 0 | T54: =ProjectData[[#This Row],[Actuals 08/09]]*VLOOKUP("Mid Year Nominal - EOY Real (2020/21)",CPI[],MATCH(T$4,CPI[#Headers],0),FALSE) -> -0.006354194135 | U54: =ProjectData[[#This Row],[Actuals 09/10]]*VLOOKUP("Mid Year Nominal - EOY Real (2020/21)",CPI[],MATCH(U$4,CPI[#Headers],0),FALSE) -> 0 | V54: =ProjectData[[#This Row],[Actuals 10/11]]*VLOOKUP("Mid Year Nominal - EOY Real (2020/21)",CPI[],MATCH(V$4,CPI[#Headers],0),FALSE) -> 0 | W54: =ProjectData[[#This Row],[Actuals 11/12]]*VLOOKUP("Mid Year Nominal - EOY Real (2020/21)",CPI[],MATCH(W$4,CPI[#Headers],0),FALSE) -> 0 | X54: =ProjectData[[#This Row],[Actuals 12/13]]*VLOOKUP("Mid Year Nominal - EOY Real (2020/21)",CPI[],MATCH(X$4,CPI[#Headers],0),FALSE) -> 0 | Y54: =ProjectData[[#This Row],[Actuals 13/14]]*VLOOKUP("Mid Year Nominal - EOY Real (2020/21)",CPI[],MATCH(Y$4,CPI[#Headers],0),FALSE) -> 0 | Z54: =ProjectData[[#This Row],[Actuals 14/15]]*VLOOKUP("Mid Year Nominal - EOY Real (2020/21)",CPI[],MATCH(Z$4,CPI[#Headers],0),FALSE) -> 0 | AA54: =ProjectData[[#This Row],[Actuals 15/16]]*VLOOKUP("Mid Year Nominal - EOY Real (2020/21)",CPI[],MATCH(AA$4,CPI[#Headers],0),FALSE) -> 0 | AB54: =ProjectData[[#This Row],[Actuals 16/17]]*VLOOKUP("Mid Year Nominal - EOY Real (2020/21)",CPI[],MATCH(AB$4,CPI[#Headers],0),FALSE) -> 0 | AC54: =ProjectData[[#This Row],[Actuals 17/18]]*VLOOKUP("Mid Year Nominal - EOY Real (2020/21)",CPI[],MATCH(AC$4,CPI[#Headers],0),FALSE) -> 0 | AD54: =ProjectData[[#This Row],[Actuals 18/19]]*VLOOKUP("Mid Year Nominal - EOY Real (2020/21)",CPI[],MATCH(AD$4,CPI[#Headers],0),FALSE) -> 0 | AE54: =ProjectData[[#This Row],[Actuals 19/20]]*VLOOKUP("Mid Year Nominal - EOY Real (2020/21)",CPI[],MATCH(AE$4,CPI[#Headers],0),FALSE) -> 0 | AF54: =SUM(ProjectData[[#This Row],[Real 08]:[Real 20]]) -> -0.006354194135 | AG54: =(ProjectData[[#This Row],[Real Sum]]-VLOOKUP(ProjectData[[#This Row],[Category]],Category_AverageStdDevLimit[],MATCH("Average",Category_AverageStdDevLimit[#Headers],0),FALSE))^2 -> 1.77365209 | AH54: =VLOOKUP(ProjectData[[#This Row],[Category]],Category_AverageStdDevLimit[],MATCH("Limit",Category_AverageStdDevLimit[#Headers],0),FALSE) -> 7.504688892 | AI54: =ProjectData[[#This Row],[Real Sum]]>ProjectData[[#This Row],[Category Limit]] -> FALSE | AK54: =OR(ProjectData[[#This Row],[Significant Project? (Financial Basis)]],ProjectData[[#This Row],[Non repeatable]]) -> FALSE | AL54: =AND(ProjectData[[#This Row],[SomeExpenditure >= 2016]],ProjectData[[#This Row],[Abnormal?]]) -> FALSE
A55: CP.01218 | B55: Braemar Power Station Transmission | C55: Other | E55: 0.017962 | F55: 0.00643082 | G55: 0 | H55: 0 | I55: 0 | K55: 0 | L55: 0 | M55: 0 | N55: 0 | O55: 0 | P55: 0 | Q55: =ProjectData[[#This Row],[Real Sum]]>0.0001 -> TRUE | R55: =OR(ProjectData[[#This Row],[Real 16]]>0,ProjectData[[#This Row],[Real 17]]>0,ProjectData[[#This Row],[Real 18]]>0,ProjectData[[#This Row],[Real 19]]>0,ProjectData[[#This Row],[Real 20]]>0) -> FALSE | S55: =ProjectData[[#This Row],[Actuals 07/08]]*VLOOKUP("Mid Year Nominal - EOY Real (2020/21)",CPI[],MATCH(S$4,CPI[#Headers],0),FALSE) -> 0 | T55: =ProjectData[[#This Row],[Actuals 08/09]]*VLOOKUP("Mid Year Nominal - EOY Real (2020/21)",CPI[],MATCH(T$4,CPI[#Headers],0),FALSE) -> 0.02311809501 | U55: =ProjectData[[#This Row],[Actuals 09/10]]*VLOOKUP("Mid Year Nominal - EOY Real (2020/21)",CPI[],MATCH(U$4,CPI[#Headers],0),FALSE) -> 0.00804538278 | V55: =ProjectData[[#This Row],[Actuals 10/11]]*VLOOKUP("Mid Year Nominal - EOY Real (2020/21)",CPI[],MATCH(V$4,CPI[#Headers],0),FALSE) -> 0 | W55: =ProjectData[[#This Row],[Actuals 11/12]]*VLOOKUP("Mid Year Nominal - EOY Real (2020/21)",CPI[],MATCH(W$4,CPI[#Headers],0),FALSE) -> 0 | X55: =ProjectData[[#This Row],[Actuals 12/13]]*VLOOKUP("Mid Year Nominal - EOY Real (2020/21)",CPI[],MATCH(X$4,CPI[#Headers],0),FALSE) -> 0 | Y55: =ProjectData[[#This Row],[Actuals 13/14]]*VLOOKUP("Mid Year Nominal - EOY Real (2020/21)",CPI[],MATCH(Y$4,CPI[#Headers],0),FALSE) -> 0 | Z55: =ProjectData[[#This Row],[Actuals 14/15]]*VLOOKUP("Mid Year Nominal - EOY Real (2020/21)",CPI[],MATCH(Z$4,CPI[#Headers],0),FALSE) -> 0 | AA55: =ProjectData[[#This Row],[Actuals 15/16]]*VLOOKUP("Mid Year Nominal - EOY Real (2020/21)",CPI[],MATCH(AA$4,CPI[#Headers],0),FALSE) -> 0 | AB55: =ProjectData[[#This Row],[Actuals 16/17]]*VLOOKUP("Mid Year Nominal - EOY Real (2020/21)",CPI[],MATCH(AB$4,CPI[#Headers],0),FALSE) -> 0 | AC55: =ProjectData[[#This Row],[Actuals 17/18]]*VLOOKUP("Mid Year Nominal - EOY Real (2020/21)",CPI[],MATCH(AC$4,CPI[#Headers],0),FALSE) -> 0 | AD55: =ProjectData[[#This Row],[Actuals 18/19]]*VLOOKUP("Mid Year Nominal - EOY Real (2020/21)",CPI[],MATCH(AD$4,CPI[#Headers],0),FALSE) -> 0 | AE55: =ProjectData[[#This Row],[Actuals 19/20]]*VLOOKUP("Mid Year Nominal - EOY Real (2020/21)",CPI[],MATCH(AE$4,CPI[#Headers],0),FALSE) -> 0 | AF55: =SUM(ProjectData[[#This Row],[Real 08]:[Real 20]]) -> 0.03116347779 | AG55: =(ProjectData[[#This Row],[Real Sum]]-VLOOKUP(ProjectData[[#This Row],[Category]],Category_AverageStdDevLimit[],MATCH("Average",Category_AverageStdDevLimit[#Headers],0),FALSE))^2 -> 1.675128698 | AH55: =VLOOKUP(ProjectData[[#This Row],[Category]],Category_AverageStdDevLimit[],MATCH("Limit",Category_AverageStdDevLimit[#Headers],0),FALSE) -> 7.504688892 | AI55: =ProjectData[[#This Row],[Real Sum]]>ProjectData[[#This Row],[Category Limit]] -> FALSE | AK55: =OR(ProjectData[[#This Row],[Significant Project? (Financial Basis)]],ProjectData[[#This Row],[Non repeatable]]) -> FALSE | AL55: =AND(ProjectData[[#This Row],[SomeExpenditure >= 2016]],ProjectData[[#This Row],[Abnormal?]]) -> FALSE
A56: CP.01227 | B56: Ergon SCADA ICCP Link Stage 1 & 2 | C56: Other | D56: 0.05152801 | E56: 0.00094025 | F56: 0 | G56: 0 | H56: 0 | I56: 0 | K56: 0 | L56: 0 | M56: 0 | N56: 0 | O56: 0 | P56: 0 | Q56: =ProjectData[[#This Row],[Real Sum]]>0.0001 -> TRUE | R56: =OR(ProjectData[[#This Row],[Real 16]]>0,ProjectData[[#This Row],[Real 17]]>0,ProjectData[[#This Row],[Real 18]]>0,ProjectData[[#This Row],[Real 19]]>0,ProjectData[[#This Row],[Real 20]]>0) -> FALSE | S56: =ProjectData[[#This Row],[Actuals 07/08]]*VLOOKUP("Mid Year Nominal - EOY Real (2020/21)",CPI[],MATCH(S$4,CPI[#Headers],0),FALSE) -> 0.06850428885 | T56: =ProjectData[[#This Row],[Actuals 08/09]]*VLOOKUP("Mid Year Nominal - EOY Real (2020/21)",CPI[],MATCH(T$4,CPI[#Headers],0),FALSE) -> 0.001210154149 | U56: =ProjectData[[#This Row],[Actuals 09/10]]*VLOOKUP("Mid Year Nominal - EOY Real (2020/21)",CPI[],MATCH(U$4,CPI[#Headers],0),FALSE) -> 0 | V56: =ProjectData[[#This Row],[Actuals 10/11]]*VLOOKUP("Mid Year Nominal - EOY Real (2020/21)",CPI[],MATCH(V$4,CPI[#Headers],0),FALSE) -> 0 | W56: =ProjectData[[#This Row],[Actuals 11/12]]*VLOOKUP("Mid Year Nominal - EOY Real (2020/21)",CPI[],MATCH(W$4,CPI[#Headers],0),FALSE) -> 0 | X56: =ProjectData[[#This Row],[Actuals 12/13]]*VLOOKUP("Mid Year Nominal - EOY Real (2020/21)",CPI[],MATCH(X$4,CPI[#Headers],0),FALSE) -> 0 | Y56: =ProjectData[[#This Row],[Actuals 13/14]]*VLOOKUP("Mid Year Nominal - EOY Real (2020/21)",CPI[],MATCH(Y$4,CPI[#Headers],0),FALSE) -> 0 | Z56: =ProjectData[[#This Row],[Actuals 14/15]]*VLOOKUP("Mid Year Nominal - EOY Real (2020/21)",CPI[],MATCH(Z$4,CPI[#Headers],0),FALSE) -> 0 | AA56: =ProjectData[[#This Row],[Actuals 15/16]]*VLOOKUP("Mid Year Nominal - EOY Real (2020/21)",CPI[],MATCH(AA$4,CPI[#Headers],0),FALSE) -> 0 | AB56: =ProjectData[[#This Row],[Actuals 16/17]]*VLOOKUP("Mid Year Nominal - EOY Real (2020/21)",CPI[],MATCH(AB$4,CPI[#Headers],0),FALSE) -> 0 | AC56: =ProjectData[[#This Row],[Actuals 17/18]]*VLOOKUP("Mid Year Nominal - EOY Real (2020/21)",CPI[],MATCH(AC$4,CPI[#Headers],0),FALSE) -> 0 | AD56: =ProjectData[[#This Row],[Actuals 18/19]]*VLOOKUP("Mid Year Nominal - EOY Real (2020/21)",CPI[],MATCH(AD$4,CPI[#Headers],0),FALSE) -> 0 | AE56: =ProjectData[[#This Row],[Actuals 19/20]]*VLOOKUP("Mid Year Nominal - EOY Real (2020/21)",CPI[],MATCH(AE$4,CPI[#Headers],0),FALSE) -> 0 | AF56: =SUM(ProjectData[[#This Row],[Real 08]:[Real 20]]) -> 0.069714443 | AG56: =(ProjectData[[#This Row],[Real Sum]]-VLOOKUP(ProjectData[[#This Row],[Category]],Category_AverageStdDevLimit[],MATCH("Average",Category_AverageStdDevLimit[#Headers],0),FALSE))^2 -> 1.576824342 | AH56: =VLOOKUP(ProjectData[[#This Row],[Category]],Category_AverageStdDevLimit[],MATCH("Limit",Category_AverageStdDevLimit[#Headers],0),FALSE) -> 7.504688892 | AI56: =ProjectData[[#This Row],[Real Sum]]>ProjectData[[#This Row],[Category Limit]] -> FALSE | AK56: =OR(ProjectData[[#This Row],[Significant Project? (Financial Basis)]],ProjectData[[#This Row],[Non repeatable]]) -> FALSE | AL56: =AND(ProjectData[[#This Row],[SomeExpenditure >= 2016]],ProjectData[[#This Row],[Abnormal?]]) -> FALSE
A57: CP.01242 | B57: Acquisition of Energex Line-TingalpaArea | C57: Other | E57: -0.5 | F57: 0.29307857 | G57: 0 | H57: 0 | I57: 0 | K57: 0 | L57: 0 | M57: 0 | N57: 0 | O57: 0 | P57: 0 | Q57: =ProjectData[[#This Row],[Real Sum]]>0.0001 -> FALSE | R57: =OR(ProjectData[[#This Row],[Real 16]]>0,ProjectData[[#This Row],[Real 17]]>0,ProjectData[[#This Row],[Real 18]]>0,ProjectData[[#This Row],[Real 19]]>0,ProjectData[[#This Row],[Real 20]]>0) -> FALSE | S57: =ProjectData[[#This Row],[Actuals 07/08]]*VLOOKUP("Mid Year Nominal - EOY Real (2020/21)",CPI[],MATCH(S$4,CPI[#Headers],0),FALSE) -> 0 | T57: =ProjectData[[#This Row],[Actuals 08/09]]*VLOOKUP("Mid Year Nominal - EOY Real (2020/21)",CPI[],MATCH(T$4,CPI[#Headers],0),FALSE) -> -0.6435278646 | U57: =ProjectData[[#This Row],[Actuals 09/10]]*VLOOKUP("Mid Year Nominal - EOY Real (2020/21)",CPI[],MATCH(U$4,CPI[#Headers],0),FALSE) -> 0.3666607493 | V57: =ProjectData[[#This Row],[Actuals 10/11]]*VLOOKUP("Mid Year Nominal - EOY Real (2020/21)",CPI[],MATCH(V$4,CPI[#Headers],0),FALSE) -> 0 | W57: =ProjectData[[#This Row],[Actuals 11/12]]*VLOOKUP("Mid Year Nominal - EOY Real (2020/21)",CPI[],MATCH(W$4,CPI[#Headers],0),FALSE) -> 0 | X57: =ProjectData[[#This Row],[Actuals 12/13]]*VLOOKUP("Mid Year Nominal - EOY Real (2020/21)",CPI[],MATCH(X$4,CPI[#Headers],0),FALSE) -> 0 | Y57: =ProjectData[[#This Row],[Actuals 13/14]]*VLOOKUP("Mid Year Nominal - EOY Real (2020/21)",CPI[],MATCH(Y$4,CPI[#Headers],0),FALSE) -> 0 | Z57: =ProjectData[[#This Row],[Actuals 14/15]]*VLOOKUP("Mid Year Nominal - EOY Real (2020/21)",CPI[],MATCH(Z$4,CPI[#Headers],0),FALSE) -> 0 | AA57: =ProjectData[[#This Row],[Actuals 15/16]]*VLOOKUP("Mid Year Nominal - EOY Real (2020/21)",CPI[],MATCH(AA$4,CPI[#Headers],0),FALSE) -> 0 | AB57: =ProjectData[[#This Row],[Actuals 16/17]]*VLOOKUP("Mid Year Nominal - EOY Real (2020/21)",CPI[],MATCH(AB$4,CPI[#Headers],0),FALSE) -> 0 | AC57: =ProjectData[[#This Row],[Actuals 17/18]]*VLOOKUP("Mid Year Nominal - EOY Real (2020/21)",CPI[],MATCH(AC$4,CPI[#Headers],0),FALSE) -> 0 | AD57: =ProjectData[[#This Row],[Actuals 18/19]]*VLOOKUP("Mid Year Nominal - EOY Real (2020/21)",CPI[],MATCH(AD$4,CPI[#Headers],0),FALSE) -> 0 | AE57: =ProjectData[[#This Row],[Actuals 19/20]]*VLOOKUP("Mid Year Nominal - EOY Real (2020/21)",CPI[],MATCH(AE$4,CPI[#Headers],0),FALSE) -> 0 | AF57: =SUM(ProjectData[[#This Row],[Real 08]:[Real 20]]) -> -0.2768671153 | AG57: =(ProjectData[[#This Row],[Real Sum]]-VLOOKUP(ProjectData[[#This Row],[Category]],Category_AverageStdDevLimit[],MATCH("Average",Category_AverageStdDevLimit[#Headers],0),FALSE))^2 -> 2.567359595 | AH57: =VLOOKUP(ProjectData[[#This Row],[Category]],Category_AverageStdDevLimit[],MATCH("Limit",Category_AverageStdDevLimit[#Headers],0),FALSE) -> 7.504688892 | AI57: =ProjectData[[#This Row],[Real Sum]]>ProjectData[[#This Row],[Category Limit]] -> FALSE | AK57: =OR(ProjectData[[#This Row],[Significant Project? (Financial Basis)]],ProjectData[[#This Row],[Non repeatable]]) -> FALSE | AL57: =AND(ProjectData[[#This Row],[SomeExpenditure >= 2016]],ProjectData[[#This Row],[Abnormal?]]) -> FALSE
A58: CP.01244 | B58: Mackay Area Telecommunications Reinforcement | C58: Other | D58: 0.37350774 | E58: 0.1794021 | F58: 0.37137257 | G58: 0.00810912 | H58: 0 | I58: 0 | K58: 0 | L58: 0 | M58: 0 | N58: 0 | O58: 0 | P58: 0 | Q58: =ProjectData[[#This Row],[Real Sum]]>0.0001 -> TRUE | R58: =OR(ProjectData[[#This Row],[Real 16]]>0,ProjectData[[#This Row],[Real 17]]>0,ProjectData[[#This Row],[Real 18]]>0,ProjectData[[#This Row],[Real 19]]>0,ProjectData[[#This Row],[Real 20]]>0) -> FALSE | S58: =ProjectData[[#This Row],[Actuals 07/08]]*VLOOKUP("Mid Year Nominal - EOY Real (2020/21)",CPI[],MATCH(S$4,CPI[#Headers],0),FALSE) -> 0.4965625901 | T58: =ProjectData[[#This Row],[Actuals 08/09]]*VLOOKUP("Mid Year Nominal - EOY Real (2020/21)",CPI[],MATCH(T$4,CPI[#Headers],0),FALSE) -> 0.2309005006 | U58: =ProjectData[[#This Row],[Actuals 09/10]]*VLOOKUP("Mid Year Nominal - EOY Real (2020/21)",CPI[],MATCH(U$4,CPI[#Headers],0),FALSE) -> 0.4646117415 | V58: =ProjectData[[#This Row],[Actuals 10/11]]*VLOOKUP("Mid Year Nominal - EOY Real (2020/21)",CPI[],MATCH(V$4,CPI[#Headers],0),FALSE) -> 0.009906681078 | W58: =ProjectData[[#This Row],[Actuals 11/12]]*VLOOKUP("Mid Year Nominal - EOY Real (2020/21)",CPI[],MATCH(W$4,CPI[#Headers],0),FALSE) -> 0 | X58: =ProjectData[[#This Row],[Actuals 12/13]]*VLOOKUP("Mid Year Nominal - EOY Real (2020/21)",CPI[],MATCH(X$4,CPI[#Headers],0),FALSE) -> 0 | Y58: =ProjectData[[#This Row],[Actuals 13/14]]*VLOOKUP("Mid Year Nominal - EOY Real (2020/21)",CPI[],MATCH(Y$4,CPI[#Headers],0),FALSE) -> 0 | Z58: =ProjectData[[#This Row],[Actuals 14/15]]*VLOOKUP("Mid Year Nominal - EOY Real (2020/21)",CPI[],MATCH(Z$4,CPI[#Headers],0),FALSE) -> 0 | AA58: =ProjectData[[#This Row],[Actuals 15/16]]*VLOOKUP("Mid Year Nominal - EOY Real (2020/21)",CPI[],MATCH(AA$4,CPI[#Headers],0),FALSE) -> 0 | AB58: =ProjectData[[#This Row],[Actuals 16/17]]*VLOOKUP("Mid Year Nominal - EOY Real (2020/21)",CPI[],MATCH(AB$4,CPI[#Headers],0),FALSE) -> 0 | AC58: =ProjectData[[#This Row],[Actuals 17/18]]*VLOOKUP("Mid Year Nominal - EOY Real (2020/21)",CPI[],MATCH(AC$4,CPI[#Headers],0),FALSE) -> 0 | AD58: =ProjectData[[#This Row],[Actuals 18/19]]*VLOOKUP("Mid Year Nominal - EOY Real (2020/21)",CPI[],MATCH(AD$4,CPI[#Headers],0),FALSE) -> 0 | AE58: =ProjectData[[#This Row],[Actuals 19/20]]*VLOOKUP("Mid Year Nominal - EOY Real (2020/21)",CPI[],MATCH(AE$4,CPI[#Headers],0),FALSE) -> 0 | AF58: =SUM(ProjectData[[#This Row],[Real 08]:[Real 20]]) -> 1.201981513 | AG58: =(ProjectData[[#This Row],[Real Sum]]-VLOOKUP(ProjectData[[#This Row],[Category]],Category_AverageStdDevLimit[],MATCH("Average",Category_AverageStdDevLimit[#Headers],0),FALSE))^2 -> 0.01523980233 | AH58: =VLOOKUP(ProjectData[[#This Row],[Category]],Category_AverageStdDevLimit[],MATCH("Limit",Category_AverageStdDevLimit[#Headers],0),FALSE) -> 7.504688892 | AI58: =ProjectData[[#This Row],[Real Sum]]>ProjectData[[#This Row],[Category Limit]] -> FALSE | AK58: =OR(ProjectData[[#This Row],[Significant Project? (Financial Basis)]],ProjectData[[#This Row],[Non repeatable]]) -> FALSE | AL58: =AND(ProjectData[[#This Row],[SomeExpenditure >= 2016]],ProjectData[[#This Row],[Abnormal?]]) -> FALSE
A59: CP.01254 | B59: Ingham Microwave Radio Establishment | C59: Other | D59: 0.36778831 | E59: 0.13487625 | F59: 0.29687187 | H59: 0 | I59: 0 | K59: 0 | L59: 0 | M59: 0 | N59: 0 | O59: 0 | P59: 0 | Q59: =ProjectData[[#This Row],[Real Sum]]>0.0001 -> TRUE | R59: =OR(ProjectData[[#This Row],[Real 16]]>0,ProjectData[[#This Row],[Real 17]]>0,ProjectData[[#This Row],[Real 18]]>0,ProjectData[[#This Row],[Real 19]]>0,ProjectData[[#This Row],[Real 20]]>0) -> FALSE | S59: =ProjectData[[#This Row],[Actuals 07/08]]*VLOOKUP("Mid Year Nominal - EOY Real (2020/21)",CPI[],MATCH(S$4,CPI[#Headers],0),FALSE) -> 0.4889588521 | T59: =ProjectData[[#This Row],[Actuals 08/09]]*VLOOKUP("Mid Year Nominal - EOY Real (2020/21)",CPI[],MATCH(T$4,CPI[#Headers],0),FALSE) -> 0.1735932503 | U59: =ProjectData[[#This Row],[Actuals 09/10]]*VLOOKUP("Mid Year Nominal - EOY Real (2020/21)",CPI[],MATCH(U$4,CPI[#Headers],0),FALSE) -> 0.3714064195 | V59: =ProjectData[[#This Row],[Actuals 10/11]]*VLOOKUP("Mid Year Nominal - EOY Real (2020/21)",CPI[],MATCH(V$4,CPI[#Headers],0),FALSE) -> 0 | W59: =ProjectData[[#This Row],[Actuals 11/12]]*VLOOKUP("Mid Year Nominal - EOY Real (2020/21)",CPI[],MATCH(W$4,CPI[#Headers],0),FALSE) -> 0 | X59: =ProjectData[[#This Row],[Actuals 12/13]]*VLOOKUP("Mid Year Nominal - EOY Real (2020/21)",CPI[],MATCH(X$4,CPI[#Headers],0),FALSE) -> 0 | Y59: =ProjectData[[#This Row],[Actuals 13/14]]*VLOOKUP("Mid Year Nominal - EOY Real (2020/21)",CPI[],MATCH(Y$4,CPI[#Headers],0),FALSE) -> 0 | Z59: =ProjectData[[#This Row],[Actuals 14/15]]*VLOOKUP("Mid Year Nominal - EOY Real (2020/21)",CPI[],MATCH(Z$4,CPI[#Headers],0),FALSE) -> 0 | AA59: =ProjectData[[#This Row],[Actuals 15/16]]*VLOOKUP("Mid Year Nominal - EOY Real (2020/21)",CPI[],MATCH(AA$4,CPI[#Headers],0),FALSE) -> 0 | AB59: =ProjectData[[#This Row],[Actuals 16/17]]*VLOOKUP("Mid Year Nominal - EOY Real (2020/21)",CPI[],MATCH(AB$4,CPI[#Headers],0),FALSE) -> 0 | AC59: =ProjectData[[#This Row],[Actuals 17/18]]*VLOOKUP("Mid Year Nominal - EOY Real (2020/21)",CPI[],MATCH(AC$4,CPI[#Headers],0),FALSE) -> 0 | AD59: =ProjectData[[#This Row],[Actuals 18/19]]*VLOOKUP("Mid Year Nominal - EOY Real (2020/21)",CPI[],MATCH(AD$4,CPI[#Headers],0),FALSE) -> 0 | AE59: =ProjectData[[#This Row],[Actuals 19/20]]*VLOOKUP("Mid Year Nominal - EOY Real (2020/21)",CPI[],MATCH(AE$4,CPI[#Headers],0),FALSE) -> 0 | AF59: =SUM(ProjectData[[#This Row],[Real 08]:[Real 20]]) -> 1.033958522 | AG59: =(ProjectData[[#This Row],[Real Sum]]-VLOOKUP(ProjectData[[#This Row],[Category]],Category_AverageStdDevLimit[],MATCH("Average",Category_AverageStdDevLimit[#Headers],0),FALSE))^2 -> 0.08495626819 | AH59: =VLOOKUP(ProjectData[[#This Row],[Category]],Category_AverageStdDevLimit[],MATCH("Limit",Category_AverageStdDevLimit[#Headers],0),FALSE) -> 7.504688892 | AI59: =ProjectData[[#This Row],[Real Sum]]>ProjectData[[#This Row],[Category Limit]] -> FALSE | AK59: =OR(ProjectData[[#This Row],[Significant Project? (Financial Basis)]],ProjectData[[#This Row],[Non repeatable]]) -> FALSE | AL59: =AND(ProjectData[[#This Row],[SomeExpenditure >= 2016]],ProjectData[[#This Row],[Abnormal?]]) -> FALSE
A60: CP.01274 | B60: Braemar Power Station Telecomms | C60: Other | E60: 0.035677 | F60: 0 | G60: 0 | H60: 0 | I60: 0 | K60: 0 | L60: 0 | M60: 0 | N60: 0 | O60: 0 | P60: 0 | Q60: =ProjectData[[#This Row],[Real Sum]]>0.0001 -> TRUE | R60: =OR(ProjectData[[#This Row],[Real 16]]>0,ProjectData[[#This Row],[Real 17]]>0,ProjectData[[#This Row],[Real 18]]>0,ProjectData[[#This Row],[Real 19]]>0,ProjectData[[#This Row],[Real 20]]>0) -> FALSE | S60: =ProjectData[[#This Row],[Actuals 07/08]]*VLOOKUP("Mid Year Nominal - EOY Real (2020/21)",CPI[],MATCH(S$4,CPI[#Headers],0),FALSE) -> 0 | T60: =ProjectData[[#This Row],[Actuals 08/09]]*VLOOKUP("Mid Year Nominal - EOY Real (2020/21)",CPI[],MATCH(T$4,CPI[#Headers],0),FALSE) -> 0.04591828725 | U60: =ProjectData[[#This Row],[Actuals 09/10]]*VLOOKUP("Mid Year Nominal - EOY Real (2020/21)",CPI[],MATCH(U$4,CPI[#Headers],0),FALSE) -> 0 | V60: =ProjectData[[#This Row],[Actuals 10/11]]*VLOOKUP("Mid Year Nominal - EOY Real (2020/21)",CPI[],MATCH(V$4,CPI[#Headers],0),FALSE) -> 0 | W60: =ProjectData[[#This Row],[Actuals 11/12]]*VLOOKUP("Mid Year Nominal - EOY Real (2020/21)",CPI[],MATCH(W$4,CPI[#Headers],0),FALSE) -> 0 | X60: =ProjectData[[#This Row],[Actuals 12/13]]*VLOOKUP("Mid Year Nominal - EOY Real (2020/21)",CPI[],MATCH(X$4,CPI[#Headers],0),FALSE) -> 0 | Y60: =ProjectData[[#This Row],[Actuals 13/14]]*VLOOKUP("Mid Year Nominal - EOY Real (2020/21)",CPI[],MATCH(Y$4,CPI[#Headers],0),FALSE) -> 0 | Z60: =ProjectData[[#This Row],[Actuals 14/15]]*VLOOKUP("Mid Year Nominal - EOY Real (2020/21)",CPI[],MATCH(Z$4,CPI[#Headers],0),FALSE) -> 0 | AA60: =ProjectData[[#This Row],[Actuals 15/16]]*VLOOKUP("Mid Year Nominal - EOY Real (2020/21)",CPI[],MATCH(AA$4,CPI[#Headers],0),FALSE) -> 0 | AB60: =ProjectData[[#This Row],[Actuals 16/17]]*VLOOKUP("Mid Year Nominal - EOY Real (2020/21)",CPI[],MATCH(AB$4,CPI[#Headers],0),FALSE) -> 0 | AC60: =ProjectData[[#This Row],[Actuals 17/18]]*VLOOKUP("Mid Year Nominal - EOY Real (2020/21)",CPI[],MATCH(AC$4,CPI[#Headers],0),FALSE) -> 0 | AD60: =ProjectData[[#This Row],[Actuals 18/19]]*VLOOKUP("Mid Year Nominal - EOY Real (2020/21)",CPI[],MATCH(AD$4,CPI[#Headers],0),FALSE) -> 0 | AE60: =ProjectData[[#This Row],[Actuals 19/20]]*VLOOKUP("Mid Year Nominal - EOY Real (2020/21)",CPI[],MATCH(AE$4,CPI[#Headers],0),FALSE) -> 0 | AF60: =SUM(ProjectData[[#This Row],[Real 08]:[Real 20]]) -> 0.04591828725 | AG60: =(ProjectData[[#This Row],[Real Sum]]-VLOOKUP(ProjectData[[#This Row],[Category]],Category_AverageStdDevLimit[],MATCH("Average",Category_AverageStdDevLimit[#Headers],0),FALSE))^2 -> 1.637153057 | AH60: =VLOOKUP(ProjectData[[#This Row],[Category]],Category_AverageStdDevLimit[],MATCH("Limit",Category_AverageStdDevLimit[#Headers],0),FALSE) -> 7.504688892 | AI60: =ProjectData[[#This Row],[Real Sum]]>ProjectData[[#This Row],[Category Limit]] -> FALSE | AK60: =OR(ProjectData[[#This Row],[Significant Project? (Financial Basis)]],ProjectData[[#This Row],[Non repeatable]]) -> FALSE | AL60: =AND(ProjectData[[#This Row],[SomeExpenditure >= 2016]],ProjectData[[#This Row],[Abnormal?]]) -> FALSE
A61: CP.01295 | B61: New Virginia Mux & PABX | C61: Other | D61: 0.06483106 | H61: 0 | I61: 0 | K61: 0 | L61: 0 | M61: 0 | N61: 0 | O61: 0 | P61: 0 | Q61: =ProjectData[[#This Row],[Real Sum]]>0.0001 -> TRUE | R61: =OR(ProjectData[[#This Row],[Real 16]]>0,ProjectData[[#This Row],[Real 17]]>0,ProjectData[[#This Row],[Real 18]]>0,ProjectData[[#This Row],[Real 19]]>0,ProjectData[[#This Row],[Real 20]]>0) -> FALSE | S61: =ProjectData[[#This Row],[Actuals 07/08]]*VLOOKUP("Mid Year Nominal - EOY Real (2020/21)",CPI[],MATCH(S$4,CPI[#Headers],0),FALSE) -> 0.08619012573 | T61: =ProjectData[[#This Row],[Actuals 08/09]]*VLOOKUP("Mid Year Nominal - EOY Real (2020/21)",CPI[],MATCH(T$4,CPI[#Headers],0),FALSE) -> 0 | U61: =ProjectData[[#This Row],[Actuals 09/10]]*VLOOKUP("Mid Year Nominal - EOY Real (2020/21)",CPI[],MATCH(U$4,CPI[#Headers],0),FALSE) -> 0 | V61: =ProjectData[[#This Row],[Actuals 10/11]]*VLOOKUP("Mid Year Nominal - EOY Real (2020/21)",CPI[],MATCH(V$4,CPI[#Headers],0),FALSE) -> 0 | W61: =ProjectData[[#This Row],[Actuals 11/12]]*VLOOKUP("Mid Year Nominal - EOY Real (2020/21)",CPI[],MATCH(W$4,CPI[#Headers],0),FALSE) -> 0 | X61: =ProjectData[[#This Row],[Actuals 12/13]]*VLOOKUP("Mid Year Nominal - EOY Real (2020/21)",CPI[],MATCH(X$4,CPI[#Headers],0),FALSE) -> 0 | Y61: =ProjectData[[#This Row],[Actuals 13/14]]*VLOOKUP("Mid Year Nominal - EOY Real (2020/21)",CPI[],MATCH(Y$4,CPI[#Headers],0),FALSE) -> 0 | Z61: =ProjectData[[#This Row],[Actuals 14/15]]*VLOOKUP("Mid Year Nominal - EOY Real (2020/21)",CPI[],MATCH(Z$4,CPI[#Headers],0),FALSE) -> 0 | AA61: =ProjectData[[#This Row],[Actuals 15/16]]*VLOOKUP("Mid Year Nominal - EOY Real (2020/21)",CPI[],MATCH(AA$4,CPI[#Headers],0),FALSE) -> 0 | AB61: =ProjectData[[#This Row],[Actuals 16/17]]*VLOOKUP("Mid Year Nominal - EOY Real (2020/21)",CPI[],MATCH(AB$4,CPI[#Headers],0),FALSE) -> 0 | AC61: =ProjectData[[#This Row],[Actuals 17/18]]*VLOOKUP("Mid Year Nominal - EOY Real (2020/21)",CPI[],MATCH(AC$4,CPI[#Headers],0),FALSE) -> 0 | AD61: =ProjectData[[#This Row],[Actuals 18/19]]*VLOOKUP("Mid Year Nominal - EOY Real (2020/21)",CPI[],MATCH(AD$4,CPI[#Headers],0),FALSE) -> 0 | AE61: =ProjectData[[#This Row],[Actuals 19/20]]*VLOOKUP("Mid Year Nominal - EOY Real (2020/21)",CPI[],MATCH(AE$4,CPI[#Headers],0),FALSE) -> 0 | AF61: =SUM(ProjectData[[#This Row],[Real 08]:[Real 20]]) -> 0.08619012573 | AG61: =(ProjectData[[#This Row],[Real Sum]]-VLOOKUP(ProjectData[[#This Row],[Category]],Category_AverageStdDevLimit[],MATCH("Average",Category_AverageStdDevLimit[#Headers],0),FALSE))^2 -> 1.535718211 | AH61: =VLOOKUP(ProjectData[[#This Row],[Category]],Category_AverageStdDevLimit[],MATCH("Limit",Category_AverageStdDevLimit[#Headers],0),FALSE) -> 7.504688892 | AI61: =ProjectData[[#This Row],[Real Sum]]>ProjectData[[#This Row],[Category Limit]] -> FALSE | AK61: =OR(ProjectData[[#This Row],[Significant Project? (Financial Basis)]],ProjectData[[#This Row],[Non repeatable]]) -> FALSE | AL61: =AND(ProjectData[[#This Row],[SomeExpenditure >= 2016]],ProjectData[[#This Row],[Abnormal?]]) -> FALSE
A62: CP.01301 | B62: Power Quality Monitoring Stages 1&2 | C62: Other | D62: 0.03188221 | E62: 0.39199701 | F62: 0.05976304 | G62: 0.19758011 | H62: 1.49436226 | I62: 1.38145545 | J62: 1.17605704 | K62: 0.16339881 | L62: 0.000447 | M62: 0 | N62: 0 | O62: 0 | P62: 0 | Q62: =ProjectData[[#This Row],[Real Sum]]>0.0001 -> TRUE | R62: =OR(ProjectData[[#This Row],[Real 16]]>0,ProjectData[[#This Row],[Real 17]]>0,ProjectData[[#This Row],[Real 18]]>0,ProjectData[[#This Row],[Real 19]]>0,ProjectData[[#This Row],[Real 20]]>0) -> TRUE | S62: =ProjectData[[#This Row],[Actuals 07/08]]*VLOOKUP("Mid Year Nominal - EOY Real (2020/21)",CPI[],MATCH(S$4,CPI[#Headers],0),FALSE) -> 0.0423860367 | T62: =ProjectData[[#This Row],[Actuals 08/09]]*VLOOKUP("Mid Year Nominal - EOY Real (2020/21)",CPI[],MATCH(T$4,CPI[#Headers],0),FALSE) -> 0.5045219976 | U62: =ProjectData[[#This Row],[Actuals 09/10]]*VLOOKUP("Mid Year Nominal - EOY Real (2020/21)",CPI[],MATCH(U$4,CPI[#Headers],0),FALSE) -> 0.07476753087 | V62: =ProjectData[[#This Row],[Actuals 10/11]]*VLOOKUP("Mid Year Nominal - EOY Real (2020/21)",CPI[],MATCH(V$4,CPI[#Headers],0),FALSE) -> 0.2413779963 | W62: =ProjectData[[#This Row],[Actuals 11/12]]*VLOOKUP("Mid Year Nominal - EOY Real (2020/21)",CPI[],MATCH(W$4,CPI[#Headers],0),FALSE) -> 1.774601816 | X62: =ProjectData[[#This Row],[Actuals 12/13]]*VLOOKUP("Mid Year Nominal - EOY Real (2020/21)",CPI[],MATCH(X$4,CPI[#Headers],0),FALSE) -> 1.598982525 | Y62: =ProjectData[[#This Row],[Actuals 13/14]]*VLOOKUP("Mid Year Nominal - EOY Real (2020/21)",CPI[],MATCH(Y$4,CPI[#Headers],0),FALSE) -> 1.328372415 | Z62: =ProjectData[[#This Row],[Actuals 14/15]]*VLOOKUP("Mid Year Nominal - EOY Real (2020/21)",CPI[],MATCH(Z$4,CPI[#Headers],0),FALSE) -> 0.1805351767 | AA62: =ProjectData[[#This Row],[Actuals 15/16]]*VLOOKUP("Mid Year Nominal - EOY Real (2020/21)",CPI[],MATCH(AA$4,CPI[#Headers],0),FALSE) -> 0.000485608712 | AB62: =ProjectData[[#This Row],[Actuals 16/17]]*VLOOKUP("Mid Year Nominal - EOY Real (2020/21)",CPI[],MATCH(AB$4,CPI[#Headers],0),FALSE) -> 0 | AC62: =ProjectData[[#This Row],[Actuals 17/18]]*VLOOKUP("Mid Year Nominal - EOY Real (2020/21)",CPI[],MATCH(AC$4,CPI[#Headers],0),FALSE) -> 0 | AD62: =ProjectData[[#This Row],[Actuals 18/19]]*VLOOKUP("Mid Year Nominal - EOY Real (2020/21)",CPI[],MATCH(AD$4,CPI[#Headers],0),FALSE) -> 0 | AE62: =ProjectData[[#This Row],[Actuals 19/20]]*VLOOKUP("Mid Year Nominal - EOY Real (2020/21)",CPI[],MATCH(AE$4,CPI[#Headers],0),FALSE) -> 0 | AF62: =SUM(ProjectData[[#This Row],[Real 08]:[Real 20]]) -> 5.746031103 | AG62: =(ProjectData[[#This Row],[Real Sum]]-VLOOKUP(ProjectData[[#This Row],[Category]],Category_AverageStdDevLimit[],MATCH("Average",Category_AverageStdDevLimit[#Headers],0),FALSE))^2 -> 19.54170432 | AH62: =VLOOKUP(ProjectData[[#This Row],[Category]],Category_AverageStdDevLimit[],MATCH("Limit",Category_AverageStdDevLimit[#Headers],0),FALSE) -> 7.504688892 | AI62: =ProjectData[[#This Row],[Real Sum]]>ProjectData[[#This Row],[Category Limit]] -> FALSE | AK62: =OR(ProjectData[[#This Row],[Significant Project? (Financial Basis)]],ProjectData[[#This Row],[Non repeatable]]) -> FALSE | AL62: =AND(ProjectData[[#This Row],[SomeExpenditure >= 2016]],ProjectData[[#This Row],[Abnormal?]]) -> FALSE
A63: CP.01305 | B63: Virginia Telstra Connection | C63: Other | D63: 0.03488124 | E63: 0 | F63: 0 | G63: 0 | H63: 0 | I63: 0 | K63: 0 | L63: 0 | M63: 0 | N63: 0 | O63: 0 | P63: 0 | Q63: =ProjectData[[#This Row],[Real Sum]]>0.0001 -> TRUE | R63: =OR(ProjectData[[#This Row],[Real 16]]>0,ProjectData[[#This Row],[Real 17]]>0,ProjectData[[#This Row],[Real 18]]>0,ProjectData[[#This Row],[Real 19]]>0,ProjectData[[#This Row],[Real 20]]>0) -> FALSE | S63: =ProjectData[[#This Row],[Actuals 07/08]]*VLOOKUP("Mid Year Nominal - EOY Real (2020/21)",CPI[],MATCH(S$4,CPI[#Headers],0),FALSE) -> 0.04637311901 | T63: =ProjectData[[#This Row],[Actuals 08/09]]*VLOOKUP("Mid Year Nominal - EOY Real (2020/21)",CPI[],MATCH(T$4,CPI[#Headers],0),FALSE) -> 0 | U63: =ProjectData[[#This Row],[Actuals 09/10]]*VLOOKUP("Mid Year Nominal - EOY Real (2020/21)",CPI[],MATCH(U$4,CPI[#Headers],0),FALSE) -> 0 | V63: =ProjectData[[#This Row],[Actuals 10/11]]*VLOOKUP("Mid Year Nominal - EOY Real (2020/21)",CPI[],MATCH(V$4,CPI[#Headers],0),FALSE) -> 0 | W63: =ProjectData[[#This Row],[Actuals 11/12]]*VLOOKUP("Mid Year Nominal - EOY Real (2020/21)",CPI[],MATCH(W$4,CPI[#Headers],0),FALSE) -> 0 | X63: =ProjectData[[#This Row],[Actuals 12/13]]*VLOOKUP("Mid Year Nominal - EOY Real (2020/21)",CPI[],MATCH(X$4,CPI[#Headers],0),FALSE) -> 0 | Y63: =ProjectData[[#This Row],[Actuals 13/14]]*VLOOKUP("Mid Year Nominal - EOY Real (2020/21)",CPI[],MATCH(Y$4,CPI[#Headers],0),FALSE) -> 0 | Z63: =ProjectData[[#This Row],[Actuals 14/15]]*VLOOKUP("Mid Year Nominal - EOY Real (2020/21)",CPI[],MATCH(Z$4,CPI[#Headers],0),FALSE) -> 0 | AA63: =ProjectData[[#This Row],[Actuals 15/16]]*VLOOKUP("Mid Year Nominal - EOY Real (2020/21)",CPI[],MATCH(AA$4,CPI[#Headers],0),FALSE) -> 0 | AB63: =ProjectData[[#This Row],[Actuals 16/17]]*VLOOKUP("Mid Year Nominal - EOY Real (2020/21)",CPI[],MATCH(AB$4,CPI[#Headers],0),FALSE) -> 0 | AC63: =ProjectData[[#This Row],[Actuals 17/18]]*VLOOKUP("Mid Year Nominal - EOY Real (2020/21)",CPI[],MATCH(AC$4,CPI[#Headers],0),FALSE) -> 0 | AD63: =ProjectData[[#This Row],[Actuals 18/19]]*VLOOKUP("Mid Year Nominal - EOY Real (2020/21)",CPI[],MATCH(AD$4,CPI[#Headers],0),FALSE) -> 0 | AE63: =ProjectData[[#This Row],[Actuals 19/20]]*VLOOKUP("Mid Year Nominal - EOY Real (2020/21)",CPI[],MATCH(AE$4,CPI[#Headers],0),FALSE) -> 0 | AF63: =SUM(ProjectData[[#This Row],[Real 08]:[Real 20]]) -> 0.04637311901 | AG63: =(ProjectData[[#This Row],[Real Sum]]-VLOOKUP(ProjectData[[#This Row],[Category]],Category_AverageStdDevLimit[],MATCH("Average",Category_AverageStdDevLimit[#Headers],0),FALSE))^2 -> 1.635989338 | AH63: =VLOOKUP(ProjectData[[#This Row],[Category]],Category_AverageStdDevLimit[],MATCH("Limit",Category_AverageStdDevLimit[#Headers],0),FALSE) -> 7.504688892 | AI63: =ProjectData[[#This Row],[Real Sum]]>ProjectData[[#This Row],[Category Limit]] -> FALSE | AK63: =OR(ProjectData[[#This Row],[Significant Project? (Financial Basis)]],ProjectData[[#This Row],[Non repeatable]]) -> FALSE | AL63: =AND(ProjectData[[#This Row],[SomeExpenditure >= 2016]],ProjectData[[#This Row],[Abnormal?]]) -> FALSE
A64: CP.01312 | B64: Minnippi Park to Mary St Optical Fibre C | C64: Other | D64: 0.19497747 | E64: 0.14439276 | F64: 0 | G64: 0 | H64: 0 | I64: 0 | K64: 0 | L64: 0 | M64: 0 | N64: 0 | O64: 0 | P64: 0 | Q64: =ProjectData[[#This Row],[Real Sum]]>0.0001 -> TRUE | R64: =OR(ProjectData[[#This Row],[Real 16]]>0,ProjectData[[#This Row],[Real 17]]>0,ProjectData[[#This Row],[Real 18]]>0,ProjectData[[#This Row],[Real 19]]>0,ProjectData[[#This Row],[Real 20]]>0) -> FALSE | S64: =ProjectData[[#This Row],[Actuals 07/08]]*VLOOKUP("Mid Year Nominal - EOY Real (2020/21)",CPI[],MATCH(S$4,CPI[#Headers],0),FALSE) -> 0.2592142201 | T64: =ProjectData[[#This Row],[Actuals 08/09]]*VLOOKUP("Mid Year Nominal - EOY Real (2020/21)",CPI[],MATCH(T$4,CPI[#Headers],0),FALSE) -> 0.185841529 | U64: =ProjectData[[#This Row],[Actuals 09/10]]*VLOOKUP("Mid Year Nominal - EOY Real (2020/21)",CPI[],MATCH(U$4,CPI[#Headers],0),FALSE) -> 0 | V64: =ProjectData[[#This Row],[Actuals 10/11]]*VLOOKUP("Mid Year Nominal - EOY Real (2020/21)",CPI[],MATCH(V$4,CPI[#Headers],0),FALSE) -> 0 | W64: =ProjectData[[#This Row],[Actuals 11/12]]*VLOOKUP("Mid Year Nominal - EOY Real (2020/21)",CPI[],MATCH(W$4,CPI[#Headers],0),FALSE) -> 0 | X64: =ProjectData[[#This Row],[Actuals 12/13]]*VLOOKUP("Mid Year Nominal - EOY Real (2020/21)",CPI[],MATCH(X$4,CPI[#Headers],0),FALSE) -> 0 | Y64: =ProjectData[[#This Row],[Actuals 13/14]]*VLOOKUP("Mid Year Nominal - EOY Real (2020/21)",CPI[],MATCH(Y$4,CPI[#Headers],0),FALSE) -> 0 | Z64: =ProjectData[[#This Row],[Actuals 14/15]]*VLOOKUP("Mid Year Nominal - EOY Real (2020/21)",CPI[],MATCH(Z$4,CPI[#Headers],0),FALSE) -> 0 | AA64: =ProjectData[[#This Row],[Actuals 15/16]]*VLOOKUP("Mid Year Nominal - EOY Real (2020/21)",CPI[],MATCH(AA$4,CPI[#Headers],0),FALSE) -> 0 | AB64: =ProjectData[[#This Row],[Actuals 16/17]]*VLOOKUP("Mid Year Nominal - EOY Real (2020/21)",CPI[],MATCH(AB$4,CPI[#Headers],0),FALSE) -> 0 | AC64: =ProjectData[[#This Row],[Actuals 17/18]]*VLOOKUP("Mid Year Nominal - EOY Real (2020/21)",CPI[],MATCH(AC$4,CPI[#Headers],0),FALSE) -> 0 | AD64: =ProjectData[[#This Row],[Actuals 18/19]]*VLOOKUP("Mid Year Nominal - EOY Real (2020/21)",CPI[],MATCH(AD$4,CPI[#Headers],0),FALSE) -> 0 | AE64: =ProjectData[[#This Row],[Actuals 19/20]]*VLOOKUP("Mid Year Nominal - EOY Real (2020/21)",CPI[],MATCH(AE$4,CPI[#Headers],0),FALSE) -> 0 | AF64: =SUM(ProjectData[[#This Row],[Real 08]:[Real 20]]) -> 0.4450557491 | AG64: =(ProjectData[[#This Row],[Real Sum]]-VLOOKUP(ProjectData[[#This Row],[Category]],Category_AverageStdDevLimit[],MATCH("Average",Category_AverageStdDevLimit[#Headers],0),FALSE))^2 -> 0.7750607719 | AH64: =VLOOKUP(ProjectData[[#This Row],[Category]],Category_AverageStdDevLimit[],MATCH("Limit",Category_AverageStdDevLimit[#Headers],0),FALSE) -> 7.504688892 | AI64: =ProjectData[[#This Row],[Real Sum]]>ProjectData[[#This Row],[Category Limit]] -> FALSE | AK64: =OR(ProjectData[[#This Row],[Significant Project? (Financial Basis)]],ProjectData[[#This Row],[Non repeatable]]) -> FALSE | AL64: =AND(ProjectData[[#This Row],[SomeExpenditure >= 2016]],ProjectData[[#This Row],[Abnormal?]]) -> FALSE
A65: CP.01313 | B65: Ross - Chalumbin OPGW Retrofit | C65: Other | D65: 0.76215295 | E65: 0.01804321 | H65: 0 | I65: 0 | K65: 0 | L65: 0 | M65: 0 | N65: 0 | O65: 0 | P65: 0 | Q65: =ProjectData[[#This Row],[Real Sum]]>0.0001 -> TRUE | R65: =OR(ProjectData[[#This Row],[Real 16]]>0,ProjectData[[#This Row],[Real 17]]>0,ProjectData[[#This Row],[Real 18]]>0,ProjectData[[#This Row],[Real 19]]>0,ProjectData[[#This Row],[Real 20]]>0) -> FALSE | S65: =ProjectData[[#This Row],[Actuals 07/08]]*VLOOKUP("Mid Year Nominal - EOY Real (2020/21)",CPI[],MATCH(S$4,CPI[#Headers],0),FALSE) -> 1.0132498 | T65: =ProjectData[[#This Row],[Actuals 08/09]]*VLOOKUP("Mid Year Nominal - EOY Real (2020/21)",CPI[],MATCH(T$4,CPI[#Headers],0),FALSE) -> 0.02322261681 | U65: =ProjectData[[#This Row],[Actuals 09/10]]*VLOOKUP("Mid Year Nominal - EOY Real (2020/21)",CPI[],MATCH(U$4,CPI[#Headers],0),FALSE) -> 0 | V65: =ProjectData[[#This Row],[Actuals 10/11]]*VLOOKUP("Mid Year Nominal - EOY Real (2020/21)",CPI[],MATCH(V$4,CPI[#Headers],0),FALSE) -> 0 | W65: =ProjectData[[#This Row],[Actuals 11/12]]*VLOOKUP("Mid Year Nominal - EOY Real (2020/21)",CPI[],MATCH(W$4,CPI[#Headers],0),FALSE) -> 0 | X65: =ProjectData[[#This Row],[Actuals 12/13]]*VLOOKUP("Mid Year Nominal - EOY Real (2020/21)",CPI[],MATCH(X$4,CPI[#Headers],0),FALSE) -> 0 | Y65: =ProjectData[[#This Row],[Actuals 13/14]]*VLOOKUP("Mid Year Nominal - EOY Real (2020/21)",CPI[],MATCH(Y$4,CPI[#Headers],0),FALSE) -> 0 | Z65: =ProjectData[[#This Row],[Actuals 14/15]]*VLOOKUP("Mid Year Nominal - EOY Real (2020/21)",CPI[],MATCH(Z$4,CPI[#Headers],0),FALSE) -> 0 | AA65: =ProjectData[[#This Row],[Actuals 15/16]]*VLOOKUP("Mid Year Nominal - EOY Real (2020/21)",CPI[],MATCH(AA$4,CPI[#Headers],0),FALSE) -> 0 | AB65: =ProjectData[[#This Row],[Actuals 16/17]]*VLOOKUP("Mid Year Nominal - EOY Real (2020/21)",CPI[],MATCH(AB$4,CPI[#Headers],0),FALSE) -> 0 | AC65: =ProjectData[[#This Row],[Actuals 17/18]]*VLOOKUP("Mid Year Nominal - EOY Real (2020/21)",CPI[],MATCH(AC$4,CPI[#Headers],0),FALSE) -> 0 | AD65: =ProjectData[[#This Row],[Actuals 18/19]]*VLOOKUP("Mid Year Nominal - EOY Real (2020/21)",CPI[],MATCH(AD$4,CPI[#Headers],0),FALSE) -> 0 | AE65: =ProjectData[[#This Row],[Actuals 19/20]]*VLOOKUP("Mid Year Nominal - EOY Real (2020/21)",CPI[],MATCH(AE$4,CPI[#Headers],0),FALSE) -> 0 | AF65: =SUM(ProjectData[[#This Row],[Real 08]:[Real 20]]) -> 1.036472417 | AG65: =(ProjectData[[#This Row],[Real Sum]]-VLOOKUP(ProjectData[[#This Row],[Category]],Category_AverageStdDevLimit[],MATCH("Average",Category_AverageStdDevLimit[#Headers],0),FALSE))^2 -> 0.08349712492 | AH65: =VLOOKUP(ProjectData[[#This Row],[Category]],Category_AverageStdDevLimit[],MATCH("Limit",Category_AverageStdDevLimit[#Headers],0),FALSE) -> 7.504688892 | AI65: =ProjectData[[#This Row],[Real Sum]]>ProjectData[[#This Row],[Category Limit]] -> FALSE | AK65: =OR(ProjectData[[#This Row],[Significant Project? (Financial Basis)]],ProjectData[[#This Row],[Non repeatable]]) -> FALSE | AL65: =AND(ProjectData[[#This Row],[SomeExpenditure >= 2016]],ProjectData[[#This Row],[Abnormal?]]) -> FALSE
A66: CP.01335 | B66: Digital Technology Centre | C66: Other | D66: 0.03412546 | E66: 0.00034497 | F66: -0.03447043 | G66: 0 | H66: 0 | I66: 0 | K66: 0 | L66: 0 | M66: 0 | N66: 0 | O66: 0 | P66: 0 | Q66: =ProjectData[[#This Row],[Real Sum]]>0.0001 -> TRUE | R66: =OR(ProjectData[[#This Row],[Real 16]]>0,ProjectData[[#This Row],[Real 17]]>0,ProjectData[[#This Row],[Real 18]]>0,ProjectData[[#This Row],[Real 19]]>0,ProjectData[[#This Row],[Real 20]]>0) -> FALSE | S66: =ProjectData[[#This Row],[Actuals 07/08]]*VLOOKUP("Mid Year Nominal - EOY Real (2020/21)",CPI[],MATCH(S$4,CPI[#Headers],0),FALSE) -> 0.04536834178 | T66: =ProjectData[[#This Row],[Actuals 08/09]]*VLOOKUP("Mid Year Nominal - EOY Real (2020/21)",CPI[],MATCH(T$4,CPI[#Headers],0),FALSE) -> 0.0004439956149 | U66: =ProjectData[[#This Row],[Actuals 09/10]]*VLOOKUP("Mid Year Nominal - EOY Real (2020/21)",CPI[],MATCH(U$4,CPI[#Headers],0),FALSE) -> -0.04312479652 | V66: =ProjectData[[#This Row],[Actuals 10/11]]*VLOOKUP("Mid Year Nominal - EOY Real (2020/21)",CPI[],MATCH(V$4,CPI[#Headers],0),FALSE) -> 0 | W66: =ProjectData[[#This Row],[Actuals 11/12]]*VLOOKUP("Mid Year Nominal - EOY Real (2020/21)",CPI[],MATCH(W$4,CPI[#Headers],0),FALSE) -> 0 | X66: =ProjectData[[#This Row],[Actuals 12/13]]*VLOOKUP("Mid Year Nominal - EOY Real (2020/21)",CPI[],MATCH(X$4,CPI[#Headers],0),FALSE) -> 0 | Y66: =ProjectData[[#This Row],[Actuals 13/14]]*VLOOKUP("Mid Year Nominal - EOY Real (2020/21)",CPI[],MATCH(Y$4,CPI[#Headers],0),FALSE) -> 0 | Z66: =ProjectData[[#This Row],[Actuals 14/15]]*VLOOKUP("Mid Year Nominal - EOY Real (2020/21)",CPI[],MATCH(Z$4,CPI[#Headers],0),FALSE) -> 0 | AA66: =ProjectData[[#This Row],[Actuals 15/16]]*VLOOKUP("Mid Year Nominal - EOY Real (2020/21)",CPI[],MATCH(AA$4,CPI[#Headers],0),FALSE) -> 0 | AB66: =ProjectData[[#This Row],[Actuals 16/17]]*VLOOKUP("Mid Year Nominal - EOY Real (2020/21)",CPI[],MATCH(AB$4,CPI[#Headers],0),FALSE) -> 0 | AC66: =ProjectData[[#This Row],[Actuals 17/18]]*VLOOKUP("Mid Year Nominal - EOY Real (2020/21)",CPI[],MATCH(AC$4,CPI[#Headers],0),FALSE) -> 0 | AD66: =ProjectData[[#This Row],[Actuals 18/19]]*VLOOKUP("Mid Year Nominal - EOY Real (2020/21)",CPI[],MATCH(AD$4,CPI[#Headers],0),FALSE) -> 0 | AE66: =ProjectData[[#This Row],[Actuals 19/20]]*VLOOKUP("Mid Year Nominal - EOY Real (2020/21)",CPI[],MATCH(AE$4,CPI[#Headers],0),FALSE) -> 0 | AF66: =SUM(ProjectData[[#This Row],[Real 08]:[Real 20]]) -> 0.002687540879 | AG66: =(ProjectData[[#This Row],[Real Sum]]-VLOOKUP(ProjectData[[#This Row],[Category]],Category_AverageStdDevLimit[],MATCH("Average",Category_AverageStdDevLimit[#Headers],0),FALSE))^2 -> 1.749650543 | AH66: =VLOOKUP(ProjectData[[#This Row],[Category]],Category_AverageStdDevLimit[],MATCH("Limit",Category_AverageStdDevLimit[#Headers],0),FALSE) -> 7.504688892 | AI66: =ProjectData[[#This Row],[Real Sum]]>ProjectData[[#This Row],[Category Limit]] -> FALSE | AK66: =OR(ProjectData[[#This Row],[Significant Project? (Financial Basis)]],ProjectData[[#This Row],[Non repeatable]]) -> FALSE | AL66: =AND(ProjectData[[#This Row],[SomeExpenditure >= 2016]],ProjectData[[#This Row],[Abnormal?]]) -> FALSE
A67: CP.01356 | B67: Communications Console | C67: Other | D67: 0.000143 | E67: 0.00678744 | F67: 0.05353453 | G67: 0.38093772 | H67: 0.63484521 | I67: 0 | K67: 0 | L67: 0 | M67: 0 | N67: 0 | O67: 0 | P67: 0 | Q67: =ProjectData[[#This Row],[Real Sum]]>0.0001 -> TRUE | R67: =OR(ProjectData[[#This Row],[Real 16]]>0,ProjectData[[#This Row],[Real 17]]>0,ProjectData[[#This Row],[Real 18]]>0,ProjectData[[#This Row],[Real 19]]>0,ProjectData[[#This Row],[Real 20]]>0) -> FALSE | S67: =ProjectData[[#This Row],[Actuals 07/08]]*VLOOKUP("Mid Year Nominal - EOY Real (2020/21)",CPI[],MATCH(S$4,CPI[#Headers],0),FALSE) -> 0.0001901123933 | T67: =ProjectData[[#This Row],[Actuals 08/09]]*VLOOKUP("Mid Year Nominal - EOY Real (2020/21)",CPI[],MATCH(T$4,CPI[#Headers],0),FALSE) -> 0.008735813539 | U67: =ProjectData[[#This Row],[Actuals 09/10]]*VLOOKUP("Mid Year Nominal - EOY Real (2020/21)",CPI[],MATCH(U$4,CPI[#Headers],0),FALSE) -> 0.06697525133 | V67: =ProjectData[[#This Row],[Actuals 10/11]]*VLOOKUP("Mid Year Nominal - EOY Real (2020/21)",CPI[],MATCH(V$4,CPI[#Headers],0),FALSE) -> 0.4653807691 | W67: =ProjectData[[#This Row],[Actuals 11/12]]*VLOOKUP("Mid Year Nominal - EOY Real (2020/21)",CPI[],MATCH(W$4,CPI[#Headers],0),FALSE) -> 0.7538984975 | X67: =ProjectData[[#This Row],[Actuals 12/13]]*VLOOKUP("Mid Year Nominal - EOY Real (2020/21)",CPI[],MATCH(X$4,CPI[#Headers],0),FALSE) -> 0 | Y67: =ProjectData[[#This Row],[Actuals 13/14]]*VLOOKUP("Mid Year Nominal - EOY Real (2020/21)",CPI[],MATCH(Y$4,CPI[#Headers],0),FALSE) -> 0 | Z67: =ProjectData[[#This Row],[Actuals 14/15]]*VLOOKUP("Mid Year Nominal - EOY Real (2020/21)",CPI[],MATCH(Z$4,CPI[#Headers],0),FALSE) -> 0 | AA67: =ProjectData[[#This Row],[Actuals 15/16]]*VLOOKUP("Mid Year Nominal - EOY Real (2020/21)",CPI[],MATCH(AA$4,CPI[#Headers],0),FALSE) -> 0 | AB67: =ProjectData[[#This Row],[Actuals 16/17]]*VLOOKUP("Mid Year Nominal - EOY Real (2020/21)",CPI[],MATCH(AB$4,CPI[#Headers],0),FALSE) -> 0 | AC67: =ProjectData[[#This Row],[Actuals 17/18]]*VLOOKUP("Mid Year Nominal - EOY Real (2020/21)",CPI[],MATCH(AC$4,CPI[#Headers],0),FALSE) -> 0 | AD67: =ProjectData[[#This Row],[Actuals 18/19]]*VLOOKUP("Mid Year Nominal - EOY Real (2020/21)",CPI[],MATCH(AD$4,CPI[#Headers],0),FALSE) -> 0 | AE67: =ProjectData[[#This Row],[Actuals 19/20]]*VLOOKUP("Mid Year Nominal - EOY Real (2020/21)",CPI[],MATCH(AE$4,CPI[#Headers],0),FALSE) -> 0 | AF67: =SUM(ProjectData[[#This Row],[Real 08]:[Real 20]]) -> 1.295180444 | AG67: =(ProjectData[[#This Row],[Real Sum]]-VLOOKUP(ProjectData[[#This Row],[Category]],Category_AverageStdDevLimit[],MATCH("Average",Category_AverageStdDevLimit[#Headers],0),FALSE))^2 -> 0.0009151026555 | AH67: =VLOOKUP(ProjectData[[#This Row],[Category]],Category_AverageStdDevLimit[],MATCH("Limit",Category_AverageStdDevLimit[#Headers],0),FALSE) -> 7.504688892 | AI67: =ProjectData[[#This Row],[Real Sum]]>ProjectData[[#This Row],[Category Limit]] -> FALSE | AK67: =OR(ProjectData[[#This Row],[Significant Project? (Financial Basis)]],ProjectData[[#This Row],[Non repeatable]]) -> FALSE | AL67: =AND(ProjectData[[#This Row],[SomeExpenditure >= 2016]],ProjectData[[#This Row],[Abnormal?]]) -> FALSE
A68: CP.01367 | B68: Establish DWDM Network | C68: Other | D68: 3.74648439 | E68: 10.52361482 | F68: 1.36478353 | H68: 0 | I68: 0 | K68: 0 | L68: 0 | M68: 0 | N68: 0 | O68: 0 | P68: 0 | Q68: =ProjectData[[#This Row],[Real Sum]]>0.0001 -> TRUE | R68: =OR(ProjectData[[#This Row],[Real 16]]>0,ProjectData[[#This Row],[Real 17]]>0,ProjectData[[#This Row],[Real 18]]>0,ProjectData[[#This Row],[Real 19]]>0,ProjectData[[#This Row],[Real 20]]>0) -> FALSE | S68: =ProjectData[[#This Row],[Actuals 07/08]]*VLOOKUP("Mid Year Nominal - EOY Real (2020/21)",CPI[],MATCH(S$4,CPI[#Headers],0),FALSE) -> 4.980791007 | T68: =ProjectData[[#This Row],[Actuals 08/09]]*VLOOKUP("Mid Year Nominal - EOY Real (2020/21)",CPI[],MATCH(T$4,CPI[#Headers],0),FALSE) -> 13.54447875 | U68: =ProjectData[[#This Row],[Actuals 09/10]]*VLOOKUP("Mid Year Nominal - EOY Real (2020/21)",CPI[],MATCH(U$4,CPI[#Headers],0),FALSE) -> 1.707434808 | V68: =ProjectData[[#This Row],[Actuals 10/11]]*VLOOKUP("Mid Year Nominal - EOY Real (2020/21)",CPI[],MATCH(V$4,CPI[#Headers],0),FALSE) -> 0 | W68: =ProjectData[[#This Row],[Actuals 11/12]]*VLOOKUP("Mid Year Nominal - EOY Real (2020/21)",CPI[],MATCH(W$4,CPI[#Headers],0),FALSE) -> 0 | X68: =ProjectData[[#This Row],[Actuals 12/13]]*VLOOKUP("Mid Year Nominal - EOY Real (2020/21)",CPI[],MATCH(X$4,CPI[#Headers],0),FALSE) -> 0 | Y68: =ProjectData[[#This Row],[Actuals 13/14]]*VLOOKUP("Mid Year Nominal - EOY Real (2020/21)",CPI[],MATCH(Y$4,CPI[#Headers],0),FALSE) -> 0 | Z68: =ProjectData[[#This Row],[Actuals 14/15]]*VLOOKUP("Mid Year Nominal - EOY Real (2020/21)",CPI[],MATCH(Z$4,CPI[#Headers],0),FALSE) -> 0 | AA68: =ProjectData[[#This Row],[Actuals 15/16]]*VLOOKUP("Mid Year Nominal - EOY Real (2020/21)",CPI[],MATCH(AA$4,CPI[#Headers],0),FALSE) -> 0 | AB68: =ProjectData[[#This Row],[Actuals 16/17]]*VLOOKUP("Mid Year Nominal - EOY Real (2020/21)",CPI[],MATCH(AB$4,CPI[#Headers],0),FALSE) -> 0 | AC68: =ProjectData[[#This Row],[Actuals 17/18]]*VLOOKUP("Mid Year Nominal - EOY Real (2020/21)",CPI[],MATCH(AC$4,CPI[#Headers],0),FALSE) -> 0 | AD68: =ProjectData[[#This Row],[Actuals 18/19]]*VLOOKUP("Mid Year Nominal - EOY Real (2020/21)",CPI[],MATCH(AD$4,CPI[#Headers],0),FALSE) -> 0 | AE68: =ProjectData[[#This Row],[Actuals 19/20]]*VLOOKUP("Mid Year Nominal - EOY Real (2020/21)",CPI[],MATCH(AE$4,CPI[#Headers],0),FALSE) -> 0 | AF68: =SUM(ProjectData[[#This Row],[Real 08]:[Real 20]]) -> 20.23270456 | AG68: =(ProjectData[[#This Row],[Real Sum]]-VLOOKUP(ProjectData[[#This Row],[Category]],Category_AverageStdDevLimit[],MATCH("Average",Category_AverageStdDevLimit[#Headers],0),FALSE))^2 -> 357.4849895 | AH68: =VLOOKUP(ProjectData[[#This Row],[Category]],Category_AverageStdDevLimit[],MATCH("Limit",Category_AverageStdDevLimit[#Headers],0),FALSE) -> 7.504688892 | AI68: =ProjectData[[#This Row],[Real Sum]]>ProjectData[[#This Row],[Category Limit]] -> TRUE | AK68: =OR(ProjectData[[#This Row],[Significant Project? (Financial Basis)]],ProjectData[[#This Row],[Non repeatable]]) -> TRUE | AL68: =AND(ProjectData[[#This Row],[SomeExpenditure >= 2016]],ProjectData[[#This Row],[Abnormal?]]) -> FALSE
A69: CP.01369 | B69: South East Qld 110/33kV System Spare Transformer | C69: Other | D69: 0.39055026 | H69: 0 | I69: 0 | K69: 0 | L69: 0 | M69: 0 | N69: 0 | O69: 0 | P69: 0 | Q69: =ProjectData[[#This Row],[Real Sum]]>0.0001 -> TRUE | R69: =OR(ProjectData[[#This Row],[Real 16]]>0,ProjectData[[#This Row],[Real 17]]>0,ProjectData[[#This Row],[Real 18]]>0,ProjectData[[#This Row],[Real 19]]>0,ProjectData[[#This Row],[Real 20]]>0) -> FALSE | S69: =ProjectData[[#This Row],[Actuals 07/08]]*VLOOKUP("Mid Year Nominal - EOY Real (2020/21)",CPI[],MATCH(S$4,CPI[#Headers],0),FALSE) -> 0.5192198926 | T69: =ProjectData[[#This Row],[Actuals 08/09]]*VLOOKUP("Mid Year Nominal - EOY Real (2020/21)",CPI[],MATCH(T$4,CPI[#Headers],0),FALSE) -> 0 | U69: =ProjectData[[#This Row],[Actuals 09/10]]*VLOOKUP("Mid Year Nominal - EOY Real (2020/21)",CPI[],MATCH(U$4,CPI[#Headers],0),FALSE) -> 0 | V69: =ProjectData[[#This Row],[Actuals 10/11]]*VLOOKUP("Mid Year Nominal - EOY Real (2020/21)",CPI[],MATCH(V$4,CPI[#Headers],0),FALSE) -> 0 | W69: =ProjectData[[#This Row],[Actuals 11/12]]*VLOOKUP("Mid Year Nominal - EOY Real (2020/21)",CPI[],MATCH(W$4,CPI[#Headers],0),FALSE) -> 0 | X69: =ProjectData[[#This Row],[Actuals 12/13]]*VLOOKUP("Mid Year Nominal - EOY Real (2020/21)",CPI[],MATCH(X$4,CPI[#Headers],0),FALSE) -> 0 | Y69: =ProjectData[[#This Row],[Actuals 13/14]]*VLOOKUP("Mid Year Nominal - EOY Real (2020/21)",CPI[],MATCH(Y$4,CPI[#Headers],0),FALSE) -> 0 | Z69: =ProjectData[[#This Row],[Actuals 14/15]]*VLOOKUP("Mid Year Nominal - EOY Real (2020/21)",CPI[],MATCH(Z$4,CPI[#Headers],0),FALSE) -> 0 | AA69: =ProjectData[[#This Row],[Actuals 15/16]]*VLOOKUP("Mid Year Nominal - EOY Real (2020/21)",CPI[],MATCH(AA$4,CPI[#Headers],0),FALSE) -> 0 | AB69: =ProjectData[[#This Row],[Actuals 16/17]]*VLOOKUP("Mid Year Nominal - EOY Real (2020/21)",CPI[],MATCH(AB$4,CPI[#Headers],0),FALSE) -> 0 | AC69: =ProjectData[[#This Row],[Actuals 17/18]]*VLOOKUP("Mid Year Nominal - EOY Real (2020/21)",CPI[],MATCH(AC$4,CPI[#Headers],0),FALSE) -> 0 | AD69: =ProjectData[[#This Row],[Actuals 18/19]]*VLOOKUP("Mid Year Nominal - EOY Real (2020/21)",CPI[],MATCH(AD$4,CPI[#Headers],0),FALSE) -> 0 | AE69: =ProjectData[[#This Row],[Actuals 19/20]]*VLOOKUP("Mid Year Nominal - EOY Real (2020/21)",CPI[],MATCH(AE$4,CPI[#Headers],0),FALSE) -> 0 | AF69: =SUM(ProjectData[[#This Row],[Real 08]:[Real 20]]) -> 0.5192198926 | AG69: =(ProjectData[[#This Row],[Real Sum]]-VLOOKUP(ProjectData[[#This Row],[Category]],Category_AverageStdDevLimit[],MATCH("Average",Category_AverageStdDevLimit[#Headers],0),FALSE))^2 -> 0.6499765231 | AH69: =VLOOKUP(ProjectData[[#This Row],[Category]],Category_AverageStdDevLimit[],MATCH("Limit",Category_AverageStdDevLimit[#Headers],0),FALSE) -> 7.504688892 | AI69: =ProjectData[[#This Row],[Real Sum]]>ProjectData[[#This Row],[Category Limit]] -> FALSE | AJ69: TRUE | AK69: =OR(ProjectData[[#This Row],[Significant Project? (Financial Basis)]],ProjectData[[#This Row],[Non repeatable]]) -> TRUE | AL69: =AND(ProjectData[[#This Row],[SomeExpenditure >= 2016]],ProjectData[[#This Row],[Abnormal?]]) -> FALSE
A70: CP.01372 | B70: Darling Downs Power Station Connection | C70: Other | E70: 1.1416 | F70: 0.03319174 | G70: 0 | H70: 0 | I70: 0 | K70: 0 | L70: 0 | M70: 0 | N70: 0 | O70: 0 | P70: 0 | Q70: =ProjectData[[#This Row],[Real Sum]]>0.0001 -> TRUE | R70: =OR(ProjectData[[#This Row],[Real 16]]>0,ProjectData[[#This Row],[Real 17]]>0,ProjectData[[#This Row],[Real 18]]>0,ProjectData[[#This Row],[Real 19]]>0,ProjectData[[#This Row],[Real 20]]>0) -> FALSE | S70: =ProjectData[[#This Row],[Actuals 07/08]]*VLOOKUP("Mid Year Nominal - EOY Real (2020/21)",CPI[],MATCH(S$4,CPI[#Headers],0),FALSE) -> 0 | T70: =ProjectData[[#This Row],[Actuals 08/09]]*VLOOKUP("Mid Year Nominal - EOY Real (2020/21)",CPI[],MATCH(T$4,CPI[#Headers],0),FALSE) -> 1.469302821 | U70: =ProjectData[[#This Row],[Actuals 09/10]]*VLOOKUP("Mid Year Nominal - EOY Real (2020/21)",CPI[],MATCH(U$4,CPI[#Headers],0),FALSE) -> 0.04152507043 | V70: =ProjectData[[#This Row],[Actuals 10/11]]*VLOOKUP("Mid Year Nominal - EOY Real (2020/21)",CPI[],MATCH(V$4,CPI[#Headers],0),FALSE) -> 0 | W70: =ProjectData[[#This Row],[Actuals 11/12]]*VLOOKUP("Mid Year Nominal - EOY Real (2020/21)",CPI[],MATCH(W$4,CPI[#Headers],0),FALSE) -> 0 | X70: =ProjectData[[#This Row],[Actuals 12/13]]*VLOOKUP("Mid Year Nominal - EOY Real (2020/21)",CPI[],MATCH(X$4,CPI[#Headers],0),FALSE) -> 0 | Y70: =ProjectData[[#This Row],[Actuals 13/14]]*VLOOKUP("Mid Year Nominal - EOY Real (2020/21)",CPI[],MATCH(Y$4,CPI[#Headers],0),FALSE) -> 0 | Z70: =ProjectData[[#This Row],[Actuals 14/15]]*VLOOKUP("Mid Year Nominal - EOY Real (2020/21)",CPI[],MATCH(Z$4,CPI[#Headers],0),FALSE) -> 0 | AA70: =ProjectData[[#This Row],[Actuals 15/16]]*VLOOKUP("Mid Year Nominal - EOY Real (2020/21)",CPI[],MATCH(AA$4,CPI[#Headers],0),FALSE) -> 0 | AB70: =ProjectData[[#This Row],[Actuals 16/17]]*VLOOKUP("Mid Year Nominal - EOY Real (2020/21)",CPI[],MATCH(AB$4,CPI[#Headers],0),FALSE) -> 0 | AC70: =ProjectData[[#This Row],[Actuals 17/18]]*VLOOKUP("Mid Year Nominal - EOY Real (2020/21)",CPI[],MATCH(AC$4,CPI[#Headers],0),FALSE) -> 0 | AD70: =ProjectData[[#This Row],[Actuals 18/19]]*VLOOKUP("Mid Year Nominal - EOY Real (2020/21)",CPI[],MATCH(AD$4,CPI[#Headers],0),FALSE) -> 0 | AE70: =ProjectData[[#This Row],[Actuals 19/20]]*VLOOKUP("Mid Year Nominal - EOY Real (2020/21)",CPI[],MATCH(AE$4,CPI[#Headers],0),FALSE) -> 0 | AF70: =SUM(ProjectData[[#This Row],[Real 08]:[Real 20]]) -> 1.510827891 | AG70: =(ProjectData[[#This Row],[Real Sum]]-VLOOKUP(ProjectData[[#This Row],[Category]],Category_AverageStdDevLimit[],MATCH("Average",Category_AverageStdDevLimit[#Headers],0),FALSE))^2 -> 0.03437196728 | AH70: =VLOOKUP(ProjectData[[#This Row],[Category]],Category_AverageStdDevLimit[],MATCH("Limit",Category_AverageStdDevLimit[#Headers],0),FALSE) -> 7.504688892 | AI70: =ProjectData[[#This Row],[Real Sum]]>ProjectData[[#This Row],[Category Limit]] -> FALSE | AK70: =OR(ProjectData[[#This Row],[Significant Project? (Financial Basis)]],ProjectData[[#This Row],[Non repeatable]]) -> FALSE | AL70: =AND(ProjectData[[#This Row],[SomeExpenditure >= 2016]],ProjectData[[#This Row],[Abnormal?]]) -> FALSE
A71: CP.01408 | B71: SDM Version 8 Update | C71: Other | E71: 0 | F71: 0 | G71: 0 | H71: 0 | I71: 0 | K71: 0 | L71: 0 | M71: 0 | N71: 0 | O71: 0 | P71: 0 | Q71: =ProjectData[[#This Row],[Real Sum]]>0.0001 -> FALSE | R71: =OR(ProjectData[[#This Row],[Real 16]]>0,ProjectData[[#This Row],[Real 17]]>0,ProjectData[[#This Row],[Real 18]]>0,ProjectData[[#This Row],[Real 19]]>0,ProjectData[[#This Row],[Real 20]]>0) -> FALSE | S71: =ProjectData[[#This Row],[Actuals 07/08]]*VLOOKUP("Mid Year Nominal - EOY Real (2020/21)",CPI[],MATCH(S$4,CPI[#Headers],0),FALSE) -> 0 | T71: =ProjectData[[#This Row],[Actuals 08/09]]*VLOOKUP("Mid Year Nominal - EOY Real (2020/21)",CPI[],MATCH(T$4,CPI[#Headers],0),FALSE) -> 0 | U71: =ProjectData[[#This Row],[Actuals 09/10]]*VLOOKUP("Mid Year Nominal - EOY Real (2020/21)",CPI[],MATCH(U$4,CPI[#Headers],0),FALSE) -> 0 | V71: =ProjectData[[#This Row],[Actuals 10/11]]*VLOOKUP("Mid Year Nominal - EOY Real (2020/21)",CPI[],MATCH(V$4,CPI[#Headers],0),FALSE) -> 0 | W71: =ProjectData[[#This Row],[Actuals 11/12]]*VLOOKUP("Mid Year Nominal - EOY Real (2020/21)",CPI[],MATCH(W$4,CPI[#Headers],0),FALSE) -> 0 | X71: =ProjectData[[#This Row],[Actuals 12/13]]*VLOOKUP("Mid Year Nominal - EOY Real (2020/21)",CPI[],MATCH(X$4,CPI[#Headers],0),FALSE) -> 0 | Y71: =ProjectData[[#This Row],[Actuals 13/14]]*VLOOKUP("Mid Year Nominal - EOY Real (2020/21)",CPI[],MATCH(Y$4,CPI[#Headers],0),FALSE) -> 0 | Z71: =ProjectData[[#This Row],[Actuals 14/15]]*VLOOKUP("Mid Year Nominal - EOY Real (2020/21)",CPI[],MATCH(Z$4,CPI[#Headers],0),FALSE) -> 0 | AA71: =ProjectData[[#This Row],[Actuals 15/16]]*VLOOKUP("Mid Year Nominal - EOY Real (2020/21)",CPI[],MATCH(AA$4,CPI[#Headers],0),FALSE) -> 0 | AB71: =ProjectData[[#This Row],[Actuals 16/17]]*VLOOKUP("Mid Year Nominal - EOY Real (2020/21)",CPI[],MATCH(AB$4,CPI[#Headers],0),FALSE) -> 0 | AC71: =ProjectData[[#This Row],[Actuals 17/18]]*VLOOKUP("Mid Year Nominal - EOY Real (2020/21)",CPI[],MATCH(AC$4,CPI[#Headers],0),FALSE) -> 0 | AD71: =ProjectData[[#This Row],[Actuals 18/19]]*VLOOKUP("Mid Year Nominal - EOY Real (2020/21)",CPI[],MATCH(AD$4,CPI[#Headers],0),FALSE) -> 0 | AE71: =ProjectData[[#This Row],[Actuals 19/20]]*VLOOKUP("Mid Year Nominal - EOY Real (2020/21)",CPI[],MATCH(AE$4,CPI[#Headers],0),FALSE) -> 0 | AF71: =SUM(ProjectData[[#This Row],[Real 08]:[Real 20]]) -> 0 | AG71: =(ProjectData[[#This Row],[Real Sum]]-VLOOKUP(ProjectData[[#This Row],[Category]],Category_AverageStdDevLimit[],MATCH("Average",Category_AverageStdDevLimit[#Headers],0),FALSE))^2 -> 1.756767621 | AH71: =VLOOKUP(ProjectData[[#This Row],[Category]],Category_AverageStdDevLimit[],MATCH("Limit",Category_AverageStdDevLimit[#Headers],0),FALSE) -> 7.504688892 | AI71: =ProjectData[[#This Row],[Real Sum]]>ProjectData[[#This Row],[Category Limit]] -> FALSE | AK71: =OR(ProjectData[[#This Row],[Significant Project? (Financial Basis)]],ProjectData[[#This Row],[Non repeatable]]) -> FALSE | AL71: =AND(ProjectData[[#This Row],[SomeExpenditure >= 2016]],ProjectData[[#This Row],[Abnormal?]]) -> FALSE
A72: CP.01409 | B72: SDM Version 9 | C72: Other | E72: 0.1939153 | F72: -0.1939153 | G72: 0 | H72: 0 | I72: 0 | K72: 0 | L72: 0 | M72: 0 | N72: 0 | O72: 0 | P72: 0 | Q72: =ProjectData[[#This Row],[Real Sum]]>0.0001 -> TRUE | R72: =OR(ProjectData[[#This Row],[Real 16]]>0,ProjectData[[#This Row],[Real 17]]>0,ProjectData[[#This Row],[Real 18]]>0,ProjectData[[#This Row],[Real 19]]>0,ProjectData[[#This Row],[Real 20]]>0) -> FALSE | S72: =ProjectData[[#This Row],[Actuals 07/08]]*VLOOKUP("Mid Year Nominal - EOY Real (2020/21)",CPI[],MATCH(S$4,CPI[#Headers],0),FALSE) -> 0 | T72: =ProjectData[[#This Row],[Actuals 08/09]]*VLOOKUP("Mid Year Nominal - EOY Real (2020/21)",CPI[],MATCH(T$4,CPI[#Headers],0),FALSE) -> 0.2495797979 | U72: =ProjectData[[#This Row],[Actuals 09/10]]*VLOOKUP("Mid Year Nominal - EOY Real (2020/21)",CPI[],MATCH(U$4,CPI[#Headers],0),FALSE) -> -0.2426009149 | V72: =ProjectData[[#This Row],[Actuals 10/11]]*VLOOKUP("Mid Year Nominal - EOY Real (2020/21)",CPI[],MATCH(V$4,CPI[#Headers],0),FALSE) -> 0 | W72: =ProjectData[[#This Row],[Actuals 11/12]]*VLOOKUP("Mid Year Nominal - EOY Real (2020/21)",CPI[],MATCH(W$4,CPI[#Headers],0),FALSE) -> 0 | X72: =ProjectData[[#This Row],[Actuals 12/13]]*VLOOKUP("Mid Year Nominal - EOY Real (2020/21)",CPI[],MATCH(X$4,CPI[#Headers],0),FALSE) -> 0 | Y72: =ProjectData[[#This Row],[Actuals 13/14]]*VLOOKUP("Mid Year Nominal - EOY Real (2020/21)",CPI[],MATCH(Y$4,CPI[#Headers],0),FALSE) -> 0 | Z72: =ProjectData[[#This Row],[Actuals 14/15]]*VLOOKUP("Mid Year Nominal - EOY Real (2020/21)",CPI[],MATCH(Z$4,CPI[#Headers],0),FALSE) -> 0 | AA72: =ProjectData[[#This Row],[Actuals 15/16]]*VLOOKUP("Mid Year Nominal - EOY Real (2020/21)",CPI[],MATCH(AA$4,CPI[#Headers],0),FALSE) -> 0 | AB72: =ProjectData[[#This Row],[Actuals 16/17]]*VLOOKUP("Mid Year Nominal - EOY Real (2020/21)",CPI[],MATCH(AB$4,CPI[#Headers],0),FALSE) -> 0 | AC72: =ProjectData[[#This Row],[Actuals 17/18]]*VLOOKUP("Mid Year Nominal - EOY Real (2020/21)",CPI[],MATCH(AC$4,CPI[#Headers],0),FALSE) -> 0 | AD72: =ProjectData[[#This Row],[Actuals 18/19]]*VLOOKUP("Mid Year Nominal - EOY Real (2020/21)",CPI[],MATCH(AD$4,CPI[#Headers],0),FALSE) -> 0 | AE72: =ProjectData[[#This Row],[Actuals 19/20]]*VLOOKUP("Mid Year Nominal - EOY Real (2020/21)",CPI[],MATCH(AE$4,CPI[#Headers],0),FALSE) -> 0 | AF72: =SUM(ProjectData[[#This Row],[Real 08]:[Real 20]]) -> 0.006978882997 | AG72: =(ProjectData[[#This Row],[Real Sum]]-VLOOKUP(ProjectData[[#This Row],[Category]],Category_AverageStdDevLimit[],MATCH("Average",Category_AverageStdDevLimit[#Headers],0),FALSE))^2 -> 1.738316269 | AH72: =VLOOKUP(ProjectData[[#This Row],[Category]],Category_AverageStdDevLimit[],MATCH("Limit",Category_AverageStdDevLimit[#Headers],0),FALSE) -> 7.504688892 | AI72: =ProjectData[[#This Row],[Real Sum]]>ProjectData[[#This Row],[Category Limit]] -> FALSE | AK72: =OR(ProjectData[[#This Row],[Significant Project? (Financial Basis)]],ProjectData[[#This Row],[Non repeatable]]) -> FALSE | AL72: =AND(ProjectData[[#This Row],[SomeExpenditure >= 2016]],ProjectData[[#This Row],[Abnormal?]]) -> FALSE
A73: CP.01411 | B73: 500kV Technical Investigation | C73: Other | D73: 0.4888511 | E73: 0 | F73: -0.12040872 | G73: -1.2865445 | H73: 0 | I73: 0 | K73: 0 | L73: 0 | M73: 0 | N73: 0 | O73: 0 | P73: 0 | Q73: =ProjectData[[#This Row],[Real Sum]]>0.0001 -> FALSE | R73: =OR(ProjectData[[#This Row],[Real 16]]>0,ProjectData[[#This Row],[Real 17]]>0,ProjectData[[#This Row],[Real 18]]>0,ProjectData[[#This Row],[Real 19]]>0,ProjectData[[#This Row],[Real 20]]>0) -> FALSE | S73: =ProjectData[[#This Row],[Actuals 07/08]]*VLOOKUP("Mid Year Nominal - EOY Real (2020/21)",CPI[],MATCH(S$4,CPI[#Headers],0),FALSE) -> 0.6499066616 | T73: =ProjectData[[#This Row],[Actuals 08/09]]*VLOOKUP("Mid Year Nominal - EOY Real (2020/21)",CPI[],MATCH(T$4,CPI[#Headers],0),FALSE) -> 0 | U73: =ProjectData[[#This Row],[Actuals 09/10]]*VLOOKUP("Mid Year Nominal - EOY Real (2020/21)",CPI[],MATCH(U$4,CPI[#Headers],0),FALSE) -> -0.150639303 | V73: =ProjectData[[#This Row],[Actuals 10/11]]*VLOOKUP("Mid Year Nominal - EOY Real (2020/21)",CPI[],MATCH(V$4,CPI[#Headers],0),FALSE) -> -1.571734794 | W73: =ProjectData[[#This Row],[Actuals 11/12]]*VLOOKUP("Mid Year Nominal - EOY Real (2020/21)",CPI[],MATCH(W$4,CPI[#Headers],0),FALSE) -> 0 | X73: =ProjectData[[#This Row],[Actuals 12/13]]*VLOOKUP("Mid Year Nominal - EOY Real (2020/21)",CPI[],MATCH(X$4,CPI[#Headers],0),FALSE) -> 0 | Y73: =ProjectData[[#This Row],[Actuals 13/14]]*VLOOKUP("Mid Year Nominal - EOY Real (2020/21)",CPI[],MATCH(Y$4,CPI[#Headers],0),FALSE) -> 0 | Z73: =ProjectData[[#This Row],[Actuals 14/15]]*VLOOKUP("Mid Year Nominal - EOY Real (2020/21)",CPI[],MATCH(Z$4,CPI[#Headers],0),FALSE) -> 0 | AA73: =ProjectData[[#This Row],[Actuals 15/16]]*VLOOKUP("Mid Year Nominal - EOY Real (2020/21)",CPI[],MATCH(AA$4,CPI[#Headers],0),FALSE) -> 0 | AB73: =ProjectData[[#This Row],[Actuals 16/17]]*VLOOKUP("Mid Year Nominal - EOY Real (2020/21)",CPI[],MATCH(AB$4,CPI[#Headers],0),FALSE) -> 0 | AC73: =ProjectData[[#This Row],[Actuals 17/18]]*VLOOKUP("Mid Year Nominal - EOY Real (2020/21)",CPI[],MATCH(AC$4,CPI[#Headers],0),FALSE) -> 0 | AD73: =ProjectData[[#This Row],[Actuals 18/19]]*VLOOKUP("Mid Year Nominal - EOY Real (2020/21)",CPI[],MATCH(AD$4,CPI[#Headers],0),FALSE) -> 0 | AE73: =ProjectData[[#This Row],[Actuals 19/20]]*VLOOKUP("Mid Year Nominal - EOY Real (2020/21)",CPI[],MATCH(AE$4,CPI[#Headers],0),FALSE) -> 0 | AF73: =SUM(ProjectData[[#This Row],[Real 08]:[Real 20]]) -> -1.072467436 | AG73: =(ProjectData[[#This Row],[Real Sum]]-VLOOKUP(ProjectData[[#This Row],[Category]],Category_AverageStdDevLimit[],MATCH("Average",Category_AverageStdDevLimit[#Headers],0),FALSE))^2 -> 5.749917423 | AH73: =VLOOKUP(ProjectData[[#This Row],[Category]],Category_AverageStdDevLimit[],MATCH("Limit",Category_AverageStdDevLimit[#Headers],0),FALSE) -> 7.504688892 | AI73: =ProjectData[[#This Row],[Real Sum]]>ProjectData[[#This Row],[Category Limit]] -> FALSE | AK73: =OR(ProjectData[[#This Row],[Significant Project? (Financial Basis)]],ProjectData[[#This Row],[Non repeatable]]) -> FALSE | AL73: =AND(ProjectData[[#This Row],[SomeExpenditure >= 2016]],ProjectData[[#This Row],[Abnormal?]]) -> FALSE
A74: CP.01413 | B74: SF6 Detection Camera | C74: Other | E74: 0.1278585 | F74: 0 | G74: 0 | H74: 0 | I74: 0 | K74: 0 | L74: 0 | M74: 0 | N74: 0 | O74: 0 | P74: 0 | Q74: =ProjectData[[#This Row],[Real Sum]]>0.0001 -> TRUE | R74: =OR(ProjectData[[#This Row],[Real 16]]>0,ProjectData[[#This Row],[Real 17]]>0,ProjectData[[#This Row],[Real 18]]>0,ProjectData[[#This Row],[Real 19]]>0,ProjectData[[#This Row],[Real 20]]>0) -> FALSE | S74: =ProjectData[[#This Row],[Actuals 07/08]]*VLOOKUP("Mid Year Nominal - EOY Real (2020/21)",CPI[],MATCH(S$4,CPI[#Headers],0),FALSE) -> 0 | T74: =ProjectData[[#This Row],[Actuals 08/09]]*VLOOKUP("Mid Year Nominal - EOY Real (2020/21)",CPI[],MATCH(T$4,CPI[#Headers],0),FALSE) -> 0.164561015 | U74: =ProjectData[[#This Row],[Actuals 09/10]]*VLOOKUP("Mid Year Nominal - EOY Real (2020/21)",CPI[],MATCH(U$4,CPI[#Headers],0),FALSE) -> 0 | V74: =ProjectData[[#This Row],[Actuals 10/11]]*VLOOKUP("Mid Year Nominal - EOY Real (2020/21)",CPI[],MATCH(V$4,CPI[#Headers],0),FALSE) -> 0 | W74: =ProjectData[[#This Row],[Actuals 11/12]]*VLOOKUP("Mid Year Nominal - EOY Real (2020/21)",CPI[],MATCH(W$4,CPI[#Headers],0),FALSE) -> 0 | X74: =ProjectData[[#This Row],[Actuals 12/13]]*VLOOKUP("Mid Year Nominal - EOY Real (2020/21)",CPI[],MATCH(X$4,CPI[#Headers],0),FALSE) -> 0 | Y74: =ProjectData[[#This Row],[Actuals 13/14]]*VLOOKUP("Mid Year Nominal - EOY Real (2020/21)",CPI[],MATCH(Y$4,CPI[#Headers],0),FALSE) -> 0 | Z74: =ProjectData[[#This Row],[Actuals 14/15]]*VLOOKUP("Mid Year Nominal - EOY Real (2020/21)",CPI[],MATCH(Z$4,CPI[#Headers],0),FALSE) -> 0 | AA74: =ProjectData[[#This Row],[Actuals 15/16]]*VLOOKUP("Mid Year Nominal - EOY Real (2020/21)",CPI[],MATCH(AA$4,CPI[#Headers],0),FALSE) -> 0 | AB74: =ProjectData[[#This Row],[Actuals 16/17]]*VLOOKUP("Mid Year Nominal - EOY Real (2020/21)",CPI[],MATCH(AB$4,CPI[#Headers],0),FALSE) -> 0 | AC74: =ProjectData[[#This Row],[Actuals 17/18]]*VLOOKUP("Mid Year Nominal - EOY Real (2020/21)",CPI[],MATCH(AC$4,CPI[#Headers],0),FALSE) -> 0 | AD74: =ProjectData[[#This Row],[Actuals 18/19]]*VLOOKUP("Mid Year Nominal - EOY Real (2020/21)",CPI[],MATCH(AD$4,CPI[#Headers],0),FALSE) -> 0 | AE74: =ProjectData[[#This Row],[Actuals 19/20]]*VLOOKUP("Mid Year Nominal - EOY Real (2020/21)",CPI[],MATCH(AE$4,CPI[#Headers],0),FALSE) -> 0 | AF74: =SUM(ProjectData[[#This Row],[Real 08]:[Real 20]]) -> 0.164561015 | AG74: =(ProjectData[[#This Row],[Real Sum]]-VLOOKUP(ProjectData[[#This Row],[Category]],Category_AverageStdDevLimit[],MATCH("Average",Category_AverageStdDevLimit[#Headers],0),FALSE))^2 -> 1.347619372 | AH74: =VLOOKUP(ProjectData[[#This Row],[Category]],Category_AverageStdDevLimit[],MATCH("Limit",Category_AverageStdDevLimit[#Headers],0),FALSE) -> 7.504688892 | AI74: =ProjectData[[#This Row],[Real Sum]]>ProjectData[[#This Row],[Category Limit]] -> FALSE | AK74: =OR(ProjectData[[#This Row],[Significant Project? (Financial Basis)]],ProjectData[[#This Row],[Non repeatable]]) -> FALSE | AL74: =AND(ProjectData[[#This Row],[SomeExpenditure >= 2016]],ProjectData[[#This Row],[Abnormal?]]) -> FALSE
A75: CP.01428 | B75: High Speed Monitoring - Stage 2 | C75: Other | E75: 0.05032175 | F75: 1.19399203 | G75: 0.88218996 | H75: -2.8e-07 | I75: 0.01818944 | J75: 0 | K75: 0 | L75: 0 | M75: 0 | N75: 0 | O75: 0 | P75: 0 | Q75: =ProjectData[[#This Row],[Real Sum]]>0.0001 -> TRUE | R75: =OR(ProjectData[[#This Row],[Real 16]]>0,ProjectData[[#This Row],[Real 17]]>0,ProjectData[[#This Row],[Real 18]]>0,ProjectData[[#This Row],[Real 19]]>0,ProjectData[[#This Row],[Real 20]]>0) -> FALSE | S75: =ProjectData[[#This Row],[Actuals 07/08]]*VLOOKUP("Mid Year Nominal - EOY Real (2020/21)",CPI[],MATCH(S$4,CPI[#Headers],0),FALSE) -> 0 | T75: =ProjectData[[#This Row],[Actuals 08/09]]*VLOOKUP("Mid Year Nominal - EOY Real (2020/21)",CPI[],MATCH(T$4,CPI[#Headers],0),FALSE) -> 0.06476689664 | U75: =ProjectData[[#This Row],[Actuals 09/10]]*VLOOKUP("Mid Year Nominal - EOY Real (2020/21)",CPI[],MATCH(U$4,CPI[#Headers],0),FALSE) -> 1.493763302 | V75: =ProjectData[[#This Row],[Actuals 10/11]]*VLOOKUP("Mid Year Nominal - EOY Real (2020/21)",CPI[],MATCH(V$4,CPI[#Headers],0),FALSE) -> 1.077746363 | W75: =ProjectData[[#This Row],[Actuals 11/12]]*VLOOKUP("Mid Year Nominal - EOY Real (2020/21)",CPI[],MATCH(W$4,CPI[#Headers],0),FALSE) -> -3.325087375e-07 | X75: =ProjectData[[#This Row],[Actuals 12/13]]*VLOOKUP("Mid Year Nominal - EOY Real (2020/21)",CPI[],MATCH(X$4,CPI[#Headers],0),FALSE) -> 0.02105359003 | Y75: =ProjectData[[#This Row],[Actuals 13/14]]*VLOOKUP("Mid Year Nominal - EOY Real (2020/21)",CPI[],MATCH(Y$4,CPI[#Headers],0),FALSE) -> 0 | Z75: =ProjectData[[#This Row],[Actuals 14/15]]*VLOOKUP("Mid Year Nominal - EOY Real (2020/21)",CPI[],MATCH(Z$4,CPI[#Headers],0),FALSE) -> 0 | AA75: =ProjectData[[#This Row],[Actuals 15/16]]*VLOOKUP("Mid Year Nominal - EOY Real (2020/21)",CPI[],MATCH(AA$4,CPI[#Headers],0),FALSE) -> 0 | AB75: =ProjectData[[#This Row],[Actuals 16/17]]*VLOOKUP("Mid Year Nominal - EOY Real (2020/21)",CPI[],MATCH(AB$4,CPI[#Headers],0),FALSE) -> 0 | AC75: =ProjectData[[#This Row],[Actuals 17/18]]*VLOOKUP("Mid Year Nominal - EOY Real (2020/21)",CPI[],MATCH(AC$4,CPI[#Headers],0),FALSE) -> 0 | AD75: =ProjectData[[#This Row],[Actuals 18/19]]*VLOOKUP("Mid Year Nominal - EOY Real (2020/21)",CPI[],MATCH(AD$4,CPI[#Headers],0),FALSE) -> 0 | AE75: =ProjectData[[#This Row],[Actuals 19/20]]*VLOOKUP("Mid Year Nominal - EOY Real (2020/21)",CPI[],MATCH(AE$4,CPI[#Headers],0),FALSE) -> 0 | AF75: =SUM(ProjectData[[#This Row],[Real 08]:[Real 20]]) -> 2.657329819 | AG75: =(ProjectData[[#This Row],[Real Sum]]-VLOOKUP(ProjectData[[#This Row],[Category]],Category_AverageStdDevLimit[],MATCH("Average",Category_AverageStdDevLimit[#Headers],0),FALSE))^2 -> 1.773954177 | AH75: =VLOOKUP(ProjectData[[#This Row],[Category]],Category_AverageStdDevLimit[],MATCH("Limit",Category_AverageStdDevLimit[#Headers],0),FALSE) -> 7.504688892 | AI75: =ProjectData[[#This Row],[Real Sum]]>ProjectData[[#This Row],[Category Limit]] -> FALSE | AK75: =OR(ProjectData[[#This Row],[Significant Project? (Financial Basis)]],ProjectData[[#This Row],[Non repeatable]]) -> FALSE | AL75: =AND(ProjectData[[#This Row],[SomeExpenditure >= 2016]],ProjectData[[#This Row],[Abnormal?]]) -> FALSE
A76: CP.01433 | B76: DWDM Network Diversity - Wide Bay | C76: Other | E76: 0.0352477 | F76: 1.32882705 | G76: 1.48116603 | H76: 0.02080341 | I76: 0 | K76: 0 | L76: 0 | M76: 0 | N76: 0 | O76: 0 | P76: 0 | Q76: =ProjectData[[#This Row],[Real Sum]]>0.0001 -> TRUE | R76: =OR(ProjectData[[#This Row],[Real 16]]>0,ProjectData[[#This Row],[Real 17]]>0,ProjectData[[#This Row],[Real 18]]>0,ProjectData[[#This Row],[Real 19]]>0,ProjectData[[#This Row],[Real 20]]>0) -> FALSE | S76: =ProjectData[[#This Row],[Actuals 07/08]]*VLOOKUP("Mid Year Nominal - EOY Real (2020/21)",CPI[],MATCH(S$4,CPI[#Headers],0),FALSE) -> 0 | T76: =ProjectData[[#This Row],[Actuals 08/09]]*VLOOKUP("Mid Year Nominal - EOY Real (2020/21)",CPI[],MATCH(T$4,CPI[#Headers],0),FALSE) -> 0.04536575423 | U76: =ProjectData[[#This Row],[Actuals 09/10]]*VLOOKUP("Mid Year Nominal - EOY Real (2020/21)",CPI[],MATCH(U$4,CPI[#Headers],0),FALSE) -> 1.662450864 | V76: =ProjectData[[#This Row],[Actuals 10/11]]*VLOOKUP("Mid Year Nominal - EOY Real (2020/21)",CPI[],MATCH(V$4,CPI[#Headers],0),FALSE) -> 1.809498377 | W76: =ProjectData[[#This Row],[Actuals 11/12]]*VLOOKUP("Mid Year Nominal - EOY Real (2020/21)",CPI[],MATCH(W$4,CPI[#Headers],0),FALSE) -> 0.02470469855 | X76: =ProjectData[[#This Row],[Actuals 12/13]]*VLOOKUP("Mid Year Nominal - EOY Real (2020/21)",CPI[],MATCH(X$4,CPI[#Headers],0),FALSE) -> 0 | Y76: =ProjectData[[#This Row],[Actuals 13/14]]*VLOOKUP("Mid Year Nominal - EOY Real (2020/21)",CPI[],MATCH(Y$4,CPI[#Headers],0),FALSE) -> 0 | Z76: =ProjectData[[#This Row],[Actuals 14/15]]*VLOOKUP("Mid Year Nominal - EOY Real (2020/21)",CPI[],MATCH(Z$4,CPI[#Headers],0),FALSE) -> 0 | AA76: =ProjectData[[#This Row],[Actuals 15/16]]*VLOOKUP("Mid Year Nominal - EOY Real (2020/21)",CPI[],MATCH(AA$4,CPI[#Headers],0),FALSE) -> 0 | AB76: =ProjectData[[#This Row],[Actuals 16/17]]*VLOOKUP("Mid Year Nominal - EOY Real (2020/21)",CPI[],MATCH(AB$4,CPI[#Headers],0),FALSE) -> 0 | AC76: =ProjectData[[#This Row],[Actuals 17/18]]*VLOOKUP("Mid Year Nominal - EOY Real (2020/21)",CPI[],MATCH(AC$4,CPI[#Headers],0),FALSE) -> 0 | AD76: =ProjectData[[#This Row],[Actuals 18/19]]*VLOOKUP("Mid Year Nominal - EOY Real (2020/21)",CPI[],MATCH(AD$4,CPI[#Headers],0),FALSE) -> 0 | AE76: =ProjectData[[#This Row],[Actuals 19/20]]*VLOOKUP("Mid Year Nominal - EOY Real (2020/21)",CPI[],MATCH(AE$4,CPI[#Headers],0),FALSE) -> 0 | AF76: =SUM(ProjectData[[#This Row],[Real 08]:[Real 20]]) -> 3.542019694 | AG76: =(ProjectData[[#This Row],[Real Sum]]-VLOOKUP(ProjectData[[#This Row],[Category]],Category_AverageStdDevLimit[],MATCH("Average",Category_AverageStdDevLimit[#Headers],0),FALSE))^2 -> 4.913264962 | AH76: =VLOOKUP(ProjectData[[#This Row],[Category]],Category_AverageStdDevLimit[],MATCH("Limit",Category_AverageStdDevLimit[#Headers],0),FALSE) -> 7.504688892 | AI76: =ProjectData[[#This Row],[Real Sum]]>ProjectData[[#This Row],[Category Limit]] -> FALSE | AK76: =OR(ProjectData[[#This Row],[Significant Project? (Financial Basis)]],ProjectData[[#This Row],[Non repeatable]]) -> FALSE | AL76: =AND(ProjectData[[#This Row],[SomeExpenditure >= 2016]],ProjectData[[#This Row],[Abnormal?]]) -> FALSE
A77: CP.01434 | B77: Karana Downs to Upper Kedron OPGW Retrofit | C77: Other | F77: 0.0019964 | G77: 0.02674149 | H77: 0.20209455 | I77: 2.56789136 | J77: 0.00201271 | K77: 0 | L77: 0 | M77: 0 | N77: 0 | O77: 0 | P77: 0 | Q77: =ProjectData[[#This Row],[Real Sum]]>0.0001 -> TRUE | R77: =OR(ProjectData[[#This Row],[Real 16]]>0,ProjectData[[#This Row],[Real 17]]>0,ProjectData[[#This Row],[Real 18]]>0,ProjectData[[#This Row],[Real 19]]>0,ProjectData[[#This Row],[Real 20]]>0) -> FALSE | S77: =ProjectData[[#This Row],[Actuals 07/08]]*VLOOKUP("Mid Year Nominal - EOY Real (2020/21)",CPI[],MATCH(S$4,CPI[#Headers],0),FALSE) -> 0 | T77: =ProjectData[[#This Row],[Actuals 08/09]]*VLOOKUP("Mid Year Nominal - EOY Real (2020/21)",CPI[],MATCH(T$4,CPI[#Headers],0),FALSE) -> 0 | U77: =ProjectData[[#This Row],[Actuals 09/10]]*VLOOKUP("Mid Year Nominal - EOY Real (2020/21)",CPI[],MATCH(U$4,CPI[#Headers],0),FALSE) -> 0.002497628946 | V77: =ProjectData[[#This Row],[Actuals 10/11]]*VLOOKUP("Mid Year Nominal - EOY Real (2020/21)",CPI[],MATCH(V$4,CPI[#Headers],0),FALSE) -> 0.03266931714 | W77: =ProjectData[[#This Row],[Actuals 11/12]]*VLOOKUP("Mid Year Nominal - EOY Real (2020/21)",CPI[],MATCH(W$4,CPI[#Headers],0),FALSE) -> 0.2399935846 | X77: =ProjectData[[#This Row],[Actuals 12/13]]*VLOOKUP("Mid Year Nominal - EOY Real (2020/21)",CPI[],MATCH(X$4,CPI[#Headers],0),FALSE) -> 2.972237295 | Y77: =ProjectData[[#This Row],[Actuals 13/14]]*VLOOKUP("Mid Year Nominal - EOY Real (2020/21)",CPI[],MATCH(Y$4,CPI[#Headers],0),FALSE) -> 0.002273383308 | Z77: =ProjectData[[#This Row],[Actuals 14/15]]*VLOOKUP("Mid Year Nominal - EOY Real (2020/21)",CPI[],MATCH(Z$4,CPI[#Headers],0),FALSE) -> 0 | AA77: =ProjectData[[#This Row],[Actuals 15/16]]*VLOOKUP("Mid Year Nominal - EOY Real (2020/21)",CPI[],MATCH(AA$4,CPI[#Headers],0),FALSE) -> 0 | AB77: =ProjectData[[#This Row],[Actuals 16/17]]*VLOOKUP("Mid Year Nominal - EOY Real (2020/21)",CPI[],MATCH(AB$4,CPI[#Headers],0),FALSE) -> 0 | AC77: =ProjectData[[#This Row],[Actuals 17/18]]*VLOOKUP("Mid Year Nominal - EOY Real (2020/21)",CPI[],MATCH(AC$4,CPI[#Headers],0),FALSE) -> 0 | AD77: =ProjectData[[#This Row],[Actuals 18/19]]*VLOOKUP("Mid Year Nominal - EOY Real (2020/21)",CPI[],MATCH(AD$4,CPI[#Headers],0),FALSE) -> 0 | AE77: =ProjectData[[#This Row],[Actuals 19/20]]*VLOOKUP("Mid Year Nominal - EOY Real (2020/21)",CPI[],MATCH(AE$4,CPI[#Headers],0),FALSE) -> 0 | AF77: =SUM(ProjectData[[#This Row],[Real 08]:[Real 20]]) -> 3.249671209 | AG77: =(ProjectData[[#This Row],[Real Sum]]-VLOOKUP(ProjectData[[#This Row],[Category]],Category_AverageStdDevLimit[],MATCH("Average",Category_AverageStdDevLimit[#Headers],0),FALSE))^2 -> 3.702699968 | AH77: =VLOOKUP(ProjectData[[#This Row],[Category]],Category_AverageStdDevLimit[],MATCH("Limit",Category_AverageStdDevLimit[#Headers],0),FALSE) -> 7.504688892 | AI77: =ProjectData[[#This Row],[Real Sum]]>ProjectData[[#This Row],[Category Limit]] -> FALSE | AK77: =OR(ProjectData[[#This Row],[Significant Project? (Financial Basis)]],ProjectData[[#This Row],[Non repeatable]]) -> FALSE | AL77: =AND(ProjectData[[#This Row],[SomeExpenditure >= 2016]],ProjectData[[#This Row],[Abnormal?]]) -> FALSE
A78: CP.01435 | B78: DWDM Network Diversity - Far North | C78: Other | E78: 0.00924675 | F78: 0.01967129 | G78: 0.0016744 | H78: 0 | I78: 0 | J78: 0.59811025 | K78: 0.28156996 | L78: 0.00835504 | M78: 0 | N78: 0 | O78: 0 | P78: 0 | Q78: =ProjectData[[#This Row],[Real Sum]]>0.0001 -> TRUE | R78: =OR(ProjectData[[#This Row],[Real 16]]>0,ProjectData[[#This Row],[Real 17]]>0,ProjectData[[#This Row],[Real 18]]>0,ProjectData[[#This Row],[Real 19]]>0,ProjectData[[#This Row],[Real 20]]>0) -> TRUE | S78: =ProjectData[[#This Row],[Actuals 07/08]]*VLOOKUP("Mid Year Nominal - EOY Real (2020/21)",CPI[],MATCH(S$4,CPI[#Headers],0),FALSE) -> 0 | T78: =ProjectData[[#This Row],[Actuals 08/09]]*VLOOKUP("Mid Year Nominal - EOY Real (2020/21)",CPI[],MATCH(T$4,CPI[#Headers],0),FALSE) -> 0.01190108256 | U78: =ProjectData[[#This Row],[Actuals 09/10]]*VLOOKUP("Mid Year Nominal - EOY Real (2020/21)",CPI[],MATCH(U$4,CPI[#Headers],0),FALSE) -> 0.02461008982 | V78: =ProjectData[[#This Row],[Actuals 10/11]]*VLOOKUP("Mid Year Nominal - EOY Real (2020/21)",CPI[],MATCH(V$4,CPI[#Headers],0),FALSE) -> 0.002045566818 | W78: =ProjectData[[#This Row],[Actuals 11/12]]*VLOOKUP("Mid Year Nominal - EOY Real (2020/21)",CPI[],MATCH(W$4,CPI[#Headers],0),FALSE) -> 0 | X78: =ProjectData[[#This Row],[Actuals 12/13]]*VLOOKUP("Mid Year Nominal - EOY Real (2020/21)",CPI[],MATCH(X$4,CPI[#Headers],0),FALSE) -> 0 | Y78: =ProjectData[[#This Row],[Actuals 13/14]]*VLOOKUP("Mid Year Nominal - EOY Real (2020/21)",CPI[],MATCH(Y$4,CPI[#Headers],0),FALSE) -> 0.6755736588 | Z78: =ProjectData[[#This Row],[Actuals 14/15]]*VLOOKUP("Mid Year Nominal - EOY Real (2020/21)",CPI[],MATCH(Z$4,CPI[#Headers],0),FALSE) -> 0.3110994657 | AA78: =ProjectData[[#This Row],[Actuals 15/16]]*VLOOKUP("Mid Year Nominal - EOY Real (2020/21)",CPI[],MATCH(AA$4,CPI[#Headers],0),FALSE) -> 0.009076689514 | AB78: =ProjectData[[#This Row],[Actuals 16/17]]*VLOOKUP("Mid Year Nominal - EOY Real (2020/21)",CPI[],MATCH(AB$4,CPI[#Headers],0),FALSE) -> 0 | AC78: =ProjectData[[#This Row],[Actuals 17/18]]*VLOOKUP("Mid Year Nominal - EOY Real (2020/21)",CPI[],MATCH(AC$4,CPI[#Headers],0),FALSE) -> 0 | AD78: =ProjectData[[#This Row],[Actuals 18/19]]*VLOOKUP("Mid Year Nominal - EOY Real (2020/21)",CPI[],MATCH(AD$4,CPI[#Headers],0),FALSE) -> 0 | AE78: =ProjectData[[#This Row],[Actuals 19/20]]*VLOOKUP("Mid Year Nominal - EOY Real (2020/21)",CPI[],MATCH(AE$4,CPI[#Headers],0),FALSE) -> 0 | AF78: =SUM(ProjectData[[#This Row],[Real 08]:[Real 20]]) -> 1.034306553 | AG78: =(ProjectData[[#This Row],[Real Sum]]-VLOOKUP(ProjectData[[#This Row],[Category]],Category_AverageStdDevLimit[],MATCH("Average",Category_AverageStdDevLimit[#Headers],0),FALSE))^2 -> 0.08475350613 | AH78: =VLOOKUP(ProjectData[[#This Row],[Category]],Category_AverageStdDevLimit[],MATCH("Limit",Category_AverageStdDevLimit[#Headers],0),FALSE) -> 7.504688892 | AI78: =ProjectData[[#This Row],[Real Sum]]>ProjectData[[#This Row],[Category Limit]] -> FALSE | AK78: =OR(ProjectData[[#This Row],[Significant Project? (Financial Basis)]],ProjectData[[#This Row],[Non repeatable]]) -> FALSE | AL78: =AND(ProjectData[[#This Row],[SomeExpenditure >= 2016]],ProjectData[[#This Row],[Abnormal?]]) -> FALSE
A79: CP.01436 | B79: DWDM Network Diversity - North | C79: Other | E79: 0.01446725 | F79: 0.0216446 | G79: 1.2028667 | H79: 0.23363011 | I79: 0.01000424 | J79: 0 | K79: 0 | L79: 0 | M79: 0 | N79: 0 | O79: 0 | P79: 0 | Q79: =ProjectData[[#This Row],[Real Sum]]>0.0001 -> TRUE | R79: =OR(ProjectData[[#This Row],[Real 16]]>0,ProjectData[[#This Row],[Real 17]]>0,ProjectData[[#This Row],[Real 18]]>0,ProjectData[[#This Row],[Real 19]]>0,ProjectData[[#This Row],[Real 20]]>0) -> FALSE | S79: =ProjectData[[#This Row],[Actuals 07/08]]*VLOOKUP("Mid Year Nominal - EOY Real (2020/21)",CPI[],MATCH(S$4,CPI[#Headers],0),FALSE) -> 0 | T79: =ProjectData[[#This Row],[Actuals 08/09]]*VLOOKUP("Mid Year Nominal - EOY Real (2020/21)",CPI[],MATCH(T$4,CPI[#Headers],0),FALSE) -> 0.018620157 | U79: =ProjectData[[#This Row],[Actuals 09/10]]*VLOOKUP("Mid Year Nominal - EOY Real (2020/21)",CPI[],MATCH(U$4,CPI[#Headers],0),FALSE) -> 0.02707883164 | V79: =ProjectData[[#This Row],[Actuals 10/11]]*VLOOKUP("Mid Year Nominal - EOY Real (2020/21)",CPI[],MATCH(V$4,CPI[#Headers],0),FALSE) -> 1.469508008 | W79: =ProjectData[[#This Row],[Actuals 11/12]]*VLOOKUP("Mid Year Nominal - EOY Real (2020/21)",CPI[],MATCH(W$4,CPI[#Headers],0),FALSE) -> 0.2774430461 | X79: =ProjectData[[#This Row],[Actuals 12/13]]*VLOOKUP("Mid Year Nominal - EOY Real (2020/21)",CPI[],MATCH(X$4,CPI[#Headers],0),FALSE) -> 0.01157953008 | Y79: =ProjectData[[#This Row],[Actuals 13/14]]*VLOOKUP("Mid Year Nominal - EOY Real (2020/21)",CPI[],MATCH(Y$4,CPI[#Headers],0),FALSE) -> 0 | Z79: =ProjectData[[#This Row],[Actuals 14/15]]*VLOOKUP("Mid Year Nominal - EOY Real (2020/21)",CPI[],MATCH(Z$4,CPI[#Headers],0),FALSE) -> 0 | AA79: =ProjectData[[#This Row],[Actuals 15/16]]*VLOOKUP("Mid Year Nominal - EOY Real (2020/21)",CPI[],MATCH(AA$4,CPI[#Headers],0),FALSE) -> 0 | AB79: =ProjectData[[#This Row],[Actuals 16/17]]*VLOOKUP("Mid Year Nominal - EOY Real (2020/21)",CPI[],MATCH(AB$4,CPI[#Headers],0),FALSE) -> 0 | AC79: =ProjectData[[#This Row],[Actuals 17/18]]*VLOOKUP("Mid Year Nominal - EOY Real (2020/21)",CPI[],MATCH(AC$4,CPI[#Headers],0),FALSE) -> 0 | AD79: =ProjectData[[#This Row],[Actuals 18/19]]*VLOOKUP("Mid Year Nominal - EOY Real (2020/21)",CPI[],MATCH(AD$4,CPI[#Headers],0),FALSE) -> 0 | AE79: =ProjectData[[#This Row],[Actuals 19/20]]*VLOOKUP("Mid Year Nominal - EOY Real (2020/21)",CPI[],MATCH(AE$4,CPI[#Headers],0),FALSE) -> 0 | AF79: =SUM(ProjectData[[#This Row],[Real 08]:[Real 20]]) -> 1.804229573 | AG79: =(ProjectData[[#This Row],[Real Sum]]-VLOOKUP(ProjectData[[#This Row],[Category]],Category_AverageStdDevLimit[],MATCH("Average",Category_AverageStdDevLimit[#Headers],0),FALSE))^2 -> 0.2292479701 | AH79: =VLOOKUP(ProjectData[[#This Row],[Category]],Category_AverageStdDevLimit[],MATCH("Limit",Category_AverageStdDevLimit[#Headers],0),FALSE) -> 7.504688892 | AI79: =ProjectData[[#This Row],[Real Sum]]>ProjectData[[#This Row],[Category Limit]] -> FALSE | AK79: =OR(ProjectData[[#This Row],[Significant Project? (Financial Basis)]],ProjectData[[#This Row],[Non repeatable]]) -> FALSE | AL79: =AND(ProjectData[[#This Row],[SomeExpenditure >= 2016]],ProjectData[[#This Row],[Abnormal?]]) -> FALSE
A80: CP.01437 | B80: SDH Interconenction to DWDM Network | C80: Other | E80: 0.02750995 | F80: 0.00134175 | G80: -0.0288517 | H80: 0 | I80: 0 | K80: 0 | L80: 0 | M80: 0 | N80: 0 | O80: 0 | P80: 0 | Q80: =ProjectData[[#This Row],[Real Sum]]>0.0001 -> TRUE | R80: =OR(ProjectData[[#This Row],[Real 16]]>0,ProjectData[[#This Row],[Real 17]]>0,ProjectData[[#This Row],[Real 18]]>0,ProjectData[[#This Row],[Real 19]]>0,ProjectData[[#This Row],[Real 20]]>0) -> FALSE | S80: =ProjectData[[#This Row],[Actuals 07/08]]*VLOOKUP("Mid Year Nominal - EOY Real (2020/21)",CPI[],MATCH(S$4,CPI[#Headers],0),FALSE) -> 0 | T80: =ProjectData[[#This Row],[Actuals 08/09]]*VLOOKUP("Mid Year Nominal - EOY Real (2020/21)",CPI[],MATCH(T$4,CPI[#Headers],0),FALSE) -> 0.03540683876 | U80: =ProjectData[[#This Row],[Actuals 09/10]]*VLOOKUP("Mid Year Nominal - EOY Real (2020/21)",CPI[],MATCH(U$4,CPI[#Headers],0),FALSE) -> 0.001678618332 | V80: =ProjectData[[#This Row],[Actuals 10/11]]*VLOOKUP("Mid Year Nominal - EOY Real (2020/21)",CPI[],MATCH(V$4,CPI[#Headers],0),FALSE) -> -0.03524730063 | W80: =ProjectData[[#This Row],[Actuals 11/12]]*VLOOKUP("Mid Year Nominal - EOY Real (2020/21)",CPI[],MATCH(W$4,CPI[#Headers],0),FALSE) -> 0 | X80: =ProjectData[[#This Row],[Actuals 12/13]]*VLOOKUP("Mid Year Nominal - EOY Real (2020/21)",CPI[],MATCH(X$4,CPI[#Headers],0),FALSE) -> 0 | Y80: =ProjectData[[#This Row],[Actuals 13/14]]*VLOOKUP("Mid Year Nominal - EOY Real (2020/21)",CPI[],MATCH(Y$4,CPI[#Headers],0),FALSE) -> 0 | Z80: =ProjectData[[#This Row],[Actuals 14/15]]*VLOOKUP("Mid Year Nominal - EOY Real (2020/21)",CPI[],MATCH(Z$4,CPI[#Headers],0),FALSE) -> 0 | AA80: =ProjectData[[#This Row],[Actuals 15/16]]*VLOOKUP("Mid Year Nominal - EOY Real (2020/21)",CPI[],MATCH(AA$4,CPI[#Headers],0),FALSE) -> 0 | AB80: =ProjectData[[#This Row],[Actuals 16/17]]*VLOOKUP("Mid Year Nominal - EOY Real (2020/21)",CPI[],MATCH(AB$4,CPI[#Headers],0),FALSE) -> 0 | AC80: =ProjectData[[#This Row],[Actuals 17/18]]*VLOOKUP("Mid Year Nominal - EOY Real (2020/21)",CPI[],MATCH(AC$4,CPI[#Headers],0),FALSE) -> 0 | AD80: =ProjectData[[#This Row],[Actuals 18/19]]*VLOOKUP("Mid Year Nominal - EOY Real (2020/21)",CPI[],MATCH(AD$4,CPI[#Headers],0),FALSE) -> 0 | AE80: =ProjectData[[#This Row],[Actuals 19/20]]*VLOOKUP("Mid Year Nominal - EOY Real (2020/21)",CPI[],MATCH(AE$4,CPI[#Headers],0),FALSE) -> 0 | AF80: =SUM(ProjectData[[#This Row],[Real 08]:[Real 20]]) -> 0.001838156465 | AG80: =(ProjectData[[#This Row],[Real Sum]]-VLOOKUP(ProjectData[[#This Row],[Category]],Category_AverageStdDevLimit[],MATCH("Average",Category_AverageStdDevLimit[#Headers],0),FALSE))^2 -> 1.7518983 | AH80: =VLOOKUP(ProjectData[[#This Row],[Category]],Category_AverageStdDevLimit[],MATCH("Limit",Category_AverageStdDevLimit[#Headers],0),FALSE) -> 7.504688892 | AI80: =ProjectData[[#This Row],[Real Sum]]>ProjectData[[#This Row],[Category Limit]] -> FALSE | AK80: =OR(ProjectData[[#This Row],[Significant Project? (Financial Basis)]],ProjectData[[#This Row],[Non repeatable]]) -> FALSE | AL80: =AND(ProjectData[[#This Row],[SomeExpenditure >= 2016]],ProjectData[[#This Row],[Abnormal?]]) -> FALSE
A81: CP.01451 | B81: EMS Software Upgrade - Evergreen Support | C81: Other | G81: 0.01310778 | H81: 0.008171 | I81: 0 | J81: -0.02127878 | K81: 0 | L81: 0 | M81: 0 | N81: 0 | O81: 0 | P81: 0 | Q81: =ProjectData[[#This Row],[Real Sum]]>0.0001 -> TRUE | R81: =OR(ProjectData[[#This Row],[Real 16]]>0,ProjectData[[#This Row],[Real 17]]>0,ProjectData[[#This Row],[Real 18]]>0,ProjectData[[#This Row],[Real 19]]>0,ProjectData[[#This Row],[Real 20]]>0) -> FALSE | S81: =ProjectData[[#This Row],[Actuals 07/08]]*VLOOKUP("Mid Year Nominal - EOY Real (2020/21)",CPI[],MATCH(S$4,CPI[#Headers],0),FALSE) -> 0 | T81: =ProjectData[[#This Row],[Actuals 08/09]]*VLOOKUP("Mid Year Nominal - EOY Real (2020/21)",CPI[],MATCH(T$4,CPI[#Headers],0),FALSE) -> 0 | U81: =ProjectData[[#This Row],[Actuals 09/10]]*VLOOKUP("Mid Year Nominal - EOY Real (2020/21)",CPI[],MATCH(U$4,CPI[#Headers],0),FALSE) -> 0 | V81: =ProjectData[[#This Row],[Actuals 10/11]]*VLOOKUP("Mid Year Nominal - EOY Real (2020/21)",CPI[],MATCH(V$4,CPI[#Headers],0),FALSE) -> 0.01601340171 | W81: =ProjectData[[#This Row],[Actuals 11/12]]*VLOOKUP("Mid Year Nominal - EOY Real (2020/21)",CPI[],MATCH(W$4,CPI[#Headers],0),FALSE) -> 0.009703317479 | X81: =ProjectData[[#This Row],[Actuals 12/13]]*VLOOKUP("Mid Year Nominal - EOY Real (2020/21)",CPI[],MATCH(X$4,CPI[#Headers],0),FALSE) -> 0 | Y81: =ProjectData[[#This Row],[Actuals 13/14]]*VLOOKUP("Mid Year Nominal - EOY Real (2020/21)",CPI[],MATCH(Y$4,CPI[#Headers],0),FALSE) -> -0.0240346713 | Z81: =ProjectData[[#This Row],[Actuals 14/15]]*VLOOKUP("Mid Year Nominal - EOY Real (2020/21)",CPI[],MATCH(Z$4,CPI[#Headers],0),FALSE) -> 0 | AA81: =ProjectData[[#This Row],[Actuals 15/16]]*VLOOKUP("Mid Year Nominal - EOY Real (2020/21)",CPI[],MATCH(AA$4,CPI[#Headers],0),FALSE) -> 0 | AB81: =ProjectData[[#This Row],[Actuals 16/17]]*VLOOKUP("Mid Year Nominal - EOY Real (2020/21)",CPI[],MATCH(AB$4,CPI[#Headers],0),FALSE) -> 0 | AC81: =ProjectData[[#This Row],[Actuals 17/18]]*VLOOKUP("Mid Year Nominal - EOY Real (2020/21)",CPI[],MATCH(AC$4,CPI[#Headers],0),FALSE) -> 0 | AD81: =ProjectData[[#This Row],[Actuals 18/19]]*VLOOKUP("Mid Year Nominal - EOY Real (2020/21)",CPI[],MATCH(AD$4,CPI[#Headers],0),FALSE) -> 0 | AE81: =ProjectData[[#This Row],[Actuals 19/20]]*VLOOKUP("Mid Year Nominal - EOY Real (2020/21)",CPI[],MATCH(AE$4,CPI[#Headers],0),FALSE) -> 0 | AF81: =SUM(ProjectData[[#This Row],[Real 08]:[Real 20]]) -> 0.001682047893 | AG81: =(ProjectData[[#This Row],[Real Sum]]-VLOOKUP(ProjectData[[#This Row],[Category]],Category_AverageStdDevLimit[],MATCH("Average",Category_AverageStdDevLimit[#Headers],0),FALSE))^2 -> 1.752311573 | AH81: =VLOOKUP(ProjectData[[#This Row],[Category]],Category_AverageStdDevLimit[],MATCH("Limit",Category_AverageStdDevLimit[#Headers],0),FALSE) -> 7.504688892 | AI81: =ProjectData[[#This Row],[Real Sum]]>ProjectData[[#This Row],[Category Limit]] -> FALSE | AK81: =OR(ProjectData[[#This Row],[Significant Project? (Financial Basis)]],ProjectData[[#This Row],[Non repeatable]]) -> FALSE | AL81: =AND(ProjectData[[#This Row],[SomeExpenditure >= 2016]],ProjectData[[#This Row],[Abnormal?]]) -> FALSE
A82: CP.01622 | B82: Cardwell Substation Line Switching | C82: Other | F82: 0.02870561 | G82: 2.05509863 | H82: 1.09933905 | I82: 0.10407231 | J82: 0.00018472 | K82: 0 | L82: 0 | M82: 0 | N82: 0 | O82: 0 | P82: 0 | Q82: =ProjectData[[#This Row],[Real Sum]]>0.0001 -> TRUE | R82: =OR(ProjectData[[#This Row],[Real 16]]>0,ProjectData[[#This Row],[Real 17]]>0,ProjectData[[#This Row],[Real 18]]>0,ProjectData[[#This Row],[Real 19]]>0,ProjectData[[#This Row],[Real 20]]>0) -> FALSE | S82: =ProjectData[[#This Row],[Actuals 07/08]]*VLOOKUP("Mid Year Nominal - EOY Real (2020/21)",CPI[],MATCH(S$4,CPI[#Headers],0),FALSE) -> 0 | T82: =ProjectData[[#This Row],[Actuals 08/09]]*VLOOKUP("Mid Year Nominal - EOY Real (2020/21)",CPI[],MATCH(T$4,CPI[#Headers],0),FALSE) -> 0 | U82: =ProjectData[[#This Row],[Actuals 09/10]]*VLOOKUP("Mid Year Nominal - EOY Real (2020/21)",CPI[],MATCH(U$4,CPI[#Headers],0),FALSE) -> 0.03591262395 | V82: =ProjectData[[#This Row],[Actuals 10/11]]*VLOOKUP("Mid Year Nominal - EOY Real (2020/21)",CPI[],MATCH(V$4,CPI[#Headers],0),FALSE) -> 2.510655498 | W82: =ProjectData[[#This Row],[Actuals 11/12]]*VLOOKUP("Mid Year Nominal - EOY Real (2020/21)",CPI[],MATCH(W$4,CPI[#Headers],0),FALSE) -> 1.305499427 | X82: =ProjectData[[#This Row],[Actuals 12/13]]*VLOOKUP("Mid Year Nominal - EOY Real (2020/21)",CPI[],MATCH(X$4,CPI[#Headers],0),FALSE) -> 0.1204597694 | Y82: =ProjectData[[#This Row],[Actuals 13/14]]*VLOOKUP("Mid Year Nominal - EOY Real (2020/21)",CPI[],MATCH(Y$4,CPI[#Headers],0),FALSE) -> 0.0002086437513 | Z82: =ProjectData[[#This Row],[Actuals 14/15]]*VLOOKUP("Mid Year Nominal - EOY Real (2020/21)",CPI[],MATCH(Z$4,CPI[#Headers],0),FALSE) -> 0 | AA82: =ProjectData[[#This Row],[Actuals 15/16]]*VLOOKUP("Mid Year Nominal - EOY Real (2020/21)",CPI[],MATCH(AA$4,CPI[#Headers],0),FALSE) -> 0 | AB82: =ProjectData[[#This Row],[Actuals 16/17]]*VLOOKUP("Mid Year Nominal - EOY Real (2020/21)",CPI[],MATCH(AB$4,CPI[#Headers],0),FALSE) -> 0 | AC82: =ProjectData[[#This Row],[Actuals 17/18]]*VLOOKUP("Mid Year Nominal - EOY Real (2020/21)",CPI[],MATCH(AC$4,CPI[#Headers],0),FALSE) -> 0 | AD82: =ProjectData[[#This Row],[Actuals 18/19]]*VLOOKUP("Mid Year Nominal - EOY Real (2020/21)",CPI[],MATCH(AD$4,CPI[#Headers],0),FALSE) -> 0 | AE82: =ProjectData[[#This Row],[Actuals 19/20]]*VLOOKUP("Mid Year Nominal - EOY Real (2020/21)",CPI[],MATCH(AE$4,CPI[#Headers],0),FALSE) -> 0 | AF82: =SUM(ProjectData[[#This Row],[Real 08]:[Real 20]]) -> 3.972735962 | AG82: =(ProjectData[[#This Row],[Real Sum]]-VLOOKUP(ProjectData[[#This Row],[Category]],Category_AverageStdDevLimit[],MATCH("Average",Category_AverageStdDevLimit[#Headers],0),FALSE))^2 -> 7.008222993 | AH82: =VLOOKUP(ProjectData[[#This Row],[Category]],Category_AverageStdDevLimit[],MATCH("Limit",Category_AverageStdDevLimit[#Headers],0),FALSE) -> 7.504688892 | AI82: =ProjectData[[#This Row],[Real Sum]]>ProjectData[[#This Row],[Category Limit]] -> FALSE | AK82: =OR(ProjectData[[#This Row],[Significant Project? (Financial Basis)]],ProjectData[[#This Row],[Non repeatable]]) -> FALSE | AL82: =AND(ProjectData[[#This Row],[SomeExpenditure >= 2016]],ProjectData[[#This Row],[Abnormal?]]) -> FALSE
A83: CP.01924 | B83: Spare 330/275kV Transformer | C83: Other | F83: 0.04381335 | G83: 0.03995342 | H83: 3.5014812 | I83: 0.55065427 | J83: 0 | K83: 0 | L83: 0 | M83: 0 | N83: 0 | O83: 0 | P83: 0 | Q83: =ProjectData[[#This Row],[Real Sum]]>0.0001 -> TRUE | R83: =OR(ProjectData[[#This Row],[Real 16]]>0,ProjectData[[#This Row],[Real 17]]>0,ProjectData[[#This Row],[Real 18]]>0,ProjectData[[#This Row],[Real 19]]>0,ProjectData[[#This Row],[Real 20]]>0) -> FALSE | S83: =ProjectData[[#This Row],[Actuals 07/08]]*VLOOKUP("Mid Year Nominal - EOY Real (2020/21)",CPI[],MATCH(S$4,CPI[#Headers],0),FALSE) -> 0 | T83: =ProjectData[[#This Row],[Actuals 08/09]]*VLOOKUP("Mid Year Nominal - EOY Real (2020/21)",CPI[],MATCH(T$4,CPI[#Headers],0),FALSE) -> 0 | U83: =ProjectData[[#This Row],[Actuals 09/10]]*VLOOKUP("Mid Year Nominal - EOY Real (2020/21)",CPI[],MATCH(U$4,CPI[#Headers],0),FALSE) -> 0.05481340974 | V83: =ProjectData[[#This Row],[Actuals 10/11]]*VLOOKUP("Mid Year Nominal - EOY Real (2020/21)",CPI[],MATCH(V$4,CPI[#Headers],0),FALSE) -> 0.04880995594 | W83: =ProjectData[[#This Row],[Actuals 11/12]]*VLOOKUP("Mid Year Nominal - EOY Real (2020/21)",CPI[],MATCH(W$4,CPI[#Headers],0),FALSE) -> 4.15811819 | X83: =ProjectData[[#This Row],[Actuals 12/13]]*VLOOKUP("Mid Year Nominal - EOY Real (2020/21)",CPI[],MATCH(X$4,CPI[#Headers],0),FALSE) -> 0.6373615269 | Y83: =ProjectData[[#This Row],[Actuals 13/14]]*VLOOKUP("Mid Year Nominal - EOY Real (2020/21)",CPI[],MATCH(Y$4,CPI[#Headers],0),FALSE) -> 0 | Z83: =ProjectData[[#This Row],[Actuals 14/15]]*VLOOKUP("Mid Year Nominal - EOY Real (2020/21)",CPI[],MATCH(Z$4,CPI[#Headers],0),FALSE) -> 0 | AA83: =ProjectData[[#This Row],[Actuals 15/16]]*VLOOKUP("Mid Year Nominal - EOY Real (2020/21)",CPI[],MATCH(AA$4,CPI[#Headers],0),FALSE) -> 0 | AB83: =ProjectData[[#This Row],[Actuals 16/17]]*VLOOKUP("Mid Year Nominal - EOY Real (2020/21)",CPI[],MATCH(AB$4,CPI[#Headers],0),FALSE) -> 0 | AC83: =ProjectData[[#This Row],[Actuals 17/18]]*VLOOKUP("Mid Year Nominal - EOY Real (2020/21)",CPI[],MATCH(AC$4,CPI[#Headers],0),FALSE) -> 0 | AD83: =ProjectData[[#This Row],[Actuals 18/19]]*VLOOKUP("Mid Year Nominal - EOY Real (2020/21)",CPI[],MATCH(AD$4,CPI[#Headers],0),FALSE) -> 0 | AE83: =ProjectData[[#This Row],[Actuals 19/20]]*VLOOKUP("Mid Year Nominal - EOY Real (2020/21)",CPI[],MATCH(AE$4,CPI[#Headers],0),FALSE) -> 0 | AF83: =SUM(ProjectData[[#This Row],[Real 08]:[Real 20]]) -> 4.899103083 | AG83: =(ProjectData[[#This Row],[Real Sum]]-VLOOKUP(ProjectData[[#This Row],[Category]],Category_AverageStdDevLimit[],MATCH("Average",Category_AverageStdDevLimit[#Headers],0),FALSE))^2 -> 12.77113139 | AH83: =VLOOKUP(ProjectData[[#This Row],[Category]],Category_AverageStdDevLimit[],MATCH("Limit",Category_AverageStdDevLimit[#Headers],0),FALSE) -> 7.504688892 | AI83: =ProjectData[[#This Row],[Real Sum]]>ProjectData[[#This Row],[Category Limit]] -> FALSE | AJ83: TRUE | AK83: =OR(ProjectData[[#This Row],[Significant Project? (Financial Basis)]],ProjectData[[#This Row],[Non repeatable]]) -> TRUE | AL83: =AND(ProjectData[[#This Row],[SomeExpenditure >= 2016]],ProjectData[[#This Row],[Abnormal?]]) -> FALSE
A84: CP.02007 | B84: Yarwun Remote132kV bus Establishm Larcom | C84: Other | E84: 0 | F84: 0 | G84: 0 | H84: 0 | I84: 0 | K84: 0 | L84: 0 | M84: 0 | N84: 0 | O84: 0 | P84: 0 | Q84: =ProjectData[[#This Row],[Real Sum]]>0.0001 -> FALSE | R84: =OR(ProjectData[[#This Row],[Real 16]]>0,ProjectData[[#This Row],[Real 17]]>0,ProjectData[[#This Row],[Real 18]]>0,ProjectData[[#This Row],[Real 19]]>0,ProjectData[[#This Row],[Real 20]]>0) -> FALSE | S84: =ProjectData[[#This Row],[Actuals 07/08]]*VLOOKUP("Mid Year Nominal - EOY Real (2020/21)",CPI[],MATCH(S$4,CPI[#Headers],0),FALSE) -> 0 | T84: =ProjectData[[#This Row],[Actuals 08/09]]*VLOOKUP("Mid Year Nominal - EOY Real (2020/21)",CPI[],MATCH(T$4,CPI[#Headers],0),FALSE) -> 0 | U84: =ProjectData[[#This Row],[Actuals 09/10]]*VLOOKUP("Mid Year Nominal - EOY Real (2020/21)",CPI[],MATCH(U$4,CPI[#Headers],0),FALSE) -> 0 | V84: =ProjectData[[#This Row],[Actuals 10/11]]*VLOOKUP("Mid Year Nominal - EOY Real (2020/21)",CPI[],MATCH(V$4,CPI[#Headers],0),FALSE) -> 0 | W84: =ProjectData[[#This Row],[Actuals 11/12]]*VLOOKUP("Mid Year Nominal - EOY Real (2020/21)",CPI[],MATCH(W$4,CPI[#Headers],0),FALSE) -> 0 | X84: =ProjectData[[#This Row],[Actuals 12/13]]*VLOOKUP("Mid Year Nominal - EOY Real (2020/21)",CPI[],MATCH(X$4,CPI[#Headers],0),FALSE) -> 0 | Y84: =ProjectData[[#This Row],[Actuals 13/14]]*VLOOKUP("Mid Year Nominal - EOY Real (2020/21)",CPI[],MATCH(Y$4,CPI[#Headers],0),FALSE) -> 0 | Z84: =ProjectData[[#This Row],[Actuals 14/15]]*VLOOKUP("Mid Year Nominal - EOY Real (2020/21)",CPI[],MATCH(Z$4,CPI[#Headers],0),FALSE) -> 0 | AA84: =ProjectData[[#This Row],[Actuals 15/16]]*VLOOKUP("Mid Year Nominal - EOY Real (2020/21)",CPI[],MATCH(AA$4,CPI[#Headers],0),FALSE) -> 0 | AB84: =ProjectData[[#This Row],[Actuals 16/17]]*VLOOKUP("Mid Year Nominal - EOY Real (2020/21)",CPI[],MATCH(AB$4,CPI[#Headers],0),FALSE) -> 0 | AC84: =ProjectData[[#This Row],[Actuals 17/18]]*VLOOKUP("Mid Year Nominal - EOY Real (2020/21)",CPI[],MATCH(AC$4,CPI[#Headers],0),FALSE) -> 0 | AD84: =ProjectData[[#This Row],[Actuals 18/19]]*VLOOKUP("Mid Year Nominal - EOY Real (2020/21)",CPI[],MATCH(AD$4,CPI[#Headers],0),FALSE) -> 0 | AE84: =ProjectData[[#This Row],[Actuals 19/20]]*VLOOKUP("Mid Year Nominal - EOY Real (2020/21)",CPI[],MATCH(AE$4,CPI[#Headers],0),FALSE) -> 0 | AF84: =SUM(ProjectData[[#This Row],[Real 08]:[Real 20]]) -> 0 | AG84: =(ProjectData[[#This Row],[Real Sum]]-VLOOKUP(ProjectData[[#This Row],[Category]],Category_AverageStdDevLimit[],MATCH("Average",Category_AverageStdDevLimit[#Headers],0),FALSE))^2 -> 1.756767621 | AH84: =VLOOKUP(ProjectData[[#This Row],[Category]],Category_AverageStdDevLimit[],MATCH("Limit",Category_AverageStdDevLimit[#Headers],0),FALSE) -> 7.504688892 | AI84: =ProjectData[[#This Row],[Real Sum]]>ProjectData[[#This Row],[Category Limit]] -> FALSE | AK84: =OR(ProjectData[[#This Row],[Significant Project? (Financial Basis)]],ProjectData[[#This Row],[Non repeatable]]) -> FALSE | AL84: =AND(ProjectData[[#This Row],[SomeExpenditure >= 2016]],ProjectData[[#This Row],[Abnormal?]]) -> FALSE
A85: CP.02018 | B85: Accurate Fault Location Stage 1 | C85: Other | F85: 0.754 | G85: 0.570965 | H85: 0.03342146 | I85: 0.03164615 | J85: 0.0166404 | K85: 0.02946267 | L85: 0.11236954 | M85: 0 | N85: 0 | O85: 0 | P85: 0 | Q85: =ProjectData[[#This Row],[Real Sum]]>0.0001 -> TRUE | R85: =OR(ProjectData[[#This Row],[Real 16]]>0,ProjectData[[#This Row],[Real 17]]>0,ProjectData[[#This Row],[Real 18]]>0,ProjectData[[#This Row],[Real 19]]>0,ProjectData[[#This Row],[Real 20]]>0) -> TRUE | S85: =ProjectData[[#This Row],[Actuals 07/08]]*VLOOKUP("Mid Year Nominal - EOY Real (2020/21)",CPI[],MATCH(S$4,CPI[#Headers],0),FALSE) -> 0 | T85: =ProjectData[[#This Row],[Actuals 08/09]]*VLOOKUP("Mid Year Nominal - EOY Real (2020/21)",CPI[],MATCH(T$4,CPI[#Headers],0),FALSE) -> 0 | U85: =ProjectData[[#This Row],[Actuals 09/10]]*VLOOKUP("Mid Year Nominal - EOY Real (2020/21)",CPI[],MATCH(U$4,CPI[#Headers],0),FALSE) -> 0.9433040601 | V85: =ProjectData[[#This Row],[Actuals 10/11]]*VLOOKUP("Mid Year Nominal - EOY Real (2020/21)",CPI[],MATCH(V$4,CPI[#Headers],0),FALSE) -> 0.697531688 | W85: =ProjectData[[#This Row],[Actuals 11/12]]*VLOOKUP("Mid Year Nominal - EOY Real (2020/21)",CPI[],MATCH(W$4,CPI[#Headers],0),FALSE) -> 0.03968902668 | X85: =ProjectData[[#This Row],[Actuals 12/13]]*VLOOKUP("Mid Year Nominal - EOY Real (2020/21)",CPI[],MATCH(X$4,CPI[#Headers],0),FALSE) -> 0.03662922378 | Y85: =ProjectData[[#This Row],[Actuals 13/14]]*VLOOKUP("Mid Year Nominal - EOY Real (2020/21)",CPI[],MATCH(Y$4,CPI[#Headers],0),FALSE) -> 0.01879555803 | Z85: =ProjectData[[#This Row],[Actuals 14/15]]*VLOOKUP("Mid Year Nominal - EOY Real (2020/21)",CPI[],MATCH(Z$4,CPI[#Headers],0),FALSE) -> 0.03255255247 | AA85: =ProjectData[[#This Row],[Actuals 15/16]]*VLOOKUP("Mid Year Nominal - EOY Real (2020/21)",CPI[],MATCH(AA$4,CPI[#Headers],0),FALSE) -> 0.1220752295 | AB85: =ProjectData[[#This Row],[Actuals 16/17]]*VLOOKUP("Mid Year Nominal - EOY Real (2020/21)",CPI[],MATCH(AB$4,CPI[#Headers],0),FALSE) -> 0 | AC85: =ProjectData[[#This Row],[Actuals 17/18]]*VLOOKUP("Mid Year Nominal - EOY Real (2020/21)",CPI[],MATCH(AC$4,CPI[#Headers],0),FALSE) -> 0 | AD85: =ProjectData[[#This Row],[Actuals 18/19]]*VLOOKUP("Mid Year Nominal - EOY Real (2020/21)",CPI[],MATCH(AD$4,CPI[#Headers],0),FALSE) -> 0 | AE85: =ProjectData[[#This Row],[Actuals 19/20]]*VLOOKUP("Mid Year Nominal - EOY Real (2020/21)",CPI[],MATCH(AE$4,CPI[#Headers],0),FALSE) -> 0 | AF85: =SUM(ProjectData[[#This Row],[Real 08]:[Real 20]]) -> 1.890577339 | AG85: =(ProjectData[[#This Row],[Real Sum]]-VLOOKUP(ProjectData[[#This Row],[Category]],Category_AverageStdDevLimit[],MATCH("Average",Category_AverageStdDevLimit[#Headers],0),FALSE))^2 -> 0.3193902623 | AH85: =VLOOKUP(ProjectData[[#This Row],[Category]],Category_AverageStdDevLimit[],MATCH("Limit",Category_AverageStdDevLimit[#Headers],0),FALSE) -> 7.504688892 | AI85: =ProjectData[[#This Row],[Real Sum]]>ProjectData[[#This Row],[Category Limit]] -> FALSE | AK85: =OR(ProjectData[[#This Row],[Significant Project? (Financial Basis)]],ProjectData[[#This Row],[Non repeatable]]) -> FALSE | AL85: =AND(ProjectData[[#This Row],[SomeExpenditure >= 2016]],ProjectData[[#This Row],[Abnormal?]]) -> FALSE
A86: CP.02028 | B86: IEC 61850 SAS - Gen 1 | C86: Other | F86: 0.34114645 | G86: 0 | H86: -0.10178707 | I86: -0.01900309 | J86: 0 | K86: 0 | L86: 0 | M86: 0 | N86: 0 | O86: 0 | P86: 0 | Q86: =ProjectData[[#This Row],[Real Sum]]>0.0001 -> TRUE | R86: =OR(ProjectData[[#This Row],[Real 16]]>0,ProjectData[[#This Row],[Real 17]]>0,ProjectData[[#This Row],[Real 18]]>0,ProjectData[[#This Row],[Real 19]]>0,ProjectData[[#This Row],[Real 20]]>0) -> FALSE | S86: =ProjectData[[#This Row],[Actuals 07/08]]*VLOOKUP("Mid Year Nominal - EOY Real (2020/21)",CPI[],MATCH(S$4,CPI[#Headers],0),FALSE) -> 0 | T86: =ProjectData[[#This Row],[Actuals 08/09]]*VLOOKUP("Mid Year Nominal - EOY Real (2020/21)",CPI[],MATCH(T$4,CPI[#Headers],0),FALSE) -> 0 | U86: =ProjectData[[#This Row],[Actuals 09/10]]*VLOOKUP("Mid Year Nominal - EOY Real (2020/21)",CPI[],MATCH(U$4,CPI[#Headers],0),FALSE) -> 0.4267968586 | V86: =ProjectData[[#This Row],[Actuals 10/11]]*VLOOKUP("Mid Year Nominal - EOY Real (2020/21)",CPI[],MATCH(V$4,CPI[#Headers],0),FALSE) -> 0 | W86: =ProjectData[[#This Row],[Actuals 11/12]]*VLOOKUP("Mid Year Nominal - EOY Real (2020/21)",CPI[],MATCH(W$4,CPI[#Headers],0),FALSE) -> -0.1208753219 | X86: =ProjectData[[#This Row],[Actuals 12/13]]*VLOOKUP("Mid Year Nominal - EOY Real (2020/21)",CPI[],MATCH(X$4,CPI[#Headers],0),FALSE) -> -0.02199535919 | Y86: =ProjectData[[#This Row],[Actuals 13/14]]*VLOOKUP("Mid Year Nominal - EOY Real (2020/21)",CPI[],MATCH(Y$4,CPI[#Headers],0),FALSE) -> 0 | Z86: =ProjectData[[#This Row],[Actuals 14/15]]*VLOOKUP("Mid Year Nominal - EOY Real (2020/21)",CPI[],MATCH(Z$4,CPI[#Headers],0),FALSE) -> 0 | AA86: =ProjectData[[#This Row],[Actuals 15/16]]*VLOOKUP("Mid Year Nominal - EOY Real (2020/21)",CPI[],MATCH(AA$4,CPI[#Headers],0),FALSE) -> 0 | AB86: =ProjectData[[#This Row],[Actuals 16/17]]*VLOOKUP("Mid Year Nominal - EOY Real (2020/21)",CPI[],MATCH(AB$4,CPI[#Headers],0),FALSE) -> 0 | AC86: =ProjectData[[#This Row],[Actuals 17/18]]*VLOOKUP("Mid Year Nominal - EOY Real (2020/21)",CPI[],MATCH(AC$4,CPI[#Headers],0),FALSE) -> 0 | AD86: =ProjectData[[#This Row],[Actuals 18/19]]*VLOOKUP("Mid Year Nominal - EOY Real (2020/21)",CPI[],MATCH(AD$4,CPI[#Headers],0),FALSE) -> 0 | AE86: =ProjectData[[#This Row],[Actuals 19/20]]*VLOOKUP("Mid Year Nominal - EOY Real (2020/21)",CPI[],MATCH(AE$4,CPI[#Headers],0),FALSE) -> 0 | AF86: =SUM(ProjectData[[#This Row],[Real 08]:[Real 20]]) -> 0.2839261775 | AG86: =(ProjectData[[#This Row],[Real Sum]]-VLOOKUP(ProjectData[[#This Row],[Category]],Category_AverageStdDevLimit[],MATCH("Average",Category_AverageStdDevLimit[#Headers],0),FALSE))^2 -> 1.084732519 | AH86: =VLOOKUP(ProjectData[[#This Row],[Category]],Category_AverageStdDevLimit[],MATCH("Limit",Category_AverageStdDevLimit[#Headers],0),FALSE) -> 7.504688892 | AI86: =ProjectData[[#This Row],[Real Sum]]>ProjectData[[#This Row],[Category Limit]] -> FALSE | AK86: =OR(ProjectData[[#This Row],[Significant Project? (Financial Basis)]],ProjectData[[#This Row],[Non repeatable]]) -> FALSE | AL86: =AND(ProjectData[[#This Row],[SomeExpenditure >= 2016]],ProjectData[[#This Row],[Abnormal?]]) -> FALSE
A87: CP.02033 | B87: Revise Substation LAN Design Standard 1. | C87: Other | F87: 0.01554296 | G87: -0.01554296 | H87: 0 | I87: 0 | J87: 0 | K87: 0 | L87: 0 | M87: 0 | N87: 0 | O87: 0 | P87: 0 | Q87: =ProjectData[[#This Row],[Real Sum]]>0.0001 -> TRUE | R87: =OR(ProjectData[[#This Row],[Real 16]]>0,ProjectData[[#This Row],[Real 17]]>0,ProjectData[[#This Row],[Real 18]]>0,ProjectData[[#This Row],[Real 19]]>0,ProjectData[[#This Row],[Real 20]]>0) -> FALSE | S87: =ProjectData[[#This Row],[Actuals 07/08]]*VLOOKUP("Mid Year Nominal - EOY Real (2020/21)",CPI[],MATCH(S$4,CPI[#Headers],0),FALSE) -> 0 | T87: =ProjectData[[#This Row],[Actuals 08/09]]*VLOOKUP("Mid Year Nominal - EOY Real (2020/21)",CPI[],MATCH(T$4,CPI[#Headers],0),FALSE) -> 0 | U87: =ProjectData[[#This Row],[Actuals 09/10]]*VLOOKUP("Mid Year Nominal - EOY Real (2020/21)",CPI[],MATCH(U$4,CPI[#Headers],0),FALSE) -> 0.0194452749 | V87: =ProjectData[[#This Row],[Actuals 10/11]]*VLOOKUP("Mid Year Nominal - EOY Real (2020/21)",CPI[],MATCH(V$4,CPI[#Headers],0),FALSE) -> -0.0189883918 | W87: =ProjectData[[#This Row],[Actuals 11/12]]*VLOOKUP("Mid Year Nominal - EOY Real (2020/21)",CPI[],MATCH(W$4,CPI[#Headers],0),FALSE) -> 0 | X87: =ProjectData[[#This Row],[Actuals 12/13]]*VLOOKUP("Mid Year Nominal - EOY Real (2020/21)",CPI[],MATCH(X$4,CPI[#Headers],0),FALSE) -> 0 | Y87: =ProjectData[[#This Row],[Actuals 13/14]]*VLOOKUP("Mid Year Nominal - EOY Real (2020/21)",CPI[],MATCH(Y$4,CPI[#Headers],0),FALSE) -> 0 | Z87: =ProjectData[[#This Row],[Actuals 14/15]]*VLOOKUP("Mid Year Nominal - EOY Real (2020/21)",CPI[],MATCH(Z$4,CPI[#Headers],0),FALSE) -> 0 | AA87: =ProjectData[[#This Row],[Actuals 15/16]]*VLOOKUP("Mid Year Nominal - EOY Real (2020/21)",CPI[],MATCH(AA$4,CPI[#Headers],0),FALSE) -> 0 | AB87: =ProjectData[[#This Row],[Actuals 16/17]]*VLOOKUP("Mid Year Nominal - EOY Real (2020/21)",CPI[],MATCH(AB$4,CPI[#Headers],0),FALSE) -> 0 | AC87: =ProjectData[[#This Row],[Actuals 17/18]]*VLOOKUP("Mid Year Nominal - EOY Real (2020/21)",CPI[],MATCH(AC$4,CPI[#Headers],0),FALSE) -> 0 | AD87: =ProjectData[[#This Row],[Actuals 18/19]]*VLOOKUP("Mid Year Nominal - EOY Real (2020/21)",CPI[],MATCH(AD$4,CPI[#Headers],0),FALSE) -> 0 | AE87: =ProjectData[[#This Row],[Actuals 19/20]]*VLOOKUP("Mid Year Nominal - EOY Real (2020/21)",CPI[],MATCH(AE$4,CPI[#Headers],0),FALSE) -> 0 | AF87: =SUM(ProjectData[[#This Row],[Real 08]:[Real 20]]) -> 0.0004568830975 | AG87: =(ProjectData[[#This Row],[Real Sum]]-VLOOKUP(ProjectData[[#This Row],[Category]],Category_AverageStdDevLimit[],MATCH("Average",Category_AverageStdDevLimit[#Headers],0),FALSE))^2 -> 1.755556696 | AH87: =VLOOKUP(ProjectData[[#This Row],[Category]],Category_AverageStdDevLimit[],MATCH("Limit",Category_AverageStdDevLimit[#Headers],0),FALSE) -> 7.504688892 | AI87: =ProjectData[[#This Row],[Real Sum]]>ProjectData[[#This Row],[Category Limit]] -> FALSE | AK87: =OR(ProjectData[[#This Row],[Significant Project? (Financial Basis)]],ProjectData[[#This Row],[Non repeatable]]) -> FALSE | AL87: =AND(ProjectData[[#This Row],[SomeExpenditure >= 2016]],ProjectData[[#This Row],[Abnormal?]]) -> FALSE
A88: CP.02035 | B88: Transgrid Wavelengths | C88: Other | F88: 0 | G88: 0 | H88: 0 | I88: 0 | J88: 0 | K88: 0 | L88: 0 | M88: 0 | N88: 0 | O88: 0 | P88: 0 | Q88: =ProjectData[[#This Row],[Real Sum]]>0.0001 -> FALSE | R88: =OR(ProjectData[[#This Row],[Real 16]]>0,ProjectData[[#This Row],[Real 17]]>0,ProjectData[[#This Row],[Real 18]]>0,ProjectData[[#This Row],[Real 19]]>0,ProjectData[[#This Row],[Real 20]]>0) -> FALSE | S88: =ProjectData[[#This Row],[Actuals 07/08]]*VLOOKUP("Mid Year Nominal - EOY Real (2020/21)",CPI[],MATCH(S$4,CPI[#Headers],0),FALSE) -> 0 | T88: =ProjectData[[#This Row],[Actuals 08/09]]*VLOOKUP("Mid Year Nominal - EOY Real (2020/21)",CPI[],MATCH(T$4,CPI[#Headers],0),FALSE) -> 0 | U88: =ProjectData[[#This Row],[Actuals 09/10]]*VLOOKUP("Mid Year Nominal - EOY Real (2020/21)",CPI[],MATCH(U$4,CPI[#Headers],0),FALSE) -> 0 | V88: =ProjectData[[#This Row],[Actuals 10/11]]*VLOOKUP("Mid Year Nominal - EOY Real (2020/21)",CPI[],MATCH(V$4,CPI[#Headers],0),FALSE) -> 0 | W88: =ProjectData[[#This Row],[Actuals 11/12]]*VLOOKUP("Mid Year Nominal - EOY Real (2020/21)",CPI[],MATCH(W$4,CPI[#Headers],0),FALSE) -> 0 | X88: =ProjectData[[#This Row],[Actuals 12/13]]*VLOOKUP("Mid Year Nominal - EOY Real (2020/21)",CPI[],MATCH(X$4,CPI[#Headers],0),FALSE) -> 0 | Y88: =ProjectData[[#This Row],[Actuals 13/14]]*VLOOKUP("Mid Year Nominal - EOY Real (2020/21)",CPI[],MATCH(Y$4,CPI[#Headers],0),FALSE) -> 0 | Z88: =ProjectData[[#This Row],[Actuals 14/15]]*VLOOKUP("Mid Year Nominal - EOY Real (2020/21)",CPI[],MATCH(Z$4,CPI[#Headers],0),FALSE) -> 0 | AA88: =ProjectData[[#This Row],[Actuals 15/16]]*VLOOKUP("Mid Year Nominal - EOY Real (2020/21)",CPI[],MATCH(AA$4,CPI[#Headers],0),FALSE) -> 0 | AB88: =ProjectData[[#This Row],[Actuals 16/17]]*VLOOKUP("Mid Year Nominal - EOY Real (2020/21)",CPI[],MATCH(AB$4,CPI[#Headers],0),FALSE) -> 0 | AC88: =ProjectData[[#This Row],[Actuals 17/18]]*VLOOKUP("Mid Year Nominal - EOY Real (2020/21)",CPI[],MATCH(AC$4,CPI[#Headers],0),FALSE) -> 0 | AD88: =ProjectData[[#This Row],[Actuals 18/19]]*VLOOKUP("Mid Year Nominal - EOY Real (2020/21)",CPI[],MATCH(AD$4,CPI[#Headers],0),FALSE) -> 0 | AE88: =ProjectData[[#This Row],[Actuals 19/20]]*VLOOKUP("Mid Year Nominal - EOY Real (2020/21)",CPI[],MATCH(AE$4,CPI[#Headers],0),FALSE) -> 0 | AF88: =SUM(ProjectData[[#This Row],[Real 08]:[Real 20]]) -> 0 | AG88: =(ProjectData[[#This Row],[Real Sum]]-VLOOKUP(ProjectData[[#This Row],[Category]],Category_AverageStdDevLimit[],MATCH("Average",Category_AverageStdDevLimit[#Headers],0),FALSE))^2 -> 1.756767621 | AH88: =VLOOKUP(ProjectData[[#This Row],[Category]],Category_AverageStdDevLimit[],MATCH("Limit",Category_AverageStdDevLimit[#Headers],0),FALSE) -> 7.504688892 | AI88: =ProjectData[[#This Row],[Real Sum]]>ProjectData[[#This Row],[Category Limit]] -> FALSE | AK88: =OR(ProjectData[[#This Row],[Significant Project? (Financial Basis)]],ProjectData[[#This Row],[Non repeatable]]) -> FALSE | AL88: =AND(ProjectData[[#This Row],[SomeExpenditure >= 2016]],ProjectData[[#This Row],[Abnormal?]]) -> FALSE
